Workbook

Sheet L - Data (DO NOT EDIT) (hidden)
A1: Service Type | B1: Incident Base | C1: Released to | F1: Labor Type
A2: Distribution Line | B2: Dade City | C2: Duke | D2: YES | E2: Receipt - No Detail | F2: ST
A3: Damage Assessor | B3: Dog Track | C3: FPL | D3: NO | E3: Receipt - Detail | F3: OT
A4: Tree Trimmer | B4: Fair Grounds | C4: Home | D4: Needs Reviewed | E4: Inc'l Alcohol | F4: DT
B5: Strawberry Festival | E5: No Receipt | F5: MOB/DMOB
B6: Western
B7: Wimauma
B8: Winter Haven

Sheet Sign Off
B2: Sign Off's
B4: Accounting
C6: Name | D6: Title | E6: Date
B7: Preparer | C7: N/A | D7: N/A | E7: N/A
B8: Reviewer | C8: N/A | D8: N/A | E8: N/A
B9: Approver | C9: N/A | D9: N/A | E9: N/A
B11: Audit Services
C13: Name | D13: Title | E13: Date
B14: Preparer | C14: Kaitlyn Bossard | D14: Senior Financial Auditor | E14: 2018-11-07
B16: Energy Delivery
C18: Name | D18: Title | E18: Date
B19: Final Reviewer | C19: Ron Neil | D19: Manager - Resource Management | E19: 2018-11-09

Sheet A - Contractor Summary
B2: Contractor Summary
B4: Test Plan: (A) Using the drop down list, select the vendor. (B) Ensure address agrees to invoice(s). (C) Enter the distance between vendor address to Plant City, FL. (D) Determine if vendor is part of the SEE (see tab A.1 for listing). (E) Determine if other agreements exist. (F) Using the drop down list, select the Incident Base that the vendor was initially assigned. (G) If the contractor includes multiple crews with different timelines, utilize the '+' symbol at the top of columns 'H' and 'K' (if necessary) to unhide the vendor summary. (H) Click the button to populate the second (and third, if necessary) set of tabs for documentation of those expenses. (I) Complete steps (A) through (F).
F14: G | I14: G
C15: Vendor #1 | F15: Vendor #2 | I15: Vendor #3
G17: H | J17: H
B19: Contractor/Company | C19: Vendor No. 20 | D19: A | G19: A | J19: A
B20: SAP Vendor# | C20: 10044004 | F20: 10044004 | I20: =VLOOKUP(I19,#REF!,2,FALSE) -> 
B21: Service Type | C21: Distribution | F21: Transmission | I21: =VLOOKUP($I$19,#REF!,4,FALSE) -> 
B23: Address | D23: B | G23: B | I23: =VLOOKUP($I$19,#REF!,13,FALSE) ->  | J23: B
B24: City | I24: =VLOOKUP($I$19,#REF!,14,FALSE) -> 
B25: State/Providence | I25: =VLOOKUP($I$19,#REF!,15,FALSE) -> 
B26: Zip | I26: =VLOOKUP($I$19,#REF!,16,FALSE) -> 
B27: Country | C27: US | F27: US | I27: =VLOOKUP($I$19,#REF!,17,FALSE) -> 
B29: Distance from FL (in miles) | D29: C | F29: 815 | G29: C | I29: 800 | J29: C
B30: Travel Days (500 m/per day) | C30: 2 | F30: =ROUNDUP(F29/500,0) -> 2 | I30: =ROUNDUP(I29/500,0) -> 2
B32: Member of the SEE | C32: NO | D32: D | F32: NO | G32: D | I32: NO | J32: D
B33: Other Agreement/Contract (Y/N) | C33: NO | D33: E | F33: NO | G33: E | I33: NO | J33: E
B34: Incident Base | C34: Winter Haven | D34: F | F34: Winter Haven | G34: F | I34: Winter Haven | J34: F
B36: Date Secured | C36: 2017-09-04 | F36: 2017-09-04 | I36: =VLOOKUP($I$19,#REF!,6,FALSE) -> 
B37: Start Travel | C37: N/A | F37: N/A | I37: =VLOOKUP($I$19,#REF!,7,FALSE) -> 
B38: Date Arrived | C38: 2017-09-12 | F38: 2017-09-12 | I38: =VLOOKUP($I$19,#REF!,8,FALSE) -> 
B39: Date Released | C39: 2017-09-17 | F39: 2017-09-13 | I39: =VLOOKUP($I$19,#REF!,9,FALSE) -> 
B40: Time Released | C40: 16:27 | F40: 16:27 | I40: =VLOOKUP($I$19,#REF!,10,FALSE) -> 
B41: Released To | C41: FPL | F41: Home | I41: =VLOOKUP($I$19,#REF!,11,FALSE) -> 
B42: Arrived Home/Utility* | C42: 2017-09-17 | F42: 2017-09-15 | I42: =IF(I41="home",SUM(IF(I29>500,I39+I30,I39)),I39) -> 
F47: C.1 - Rate Sheets (2) | I47: C.1 - Rate Sheets (3)
F48: C.2 - Timesheets - Labor (2) | I48: C.2 - Timesheets - Labor (3)
F49: C.4 - Timesheets - Equipmen (2) | I49: C.4 - Timesheets - Equipmen (3)
F50: D - Lodging (2) | I50: D - Lodging (3)
F51: E - Fuel (2) | I51: E - Fuel (3)
F52: F - Meals (2) | I52: F - Meals (3)
F53: G - Per Diem (2) | I53: G - Per Diem (3)
F54: H - Mileage (2) | I54: H - Mileage (3)
F55: I - Other (2) | I55: I - Other (3)
B59: *Estimates reasonable arrival time
B61: Tickmark Explanation:

Sheet A.1 SEE Members
A1: RMAG | B1: RESPONDING COMPANY | C1: COMPANY NAME
A2: SEE | B2: AEP Kentucky Power Co | C2: AEP Kentucky Power Co
A3: SEE | B3: AEP Kentucky Power Co | C3: AEP Kentucky Power Co
A4: SEE | B4: AEP Kentucky Power Co | C4: David Elliot
A5: SEE | B5: AEP Appalachian Power Co | C5: Asplundh
A6: SEE | B6: AEP Appalachian Power Co | C6: Davis Elliot
A7: SEE | B7: AEP Appalachian Power Co | C7: Davis Elliot
A8: SEE | B8: AEP Indiana Michigan Power Co | C8: AEP Indiana Michigan Power Co
A9: SEE | B9: AEP Ohio Power Company | C9: AEP Ohio Power Company
A10: SEE | B10: AEP Ohio Power Company | C10: Osmose
A11: SEE | B11: AEP Ohio Power Company | C11: Thayer
A12: SEE | B12: AEP Ohio Power Company | C12: 5 Star
A13: SEE | B13: AEP Ohio Power Company | C13: AEP Ohio Power Company
A14: SEE | B14: AEP Ohio Power Company | C14: AEP Ohio Power Company
A15: SEE | B15: AEP Public Service of Oklahoma | C15: AEP Public Service of Oklahoma
A16: SEE | B16: AEP Public Service of Oklahoma | C16: Davis Elliot
A17: SEE | B17: CenterPoint Energy | C17: ABC Tree
A18: SEE | B18: CenterPoint Energy | C18: CenterPoint Energy
A19: SEE | B19: CenterPoint Energy | C19: Davey Tree
B20: Consolidated Edison | C20: Consolidated Edison
B21: Consumers | C21: Trees, Inc.
B22: Consumers | C22: Asplundh Tree Expert Companhy
B23: Consumers | C23: Davey Tree Expert Company
A24: SEE | B24: Dayton Power & Light | C24: Lewis Tree
A25: SEE | B25: Dominion | C25: Davis H Elliot
A26: SEE | B26: Dominion | C26: Lee Electrical
A27: SEE | B27: Dominion | C27: Mastec
A28: SEE | B28: Dominion | C28: Riggs Distler
A29: SEE | B29: Dominion | C29: River City
B30: Empire District - Liberty | C30: Empire District - Liberty
A31: SEE | B31: Entergy Louisiana | C31: Asplundh Tree
A32: SEE | B32: Entergy Louisiana | C32: Global Environmental Solutions
A33: SEE | B33: Entergy Mississippi | C33: B&B Electrical
A34: SEE | B34: Entergy Mississippi | C34: MDR Construction
A35: SEE | B35: Entergy Mississippi | C35: Chain Electric
B36: Eversource, CT | C36: Asplundh
B37: Eversource, CT | C37: Elecnor Hawkeye
B38: Eversource, CT | C38: Riggs Distler
B39: Eversource, MA | C39: IB Abel
A40: SEE | B40: Exelon PHI Potomac Electric Power Co | C40: Asplundh Tree
A41: SEE | B41: FE Ohio Edison Company | C41: Didado Transmission Cont
A42: SEE | B42: FE Ohio Edison Company | C42: Didado Distribution
A43: SEE | B43: FE Ohio Edison Company | C43: FE Ohio Edison Company
B44: Indianapolis Power & Light | C44: Wright Tree Service
B45: ITC Midwest | C45: MJ Electric
B46: ITC Midwest | C46: Michels Power
A47: SEE | B47: LG&E/KU | C47: Davis H Elliot
B48: Liberty Utilities (Algonquin Power) | C48: Liberty Utilities (Algonquin Power)
B49: Madison Gas & Electric | C49: Madison Gas & Electric
B50: National Grid (NE) | C50: National Grid (NE)
B51: National Grid (NY) | C51: National Grid (NY)
B52: Nebraska Public Power | C52: Nebraska Public Power
B53: Northern Indiana Public Service Co | C53: Northern Indiana Public Service Co
B54: Omaha Public Power | C54: Omaha Public Power
A55: SEE | B55: Oncor Electric Delivery | C55: Arbor Resources
A56: SEE | B56: Oncor Electric Delivery | C56: Asplundh
A57: SEE | B57: Oncor Electric Delivery | C57: Pike
B58: Orange & Rockland | C58: Orange & Rockland
B59: Orange & Rockland | C59: Orange & Rockland
B60: Otter Tail Power | C60: Otter Tail Power
A61: SEE | B61: PPL Electric Utilities | C61: PPL Electric Utilities
B62: PSEG (Long Island) | C62: Asplundh
B63: PSEG (Long Island) | C63: PSEG (Long Island)
A64: SEE | B64: SoCo Gulf Power Company | C64: SoCo Gulf Power Company
A65: SEE | B65: Texas-New Mexico Power | C65: Trees, Inc.
B66: Toronto Hydro | C66: Toronto Hydro
B67: Upper Peninsula Power Company | C67: Upper Peninsula Power Company
B68: Vectren Energy | C68: Electricom
B69: Vectren Energy | C69: Henkels & McCoy
B70: Vectren Energy | C70: Electricom
B71: XCEL Energy - Colorado | C71: XCEL Energy - Colorado
B72: XCEL Energy - Minnesota | C72: XCEL Energy - Minnesota
B73: XCEL Energy - Southwestern Public Service | C73: XCEL Energy - Southwestern Public Service

Sheet B - Summary Expenses
B2: Summary of Expenses
B4: Test Plan: (A) Calculate Total Amount Invoiced for each expense category. (B) Using SAP t-code FBL1N, list Vendor Invoices Paid. (C) Ensure there are no differences between the Total Expense Amount and the Total Paid Amount. (D) Ensure there are no difference between Total Invoiced Amount and Total Expense Amount. (E) If applicable, identify difference due to Foreign currency exchange rates.
C9: A
C10: Total Invoiced | D10: Total Calculated | E10: Allowable | F10: Reviewed - Allowed | G10: Reviewed - Not Allowable | H10: Not Allowable
B11: Labor Expense Total | C11: 749940.6 | D11: ='C.2 - Timesheets - Labor'!DO83+'C.2 - Timesheets - Labor (2)'!DO34+'C.2 - Timesheets - Labor (3)'!DO94 -> 749940.6 | E11: ='C.2 - Timesheets - Labor'!DP83+'C.2 - Timesheets - Labor (2)'!DP34+'C.2 - Timesheets - Labor (3)'!DP94 -> 744886.04 | F11: ='C.2 - Timesheets - Labor'!DS83+'C.2 - Timesheets - Labor (2)'!DS34+'C.2 - Timesheets - Labor (3)'!DS94 -> 0 | G11: ='C.2 - Timesheets - Labor'!DT83+'C.2 - Timesheets - Labor (2)'!DT34+'C.2 - Timesheets - Labor (3)'!DT94 -> 5054.56 | H11: =D11-(E11+F11+G11) -> 0
B12: Equipment Expense Total | C12: 314198.88 | D12: ='C.4 - Timesheets - Equipment'!AF104+'C.4 - Timesheets - Equipmen (2)'!AF39+'C.4 - Timesheets - Equipmen (3)'!AF93 -> 314198.88 | E12: ='C.4 - Timesheets - Equipment'!AG104+'C.4 - Timesheets - Equipmen (2)'!AG39+'C.4 - Timesheets - Equipmen (3)'!AG93 -> 306448.88 | F12: ='C.4 - Timesheets - Equipment'!AI104+'C.4 - Timesheets - Equipmen (2)'!AI39+'C.4 - Timesheets - Equipmen (3)'!AI93 -> 0 | G12: ='C.4 - Timesheets - Equipment'!AJ104+'C.4 - Timesheets - Equipmen (2)'!AJ39+'C.4 - Timesheets - Equipmen (3)'!AJ93 -> 7750 | H12: =D12-(E12+F12+G12) -> 0
B13: Lodging Expense Total | C13: 13591.83 | D13: ='D - Lodging'!L93+'D - Lodging (2)'!L29+'D - Lodging (3)'!K34 -> 13591.83 | E13: ='D - Lodging'!T93+'D - Lodging (2)'!T29+'D - Lodging (3)'!S34 -> 11588.54 | F13: ='D - Lodging'!V93+'D - Lodging (2)'!V29+'D - Lodging (3)'!U34 -> 986.87 | G13: ='D - Lodging'!W93+'D - Lodging (2)'!W29+'D - Lodging (3)'!V34 -> 0 | H13: =D13-(E13+F13+G13) -> 1016.42
B14: Fuel/Transport Expense Total | C14: 0 | D14: ='E - Fuel'!J34+'E - Fuel (2)'!J34+'E - Fuel (3)'!J34 -> 0 | E14: ='E - Fuel'!Q34+'E - Fuel (2)'!Q34+'E - Fuel (3)'!Q34 -> 0 | F14: ='E - Fuel'!S34+'E - Fuel (2)'!S34+'E - Fuel (3)'!S34 -> 0 | G14: ='E - Fuel'!T34+'E - Fuel (2)'!T34+'E - Fuel (3)'!T34 -> 0 | H14: 0
B15: Meal Expense Total | C15: 8266.73 | D15: ='F - Meals'!K141+'F - Meals (2)'!K25+'F - Meals (3)'!J58 -> 8266.73 | E15: ='F - Meals'!R141+'F - Meals (2)'!R25+'F - Meals (3)'!Q58 -> 2098.36 | F15: ='F - Meals'!T141+'F - Meals (2)'!T25+'F - Meals (3)'!S58 -> 458.78 | G15: ='F - Meals'!U141+'F - Meals (2)'!U25+'F - Meals (3)'!T58 -> 1630.77 | H15: 4078.82
B16: Per Diem Expense Total | C16: 0 | D16: ='G - Per Diem'!I36+'G - Per Diem (2)'!I36+'G - Per Diem (3)'!I36 -> 0 | E16: ='G - Per Diem'!N36+'G - Per Diem (2)'!N36+'G - Per Diem (3)'!N36 -> 0 | F16: ='G - Per Diem'!P36+'G - Per Diem (2)'!P36+'G - Per Diem (3)'!P36 -> 0 | G16: ='G - Per Diem'!Q36+'G - Per Diem (2)'!Q36+'G - Per Diem (3)'!Q36 -> 0 | H16: 0
B17: Mileage Expense Total | C17: 0 | D17: ='H - Mileage'!L36+'H - Mileage (2)'!L36+'H - Mileage (3)'!L36 -> 0 | E17: ='H - Mileage'!R36+'H - Mileage (2)'!R36+'H - Mileage (3)'!R36 -> 0 | F17: ='H - Mileage'!T36+'H - Mileage (2)'!T36+'H - Mileage (3)'!T36 -> 0 | G17: ='H - Mileage'!U36+'H - Mileage (2)'!U36+'H - Mileage (3)'!U36 -> 0 | H17: 0
B18: Other Expense | C18: 14992.21 | D18: ='I - Other'!K16+'I - Other (2)'!K23+'I - Other (3)'!J59 -> 14992.21 | E18: ='I - Other'!R16+'I - Other (2)'!R23+'I - Other (3)'!Q59 -> 2838.6 | F18: ='I - Other'!T16+'I - Other (2)'!T23+'I - Other (3)'!S59 -> 5468.855 | G18: ='I - Other'!U16+'I - Other (2)'!U23+'I - Other (3)'!T59 -> 6651.16 | H18: =D18-(E18+F18+G18) -> 33.595
B20: Total Expense per tabs | C20: =SUM(C11:C18) -> 1100990.25 | D20: =SUM(D11:D18) -> 1100990.25 | E20: =SUM(E11:E18) -> 1067860.42 | F20: =SUM(F11:F18) -> 6914.505 | G20: =SUM(G11:G18) -> 21086.49 | H20: 5128.835
B21: Difference | C21: =IF(D21=0,"","1") ->  | D21: =C20-D20 -> 0 | E21: D
B23: Total Expense | D23: 1100990.25 | E23: (from Total SAP Summary)
B24: Total Paid | D24: =-D60 -> 1100990.25 | E24: (from FBL1N in SAP)
B25: Difference | C25: =IF(D25=0,"",SUM(C21,1)) ->  | D25: =D24-D23 -> 0 | E25: C
B27: Exchange Rate | D27: =D24/C20 -> 1
B28: Fx Adjusted to USD | D28: =C20*D27 -> 1100990.25
B29: Difference | C29: =IF(D29=0,"","3") ->  | D29: =D24-D28 -> 0 | E29: E
B31: B
B32: SAP - FBL1N
B33: Document No | C33: Doc Date | D33: Amount | E33: Reference
B34: 1900001013 | C34: 2017-09-17 | D34: -135728.32 | E34: 5297
B35: 1900007531 | C35: 2017-09-17 | D35: -55093.76 | E35: 5290
B36: 1900007532 | C36: 2017-09-17 | D36: -72306.24 | E36: 5291
B37: 1900007533 | C37: 2017-09-17 | D37: -55965.52 | E37: 5292
B38: 1900007534 | C38: 2017-09-17 | D38: -59075.48 | E38: 5294
B39: 1900007535 | C39: 2017-09-17 | D39: -57580 | E39: 5295
B40: 1900007536 | C40: 2017-09-17 | D40: -36850.77 | E40: 5380
B41: 1900007537 | C41: 2017-09-17 | D41: -58726.32 | E41: 5296
B42: 1900007538 | C42: 2017-09-17 | D42: -41318.4 | E42: 5298
B43: 1900007539 | C43: 2017-09-10 | D43: -10737.86 | E43: 5265
B44: 1900007540 | C44: 2017-09-10 | D44: -23927.96 | E44: 5266
B45: 1900007541 | C45: 2017-09-10 | D45: -24855.32 | E45: 5271
B46: 1900007542 | C46: 2017-09-10 | D46: -8411.15 | E46: 5272
B47: 1900007543 | C47: 2017-09-10 | D47: -6930.33 | E47: 5273
B48: 1900007544 | C48: 2017-09-10 | D48: -29193.36 | E48: 5274
B49: 1900007545 | C49: 2017-09-10 | D49: -7691.4 | E49: 5275
B50: 1900007546 | C50: 2017-09-10 | D50: -8970.78 | E50: 5276
B51: 1900007547 | C51: 2017-09-10 | D51: -11398.8 | E51: 5277
B52: 1900007548 | C52: 2017-09-17 | D52: -14687.6 | E52: 5280
B53: 1900007549 | C53: 2017-09-17 | D53: -60337.52 | E53: 5281
B54: 1900007550 | C54: 2017-09-17 | D54: -69751.92 | E54: 5282
B55: 1900007551 | C55: 2017-09-17 | D55: -59746.04 | E55: 5283
B56: 1900007552 | C56: 2017-09-17 | D56: -56622 | E56: 5284
B57: 1900007553 | C57: 2017-09-17 | D57: -66140.56 | E57: 5285
B58: 1900007554 | C58: 2017-09-17 | D58: -32876.92 | E58: 5286
B59: 1900007555 | C59: 2017-09-17 | D59: -36065.92 | E59: 5289
D60: =SUM(D34:D59) -> -1100990.25
B62: Tickmark Explanation:
B63: =IFERROR(C21,"") -> 
B65: =IFERROR(C25,"") -> 

Sheet C.1 - Rate Sheets
B2: Labor Charges - Rate Sheet
B4: Test Plan: (A) Using the vendor rate sheet, ensure that a rate was provided for all Positions and Equipment types.
B6: Labor Types:
B7: ST | C7: Straight Time
B8: OT | C8: Over Time
B9: DT | C9: Double Time
B10: MOB/DMOB | C10: Mobilization/Demobilization Time
B13: Labor per Man Hour | H13: Labor per Equipment Hour
B14: A | H14: A
B15: POSITION | C15: ST | D15: OT | E15: DT | F15: MOB/DMOB | H15: Type | I15: $/HOUR
B16: SAFETY SUPERVISOR | C16: 97.1 | D16: 140.8 | E16: 184.49 | F16: 0 | H16: Pickup 3/4 ton | I16: 21.5 | J16: 1
B17: SUPERINTENDENT | C17: 104.75 | D17: 151.89 | E17: 199.03 | F17: 0 | H17: Pickup 1 ton | I17: 22.75
B18: GENERAL FOREMAN | C18: 81 | D18: 117.45 | E18: 153.9 | F18: 0 | H18: MECHANIC TRUCK | I18: 25.92
B19: FOREMAN | C19: 73.25 | D19: 106.21 | E19: 139.18 | F19: 0 | H19: DIGGER | I19: 40.25
B20: LINEMAN A | C20: 69.85 | D20: 101.28 | E20: 132.72 | F20: 0 | H20: TANDEM AXLE DIGGER | I20: 60.25
B21: LINEMAN B | C21: 65.9 | D21: 95.56 | E21: 125.21 | F21: 0 | H21: TRACK DIGGER | I21: 120
B22: LINEMAN C | C22: 60.15 | D22: 87.22 | E22: 114.29 | F22: 0 | H22: Bucket Truck 55 | I22: 34.52
B23: EQUIPMENT OPERATOR | C23: 49.5 | D23: 71.78 | E23: 94.05 | F23: 0 | H23: BUCKET TRUCK/MATERIAL HANDLER 56' TO 65' | I23: 45.25
B24: GROUNDMAN | C24: 39.75 | D24: 57.64 | E24: 75.53 | F24: 0 | H24: BUCKET TRUCK/MATERIAL HANDLER 66' TO 75' | I24: 58.5
B25: TRUCK DRIVER | C25: 49.5 | D25: 71.78 | E25: 94.05 | F25: 0 | H25: Bucket Truck to 100 | I25: 70.75
B26: MECHANIC | C26: 56 | D26: 81.2 | E26: 106.4 | F26: 0 | H26: TRACK BUCKET | I26: 120
H27: LOWBOY TRUCK | I27: 101.25
H28: CRANE TRUCK 26 TON | I28: 60.75
H29: CRANE TRUCK 28 TON | I29: 70.35
H30: CRANE TRUCK 33 TON | I30: 90.15
H31: CRANE-MANTIS UP TO 20 TON | I31: 115
H32: CRANE-MANTIS 21 TO 30 TON | I32: 135
H33: CRANE-MANTIS 31 TO 40 TON | I33: 160
H34: DOZER D-4 | I34: 61.59
H35: SKIDDER | I35: 125
H36: SKID STEER LOADER | I36: 34.53
H37: TRACKHOE | I37: 85
H38: MINI EXCAVATOR | I38: 34.75
H39: TRENCHER | I39: 32.47
H40: BACKYARD BUGGY | I40: 35.35
H41: TRACTOR | I41: 25.35
H42: ATV/ SIDE BY SIDE | I42: 12.75
H43: 4 DRUM PULLER | I43: 27.31
H44: BULL WHEEL | I44: 23.19
H45: MATERIAL TRAILER | I45: 9.5
H46: POLE TRAILER | I46: 9.5
H47: AIR COMPRESSOR | I47: 12.37
H48: GENERATOR | I48: 8.25
H49: MUD VAC | I49: 45.25
H50: PRESSURE DIGGER | I50: 170.25
B54: Tickmark Explanation:
B55: 1 | C55: Note that these rates are provided for the Vendor No. 20 crew.

Sheet C.2 - Timesheets - Labor
B2: Labor Charges - Time Card
B4: Test Plan: | C4: Obtain the time cards. (A) Using the Asset by Company tab (C.3), populate the crew members names and positions (if provided). Find additional information regarding individual crew member from related invoice. (B) Enter hours worked from time card(s). (C) Confirm that the dates per the time cards fall between dates provided per 'A - Contractor Summary' tab. (D) Confirm the labor type charged agrees to the rate sheet. (E) Identify any labor charges to be reviewed (manually enter amounts based on reasonability of time period labor was charged, discrepancies between timecards and invoice, etc. (F) For charges which required further review, document review (include why it was determined to be allowed/disallowed via a tickmark).
B10: Rx | C10: Recalculated.
B11: a | C11: Provided from tab 'C.1 - Rate Sheets'.
B12: b | C12: Check figure should equal $0. Cell will appear yellow if discrepancies are noted.
C14: A | H14: Rx | J14: C | K14: a | O14: B | DF14: Rx | DK14: Rx | DP14: Rx | DR14: E | DS14: F
B15: # | C15: Name | D15: Position | E15: Company | F15: Crew# | G15: Invoice# | H15: Start Date | I15: End Date | J15: Dates Worked Reasonable? | K15: Rates | O15: 2017-09-04 | T15: 2017-09-05 | Y15: 2017-09-06 | AD15: 2017-09-07 | AI15: 2017-09-08 | AN15: 2017-09-09 | AS15: 2017-09-10 | AX15: 2017-09-11 | BC15: 2017-09-12 | BH15: 2017-09-13 | BM15: 2017-09-14 | BR15: 2017-09-15 | BW15: 2017-09-16 | CB15: 2017-09-17 | CG15: 2017-09-18 | CL15: 2017-09-19 | CQ15: 2017-09-20 | CV15: 2017-09-21 | DA15: 2017-09-22 | DF15: Total Labor Hours | DK15: Total Labor $ | DP15: Allowable Charges | DQ15: Labor Type Appropriate? | DR15: To Be Reviewed | DS15: Reviewed - Allowable Charge | DT15: Reviewed - Unallowable Charge | DU15: Tickmarks
O16: 2017-09-04 | P16: 2017-09-04 | Q16: 2017-09-04 | R16: 2017-09-04 | S16: 2017-09-04 | T16: 2017-09-05 | U16: 2017-09-05 | V16: 2017-09-05 | W16: 2017-09-05 | X16: 2017-09-05 | Y16: 2017-09-06 | Z16: 2017-09-06 | AA16: 2017-09-06 | AB16: 2017-09-06 | AC16: 2017-09-06 | AD16: 2017-09-07 | AE16: 2017-09-07 | AF16: 2017-09-07 | AG16: 2017-09-07 | AH16: 2017-09-07 | AI16: 2017-09-08 | AJ16: 2017-09-08 | AK16: 2017-09-08 | AL16: 2017-09-08 | AM16: 2017-09-08 | AN16: 2017-09-09 | AO16: 2017-09-09 | AP16: 2017-09-09 | AQ16: 2017-09-09 | AR16: 2017-09-09 | AS16: 2017-09-10 | AT16: 2017-09-10 | AU16: 2017-09-10 | AV16: 2017-09-10 | AW16: 2017-09-10 | AX16: 2017-09-11 | AY16: 2017-09-11 | AZ16: 2017-09-11 | BA16: 2017-09-11 | BB16: 2017-09-11 | BC16: 2017-09-12 | BD16: 2017-09-12 | BE16: 2017-09-12 | BF16: 2017-09-12 | BG16: 2017-09-12 | BH16: 2017-09-13 | BI16: 2017-09-13 | BJ16: 2017-09-13 | BK16: 2017-09-13 | BL16: 2017-09-13 | BM16: 2017-09-14 | BN16: 2017-09-14 | BO16: 2017-09-14 | BP16: 2017-09-14 | BQ16: 2017-09-14 | BR16: 2017-09-15 | BS16: 2017-09-15 | BT16: 2017-09-15 | BU16: 2017-09-15 | BV16: 2017-09-15 | BW16: 2017-09-16 | BX16: 2017-09-16 | BY16: 2017-09-16 | BZ16: 2017-09-16 | CA16: 2017-09-16 | CB16: 2017-09-17 | CC16: 2017-09-17 | CD16: 2017-09-17 | CE16: 2017-09-17 | CF16: 2017-09-17 | CG16: 2017-09-18 | CH16: 2017-09-18 | CI16: 2017-09-18 | CJ16: 2017-09-18 | CK16: 2017-09-18 | CL16: 2017-09-19 | CM16: 2017-09-19 | CN16: 2017-09-19 | CO16: 2017-09-19 | CP16: 2017-09-19 | CQ16: 2017-09-20 | CR16: 2017-09-20 | CS16: 2017-09-20 | CT16: 2017-09-20 | CU16: 2017-09-20 | CV16: 2017-09-21 | CW16: 2017-09-21 | CX16: 2017-09-21 | CY16: 2017-09-21 | CZ16: 2017-09-21 | DA16: 2017-09-22 | DB16: 2017-09-22 | DC16: 2017-09-22 | DD16: 2017-09-22 | DE16: 2017-09-22 | DF16: Total ST | DG16: OT | DH16: DT | DI16: MOB/DMOB | DJ16: Total Hours | DK16: Total ST $ | DL16: Total OT $ | DM16: Total DT $ | DN16: Total MOB/DMOB $ | DO16: Total Labor $
O17: Monday | T17: Tuesday | Y17: Wednesday | AD17: Thursday | AI17: Friday | AN17: Saturday | AS17: Sunday | AX17: Monday | BC17: Tuesday | BH17: Wednesday | BM17: Thursday | BR17: Friday | BW17: Saturday | CB17: Sunday | CG17: Monday | CL17: Tuesday | CQ17: Wednesday | CV17: Thursday | DA17: Friday
K18: ST | L18: OT | M18: DT | N18: MOB/DMOB | O18: ST | P18: OT | Q18: DT | R18: MOB/DMOB | S18: Total | T18: ST | U18: OT | V18: DT | W18: MOB/DMOB | X18: Total | Y18: ST | Z18: OT | AA18: DT | AB18: MOB/DMOB | AC18: Total | AD18: ST | AE18: OT | AF18: DT | AG18: MOB/DMOB | AH18: Total | AI18: ST | AJ18: OT | AK18: DT | AL18: MOB/DMOB | AM18: Total | AN18: ST | AO18: OT | AP18: DT | AQ18: MOB/DMOB | AR18: Total | AS18: ST | AT18: OT | AU18: DT | AV18: MOB/DMOB | AW18: Total | AX18: ST | AY18: OT | AZ18: DT | BA18: MOB/DMOB | BB18: Total | BC18: ST | BD18: OT | BE18: DT | BF18: MOB/DMOB | BG18: Total | BH18: ST | BI18: OT | BJ18: DT | BK18: MOB/DMOB | BL18: Total | BM18: ST | BN18: OT | BO18: DT | BP18: MOB/DMOB | BQ18: Total | BR18: ST | BS18: OT | BT18: DT | BU18: MOB/DMOB | BV18: Total | BW18: ST | BX18: OT | BY18: DT | BZ18: MOB/DMOB | CA18: Total | CB18: ST | CC18: OT | CD18: DT | CE18: MOB/DMOB | CF18: Total | CG18: ST | CH18: OT | CI18: DT | CJ18: MOB/DMOB | CK18: Total | CL18: ST | CM18: OT | CN18: DT | CO18: MOB/DMOB | CP18: Total | CQ18: ST | CR18: OT | CS18: DT | CT18: MOB/DMOB | CU18: Total | CV18: ST | CW18: OT | CX18: DT | CY18: MOB/DMOB | CZ18: Total | DA18: ST | DB18: OT | DC18: DT | DD18: MOB/DMOB | DE18: Total
B19: 1 | D19: Foreman | E19: Vendor No. 20 | F19: 202-171 | G19: 5265 / 5282 | H19: =INDEX($O$16:$DE$16,MATCH(TRUE,INDEX((O19:DE19>0),0),0)) -> 2017-09-10 | I19: =LOOKUP(2,1/(1-(O19:DE19<=0)),$O$16:$DE$16) -> 2017-09-17 | J19: =IF(AND(H19>='A - Contractor Summary'!$C$36,I19<='A - Contractor Summary'!$C$42),"Yes","No") -> Yes | K19: =VLOOKUP($D19,'C.1 - Rate Sheets'!B:F,2,FALSE) -> 73.25 | L19: =VLOOKUP($D19,'C.1 - Rate Sheets'!B:F,3,FALSE) -> 106.21 | M19: =VLOOKUP($D19,'C.1 - Rate Sheets'!B:F,4,FALSE) -> 139.18 | N19: =VLOOKUP($D19,'C.1 - Rate Sheets'!B:F,5,FALSE) -> 0 | O19: 0 | P19: 0 | Q19: 0 | R19: 0 | S19: =SUM(O19:R19) -> 0 | T19: 0 | U19: 0 | V19: 0 | W19: 0 | X19: =SUM(T19:W19) -> 0 | Y19: 0 | Z19: 0 | AA19: 0 | AB19: 0 | AC19: =SUM(Y19:AB19) -> 0 | AD19: 0 | AE19: 0 | AF19: 0 | AG19: 0 | AH19: =SUM(AD19:AG19) -> 0 | AI19: 0 | AJ19: 0 | AK19: 0 | AL19: 0 | AM19: =SUM(AI19:AL19) -> 0 | AN19: 0 | AO19: 0 | AP19: 0 | AQ19: 0 | AR19: =SUM(AN19:AQ19) -> 0 | AS19: 0 | AT19: 0 | AU19: 14 | AV19: 0 | AW19: =SUM(AS19:AV19) -> 14 | AX19: 16 | AY19: 0 | AZ19: 0 | BA19: 0 | BB19: =SUM(AX19:BA19) -> 16 | BC19: 16 | BD19: 0 | BE19: 0 | BF19: 0 | BG19: =SUM(BC19:BF19) -> 16 | BH19: 8 | BI19: 8 | BJ19: 0 | BK19: 0 | BL19: =SUM(BH19:BK19) -> 16 | BM19: 0 | BN19: 16 | BO19: 0 | BP19: 0 | BQ19: =SUM(BM19:BP19) -> 16 | BR19: 0 | BS19: 16 | BT19: 0 | BU19: 0 | BV19: =SUM(BR19:BU19) -> 16 | BW19: 0 | BX19: 16 | BY19: 0 | BZ19: 0 | CA19: =SUM(BW19:BZ19) -> 16 | CB19: 0 | CC19: 0 | CD19: 16 | CE19: 0 | CF19: =SUM(CB19:CE19) -> 16 | CG19: 0 | CH19: 0 | CI19: 0 | CJ19: 0 | CK19: =SUM(CG19:CJ19) -> 0 | CL19: 0 | CM19: 0 | CN19: 0 | CO19: 0 | CP19: =SUM(CL19:CO19) -> 0 | CQ19: 0 | CR19: 0 | CS19: 0 | CT19: 0 | CU19: =SUM(CQ19:CT19) -> 0 | CV19: 0 | CW19: 0 | CX19: 0 | CY19: 0 | CZ19: =SUM(CV19:CY19) -> 0 | DA19: 0 | DB19: 0 | DC19: 0 | DD19: 0 | DE19: =SUM(DA19:DD19) -> 0 | DF19: =SUM(O19,T19,Y19,AD19,AI19,AN19,AS19,AX19,BC19,BH19,BM19,BR19,BW19,CB19,CG19,CL19,CQ19,CV19,DA19) -> 40 | DG19: =SUM(P19,U19,Z19,AE19,AJ19,AO19,AT19,AY19,BD19,BI19,BN19,BS19,BX19,CC19,CH19,CM19,CR19,CW19,DB19) -> 56 | DH19: =SUM(Q19,V19,AA19,AF19,AK19,AP19,AU19,AZ19,BE19,BJ19,BO19,BT19,BY19,CD19,CI19,CN19,CS19,CX19,DC19) -> 30 | DI19: =SUM(R19,W19,AB19,AG19,AL19,AQ19,AV19,BA19,BF19,BK19,BP19,BU19,BZ19,CE19,CJ19,CO19,CT19,CY19,DD19) -> 0 | DJ19: =SUM(DF19:DI19) -> 126 | DK19: =DF19*K19 -> 2930 | DL19: =DG19*L19 -> 5947.76 | DM19: =DH19*M19 -> 4175.4 | DN19: =DI19*N19 -> 0 | DO19: =SUM(DK19:DN19) -> 13053.16 | DP19: =DO19-DR19 -> 13053.16 | DQ19: Yes | DR19: 0 | DS19: 0 | DT19: 0
B20: 2 | D20: Lineman A | E20: Vendor No. 20 | F20: 202-171 | G20: 5265 / 5282 | H20: 2017-09-10 | I20: 2017-09-17 | J20: =IF(AND(H20>='A - Contractor Summary'!$C$36,I20<='A - Contractor Summary'!$C$42),"Yes","No") -> Yes | K20: =VLOOKUP($D20,'C.1 - Rate Sheets'!B:F,2,FALSE) -> 69.85 | L20: =VLOOKUP($D20,'C.1 - Rate Sheets'!B:F,3,FALSE) -> 101.28 | M20: =VLOOKUP($D20,'C.1 - Rate Sheets'!B:F,4,FALSE) -> 132.72 | N20: =VLOOKUP($D20,'C.1 - Rate Sheets'!B:F,5,FALSE) -> 0 | O20: 0 | P20: 0 | Q20: 0 | R20: 0 | S20: 0 | T20: 0 | U20: 0 | V20: 0 | W20: 0 | X20: =SUM(T20:W20) -> 0 | Y20: 0 | Z20: 0 | AA20: 0 | AB20: 0 | AC20: =SUM(Y20:AB20) -> 0 | AD20: 0 | AE20: 0 | AF20: 0 | AG20: 0 | AH20: =SUM(AD20:AG20) -> 0 | AI20: 0 | AJ20: 0 | AK20: 0 | AL20: 0 | AM20: =SUM(AI20:AL20) -> 0 | AN20: 0 | AO20: 0 | AP20: 0 | AQ20: 0 | AR20: =SUM(AN20:AQ20) -> 0 | AS20: 0 | AT20: 0 | AU20: 14 | AV20: 0 | AW20: =SUM(AS20:AV20) -> 14 | AX20: 16 | AY20: 0 | AZ20: 0 | BA20: 0 | BB20: =SUM(AX20:BA20) -> 16 | BC20: 16 | BD20: 0 | BE20: 0 | BF20: 0 | BG20: =SUM(BC20:BF20) -> 16 | BH20: 8 | BI20: 8 | BJ20: 0 | BK20: 0 | BL20: =SUM(BH20:BK20) -> 16 | BM20: 0 | BN20: 16 | BO20: 0 | BP20: 0 | BQ20: =SUM(BM20:BP20) -> 16 | BR20: 0 | BS20: 16 | BT20: 0 | BU20: 0 | BV20: =SUM(BR20:BU20) -> 16 | BW20: 0 | BX20: 16 | BY20: 0 | BZ20: 0 | CA20: =SUM(BW20:BZ20) -> 16 | CB20: 0 | CC20: 0 | CD20: 16 | CE20: 0 | CF20: =SUM(CB20:CE20) -> 16 | CG20: 0 | CH20: 0 | CI20: 0 | CJ20: 0 | CK20: =SUM(CG20:CJ20) -> 0 | CL20: 0 | CM20: 0 | CN20: 0 | CO20: 0 | CP20: =SUM(CL20:CO20) -> 0 | CQ20: 0 | CR20: 0 | CS20: 0 | CT20: 0 | CU20: =SUM(CQ20:CT20) -> 0 | CV20: 0 | CW20: 0 | CX20: 0 | CY20: 0 | CZ20: =SUM(CV20:CY20) -> 0 | DA20: 0 | DB20: 0 | DC20: 0 | DD20: 0 | DE20: =SUM(DA20:DD20) -> 0 | DF20: 40 | DG20: 56 | DH20: 30 | DI20: 0 | DJ20: =SUM(DF20:DI20) -> 126 | DK20: 2794 | DL20: 5671.68 | DM20: 3981.6 | DN20: 0 | DO20: =SUM(DK20:DN20) -> 12447.28 | DP20: 12447.28 | DQ20: Yes | DR20: 0 | DS20: 0 | DT20: 0
B21: 3 | D21: Lineman B | E21: Vendor No. 20 | F21: 202-171 | G21: 5265 / 5282 | H21: 2017-09-10 | I21: 2017-09-17 | J21: =IF(AND(H21>='A - Contractor Summary'!$C$36,I21<='A - Contractor Summary'!$C$42),"Yes","No") -> Yes | K21: =VLOOKUP($D21,'C.1 - Rate Sheets'!B:F,2,FALSE) -> 65.9 | L21: =VLOOKUP($D21,'C.1 - Rate Sheets'!B:F,3,FALSE) -> 95.56 | M21: =VLOOKUP($D21,'C.1 - Rate Sheets'!B:F,4,FALSE) -> 125.21 | N21: =VLOOKUP($D21,'C.1 - Rate Sheets'!B:F,5,FALSE) -> 0 | O21: 0 | P21: 0 | Q21: 0 | R21: 0 | S21: 0 | T21: 0 | U21: 0 | V21: 0 | W21: 0 | X21: 0 | Y21: 0 | Z21: 0 | AA21: 0 | AB21: 0 | AC21: 0 | AD21: 0 | AE21: 0 | AF21: 0 | AG21: 0 | AH21: 0 | AI21: 0 | AJ21: 0 | AK21: 0 | AL21: 0 | AM21: 0 | AN21: 0 | AO21: 0 | AP21: 0 | AQ21: 0 | AR21: 0 | AS21: 0 | AT21: 0 | AU21: 14 | AV21: 0 | AW21: 14 | AX21: 16 | AY21: 0 | AZ21: 0 | BA21: 0 | BB21: 16 | BC21: 16 | BD21: 0 | BE21: 0 | BF21: 0 | BG21: 16 | BH21: 8 | BI21: 8 | BJ21: 0 | BK21: 0 | BL21: 16 | BM21: 0 | BN21: 16 | BO21: 0 | BP21: 0 | BQ21: 16 | BR21: 0 | BS21: 16 | BT21: 0 | BU21: 0 | BV21: 16 | BW21: 0 | BX21: 16 | BY21: 0 | BZ21: 0 | CA21: 16 | CB21: 0 | CC21: 0 | CD21: 16 | CE21: 0 | CF21: 16 | CG21: 0 | CH21: 0 | CI21: 0 | CJ21: 0 | CK21: 0 | CL21: 0 | CM21: 0 | CN21: 0 | CO21: 0 | CP21: 0 | CQ21: 0 | CR21: 0 | CS21: 0 | CT21: 0 | CU21: 0 | CV21: 0 | CW21: 0 | CX21: 0 | CY21: 0 | CZ21: 0 | DA21: 0 | DB21: 0 | DC21: 0 | DD21: 0 | DE21: 0 | DF21: 40 | DG21: 56 | DH21: 30 | DI21: 0 | DJ21: 126 | DK21: 2636 | DL21: 5351.36 | DM21: 3756.3 | DN21: 0 | DO21: 11743.66 | DP21: 11743.66 | DQ21: Yes | DR21: 0 | DS21: 0 | DT21: 0
B22: 4 | D22: Lineman B | E22: Vendor No. 20 | F22: 202-171 | G22: 5265 / 5282 | H22: 2017-09-10 | I22: 2017-09-17 | J22: =IF(AND(H22>='A - Contractor Summary'!$C$36,I22<='A - Contractor Summary'!$C$42),"Yes","No") -> Yes | K22: =VLOOKUP($D22,'C.1 - Rate Sheets'!B:F,2,FALSE) -> 65.9 | L22: =VLOOKUP($D22,'C.1 - Rate Sheets'!B:F,3,FALSE) -> 95.56 | M22: =VLOOKUP($D22,'C.1 - Rate Sheets'!B:F,4,FALSE) -> 125.21 | N22: =VLOOKUP($D22,'C.1 - Rate Sheets'!B:F,5,FALSE) -> 0 | O22: 0 | P22: 0 | Q22: 0 | R22: 0 | S22: 0 | T22: 0 | U22: 0 | V22: 0 | W22: 0 | X22: 0 | Y22: 0 | Z22: 0 | AA22: 0 | AB22: 0 | AC22: 0 | AD22: 0 | AE22: 0 | AF22: 0 | AG22: 0 | AH22: 0 | AI22: 0 | AJ22: 0 | AK22: 0 | AL22: 0 | AM22: 0 | AN22: 0 | AO22: 0 | AP22: 0 | AQ22: 0 | AR22: 0 | AS22: 0 | AT22: 0 | AU22: 14 | AV22: 0 | AW22: 14 | AX22: 16 | AY22: 0 | AZ22: 0 | BA22: 0 | BB22: 16 | BC22: 16 | BD22: 0 | BE22: 0 | BF22: 0 | BG22: 16 | BH22: 8 | BI22: 8 | BJ22: 0 | BK22: 0 | BL22: 16 | BM22: 0 | BN22: 16 | BO22: 0 | BP22: 0 | BQ22: 16 | BR22: 0 | BS22: 16 | BT22: 0 | BU22: 0 | BV22: 16 | BW22: 0 | BX22: 16 | BY22: 0 | BZ22: 0 | CA22: 16 | CB22: 0 | CC22: 0 | CD22: 16 | CE22: 0 | CF22: 16 | CG22: 0 | CH22: 0 | CI22: 0 | CJ22: 0 | CK22: 0 | CL22: 0 | CM22: 0 | CN22: 0 | CO22: 0 | CP22: 0 | CQ22: 0 | CR22: 0 | CS22: 0 | CT22: 0 | CU22: 0 | CV22: 0 | CW22: 0 | CX22: 0 | CY22: 0 | CZ22: 0 | DA22: 0 | DB22: 0 | DC22: 0 | DD22: 0 | DE22: 0 | DF22: 40 | DG22: 56 | DH22: 30 | DI22: 0 | DJ22: 126 | DK22: 2636 | DL22: 5351.36 | DM22: 3756.3 | DN22: 0 | DO22: 11743.66 | DP22: 11743.66 | DQ22: Yes | DR22: 0 | DS22: 0 | DT22: 0
B23: 5 | D23: EQUIPMENT OPERATOR | E23: Vendor No. 20 | F23: 202-171 | G23: 5265 / 5282 | H23: 2017-09-10 | I23: 2017-09-17 | J23: =IF(AND(H23>='A - Contractor Summary'!$C$36,I23<='A - Contractor Summary'!$C$42),"Yes","No") -> Yes | K23: =VLOOKUP($D23,'C.1 - Rate Sheets'!B:F,2,FALSE) -> 49.5 | L23: =VLOOKUP($D23,'C.1 - Rate Sheets'!B:F,3,FALSE) -> 71.78 | M23: =VLOOKUP($D23,'C.1 - Rate Sheets'!B:F,4,FALSE) -> 94.05 | N23: =VLOOKUP($D23,'C.1 - Rate Sheets'!B:F,5,FALSE) -> 0 | O23: 0 | P23: 0 | Q23: 0 | R23: 0 | S23: 0 | T23: 0 | U23: 0 | V23: 0 | W23: 0 | X23: 0 | Y23: 0 | Z23: 0 | AA23: 0 | AB23: 0 | AC23: 0 | AD23: 0 | AE23: 0 | AF23: 0 | AG23: 0 | AH23: 0 | AI23: 0 | AJ23: 0 | AK23: 0 | AL23: 0 | AM23: 0 | AN23: 0 | AO23: 0 | AP23: 0 | AQ23: 0 | AR23: 0 | AS23: 0 | AT23: 0 | AU23: 14 | AV23: 0 | AW23: 14 | AX23: 16 | AY23: 0 | AZ23: 0 | BA23: 0 | BB23: 16 | BC23: 16 | BD23: 0 | BE23: 0 | BF23: 0 | BG23: 16 | BH23: 8 | BI23: 8 | BJ23: 0 | BK23: 0 | BL23: 16 | BM23: 0 | BN23: 16 | BO23: 0 | BP23: 0 | BQ23: 16 | BR23: 0 | BS23: 16 | BT23: 0 | BU23: 0 | BV23: 16 | BW23: 0 | BX23: 16 | BY23: 0 | BZ23: 0 | CA23: 16 | CB23: 0 | CC23: 0 | CD23: 16 | CE23: 0 | CF23: 16 | CG23: 0 | CH23: 0 | CI23: 0 | CJ23: 0 | CK23: 0 | CL23: 0 | CM23: 0 | CN23: 0 | CO23: 0 | CP23: 0 | CQ23: 0 | CR23: 0 | CS23: 0 | CT23: 0 | CU23: 0 | CV23: 0 | CW23: 0 | CX23: 0 | CY23: 0 | CZ23: 0 | DA23: 0 | DB23: 0 | DC23: 0 | DD23: 0 | DE23: 0 | DF23: 40 | DG23: 56 | DH23: 30 | DI23: 0 | DJ23: 126 | DK23: 1980 | DL23: 4019.68 | DM23: 2821.5 | DN23: 0 | DO23: 8821.18 | DP23: 8821.18 | DQ23: Yes | DR23: 0 | DS23: 0 | DT23: 0
B24: 6 | D24: EQUIPMENT OPERATOR | E24: Vendor No. 20 | F24: 202-171 | G24: 5265 / 5282 | H24: 2017-09-11 | I24: 2017-09-14 | J24: =IF(AND(H24>='A - Contractor Summary'!$C$36,I24<='A - Contractor Summary'!$C$42),"Yes","No") -> Yes | K24: =VLOOKUP($D24,'C.1 - Rate Sheets'!B:F,2,FALSE) -> 49.5 | L24: =VLOOKUP($D24,'C.1 - Rate Sheets'!B:F,3,FALSE) -> 71.78 | M24: =VLOOKUP($D24,'C.1 - Rate Sheets'!B:F,4,FALSE) -> 94.05 | N24: =VLOOKUP($D24,'C.1 - Rate Sheets'!B:F,5,FALSE) -> 0 | O24: 0 | P24: 0 | Q24: 0 | R24: 0 | S24: 0 | T24: 0 | U24: 0 | V24: 0 | W24: 0 | X24: 0 | Y24: 0 | Z24: 0 | AA24: 0 | AB24: 0 | AC24: 0 | AD24: 0 | AE24: 0 | AF24: 0 | AG24: 0 | AH24: 0 | AI24: 0 | AJ24: 0 | AK24: 0 | AL24: 0 | AM24: 0 | AN24: 0 | AO24: 0 | AP24: 0 | AQ24: 0 | AR24: 0 | AS24: 0 | AT24: 0 | AU24: 0 | AV24: 0 | AW24: 0 | AX24: 16 | AY24: 0 | AZ24: 0 | BA24: 0 | BB24: 16 | BC24: 16 | BD24: 0 | BE24: 0 | BF24: 0 | BG24: 16 | BH24: 8 | BI24: 8 | BJ24: 0 | BK24: 0 | BL24: 16 | BM24: 0 | BN24: 16 | BO24: 0 | BP24: 0 | BQ24: 16 | BR24: 0 | BS24: 0 | BT24: 0 | BU24: 0 | BV24: 0 | BW24: 0 | BX24: 0 | BY24: 0 | BZ24: 0 | CA24: 0 | CB24: 0 | CC24: 0 | CD24: 0 | CE24: 0 | CF24: 0 | CG24: 0 | CH24: 0 | CI24: 0 | CJ24: 0 | CK24: 0 | CL24: 0 | CM24: 0 | CN24: 0 | CO24: 0 | CP24: 0 | CQ24: 0 | CR24: 0 | CS24: 0 | CT24: 0 | CU24: 0 | CV24: 0 | CW24: 0 | CX24: 0 | CY24: 0 | CZ24: 0 | DA24: 0 | DB24: 0 | DC24: 0 | DD24: 0 | DE24: 0 | DF24: 40 | DG24: 24 | DH24: 0 | DI24: 0 | DJ24: 64 | DK24: 1980 | DL24: 1722.72 | DM24: 0 | DN24: 0 | DO24: 3702.72 | DP24: 3702.72 | DQ24: Yes | DR24: 0 | DS24: 0 | DT24: 0
B25: 7 | D25: Foreman | E25: Vendor No. 20 | F25: 204-75 | G25: 5266 | H25: 2017-09-08 | I25: 2017-09-17 | J25: =IF(AND(H25>='A - Contractor Summary'!$C$36,I25<='A - Contractor Summary'!$C$42),"Yes","No") -> Yes | K25: =VLOOKUP($D25,'C.1 - Rate Sheets'!B:F,2,FALSE) -> 73.25 | L25: =VLOOKUP($D25,'C.1 - Rate Sheets'!B:F,3,FALSE) -> 106.21 | M25: =VLOOKUP($D25,'C.1 - Rate Sheets'!B:F,4,FALSE) -> 139.18 | N25: =VLOOKUP($D25,'C.1 - Rate Sheets'!B:F,5,FALSE) -> 0 | O25: 0 | P25: 0 | Q25: 0 | R25: 0 | S25: 0 | T25: 0 | U25: 0 | V25: 0 | W25: 0 | X25: 0 | Y25: 0 | Z25: 0 | AA25: 0 | AB25: 0 | AC25: 0 | AD25: 0 | AE25: 0 | AF25: 0 | AG25: 0 | AH25: 0 | AI25: 14 | AJ25: 0 | AK25: 0 | AL25: 0 | AM25: 14 | AN25: 14 | AO25: 0 | AP25: 0 | AQ25: 0 | AR25: 14 | AS25: 0 | AT25: 0 | AU25: 14 | AV25: 0 | AW25: 14 | AX25: 12 | AY25: 5 | AZ25: 0 | BA25: 0 | BB25: 17 | BC25: 0 | BD25: 17 | BE25: 0 | BF25: 0 | BG25: 17 | BH25: 0 | BI25: 17 | BJ25: 0 | BK25: 0 | BL25: 17 | BM25: 0 | BN25: 17 | BO25: 0 | BP25: 0 | BQ25: 17 | BR25: 0 | BS25: 17 | BT25: 0 | BU25: 0 | BV25: 17 | BW25: 0 | BX25: 17 | BY25: 0 | BZ25: 0 | CA25: 17 | CB25: 0 | CC25: 0 | CD25: 16 | CE25: 0 | CF25: 16 | CG25: 0 | CH25: 0 | CI25: 0 | CJ25: 0 | CK25: 0 | CL25: 0 | CM25: 0 | CN25: 0 | CO25: 0 | CP25: 0 | CQ25: 0 | CR25: 0 | CS25: 0 | CT25: 0 | CU25: 0 | CV25: 0 | CW25: 0 | CX25: 0 | CY25: 0 | CZ25: 0 | DA25: 0 | DB25: 0 | DC25: 0 | DD25: 0 | DE25: 0 | DF25: 40 | DG25: 90 | DH25: 30 | DI25: 0 | DJ25: 160 | DK25: 2930 | DL25: 9558.9 | DM25: 4175.4 | DN25: 0 | DO25: 16664.3 | DP25: 16664.3 | DQ25: Yes | DR25: 0 | DS25: 0 | DT25: 0
B26: 8 | D26: Lineman A | E26: Vendor No. 20 | F26: 204-75 | G26: 5266 | H26: 2017-09-08 | I26: 2017-09-17 | J26: =IF(AND(H26>='A - Contractor Summary'!$C$36,I26<='A - Contractor Summary'!$C$42),"Yes","No") -> Yes | K26: =VLOOKUP($D26,'C.1 - Rate Sheets'!B:F,2,FALSE) -> 69.85 | L26: =VLOOKUP($D26,'C.1 - Rate Sheets'!B:F,3,FALSE) -> 101.28 | M26: =VLOOKUP($D26,'C.1 - Rate Sheets'!B:F,4,FALSE) -> 132.72 | N26: =VLOOKUP($D26,'C.1 - Rate Sheets'!B:F,5,FALSE) -> 0 | O26: 0 | P26: 0 | Q26: 0 | R26: 0 | S26: 0 | T26: 0 | U26: 0 | V26: 0 | W26: 0 | X26: 0 | Y26: 0 | Z26: 0 | AA26: 0 | AB26: 0 | AC26: 0 | AD26: 0 | AE26: 0 | AF26: 0 | AG26: 0 | AH26: 0 | AI26: 14 | AJ26: 0 | AK26: 0 | AL26: 0 | AM26: 14 | AN26: 14 | AO26: 0 | AP26: 0 | AQ26: 0 | AR26: 14 | AS26: 0 | AT26: 0 | AU26: 14 | AV26: 0 | AW26: 14 | AX26: 12 | AY26: 5 | AZ26: 0 | BA26: 0 | BB26: 17 | BC26: 0 | BD26: 17 | BE26: 0 | BF26: 0 | BG26: 17 | BH26: 0 | BI26: 17 | BJ26: 0 | BK26: 0 | BL26: 17 | BM26: 0 | BN26: 17 | BO26: 0 | BP26: 0 | BQ26: 17 | BR26: 0 | BS26: 17 | BT26: 0 | BU26: 0 | BV26: 17 | BW26: 0 | BX26: 17 | BY26: 0 | BZ26: 0 | CA26: 17 | CB26: 0 | CC26: 0 | CD26: 16 | CE26: 0 | CF26: 16 | CG26: 0 | CH26: 0 | CI26: 0 | CJ26: 0 | CK26: 0 | CL26: 0 | CM26: 0 | CN26: 0 | CO26: 0 | CP26: 0 | CQ26: 0 | CR26: 0 | CS26: 0 | CT26: 0 | CU26: 0 | CV26: 0 | CW26: 0 | CX26: 0 | CY26: 0 | CZ26: 0 | DA26: 0 | DB26: 0 | DC26: 0 | DD26: 0 | DE26: 0 | DF26: 40 | DG26: 90 | DH26: 30 | DI26: 0 | DJ26: 160 | DK26: 2794 | DL26: 9115.2 | DM26: 3981.6 | DN26: 0 | DO26: 15890.8 | DP26: 15890.8 | DQ26: Yes | DR26: 0 | DS26: 0 | DT26: 0
B27: 9 | D27: Lineman A | E27: Vendor No. 20 | F27: 204-75 | G27: 5266 | H27: 2017-09-08 | I27: 2017-09-17 | J27: =IF(AND(H27>='A - Contractor Summary'!$C$36,I27<='A - Contractor Summary'!$C$42),"Yes","No") -> Yes | K27: =VLOOKUP($D27,'C.1 - Rate Sheets'!B:F,2,FALSE) -> 69.85 | L27: =VLOOKUP($D27,'C.1 - Rate Sheets'!B:F,3,FALSE) -> 101.28 | M27: =VLOOKUP($D27,'C.1 - Rate Sheets'!B:F,4,FALSE) -> 132.72 | N27: =VLOOKUP($D27,'C.1 - Rate Sheets'!B:F,5,FALSE) -> 0 | O27: 0 | P27: 0 | Q27: 0 | R27: 0 | S27: 0 | T27: 0 | U27: 0 | V27: 0 | W27: 0 | X27: 0 | Y27: 0 | Z27: 0 | AA27: 0 | AB27: 0 | AC27: 0 | AD27: 0 | AE27: 0 | AF27: 0 | AG27: 0 | AH27: 0 | AI27: 14 | AJ27: 0 | AK27: 0 | AL27: 0 | AM27: 14 | AN27: 14 | AO27: 0 | AP27: 0 | AQ27: 0 | AR27: 14 | AS27: 0 | AT27: 0 | AU27: 14 | AV27: 0 | AW27: 14 | AX27: 12 | AY27: 5 | AZ27: 0 | BA27: 0 | BB27: 17 | BC27: 0 | BD27: 17 | BE27: 0 | BF27: 0 | BG27: 17 | BH27: 0 | BI27: 17 | BJ27: 0 | BK27: 0 | BL27: 17 | BM27: 0 | BN27: 17 | BO27: 0 | BP27: 0 | BQ27: 17 | BR27: 0 | BS27: 17 | BT27: 0 | BU27: 0 | BV27: 17 | BW27: 0 | BX27: 17 | BY27: 0 | BZ27: 0 | CA27: 17 | CB27: 0 | CC27: 0 | CD27: 16 | CE27: 0 | CF27: 16 | CG27: 0 | CH27: 0 | CI27: 0 | CJ27: 0 | CK27: 0 | CL27: 0 | CM27: 0 | CN27: 0 | CO27: 0 | CP27: 0 | CQ27: 0 | CR27: 0 | CS27: 0 | CT27: 0 | CU27: 0 | CV27: 0 | CW27: 0 | CX27: 0 | CY27: 0 | CZ27: 0 | DA27: 0 | DB27: 0 | DC27: 0 | DD27: 0 | DE27: 0 | DF27: 40 | DG27: 90 | DH27: 30 | DI27: 0 | DJ27: 160 | DK27: 2794 | DL27: 9115.2 | DM27: 3981.6 | DN27: 0 | DO27: 15890.8 | DP27: 15890.8 | DQ27: Yes | DR27: 0 | DS27: 0 | DT27: 0
B28: 10 | D28: EQUIPMENT OPERATOR | E28: Vendor No. 20 | F28: 204-75 | G28: 5266 | H28: 2017-09-08 | I28: 2017-09-17 | J28: =IF(AND(H28>='A - Contractor Summary'!$C$36,I28<='A - Contractor Summary'!$C$42),"Yes","No") -> Yes | K28: =VLOOKUP($D28,'C.1 - Rate Sheets'!B:F,2,FALSE) -> 49.5 | L28: =VLOOKUP($D28,'C.1 - Rate Sheets'!B:F,3,FALSE) -> 71.78 | M28: =VLOOKUP($D28,'C.1 - Rate Sheets'!B:F,4,FALSE) -> 94.05 | N28: =VLOOKUP($D28,'C.1 - Rate Sheets'!B:F,5,FALSE) -> 0 | O28: 0 | P28: 0 | Q28: 0 | R28: 0 | S28: 0 | T28: 0 | U28: 0 | V28: 0 | W28: 0 | X28: 0 | Y28: 0 | Z28: 0 | AA28: 0 | AB28: 0 | AC28: 0 | AD28: 0 | AE28: 0 | AF28: 0 | AG28: 0 | AH28: 0 | AI28: 14 | AJ28: 0 | AK28: 0 | AL28: 0 | AM28: 14 | AN28: 14 | AO28: 0 | AP28: 0 | AQ28: 0 | AR28: 14 | AS28: 0 | AT28: 0 | AU28: 14 | AV28: 0 | AW28: 14 | AX28: 12 | AY28: 5 | AZ28: 0 | BA28: 0 | BB28: 17 | BC28: 0 | BD28: 17 | BE28: 0 | BF28: 0 | BG28: 17 | BH28: 0 | BI28: 17 | BJ28: 0 | BK28: 0 | BL28: 17 | BM28: 0 | BN28: 17 | BO28: 0 | BP28: 0 | BQ28: 17 | BR28: 0 | BS28: 17 | BT28: 0 | BU28: 0 | BV28: 17 | BW28: 0 | BX28: 17 | BY28: 0 | BZ28: 0 | CA28: 17 | CB28: 0 | CC28: 0 | CD28: 16 | CE28: 0 | CF28: 16 | CG28: 0 | CH28: 0 | CI28: 0 | CJ28: 0 | CK28: 0 | CL28: 0 | CM28: 0 | CN28: 0 | CO28: 0 | CP28: 0 | CQ28: 0 | CR28: 0 | CS28: 0 | CT28: 0 | CU28: 0 | CV28: 0 | CW28: 0 | CX28: 0 | CY28: 0 | CZ28: 0 | DA28: 0 | DB28: 0 | DC28: 0 | DD28: 0 | DE28: 0 | DF28: 40 | DG28: 90 | DH28: 30 | DI28: 0 | DJ28: 160 | DK28: 1980 | DL28: 6460.2 | DM28: 2821.5 | DN28: 0 | DO28: 11261.7 | DP28: 11261.7 | DQ28: Yes | DR28: 0 | DS28: 0 | DT28: 0
B29: 11 | D29: Foreman | E29: Vendor No. 20 | F29: 205-87 | G29: 5271 / 5284 | H29: 2017-09-07 | I29: 2017-09-17 | J29: =IF(AND(H29>='A - Contractor Summary'!$C$36,I29<='A - Contractor Summary'!$C$42),"Yes","No") -> Yes | K29: =VLOOKUP($D29,'C.1 - Rate Sheets'!B:F,2,FALSE) -> 73.25 | L29: =VLOOKUP($D29,'C.1 - Rate Sheets'!B:F,3,FALSE) -> 106.21 | M29: =VLOOKUP($D29,'C.1 - Rate Sheets'!B:F,4,FALSE) -> 139.18 | N29: =VLOOKUP($D29,'C.1 - Rate Sheets'!B:F,5,FALSE) -> 0 | O29: 0 | P29: 0 | Q29: 0 | R29: 0 | S29: 0 | T29: 0 | U29: 0 | V29: 0 | W29: 0 | X29: 0 | Y29: 0 | Z29: 0 | AA29: 0 | AB29: 0 | AC29: 0 | AD29: 2 | AE29: 0 | AF29: 0 | AG29: 0 | AH29: 2 | AI29: 14 | AJ29: 0 | AK29: 0 | AL29: 0 | AM29: 14 | AN29: 14 | AO29: 0 | AP29: 0 | AQ29: 0 | AR29: 14 | AS29: 0 | AT29: 0 | AU29: 14 | AV29: 0 | AW29: 14 | AX29: 10 | AY29: 6 | AZ29: 0 | BA29: 0 | BB29: 16 | BC29: 0 | BD29: 16 | BE29: 0 | BF29: 0 | BG29: 16 | BH29: 0 | BI29: 16 | BJ29: 0 | BK29: 0 | BL29: 16 | BM29: 0 | BN29: 16 | BO29: 0 | BP29: 0 | BQ29: 16 | BR29: 0 | BS29: 16 | BT29: 0 | BU29: 0 | BV29: 16 | BW29: 0 | BX29: 16 | BY29: 0 | BZ29: 0 | CA29: 16 | CB29: 0 | CC29: 0 | CD29: 16 | CE29: 0 | CF29: 16 | CG29: 0 | CH29: 0 | CI29: 0 | CJ29: 0 | CK29: 0 | CL29: 0 | CM29: 0 | CN29: 0 | CO29: 0 | CP29: 0 | CQ29: 0 | CR29: 0 | CS29: 0 | CT29: 0 | CU29: 0 | CV29: 0 | CW29: 0 | CX29: 0 | CY29: 0 | CZ29: 0 | DA29: 0 | DB29: 0 | DC29: 0 | DD29: 0 | DE29: 0 | DF29: 40 | DG29: 86 | DH29: 30 | DI29: 0 | DJ29: 156 | DK29: 2930 | DL29: 9134.06 | DM29: 4175.4 | DN29: 0 | DO29: 16239.46 | DP29: 16239.46 | DQ29: Yes | DR29: 0 | DS29: 0 | DT29: 0
B30: 12 | D30: Lineman A | E30: Vendor No. 20 | F30: 205-87 | G30: 5271 / 5284 | H30: 2017-09-07 | I30: 2017-09-17 | J30: =IF(AND(H30>='A - Contractor Summary'!$C$36,I30<='A - Contractor Summary'!$C$42),"Yes","No") -> Yes | K30: =VLOOKUP($D30,'C.1 - Rate Sheets'!B:F,2,FALSE) -> 69.85 | L30: =VLOOKUP($D30,'C.1 - Rate Sheets'!B:F,3,FALSE) -> 101.28 | M30: =VLOOKUP($D30,'C.1 - Rate Sheets'!B:F,4,FALSE) -> 132.72 | N30: =VLOOKUP($D30,'C.1 - Rate Sheets'!B:F,5,FALSE) -> 0 | O30: 0 | P30: 0 | Q30: 0 | R30: 0 | S30: 0 | T30: 0 | U30: 0 | V30: 0 | W30: 0 | X30: 0 | Y30: 0 | Z30: 0 | AA30: 0 | AB30: 0 | AC30: 0 | AD30: 2 | AE30: 0 | AF30: 0 | AG30: 0 | AH30: 2 | AI30: 14 | AJ30: 0 | AK30: 0 | AL30: 0 | AM30: 14 | AN30: 14 | AO30: 0 | AP30: 0 | AQ30: 0 | AR30: 14 | AS30: 0 | AT30: 0 | AU30: 14 | AV30: 0 | AW30: 14 | AX30: 10 | AY30: 6 | AZ30: 0 | BA30: 0 | BB30: 16 | BC30: 0 | BD30: 16 | BE30: 0 | BF30: 0 | BG30: 16 | BH30: 0 | BI30: 16 | BJ30: 0 | BK30: 0 | BL30: 16 | BM30: 0 | BN30: 16 | BO30: 0 | BP30: 0 | BQ30: 16 | BR30: 0 | BS30: 16 | BT30: 0 | BU30: 0 | BV30: 16 | BW30: 0 | BX30: 16 | BY30: 0 | BZ30: 0 | CA30: 16 | CB30: 0 | CC30: 0 | CD30: 16 | CE30: 0 | CF30: 16 | CG30: 0 | CH30: 0 | CI30: 0 | CJ30: 0 | CK30: 0 | CL30: 0 | CM30: 0 | CN30: 0 | CO30: 0 | CP30: 0 | CQ30: 0 | CR30: 0 | CS30: 0 | CT30: 0 | CU30: 0 | CV30: 0 | CW30: 0 | CX30: 0 | CY30: 0 | CZ30: 0 | DA30: 0 | DB30: 0 | DC30: 0 | DD30: 0 | DE30: 0 | DF30: 40 | DG30: 86 | DH30: 30 | DI30: 0 | DJ30: 156 | DK30: 2794 | DL30: 8710.08 | DM30: 3981.6 | DN30: 0 | DO30: 15485.68 | DP30: 15485.68 | DQ30: Yes | DR30: 0 | DS30: 0 | DT30: 0
B31: 13 | D31: Lineman B | E31: Vendor No. 20 | F31: 205-87 | G31: 5271 / 5284 | H31: 2017-09-08 | I31: 2017-09-17 | J31: =IF(AND(H31>='A - Contractor Summary'!$C$36,I31<='A - Contractor Summary'!$C$42),"Yes","No") -> Yes | K31: =VLOOKUP($D31,'C.1 - Rate Sheets'!B:F,2,FALSE) -> 65.9 | L31: =VLOOKUP($D31,'C.1 - Rate Sheets'!B:F,3,FALSE) -> 95.56 | M31: =VLOOKUP($D31,'C.1 - Rate Sheets'!B:F,4,FALSE) -> 125.21 | N31: =VLOOKUP($D31,'C.1 - Rate Sheets'!B:F,5,FALSE) -> 0 | O31: 0 | P31: 0 | Q31: 0 | R31: 0 | S31: 0 | T31: 0 | U31: 0 | V31: 0 | W31: 0 | X31: 0 | Y31: 0 | Z31: 0 | AA31: 0 | AB31: 0 | AC31: 0 | AD31: 0 | AE31: 0 | AF31: 0 | AG31: 0 | AH31: 0 | AI31: 14 | AJ31: 0 | AK31: 0 | AL31: 0 | AM31: 14 | AN31: 14 | AO31: 0 | AP31: 0 | AQ31: 0 | AR31: 14 | AS31: 0 | AT31: 0 | AU31: 14 | AV31: 0 | AW31: 14 | AX31: 12 | AY31: 4 | AZ31: 0 | BA31: 0 | BB31: 16 | BC31: 0 | BD31: 16 | BE31: 0 | BF31: 0 | BG31: 16 | BH31: 0 | BI31: 16 | BJ31: 0 | BK31: 0 | BL31: 16 | BM31: 0 | BN31: 16 | BO31: 0 | BP31: 0 | BQ31: 16 | BR31: 0 | BS31: 16 | BT31: 0 | BU31: 0 | BV31: 16 | BW31: 0 | BX31: 16 | BY31: 0 | BZ31: 0 | CA31: 16 | CB31: 0 | CC31: 0 | CD31: 12 | CE31: 0 | CF31: 12 | CG31: 0 | CH31: 0 | CI31: 0 | CJ31: 0 | CK31: 0 | CL31: 0 | CM31: 0 | CN31: 0 | CO31: 0 | CP31: 0 | CQ31: 0 | CR31: 0 | CS31: 0 | CT31: 0 | CU31: 0 | CV31: 0 | CW31: 0 | CX31: 0 | CY31: 0 | CZ31: 0 | DA31: 0 | DB31: 0 | DC31: 0 | DD31: 0 | DE31: 0 | DF31: 40 | DG31: 84 | DH31: 26 | DI31: 0 | DJ31: 150 | DK31: 2636 | DL31: 8027.04 | DM31: 3255.46 | DN31: 0 | DO31: 13918.5 | DP31: 13918.5 | DQ31: Yes | DR31: 0 | DS31: 0 | DT31: 0
B32: 14 | D32: Lineman C | E32: Vendor No. 20 | F32: 205-87 | G32: 5271 / 5284 | H32: 2017-09-08 | I32: 2017-09-17 | J32: =IF(AND(H32>='A - Contractor Summary'!$C$36,I32<='A - Contractor Summary'!$C$42),"Yes","No") -> Yes | K32: =VLOOKUP($D32,'C.1 - Rate Sheets'!B:F,2,FALSE) -> 60.15 | L32: =VLOOKUP($D32,'C.1 - Rate Sheets'!B:F,3,FALSE) -> 87.22 | M32: =VLOOKUP($D32,'C.1 - Rate Sheets'!B:F,4,FALSE) -> 114.29 | N32: =VLOOKUP($D32,'C.1 - Rate Sheets'!B:F,5,FALSE) -> 0 | O32: 0 | P32: 0 | Q32: 0 | R32: 0 | S32: 0 | T32: 0 | U32: 0 | V32: 0 | W32: 0 | X32: 0 | Y32: 0 | Z32: 0 | AA32: 0 | AB32: 0 | AC32: 0 | AD32: 0 | AE32: 0 | AF32: 0 | AG32: 0 | AH32: 0 | AI32: 14 | AJ32: 0 | AK32: 0 | AL32: 0 | AM32: 14 | AN32: 14 | AO32: 0 | AP32: 0 | AQ32: 0 | AR32: 14 | AS32: 0 | AT32: 0 | AU32: 14 | AV32: 0 | AW32: 14 | AX32: 12 | AY32: 4 | AZ32: 0 | BA32: 0 | BB32: 16 | BC32: 0 | BD32: 16 | BE32: 0 | BF32: 0 | BG32: 16 | BH32: 0 | BI32: 16 | BJ32: 0 | BK32: 0 | BL32: 16 | BM32: 0 | BN32: 16 | BO32: 0 | BP32: 0 | BQ32: 16 | BR32: 0 | BS32: 16 | BT32: 0 | BU32: 0 | BV32: 16 | BW32: 0 | BX32: 16 | BY32: 0 | BZ32: 0 | CA32: 16 | CB32: 0 | CC32: 0 | CD32: 12 | CE32: 0 | CF32: 12 | CG32: 0 | CH32: 0 | CI32: 0 | CJ32: 0 | CK32: 0 | CL32: 0 | CM32: 0 | CN32: 0 | CO32: 0 | CP32: 0 | CQ32: 0 | CR32: 0 | CS32: 0 | CT32: 0 | CU32: 0 | CV32: 0 | CW32: 0 | CX32: 0 | CY32: 0 | CZ32: 0 | DA32: 0 | DB32: 0 | DC32: 0 | DD32: 0 | DE32: 0 | DF32: 40 | DG32: 84 | DH32: 26 | DI32: 0 | DJ32: 150 | DK32: 2406 | DL32: 7326.48 | DM32: 2971.54 | DN32: 0 | DO32: 12704.02 | DP32: 12704.02 | DQ32: Yes | DR32: 0 | DS32: 0 | DT32: 0
B33: 15 | D33: Foreman | E33: Vendor No. 20 | F33: 206-131 | G33: 5272 / 5285 | H33: 2017-09-10 | I33: 2017-09-17 | J33: =IF(AND(H33>='A - Contractor Summary'!$C$36,I33<='A - Contractor Summary'!$C$42),"Yes","No") -> Yes | K33: =VLOOKUP($D33,'C.1 - Rate Sheets'!B:F,2,FALSE) -> 73.25 | L33: =VLOOKUP($D33,'C.1 - Rate Sheets'!B:F,3,FALSE) -> 106.21 | M33: =VLOOKUP($D33,'C.1 - Rate Sheets'!B:F,4,FALSE) -> 139.18 | N33: =VLOOKUP($D33,'C.1 - Rate Sheets'!B:F,5,FALSE) -> 0 | O33: 0 | P33: 0 | Q33: 0 | R33: 0 | S33: 0 | T33: 0 | U33: 0 | V33: 0 | W33: 0 | X33: 0 | Y33: 0 | Z33: 0 | AA33: 0 | AB33: 0 | AC33: 0 | AD33: 0 | AE33: 0 | AF33: 0 | AG33: 0 | AH33: 0 | AI33: 0 | AJ33: 0 | AK33: 0 | AL33: 0 | AM33: 0 | AN33: 0 | AO33: 0 | AP33: 0 | AQ33: 0 | AR33: 0 | AS33: 0 | AT33: 0 | AU33: 11 | AV33: 0 | AW33: 11 | AX33: 16 | AY33: 0 | AZ33: 0 | BA33: 0 | BB33: 16 | BC33: 16 | BD33: 0 | BE33: 0 | BF33: 0 | BG33: 16 | BH33: 8 | BI33: 8 | BJ33: 0 | BK33: 0 | BL33: 16 | BM33: 0 | BN33: 16 | BO33: 0 | BP33: 0 | BQ33: 16 | BR33: 0 | BS33: 16 | BT33: 0 | BU33: 0 | BV33: 16 | BW33: 0 | BX33: 16 | BY33: 0 | BZ33: 0 | CA33: 16 | CB33: 0 | CC33: 0 | CD33: 16 | CE33: 0 | CF33: 16 | CG33: 0 | CH33: 0 | CI33: 0 | CJ33: 0 | CK33: 0 | CL33: 0 | CM33: 0 | CN33: 0 | CO33: 0 | CP33: 0 | CQ33: 0 | CR33: 0 | CS33: 0 | CT33: 0 | CU33: 0 | CV33: 0 | CW33: 0 | CX33: 0 | CY33: 0 | CZ33: 0 | DA33: 0 | DB33: 0 | DC33: 0 | DD33: 0 | DE33: 0 | DF33: 40 | DG33: 56 | DH33: 27 | DI33: 0 | DJ33: 123 | DK33: 2930 | DL33: 5947.76 | DM33: 3757.86 | DN33: 0 | DO33: 12635.62 | DP33: 12635.62 | DQ33: Yes | DR33: 0 | DS33: 0 | DT33: 0
B34: 16 | D34: Lineman A | E34: Vendor No. 20 | F34: 206-131 | G34: 5272 / 5285 | H34: 2017-09-10 | I34: 2017-09-17 | J34: =IF(AND(H34>='A - Contractor Summary'!$C$36,I34<='A - Contractor Summary'!$C$42),"Yes","No") -> Yes | K34: =VLOOKUP($D34,'C.1 - Rate Sheets'!B:F,2,FALSE) -> 69.85 | L34: =VLOOKUP($D34,'C.1 - Rate Sheets'!B:F,3,FALSE) -> 101.28 | M34: =VLOOKUP($D34,'C.1 - Rate Sheets'!B:F,4,FALSE) -> 132.72 | N34: =VLOOKUP($D34,'C.1 - Rate Sheets'!B:F,5,FALSE) -> 0 | O34: 0 | P34: 0 | Q34: 0 | R34: 0 | S34: 0 | T34: 0 | U34: 0 | V34: 0 | W34: 0 | X34: 0 | Y34: 0 | Z34: 0 | AA34: 0 | AB34: 0 | AC34: 0 | AD34: 0 | AE34: 0 | AF34: 0 | AG34: 0 | AH34: 0 | AI34: 0 | AJ34: 0 | AK34: 0 | AL34: 0 | AM34: 0 | AN34: 0 | AO34: 0 | AP34: 0 | AQ34: 0 | AR34: 0 | AS34: 0 | AT34: 0 | AU34: 11 | AV34: 0 | AW34: 11 | AX34: 16 | AY34: 0 | AZ34: 0 | BA34: 0 | BB34: 16 | BC34: 16 | BD34: 0 | BE34: 0 | BF34: 0 | BG34: 16 | BH34: 8 | BI34: 8 | BJ34: 0 | BK34: 0 | BL34: 16 | BM34: 0 | BN34: 16 | BO34: 0 | BP34: 0 | BQ34: 16 | BR34: 0 | BS34: 16 | BT34: 0 | BU34: 0 | BV34: 16 | BW34: 0 | BX34: 16 | BY34: 0 | BZ34: 0 | CA34: 16 | CB34: 0 | CC34: 0 | CD34: 16 | CE34: 0 | CF34: 16 | CG34: 0 | CH34: 0 | CI34: 0 | CJ34: 0 | CK34: 0 | CL34: 0 | CM34: 0 | CN34: 0 | CO34: 0 | CP34: 0 | CQ34: 0 | CR34: 0 | CS34: 0 | CT34: 0 | CU34: 0 | CV34: 0 | CW34: 0 | CX34: 0 | CY34: 0 | CZ34: 0 | DA34: 0 | DB34: 0 | DC34: 0 | DD34: 0 | DE34: 0 | DF34: 40 | DG34: 56 | DH34: 27 | DI34: 0 | DJ34: 123 | DK34: 2794 | DL34: 5671.68 | DM34: 3583.44 | DN34: 0 | DO34: 12049.12 | DP34: 12049.12 | DQ34: Yes | DR34: 0 | DS34: 0 | DT34: 0
B35: 17 | D35: Lineman A | E35: Vendor No. 20 | F35: 206-131 | G35: 5272 / 5285 | H35: 2017-09-10 | I35: 2017-09-17 | J35: =IF(AND(H35>='A - Contractor Summary'!$C$36,I35<='A - Contractor Summary'!$C$42),"Yes","No") -> Yes | K35: =VLOOKUP($D35,'C.1 - Rate Sheets'!B:F,2,FALSE) -> 69.85 | L35: =VLOOKUP($D35,'C.1 - Rate Sheets'!B:F,3,FALSE) -> 101.28 | M35: =VLOOKUP($D35,'C.1 - Rate Sheets'!B:F,4,FALSE) -> 132.72 | N35: =VLOOKUP($D35,'C.1 - Rate Sheets'!B:F,5,FALSE) -> 0 | O35: 0 | P35: 0 | Q35: 0 | R35: 0 | S35: 0 | T35: 0 | U35: 0 | V35: 0 | W35: 0 | X35: 0 | Y35: 0 | Z35: 0 | AA35: 0 | AB35: 0 | AC35: 0 | AD35: 0 | AE35: 0 | AF35: 0 | AG35: 0 | AH35: 0 | AI35: 0 | AJ35: 0 | AK35: 0 | AL35: 0 | AM35: 0 | AN35: 0 | AO35: 0 | AP35: 0 | AQ35: 0 | AR35: 0 | AS35: 0 | AT35: 0 | AU35: 11 | AV35: 0 | AW35: 11 | AX35: 16 | AY35: 0 | AZ35: 0 | BA35: 0 | BB35: 16 | BC35: 16 | BD35: 0 | BE35: 0 | BF35: 0 | BG35: 16 | BH35: 8 | BI35: 8 | BJ35: 0 | BK35: 0 | BL35: 16 | BM35: 0 | BN35: 16 | BO35: 0 | BP35: 0 | BQ35: 16 | BR35: 0 | BS35: 16 | BT35: 0 | BU35: 0 | BV35: 16 | BW35: 0 | BX35: 16 | BY35: 0 | BZ35: 0 | CA35: 16 | CB35: 0 | CC35: 0 | CD35: 16 | CE35: 0 | CF35: 16 | CG35: 0 | CH35: 0 | CI35: 0 | CJ35: 0 | CK35: 0 | CL35: 0 | CM35: 0 | CN35: 0 | CO35: 0 | CP35: 0 | CQ35: 0 | CR35: 0 | CS35: 0 | CT35: 0 | CU35: 0 | CV35: 0 | CW35: 0 | CX35: 0 | CY35: 0 | CZ35: 0 | DA35: 0 | DB35: 0 | DC35: 0 | DD35: 0 | DE35: 0 | DF35: 40 | DG35: 56 | DH35: 27 | DI35: 0 | DJ35: 123 | DK35: 2794 | DL35: 5671.68 | DM35: 3583.44 | DN35: 0 | DO35: 12049.12 | DP35: 12049.12 | DQ35: Yes | DR35: 0 | DS35: 0 | DT35: 0
B36: 18 | D36: Lineman B | E36: Vendor No. 20 | F36: 206-131 | G36: 5272 / 5285 | H36: 2017-09-10 | I36: 2017-09-17 | J36: =IF(AND(H36>='A - Contractor Summary'!$C$36,I36<='A - Contractor Summary'!$C$42),"Yes","No") -> Yes | K36: =VLOOKUP($D36,'C.1 - Rate Sheets'!B:F,2,FALSE) -> 65.9 | L36: =VLOOKUP($D36,'C.1 - Rate Sheets'!B:F,3,FALSE) -> 95.56 | M36: =VLOOKUP($D36,'C.1 - Rate Sheets'!B:F,4,FALSE) -> 125.21 | N36: =VLOOKUP($D36,'C.1 - Rate Sheets'!B:F,5,FALSE) -> 0 | O36: 0 | P36: 0 | Q36: 0 | R36: 0 | S36: 0 | T36: 0 | U36: 0 | V36: 0 | W36: 0 | X36: 0 | Y36: 0 | Z36: 0 | AA36: 0 | AB36: 0 | AC36: 0 | AD36: 0 | AE36: 0 | AF36: 0 | AG36: 0 | AH36: 0 | AI36: 0 | AJ36: 0 | AK36: 0 | AL36: 0 | AM36: 0 | AN36: 0 | AO36: 0 | AP36: 0 | AQ36: 0 | AR36: 0 | AS36: 0 | AT36: 0 | AU36: 11 | AV36: 0 | AW36: 11 | AX36: 16 | AY36: 0 | AZ36: 0 | BA36: 0 | BB36: 16 | BC36: 16 | BD36: 0 | BE36: 0 | BF36: 0 | BG36: 16 | BH36: 8 | BI36: 8 | BJ36: 0 | BK36: 0 | BL36: 16 | BM36: 0 | BN36: 16 | BO36: 0 | BP36: 0 | BQ36: 16 | BR36: 0 | BS36: 16 | BT36: 0 | BU36: 0 | BV36: 16 | BW36: 0 | BX36: 16 | BY36: 0 | BZ36: 0 | CA36: 16 | CB36: 0 | CC36: 0 | CD36: 16 | CE36: 0 | CF36: 16 | CG36: 0 | CH36: 0 | CI36: 0 | CJ36: 0 | CK36: 0 | CL36: 0 | CM36: 0 | CN36: 0 | CO36: 0 | CP36: 0 | CQ36: 0 | CR36: 0 | CS36: 0 | CT36: 0 | CU36: 0 | CV36: 0 | CW36: 0 | CX36: 0 | CY36: 0 | CZ36: 0 | DA36: 0 | DB36: 0 | DC36: 0 | DD36: 0 | DE36: 0 | DF36: 40 | DG36: 56 | DH36: 27 | DI36: 0 | DJ36: 123 | DK36: 2636 | DL36: 5351.36 | DM36: 3380.67 | DN36: 0 | DO36: 11368.03 | DP36: 11368.03 | DQ36: Yes | DR36: 0 | DS36: 0 | DT36: 0
B37: 19 | D37: Groundman | E37: Vendor No. 20 | F37: 206-131 | G37: 5272 / 5285 | H37: 2017-09-10 | I37: 2017-09-17 | J37: =IF(AND(H37>='A - Contractor Summary'!$C$36,I37<='A - Contractor Summary'!$C$42),"Yes","No") -> Yes | K37: =VLOOKUP($D37,'C.1 - Rate Sheets'!B:F,2,FALSE) -> 39.75 | L37: =VLOOKUP($D37,'C.1 - Rate Sheets'!B:F,3,FALSE) -> 57.64 | M37: =VLOOKUP($D37,'C.1 - Rate Sheets'!B:F,4,FALSE) -> 75.53 | N37: =VLOOKUP($D37,'C.1 - Rate Sheets'!B:F,5,FALSE) -> 0 | O37: 0 | P37: 0 | Q37: 0 | R37: 0 | S37: 0 | T37: 0 | U37: 0 | V37: 0 | W37: 0 | X37: 0 | Y37: 0 | Z37: 0 | AA37: 0 | AB37: 0 | AC37: 0 | AD37: 0 | AE37: 0 | AF37: 0 | AG37: 0 | AH37: 0 | AI37: 0 | AJ37: 0 | AK37: 0 | AL37: 0 | AM37: 0 | AN37: 0 | AO37: 0 | AP37: 0 | AQ37: 0 | AR37: 0 | AS37: 0 | AT37: 0 | AU37: 11 | AV37: 0 | AW37: 11 | AX37: 16 | AY37: 0 | AZ37: 0 | BA37: 0 | BB37: 16 | BC37: 16 | BD37: 0 | BE37: 0 | BF37: 0 | BG37: 16 | BH37: 8 | BI37: 8 | BJ37: 0 | BK37: 0 | BL37: 16 | BM37: 0 | BN37: 16 | BO37: 0 | BP37: 0 | BQ37: 16 | BR37: 0 | BS37: 16 | BT37: 0 | BU37: 0 | BV37: 16 | BW37: 0 | BX37: 16 | BY37: 0 | BZ37: 0 | CA37: 16 | CB37: 0 | CC37: 0 | CD37: 16 | CE37: 0 | CF37: 16 | CG37: 0 | CH37: 0 | CI37: 0 | CJ37: 0 | CK37: 0 | CL37: 0 | CM37: 0 | CN37: 0 | CO37: 0 | CP37: 0 | CQ37: 0 | CR37: 0 | CS37: 0 | CT37: 0 | CU37: 0 | CV37: 0 | CW37: 0 | CX37: 0 | CY37: 0 | CZ37: 0 | DA37: 0 | DB37: 0 | DC37: 0 | DD37: 0 | DE37: 0 | DF37: 40 | DG37: 56 | DH37: 27 | DI37: 0 | DJ37: 123 | DK37: 1590 | DL37: 3227.84 | DM37: 2039.31 | DN37: 0 | DO37: =SUM(DK37:DN37) -> 6857.15 | DP37: 6857.15 | DQ37: Yes | DR37: 0 | DS37: 0 | DT37: 0
B38: 20 | D38: Foreman | E38: Vendor No. 20 | F38: 219-25 | G38: 5273 | H38: 2017-09-10 | I38: 2017-09-17 | J38: =IF(AND(H38>='A - Contractor Summary'!$C$36,I38<='A - Contractor Summary'!$C$42),"Yes","No") -> Yes | K38: =VLOOKUP($D38,'C.1 - Rate Sheets'!B:F,2,FALSE) -> 73.25 | L38: =VLOOKUP($D38,'C.1 - Rate Sheets'!B:F,3,FALSE) -> 106.21 | M38: =VLOOKUP($D38,'C.1 - Rate Sheets'!B:F,4,FALSE) -> 139.18 | N38: =VLOOKUP($D38,'C.1 - Rate Sheets'!B:F,5,FALSE) -> 0 | O38: 0 | P38: 0 | Q38: 0 | R38: 0 | S38: 0 | T38: 0 | U38: 0 | V38: 0 | W38: 0 | X38: 0 | Y38: 0 | Z38: 0 | AA38: 0 | AB38: 0 | AC38: 0 | AD38: 0 | AE38: 0 | AF38: 0 | AG38: 0 | AH38: 0 | AI38: 0 | AJ38: 0 | AK38: 0 | AL38: 0 | AM38: 0 | AN38: 0 | AO38: 0 | AP38: 0 | AQ38: 0 | AR38: 0 | AS38: 0 | AT38: 0 | AU38: 11 | AV38: 0 | AW38: 11 | AX38: 16 | AY38: 0 | AZ38: 0 | BA38: 0 | BB38: 16 | BC38: 16 | BD38: 0 | BE38: 0 | BF38: 0 | BG38: 16 | BH38: 8 | BI38: 8 | BJ38: 0 | BK38: 0 | BL38: 16 | BM38: 0 | BN38: 16 | BO38: 0 | BP38: 0 | BQ38: 16 | BR38: 0 | BS38: 16 | BT38: 0 | BU38: 0 | BV38: 16 | BW38: 0 | BX38: 16 | BY38: 0 | BZ38: 0 | CA38: 16 | CB38: 0 | CC38: 0 | CD38: 16 | CE38: 0 | CF38: 16 | CG38: 0 | CH38: 0 | CI38: 0 | CJ38: 0 | CK38: 0 | CL38: 0 | CM38: 0 | CN38: 0 | CO38: 0 | CP38: 0 | CQ38: 0 | CR38: 0 | CS38: 0 | CT38: 0 | CU38: 0 | CV38: 0 | CW38: 0 | CX38: 0 | CY38: 0 | CZ38: 0 | DA38: 0 | DB38: 0 | DC38: 0 | DD38: 0 | DE38: 0 | DF38: 40 | DG38: 56 | DH38: 27 | DI38: 0 | DJ38: 123 | DK38: 2930 | DL38: 5947.76 | DM38: 3757.86 | DN38: 0 | DO38: 12635.62 | DP38: 12635.62 | DQ38: Yes | DR38: 0 | DS38: 0 | DT38: 0
B39: 21 | D39: Lineman A | E39: Vendor No. 20 | F39: 219-25 | G39: 5273 | H39: 2017-09-10 | I39: 2017-09-17 | J39: =IF(AND(H39>='A - Contractor Summary'!$C$36,I39<='A - Contractor Summary'!$C$42),"Yes","No") -> Yes | K39: =VLOOKUP($D39,'C.1 - Rate Sheets'!B:F,2,FALSE) -> 69.85 | L39: =VLOOKUP($D39,'C.1 - Rate Sheets'!B:F,3,FALSE) -> 101.28 | M39: =VLOOKUP($D39,'C.1 - Rate Sheets'!B:F,4,FALSE) -> 132.72 | N39: =VLOOKUP($D39,'C.1 - Rate Sheets'!B:F,5,FALSE) -> 0 | O39: 0 | P39: 0 | Q39: 0 | R39: 0 | S39: 0 | T39: 0 | U39: 0 | V39: 0 | W39: 0 | X39: 0 | Y39: 0 | Z39: 0 | AA39: 0 | AB39: 0 | AC39: =SUM(Y39:AB39) -> 0 | AD39: 0 | AE39: 0 | AF39: 0 | AG39: 0 | AH39: =SUM(AD39:AG39) -> 0 | AI39: 0 | AJ39: 0 | AK39: 0 | AL39: 0 | AM39: =SUM(AI39:AL39) -> 0 | AN39: 0 | AO39: 0 | AP39: 0 | AQ39: 0 | AR39: =SUM(AN39:AQ39) -> 0 | AS39: 0 | AT39: 0 | AU39: 11 | AV39: 0 | AW39: =SUM(AS39:AV39) -> 11 | AX39: 16 | AY39: 0 | AZ39: 0 | BA39: 0 | BB39: =SUM(AX39:BA39) -> 16 | BC39: 16 | BD39: 0 | BE39: 0 | BF39: 0 | BG39: =SUM(BC39:BF39) -> 16 | BH39: 8 | BI39: 8 | BJ39: 0 | BK39: 0 | BL39: =SUM(BH39:BK39) -> 16 | BM39: 0 | BN39: 16 | BO39: 0 | BP39: 0 | BQ39: =SUM(BM39:BP39) -> 16 | BR39: 0 | BS39: 16 | BT39: 0 | BU39: 0 | BV39: =SUM(BR39:BU39) -> 16 | BW39: 0 | BX39: 16 | BY39: 0 | BZ39: 0 | CA39: =SUM(BW39:BZ39) -> 16 | CB39: 0 | CC39: 0 | CD39: 16 | CE39: 0 | CF39: =SUM(CB39:CE39) -> 16 | CG39: 0 | CH39: 0 | CI39: 0 | CJ39: 0 | CK39: =SUM(CG39:CJ39) -> 0 | CL39: 0 | CM39: 0 | CN39: 0 | CO39: 0 | CP39: =SUM(CL39:CO39) -> 0 | CQ39: 0 | CR39: 0 | CS39: 0 | CT39: 0 | CU39: =SUM(CQ39:CT39) -> 0 | CV39: 0 | CW39: 0 | CX39: 0 | CY39: 0 | CZ39: =SUM(CV39:CY39) -> 0 | DA39: 0 | DB39: 0 | DC39: 0 | DD39: 0 | DE39: =SUM(DA39:DD39) -> 0 | DF39: 40 | DG39: 56 | DH39: 27 | DI39: 0 | DJ39: 123 | DK39: 2794 | DL39: 5671.68 | DM39: 3583.44 | DN39: 0 | DO39: =SUM(DK39:DN39) -> 12049.12 | DP39: 12049.12 | DQ39: Yes | DR39: 0 | DS39: 0 | DT39: 0
B40: 22 | D40: Lineman C | E40: Vendor No. 20 | F40: 219-25 | G40: 5273 | H40: 2017-09-10 | I40: 2017-09-17 | J40: =IF(AND(H40>='A - Contractor Summary'!$C$36,I40<='A - Contractor Summary'!$C$42),"Yes","No") -> Yes | K40: =VLOOKUP($D40,'C.1 - Rate Sheets'!B:F,2,FALSE) -> 60.15 | L40: =VLOOKUP($D40,'C.1 - Rate Sheets'!B:F,3,FALSE) -> 87.22 | M40: =VLOOKUP($D40,'C.1 - Rate Sheets'!B:F,4,FALSE) -> 114.29 | N40: =VLOOKUP($D40,'C.1 - Rate Sheets'!B:F,5,FALSE) -> 0 | O40: 0 | P40: 0 | Q40: 0 | R40: 0 | S40: 0 | T40: 0 | U40: 0 | V40: 0 | W40: 0 | X40: 0 | Y40: 0 | Z40: 0 | AA40: 0 | AB40: 0 | AC40: 0 | AD40: 0 | AE40: 0 | AF40: 0 | AG40: 0 | AH40: 0 | AI40: 0 | AJ40: 0 | AK40: 0 | AL40: 0 | AM40: 0 | AN40: 0 | AO40: 0 | AP40: 0 | AQ40: 0 | AR40: 0 | AS40: 0 | AT40: 0 | AU40: 11 | AV40: 0 | AW40: 11 | AX40: 16 | AY40: 0 | AZ40: 0 | BA40: 0 | BB40: 16 | BC40: 16 | BD40: 0 | BE40: 0 | BF40: 0 | BG40: 16 | BH40: 8 | BI40: 8 | BJ40: 0 | BK40: 0 | BL40: 16 | BM40: 0 | BN40: 16 | BO40: 0 | BP40: 0 | BQ40: 16 | BR40: 0 | BS40: 16 | BT40: 0 | BU40: 0 | BV40: 16 | BW40: 0 | BX40: 16 | BY40: 0 | BZ40: 0 | CA40: 16 | CB40: 0 | CC40: 0 | CD40: 16 | CE40: 0 | CF40: 16 | CG40: 0 | CH40: 0 | CI40: 0 | CJ40: 0 | CK40: 0 | CL40: 0 | CM40: 0 | CN40: 0 | CO40: 0 | CP40: 0 | CQ40: 0 | CR40: 0 | CS40: 0 | CT40: 0 | CU40: 0 | CV40: 0 | CW40: 0 | CX40: 0 | CY40: 0 | CZ40: 0 | DA40: 0 | DB40: 0 | DC40: 0 | DD40: 0 | DE40: 0 | DF40: 40 | DG40: 56 | DH40: 27 | DI40: 0 | DJ40: 123 | DK40: 2406 | DL40: 4884.32 | DM40: 3085.83 | DN40: 0 | DO40: 10376.15 | DP40: 10376.15 | DQ40: Yes | DR40: 0 | DS40: 0 | DT40: 0
B41: 23 | D41: EQUIPMENT OPERATOR | E41: Vendor No. 20 | F41: 219-25 | G41: 5273 | H41: 2017-09-10 | I41: 2017-09-17 | J41: =IF(AND(H41>='A - Contractor Summary'!$C$36,I41<='A - Contractor Summary'!$C$42),"Yes","No") -> Yes | K41: =VLOOKUP($D41,'C.1 - Rate Sheets'!B:F,2,FALSE) -> 49.5 | L41: =VLOOKUP($D41,'C.1 - Rate Sheets'!B:F,3,FALSE) -> 71.78 | M41: =VLOOKUP($D41,'C.1 - Rate Sheets'!B:F,4,FALSE) -> 94.05 | N41: =VLOOKUP($D41,'C.1 - Rate Sheets'!B:F,5,FALSE) -> 0 | O41: 0 | P41: 0 | Q41: 0 | R41: 0 | S41: 0 | T41: 0 | U41: 0 | V41: 0 | W41: 0 | X41: 0 | Y41: 0 | Z41: 0 | AA41: 0 | AB41: 0 | AC41: 0 | AD41: 0 | AE41: 0 | AF41: 0 | AG41: 0 | AH41: 0 | AI41: 0 | AJ41: 0 | AK41: 0 | AL41: 0 | AM41: 0 | AN41: 0 | AO41: 0 | AP41: 0 | AQ41: 0 | AR41: 0 | AS41: 0 | AT41: 0 | AU41: 11 | AV41: 0 | AW41: 11 | AX41: 16 | AY41: 0 | AZ41: 0 | BA41: 0 | BB41: 16 | BC41: 16 | BD41: 0 | BE41: 0 | BF41: 0 | BG41: 16 | BH41: 8 | BI41: 8 | BJ41: 0 | BK41: 0 | BL41: 16 | BM41: 0 | BN41: 16 | BO41: 0 | BP41: 0 | BQ41: 16 | BR41: 0 | BS41: 16 | BT41: 0 | BU41: 0 | BV41: 16 | BW41: 0 | BX41: 16 | BY41: 0 | BZ41: 0 | CA41: 16 | CB41: 0 | CC41: 0 | CD41: 16 | CE41: 0 | CF41: 16 | CG41: 0 | CH41: 0 | CI41: 0 | CJ41: 0 | CK41: 0 | CL41: 0 | CM41: 0 | CN41: 0 | CO41: 0 | CP41: 0 | CQ41: 0 | CR41: 0 | CS41: 0 | CT41: 0 | CU41: 0 | CV41: 0 | CW41: 0 | CX41: 0 | CY41: 0 | CZ41: 0 | DA41: 0 | DB41: 0 | DC41: 0 | DD41: 0 | DE41: 0 | DF41: 40 | DG41: 56 | DH41: 27 | DI41: 0 | DJ41: 123 | DK41: 1980 | DL41: 4019.68 | DM41: 2539.35 | DN41: 0 | DO41: 8539.03 | DP41: 8539.03 | DQ41: Yes | DR41: 0 | DS41: 0 | DT41: 0
B42: 24 | D42: Foreman | E42: Vendor No. 20 | F42: 228-44 | G42: 5274 / 5291 | H42: 2017-09-08 | I42: 2017-09-17 | J42: =IF(AND(H42>='A - Contractor Summary'!$C$36,I42<='A - Contractor Summary'!$C$42),"Yes","No") -> Yes | K42: =VLOOKUP($D42,'C.1 - Rate Sheets'!B:F,2,FALSE) -> 73.25 | L42: =VLOOKUP($D42,'C.1 - Rate Sheets'!B:F,3,FALSE) -> 106.21 | M42: =VLOOKUP($D42,'C.1 - Rate Sheets'!B:F,4,FALSE) -> 139.18 | N42: =VLOOKUP($D42,'C.1 - Rate Sheets'!B:F,5,FALSE) -> 0 | O42: 0 | P42: 0 | Q42: 0 | R42: 0 | S42: 0 | T42: 0 | U42: 0 | V42: 0 | W42: 0 | X42: 0 | Y42: 0 | Z42: 0 | AA42: 0 | AB42: 0 | AC42: 0 | AD42: 0 | AE42: 0 | AF42: 0 | AG42: 0 | AH42: 0 | AI42: 14 | AJ42: 0 | AK42: 0 | AL42: 0 | AM42: 14 | AN42: 14 | AO42: 0 | AP42: 0 | AQ42: 0 | AR42: 14 | AS42: 0 | AT42: 0 | AU42: 14 | AV42: 0 | AW42: 14 | AX42: 12 | AY42: 5 | AZ42: 0 | BA42: 0 | BB42: 17 | BC42: 0 | BD42: 17 | BE42: 0 | BF42: 0 | BG42: 17 | BH42: 0 | BI42: 17 | BJ42: 0 | BK42: 0 | BL42: 17 | BM42: 0 | BN42: 17 | BO42: 0 | BP42: 0 | BQ42: 17 | BR42: 0 | BS42: 17 | BT42: 0 | BU42: 0 | BV42: 17 | BW42: 0 | BX42: 17 | BY42: 0 | BZ42: 0 | CA42: 17 | CB42: 0 | CC42: 0 | CD42: 16 | CE42: 0 | CF42: 16 | CG42: 0 | CH42: 0 | CI42: 0 | CJ42: 0 | CK42: 0 | CL42: 0 | CM42: 0 | CN42: 0 | CO42: 0 | CP42: 0 | CQ42: 0 | CR42: 0 | CS42: 0 | CT42: 0 | CU42: 0 | CV42: 0 | CW42: 0 | CX42: 0 | CY42: 0 | CZ42: 0 | DA42: 0 | DB42: 0 | DC42: 0 | DD42: 0 | DE42: 0 | DF42: 40 | DG42: 90 | DH42: 30 | DI42: 0 | DJ42: 160 | DK42: 2930 | DL42: 9558.9 | DM42: 4175.4 | DN42: 0 | DO42: 16664.3 | DP42: 16664.3 | DQ42: Yes | DR42: 0 | DS42: 0 | DT42: 0
B43: 25 | D43: Lineman A | E43: Vendor No. 20 | F43: 228-44 | G43: 5274 / 5291 | H43: 2017-09-08 | I43: 2017-09-17 | J43: =IF(AND(H43>='A - Contractor Summary'!$C$36,I43<='A - Contractor Summary'!$C$42),"Yes","No") -> Yes | K43: =VLOOKUP($D43,'C.1 - Rate Sheets'!B:F,2,FALSE) -> 69.85 | L43: =VLOOKUP($D43,'C.1 - Rate Sheets'!B:F,3,FALSE) -> 101.28 | M43: =VLOOKUP($D43,'C.1 - Rate Sheets'!B:F,4,FALSE) -> 132.72 | N43: =VLOOKUP($D43,'C.1 - Rate Sheets'!B:F,5,FALSE) -> 0 | O43: 0 | P43: 0 | Q43: 0 | R43: 0 | S43: 0 | T43: 0 | U43: 0 | V43: 0 | W43: 0 | X43: 0 | Y43: 0 | Z43: 0 | AA43: 0 | AB43: 0 | AC43: 0 | AD43: 0 | AE43: 0 | AF43: 0 | AG43: 0 | AH43: 0 | AI43: 14 | AJ43: 0 | AK43: 0 | AL43: 0 | AM43: 14 | AN43: 14 | AO43: 0 | AP43: 0 | AQ43: 0 | AR43: 14 | AS43: 0 | AT43: 0 | AU43: 14 | AV43: 0 | AW43: 14 | AX43: 12 | AY43: 5 | AZ43: 0 | BA43: 0 | BB43: 17 | BC43: 0 | BD43: 17 | BE43: 0 | BF43: 0 | BG43: 17 | BH43: 0 | BI43: 17 | BJ43: 0 | BK43: 0 | BL43: 17 | BM43: 0 | BN43: 17 | BO43: 0 | BP43: 0 | BQ43: 17 | BR43: 0 | BS43: 17 | BT43: 0 | BU43: 0 | BV43: 17 | BW43: 0 | BX43: 17 | BY43: 0 | BZ43: 0 | CA43: 17 | CB43: 0 | CC43: 0 | CD43: 16 | CE43: 0 | CF43: 16 | CG43: 0 | CH43: 0 | CI43: 0 | CJ43: 0 | CK43: 0 | CL43: 0 | CM43: 0 | CN43: 0 | CO43: 0 | CP43: 0 | CQ43: 0 | CR43: 0 | CS43: 0 | CT43: 0 | CU43: 0 | CV43: 0 | CW43: 0 | CX43: 0 | CY43: 0 | CZ43: 0 | DA43: 0 | DB43: 0 | DC43: 0 | DD43: 0 | DE43: 0 | DF43: 40 | DG43: 90 | DH43: 30 | DI43: 0 | DJ43: 160 | DK43: 2794 | DL43: 9115.2 | DM43: 3981.6 | DN43: 0 | DO43: 15890.8 | DP43: 15890.8 | DQ43: Yes | DR43: 0 | DS43: 0 | DT43: 0
B44: 26 | D44: Lineman B | E44: Vendor No. 20 | F44: 228-44 | G44: 5274 / 5291 | H44: 2017-09-08 | I44: 2017-09-17 | J44: =IF(AND(H44>='A - Contractor Summary'!$C$36,I44<='A - Contractor Summary'!$C$42),"Yes","No") -> Yes | K44: =VLOOKUP($D44,'C.1 - Rate Sheets'!B:F,2,FALSE) -> 65.9 | L44: =VLOOKUP($D44,'C.1 - Rate Sheets'!B:F,3,FALSE) -> 95.56 | M44: =VLOOKUP($D44,'C.1 - Rate Sheets'!B:F,4,FALSE) -> 125.21 | N44: =VLOOKUP($D44,'C.1 - Rate Sheets'!B:F,5,FALSE) -> 0 | O44: 0 | P44: 0 | Q44: 0 | R44: 0 | S44: 0 | T44: 0 | U44: 0 | V44: 0 | W44: 0 | X44: 0 | Y44: 0 | Z44: 0 | AA44: 0 | AB44: 0 | AC44: 0 | AD44: 0 | AE44: 0 | AF44: 0 | AG44: 0 | AH44: 0 | AI44: 14 | AJ44: 0 | AK44: 0 | AL44: 0 | AM44: 14 | AN44: 14 | AO44: 0 | AP44: 0 | AQ44: 0 | AR44: 14 | AS44: 0 | AT44: 0 | AU44: 14 | AV44: 0 | AW44: 14 | AX44: 12 | AY44: 5 | AZ44: 0 | BA44: 0 | BB44: 17 | BC44: 0 | BD44: 17 | BE44: 0 | BF44: 0 | BG44: 17 | BH44: 0 | BI44: 17 | BJ44: 0 | BK44: 0 | BL44: 17 | BM44: 0 | BN44: 17 | BO44: 0 | BP44: 0 | BQ44: 17 | BR44: 0 | BS44: 17 | BT44: 0 | BU44: 0 | BV44: 17 | BW44: 0 | BX44: 17 | BY44: 0 | BZ44: 0 | CA44: 17 | CB44: 0 | CC44: 0 | CD44: 16 | CE44: 0 | CF44: 16 | CG44: 0 | CH44: 0 | CI44: 0 | CJ44: 0 | CK44: 0 | CL44: 0 | CM44: 0 | CN44: 0 | CO44: 0 | CP44: 0 | CQ44: 0 | CR44: 0 | CS44: 0 | CT44: 0 | CU44: 0 | CV44: 0 | CW44: 0 | CX44: 0 | CY44: 0 | CZ44: 0 | DA44: 0 | DB44: 0 | DC44: 0 | DD44: 0 | DE44: 0 | DF44: 40 | DG44: 90 | DH44: 30 | DI44: 0 | DJ44: 160 | DK44: 2636 | DL44: 8600.4 | DM44: 3756.3 | DN44: 0 | DO44: 14992.7 | DP44: 14992.7 | DQ44: Yes | DR44: 0 | DS44: 0 | DT44: 0
B45: 27 | D45: Lineman B | E45: Vendor No. 20 | F45: 228-44 | G45: 5274 / 5291 | H45: 2017-09-08 | I45: 2017-09-17 | J45: =IF(AND(H45>='A - Contractor Summary'!$C$36,I45<='A - Contractor Summary'!$C$42),"Yes","No") -> Yes | K45: =VLOOKUP($D45,'C.1 - Rate Sheets'!B:F,2,FALSE) -> 65.9 | L45: =VLOOKUP($D45,'C.1 - Rate Sheets'!B:F,3,FALSE) -> 95.56 | M45: =VLOOKUP($D45,'C.1 - Rate Sheets'!B:F,4,FALSE) -> 125.21 | N45: =VLOOKUP($D45,'C.1 - Rate Sheets'!B:F,5,FALSE) -> 0 | O45: 0 | P45: 0 | Q45: 0 | R45: 0 | S45: 0 | T45: 0 | U45: 0 | V45: 0 | W45: 0 | X45: 0 | Y45: 0 | Z45: 0 | AA45: 0 | AB45: 0 | AC45: 0 | AD45: 0 | AE45: 0 | AF45: 0 | AG45: 0 | AH45: 0 | AI45: 14 | AJ45: 0 | AK45: 0 | AL45: 0 | AM45: 14 | AN45: 14 | AO45: 0 | AP45: 0 | AQ45: 0 | AR45: 14 | AS45: 0 | AT45: 0 | AU45: 14 | AV45: 0 | AW45: 14 | AX45: 12 | AY45: 5 | AZ45: 0 | BA45: 0 | BB45: 17 | BC45: 0 | BD45: 17 | BE45: 0 | BF45: 0 | BG45: 17 | BH45: 0 | BI45: 17 | BJ45: 0 | BK45: 0 | BL45: 17 | BM45: 0 | BN45: 17 | BO45: 0 | BP45: 0 | BQ45: 17 | BR45: 0 | BS45: 17 | BT45: 0 | BU45: 0 | BV45: 17 | BW45: 0 | BX45: 17 | BY45: 0 | BZ45: 0 | CA45: 17 | CB45: 0 | CC45: 0 | CD45: 16 | CE45: 0 | CF45: 16 | CG45: 0 | CH45: 0 | CI45: 0 | CJ45: 0 | CK45: 0 | CL45: 0 | CM45: 0 | CN45: 0 | CO45: 0 | CP45: 0 | CQ45: 0 | CR45: 0 | CS45: 0 | CT45: 0 | CU45: 0 | CV45: 0 | CW45: 0 | CX45: 0 | CY45: 0 | CZ45: 0 | DA45: 0 | DB45: 0 | DC45: 0 | DD45: 0 | DE45: 0 | DF45: 40 | DG45: 90 | DH45: 30 | DI45: 0 | DJ45: 160 | DK45: 2636 | DL45: 8600.4 | DM45: 3756.3 | DN45: 0 | DO45: 14992.7 | DP45: 14992.7 | DQ45: Yes | DR45: 0 | DS45: 0 | DT45: 0
B46: 28 | D46: Lineman B | E46: Vendor No. 20 | F46: 228-44 | G46: 5274 / 5291 | H46: 2017-09-08 | I46: 2017-09-17 | J46: =IF(AND(H46>='A - Contractor Summary'!$C$36,I46<='A - Contractor Summary'!$C$42),"Yes","No") -> Yes | K46: =VLOOKUP($D46,'C.1 - Rate Sheets'!B:F,2,FALSE) -> 65.9 | L46: =VLOOKUP($D46,'C.1 - Rate Sheets'!B:F,3,FALSE) -> 95.56 | M46: =VLOOKUP($D46,'C.1 - Rate Sheets'!B:F,4,FALSE) -> 125.21 | N46: =VLOOKUP($D46,'C.1 - Rate Sheets'!B:F,5,FALSE) -> 0 | O46: 0 | P46: 0 | Q46: 0 | R46: 0 | S46: 0 | T46: 0 | U46: 0 | V46: 0 | W46: 0 | X46: 0 | Y46: 0 | Z46: 0 | AA46: 0 | AB46: 0 | AC46: 0 | AD46: 0 | AE46: 0 | AF46: 0 | AG46: 0 | AH46: 0 | AI46: 14 | AJ46: 0 | AK46: 0 | AL46: 0 | AM46: 14 | AN46: 14 | AO46: 0 | AP46: 0 | AQ46: 0 | AR46: 14 | AS46: 0 | AT46: 0 | AU46: 14 | AV46: 0 | AW46: 14 | AX46: 12 | AY46: 5 | AZ46: 0 | BA46: 0 | BB46: 17 | BC46: 0 | BD46: 17 | BE46: 0 | BF46: 0 | BG46: 17 | BH46: 0 | BI46: 17 | BJ46: 0 | BK46: 0 | BL46: 17 | BM46: 0 | BN46: 17 | BO46: 0 | BP46: 0 | BQ46: 17 | BR46: 0 | BS46: 17 | BT46: 0 | BU46: 0 | BV46: 17 | BW46: 0 | BX46: 17 | BY46: 0 | BZ46: 0 | CA46: 17 | CB46: 0 | CC46: 0 | CD46: 16 | CE46: 0 | CF46: 16 | CG46: 0 | CH46: 0 | CI46: 0 | CJ46: 0 | CK46: 0 | CL46: 0 | CM46: 0 | CN46: 0 | CO46: 0 | CP46: 0 | CQ46: 0 | CR46: 0 | CS46: 0 | CT46: 0 | CU46: 0 | CV46: 0 | CW46: 0 | CX46: 0 | CY46: 0 | CZ46: 0 | DA46: 0 | DB46: 0 | DC46: 0 | DD46: 0 | DE46: 0 | DF46: 40 | DG46: 90 | DH46: 30 | DI46: 0 | DJ46: 160 | DK46: 2636 | DL46: 8600.4 | DM46: 3756.3 | DN46: 0 | DO46: 14992.7 | DP46: 14992.7 | DQ46: Yes | DR46: 0 | DS46: 0 | DT46: 0
B47: 29 | D47: Foreman | E47: Vendor No. 20 | F47: 238-15 | G47: 5275 / 5292 | H47: 2017-09-10 | I47: 2017-09-17 | J47: =IF(AND(H47>='A - Contractor Summary'!$C$36,I47<='A - Contractor Summary'!$C$42),"Yes","No") -> Yes | K47: =VLOOKUP($D47,'C.1 - Rate Sheets'!B:F,2,FALSE) -> 73.25 | L47: =VLOOKUP($D47,'C.1 - Rate Sheets'!B:F,3,FALSE) -> 106.21 | M47: =VLOOKUP($D47,'C.1 - Rate Sheets'!B:F,4,FALSE) -> 139.18 | N47: =VLOOKUP($D47,'C.1 - Rate Sheets'!B:F,5,FALSE) -> 0 | O47: 0 | P47: 0 | Q47: 0 | R47: 0 | S47: 0 | T47: 0 | U47: 0 | V47: 0 | W47: 0 | X47: 0 | Y47: 0 | Z47: 0 | AA47: 0 | AB47: 0 | AC47: 0 | AD47: 0 | AE47: 0 | AF47: 0 | AG47: 0 | AH47: 0 | AI47: 0 | AJ47: 0 | AK47: 0 | AL47: 0 | AM47: 0 | AN47: 0 | AO47: 0 | AP47: 0 | AQ47: 0 | AR47: 0 | AS47: 0 | AT47: 0 | AU47: 12 | AV47: 0 | AW47: 12 | AX47: 16 | AY47: 0 | AZ47: 0 | BA47: 0 | BB47: 16 | BC47: 16 | BD47: 0 | BE47: 0 | BF47: 0 | BG47: 16 | BH47: 8 | BI47: 8 | BJ47: 0 | BK47: 0 | BL47: 16 | BM47: 0 | BN47: 16 | BO47: 0 | BP47: 0 | BQ47: 16 | BR47: 0 | BS47: 16 | BT47: 0 | BU47: 0 | BV47: 16 | BW47: 0 | BX47: 16 | BY47: 0 | BZ47: 0 | CA47: 16 | CB47: 0 | CC47: 0 | CD47: 16 | CE47: 0 | CF47: 16 | CG47: 0 | CH47: 0 | CI47: 0 | CJ47: 0 | CK47: 0 | CL47: 0 | CM47: 0 | CN47: 0 | CO47: 0 | CP47: 0 | CQ47: 0 | CR47: 0 | CS47: 0 | CT47: 0 | CU47: 0 | CV47: 0 | CW47: 0 | CX47: 0 | CY47: 0 | CZ47: 0 | DA47: 0 | DB47: 0 | DC47: 0 | DD47: 0 | DE47: 0 | DF47: 40 | DG47: 56 | DH47: 28 | DI47: 0 | DJ47: 124 | DK47: 2930 | DL47: 5947.76 | DM47: 3897.04 | DN47: 0 | DO47: 12774.8 | DP47: 12774.8 | DQ47: Yes | DR47: 0 | DS47: 0 | DT47: 0
B48: 30 | D48: Lineman A | E48: Vendor No. 20 | F48: 238-15 | G48: 5275 / 5292 | H48: 2017-09-10 | I48: 2017-09-17 | J48: =IF(AND(H48>='A - Contractor Summary'!$C$36,I48<='A - Contractor Summary'!$C$42),"Yes","No") -> Yes | K48: =VLOOKUP($D48,'C.1 - Rate Sheets'!B:F,2,FALSE) -> 69.85 | L48: =VLOOKUP($D48,'C.1 - Rate Sheets'!B:F,3,FALSE) -> 101.28 | M48: =VLOOKUP($D48,'C.1 - Rate Sheets'!B:F,4,FALSE) -> 132.72 | N48: =VLOOKUP($D48,'C.1 - Rate Sheets'!B:F,5,FALSE) -> 0 | O48: 0 | P48: 0 | Q48: 0 | R48: 0 | S48: 0 | T48: 0 | U48: 0 | V48: 0 | W48: 0 | X48: 0 | Y48: 0 | Z48: 0 | AA48: 0 | AB48: 0 | AC48: 0 | AD48: 0 | AE48: 0 | AF48: 0 | AG48: 0 | AH48: 0 | AI48: 0 | AJ48: 0 | AK48: 0 | AL48: 0 | AM48: 0 | AN48: 0 | AO48: 0 | AP48: 0 | AQ48: 0 | AR48: 0 | AS48: 0 | AT48: 0 | AU48: 12 | AV48: 0 | AW48: 12 | AX48: 16 | AY48: 0 | AZ48: 0 | BA48: 0 | BB48: 16 | BC48: 16 | BD48: 0 | BE48: 0 | BF48: 0 | BG48: 16 | BH48: 8 | BI48: 8 | BJ48: 0 | BK48: 0 | BL48: 16 | BM48: 0 | BN48: 16 | BO48: 0 | BP48: 0 | BQ48: 16 | BR48: 0 | BS48: 16 | BT48: 0 | BU48: 0 | BV48: 16 | BW48: 0 | BX48: 16 | BY48: 0 | BZ48: 0 | CA48: 16 | CB48: 0 | CC48: 0 | CD48: 16 | CE48: 0 | CF48: 16 | CG48: 0 | CH48: 0 | CI48: 0 | CJ48: 0 | CK48: 0 | CL48: 0 | CM48: 0 | CN48: 0 | CO48: 0 | CP48: 0 | CQ48: 0 | CR48: 0 | CS48: 0 | CT48: 0 | CU48: 0 | CV48: 0 | CW48: 0 | CX48: 0 | CY48: 0 | CZ48: 0 | DA48: 0 | DB48: 0 | DC48: 0 | DD48: 0 | DE48: 0 | DF48: 40 | DG48: 56 | DH48: 28 | DI48: 0 | DJ48: 124 | DK48: 2794 | DL48: 5671.68 | DM48: 3716.16 | DN48: 0 | DO48: 12181.84 | DP48: 12181.84 | DQ48: Yes | DR48: 0 | DS48: 0 | DT48: 0
B49: 31 | D49: Lineman B | E49: Vendor No. 20 | F49: 238-15 | G49: 5275 / 5292 | H49: 2017-09-10 | I49: 2017-09-17 | J49: =IF(AND(H49>='A - Contractor Summary'!$C$36,I49<='A - Contractor Summary'!$C$42),"Yes","No") -> Yes | K49: =VLOOKUP($D49,'C.1 - Rate Sheets'!B:F,2,FALSE) -> 65.9 | L49: =VLOOKUP($D49,'C.1 - Rate Sheets'!B:F,3,FALSE) -> 95.56 | M49: =VLOOKUP($D49,'C.1 - Rate Sheets'!B:F,4,FALSE) -> 125.21 | N49: =VLOOKUP($D49,'C.1 - Rate Sheets'!B:F,5,FALSE) -> 0 | O49: 0 | P49: 0 | Q49: 0 | R49: 0 | S49: 0 | T49: 0 | U49: 0 | V49: 0 | W49: 0 | X49: 0 | Y49: 0 | Z49: 0 | AA49: 0 | AB49: 0 | AC49: 0 | AD49: 0 | AE49: 0 | AF49: 0 | AG49: 0 | AH49: 0 | AI49: 0 | AJ49: 0 | AK49: 0 | AL49: 0 | AM49: 0 | AN49: 0 | AO49: 0 | AP49: 0 | AQ49: 0 | AR49: 0 | AS49: 0 | AT49: 0 | AU49: 12 | AV49: 0 | AW49: 12 | AX49: 16 | AY49: 0 | AZ49: 0 | BA49: 0 | BB49: 16 | BC49: 16 | BD49: 0 | BE49: 0 | BF49: 0 | BG49: 16 | BH49: 8 | BI49: 8 | BJ49: 0 | BK49: 0 | BL49: 16 | BM49: 0 | BN49: 16 | BO49: 0 | BP49: 0 | BQ49: 16 | BR49: 0 | BS49: 16 | BT49: 0 | BU49: 0 | BV49: 16 | BW49: 0 | BX49: 16 | BY49: 0 | BZ49: 0 | CA49: 16 | CB49: 0 | CC49: 0 | CD49: 16 | CE49: 0 | CF49: 16 | CG49: 0 | CH49: 0 | CI49: 0 | CJ49: 0 | CK49: 0 | CL49: 0 | CM49: 0 | CN49: 0 | CO49: 0 | CP49: 0 | CQ49: 0 | CR49: 0 | CS49: 0 | CT49: 0 | CU49: 0 | CV49: 0 | CW49: 0 | CX49: 0 | CY49: 0 | CZ49: 0 | DA49: 0 | DB49: 0 | DC49: 0 | DD49: 0 | DE49: 0 | DF49: 40 | DG49: 56 | DH49: 28 | DI49: 0 | DJ49: 124 | DK49: 2636 | DL49: 5351.36 | DM49: 3505.88 | DN49: 0 | DO49: 11493.24 | DP49: 11493.24 | DQ49: Yes | DR49: 0 | DS49: 0 | DT49: 0
B50: 32 | D50: EQUIPMENT OPERATOR | E50: Vendor No. 20 | F50: 238-15 | G50: 5275 / 5292 | H50: 2017-09-10 | I50: 2017-09-17 | J50: =IF(AND(H50>='A - Contractor Summary'!$C$36,I50<='A - Contractor Summary'!$C$42),"Yes","No") -> Yes | K50: =VLOOKUP($D50,'C.1 - Rate Sheets'!B:F,2,FALSE) -> 49.5 | L50: =VLOOKUP($D50,'C.1 - Rate Sheets'!B:F,3,FALSE) -> 71.78 | M50: =VLOOKUP($D50,'C.1 - Rate Sheets'!B:F,4,FALSE) -> 94.05 | N50: =VLOOKUP($D50,'C.1 - Rate Sheets'!B:F,5,FALSE) -> 0 | O50: 0 | P50: 0 | Q50: 0 | R50: 0 | S50: 0 | T50: 0 | U50: 0 | V50: 0 | W50: 0 | X50: 0 | Y50: 0 | Z50: 0 | AA50: 0 | AB50: 0 | AC50: 0 | AD50: 0 | AE50: 0 | AF50: 0 | AG50: 0 | AH50: 0 | AI50: 0 | AJ50: 0 | AK50: 0 | AL50: 0 | AM50: 0 | AN50: 0 | AO50: 0 | AP50: 0 | AQ50: 0 | AR50: 0 | AS50: 0 | AT50: 0 | AU50: 12 | AV50: 0 | AW50: 12 | AX50: 16 | AY50: 0 | AZ50: 0 | BA50: 0 | BB50: 16 | BC50: 16 | BD50: 0 | BE50: 0 | BF50: 0 | BG50: 16 | BH50: 8 | BI50: 8 | BJ50: 0 | BK50: 0 | BL50: 16 | BM50: 0 | BN50: 16 | BO50: 0 | BP50: 0 | BQ50: 16 | BR50: 0 | BS50: 16 | BT50: 0 | BU50: 0 | BV50: 16 | BW50: 0 | BX50: 16 | BY50: 0 | BZ50: 0 | CA50: 16 | CB50: 0 | CC50: 0 | CD50: 16 | CE50: 0 | CF50: 16 | CG50: 0 | CH50: 0 | CI50: 0 | CJ50: 0 | CK50: 0 | CL50: 0 | CM50: 0 | CN50: 0 | CO50: 0 | CP50: 0 | CQ50: 0 | CR50: 0 | CS50: 0 | CT50: 0 | CU50: 0 | CV50: 0 | CW50: 0 | CX50: 0 | CY50: 0 | CZ50: 0 | DA50: 0 | DB50: 0 | DC50: 0 | DD50: 0 | DE50: 0 | DF50: 40 | DG50: 56 | DH50: 28 | DI50: 0 | DJ50: 124 | DK50: 1980 | DL50: 4019.68 | DM50: 2633.4 | DN50: 0 | DO50: 8633.08 | DP50: 8633.08 | DQ50: Yes | DR50: 0 | DS50: 0 | DT50: 0
B51: 33 | D51: Foreman | E51: Vendor No. 20 | F51: 248-3 | G51: 5295 | H51: =INDEX($O$16:$DE$16,MATCH(TRUE,INDEX((O51:DE51>0),0),0)) -> 2017-09-10 | I51: =LOOKUP(2,1/(1-(O51:DE51<=0)),$O$16:$DE$16) -> 2017-09-17 | J51: =IF(AND(H51>='A - Contractor Summary'!$C$36,I51<='A - Contractor Summary'!$C$42),"Yes","No") -> Yes | K51: =VLOOKUP($D51,'C.1 - Rate Sheets'!B:F,2,FALSE) -> 73.25 | L51: =VLOOKUP($D51,'C.1 - Rate Sheets'!B:F,3,FALSE) -> 106.21 | M51: =VLOOKUP($D51,'C.1 - Rate Sheets'!B:F,4,FALSE) -> 139.18 | N51: =VLOOKUP($D51,'C.1 - Rate Sheets'!B:F,5,FALSE) -> 0 | O51: 0 | P51: 0 | Q51: 0 | R51: 0 | S51: =SUM(O51:R51) -> 0 | T51: 0 | U51: 0 | V51: 0 | W51: 0 | X51: 0 | Y51: 0 | Z51: 0 | AA51: 0 | AB51: 0 | AC51: 0 | AD51: 0 | AE51: 0 | AF51: 0 | AG51: 0 | AH51: 0 | AI51: 0 | AJ51: 0 | AK51: 0 | AL51: 0 | AM51: 0 | AN51: 0 | AO51: 0 | AP51: 0 | AQ51: 0 | AR51: 0 | AS51: 0 | AT51: 0 | AU51: 14 | AV51: 0 | AW51: 14 | AX51: 16 | AY51: 0 | AZ51: 0 | BA51: 0 | BB51: 16 | BC51: 16 | BD51: 0 | BE51: 0 | BF51: 0 | BG51: 16 | BH51: 8 | BI51: 8 | BJ51: 0 | BK51: 0 | BL51: 16 | BM51: 0 | BN51: 16 | BO51: 0 | BP51: 0 | BQ51: 16 | BR51: 0 | BS51: 16 | BT51: 0 | BU51: 0 | BV51: 16 | BW51: 0 | BX51: 16 | BY51: 0 | BZ51: 0 | CA51: 16 | CB51: 0 | CC51: 0 | CD51: 16 | CE51: 0 | CF51: 16 | CG51: 0 | CH51: 0 | CI51: 0 | CJ51: 0 | CK51: 0 | CL51: 0 | CM51: 0 | CN51: 0 | CO51: 0 | CP51: 0 | CQ51: 0 | CR51: 0 | CS51: 0 | CT51: 0 | CU51: 0 | CV51: 0 | CW51: 0 | CX51: 0 | CY51: 0 | CZ51: 0 | DA51: 0 | DB51: 0 | DC51: 0 | DD51: 0 | DE51: 0 | DF51: =SUM(O51,T51,Y51,AD51,AI51,AN51,AS51,AX51,BC51,BH51,BM51,BR51,BW51,CB51,CG51,CL51,CQ51,CV51,DA51) -> 40 | DG51: =SUM(P51,U51,Z51,AE51,AJ51,AO51,AT51,AY51,BD51,BI51,BN51,BS51,BX51,CC51,CH51,CM51,CR51,CW51,DB51) -> 56 | DH51: =SUM(Q51,V51,AA51,AF51,AK51,AP51,AU51,AZ51,BE51,BJ51,BO51,BT51,BY51,CD51,CI51,CN51,CS51,CX51,DC51) -> 30 | DI51: =SUM(R51,W51,AB51,AG51,AL51,AQ51,AV51,BA51,BF51,BK51,BP51,BU51,BZ51,CE51,CJ51,CO51,CT51,CY51,DD51) -> 0 | DJ51: 126 | DK51: =DF51*K51 -> 2930 | DL51: =DG51*L51 -> 5947.76 | DM51: =DH51*M51 -> 4175.4 | DN51: =DI51*N51 -> 0 | DO51: 13053.16 | DP51: =DO51-DR51 -> 13053.16 | DQ51: Yes | DR51: 0 | DS51: 0 | DT51: 0
B52: 34 | D52: Lineman A | E52: Vendor No. 20 | F52: 248-3 | G52: 5295 | H52: 2017-09-10 | I52: 2017-09-17 | J52: =IF(AND(H52>='A - Contractor Summary'!$C$36,I52<='A - Contractor Summary'!$C$42),"Yes","No") -> Yes | K52: =VLOOKUP($D52,'C.1 - Rate Sheets'!B:F,2,FALSE) -> 69.85 | L52: =VLOOKUP($D52,'C.1 - Rate Sheets'!B:F,3,FALSE) -> 101.28 | M52: =VLOOKUP($D52,'C.1 - Rate Sheets'!B:F,4,FALSE) -> 132.72 | N52: =VLOOKUP($D52,'C.1 - Rate Sheets'!B:F,5,FALSE) -> 0 | O52: 0 | P52: 0 | Q52: 0 | R52: 0 | S52: 0 | T52: 0 | U52: 0 | V52: 0 | W52: 0 | X52: 0 | Y52: 0 | Z52: 0 | AA52: 0 | AB52: 0 | AC52: 0 | AD52: 0 | AE52: 0 | AF52: 0 | AG52: 0 | AH52: 0 | AI52: 0 | AJ52: 0 | AK52: 0 | AL52: 0 | AM52: 0 | AN52: 0 | AO52: 0 | AP52: 0 | AQ52: 0 | AR52: 0 | AS52: 0 | AT52: 0 | AU52: 14 | AV52: 0 | AW52: 14 | AX52: 16 | AY52: 0 | AZ52: 0 | BA52: 0 | BB52: 16 | BC52: 16 | BD52: 0 | BE52: 0 | BF52: 0 | BG52: 16 | BH52: 8 | BI52: 8 | BJ52: 0 | BK52: 0 | BL52: 16 | BM52: 0 | BN52: 16 | BO52: 0 | BP52: 0 | BQ52: 16 | BR52: 0 | BS52: 16 | BT52: 0 | BU52: 0 | BV52: 16 | BW52: 0 | BX52: 16 | BY52: 0 | BZ52: 0 | CA52: 16 | CB52: 0 | CC52: 0 | CD52: 16 | CE52: 0 | CF52: 16 | CG52: 0 | CH52: 0 | CI52: 0 | CJ52: 0 | CK52: 0 | CL52: 0 | CM52: 0 | CN52: 0 | CO52: 0 | CP52: 0 | CQ52: 0 | CR52: 0 | CS52: 0 | CT52: 0 | CU52: 0 | CV52: 0 | CW52: 0 | CX52: 0 | CY52: 0 | CZ52: 0 | DA52: 0 | DB52: 0 | DC52: 0 | DD52: 0 | DE52: 0 | DF52: 40 | DG52: 56 | DH52: 30 | DI52: 0 | DJ52: 126 | DK52: 2794 | DL52: 5671.68 | DM52: 3981.6 | DN52: 0 | DO52: 12447.28 | DP52: 12447.28 | DQ52: Yes | DR52: 0 | DS52: 0 | DT52: 0
B53: 35 | D53: Lineman C | E53: Vendor No. 20 | F53: 248-3 | G53: 5295 | H53: 2017-09-10 | I53: 2017-09-10 | J53: =IF(AND(H53>='A - Contractor Summary'!$C$36,I53<='A - Contractor Summary'!$C$42),"Yes","No") -> Yes | K53: =VLOOKUP($D53,'C.1 - Rate Sheets'!B:F,2,FALSE) -> 60.15 | L53: =VLOOKUP($D53,'C.1 - Rate Sheets'!B:F,3,FALSE) -> 87.22 | M53: =VLOOKUP($D53,'C.1 - Rate Sheets'!B:F,4,FALSE) -> 114.29 | N53: =VLOOKUP($D53,'C.1 - Rate Sheets'!B:F,5,FALSE) -> 0 | O53: 0 | P53: 0 | Q53: 0 | R53: 0 | S53: 0 | T53: 0 | U53: 0 | V53: 0 | W53: 0 | X53: 0 | Y53: 0 | Z53: 0 | AA53: 0 | AB53: 0 | AC53: 0 | AD53: 0 | AE53: 0 | AF53: 0 | AG53: 0 | AH53: 0 | AI53: 0 | AJ53: 0 | AK53: 0 | AL53: 0 | AM53: 0 | AN53: 0 | AO53: 0 | AP53: 0 | AQ53: 0 | AR53: 0 | AS53: 0 | AT53: 0 | AU53: 14 | AV53: 0 | AW53: 14 | AX53: 0 | AY53: 0 | AZ53: 0 | BA53: 0 | BB53: 0 | BC53: 0 | BD53: 0 | BE53: 0 | BF53: 0 | BG53: 0 | BH53: 0 | BI53: 0 | BJ53: 0 | BK53: 0 | BL53: 0 | BM53: 0 | BN53: 0 | BO53: 0 | BP53: 0 | BQ53: 0 | BR53: 0 | BS53: 0 | BT53: 0 | BU53: 0 | BV53: 0 | BW53: 0 | BX53: 0 | BY53: 0 | BZ53: 0 | CA53: 0 | CB53: 0 | CC53: 0 | CD53: 0 | CE53: 0 | CF53: 0 | CG53: 0 | CH53: 0 | CI53: 0 | CJ53: 0 | CK53: 0 | CL53: 0 | CM53: 0 | CN53: 0 | CO53: 0 | CP53: 0 | CQ53: 0 | CR53: 0 | CS53: 0 | CT53: 0 | CU53: 0 | CV53: 0 | CW53: 0 | CX53: 0 | CY53: 0 | CZ53: 0 | DA53: 0 | DB53: 0 | DC53: 0 | DD53: 0 | DE53: 0 | DF53: 0 | DG53: 0 | DH53: 14 | DI53: 0 | DJ53: 14 | DK53: 0 | DL53: 0 | DM53: 1600.06 | DN53: 0 | DO53: 1600.06 | DP53: 1600.06 | DQ53: Yes | DR53: 0 | DS53: 0 | DT53: 0
B54: 36 | D54: Lineman B | E54: Vendor No. 20 | F54: 248-3 | G54: 5295 | H54: 2017-09-11 | I54: 2017-09-17 | J54: =IF(AND(H54>='A - Contractor Summary'!$C$36,I54<='A - Contractor Summary'!$C$42),"Yes","No") -> Yes | K54: =VLOOKUP($D54,'C.1 - Rate Sheets'!B:F,2,FALSE) -> 65.9 | L54: =VLOOKUP($D54,'C.1 - Rate Sheets'!B:F,3,FALSE) -> 95.56 | M54: =VLOOKUP($D54,'C.1 - Rate Sheets'!B:F,4,FALSE) -> 125.21 | N54: =VLOOKUP($D54,'C.1 - Rate Sheets'!B:F,5,FALSE) -> 0 | O54: 0 | P54: 0 | Q54: 0 | R54: 0 | S54: 0 | T54: 0 | U54: 0 | V54: 0 | W54: 0 | X54: 0 | Y54: 0 | Z54: 0 | AA54: 0 | AB54: 0 | AC54: 0 | AD54: 0 | AE54: 0 | AF54: 0 | AG54: 0 | AH54: 0 | AI54: 0 | AJ54: 0 | AK54: 0 | AL54: 0 | AM54: 0 | AN54: 0 | AO54: 0 | AP54: 0 | AQ54: 0 | AR54: 0 | AS54: 0 | AT54: 0 | AU54: 0 | AV54: 0 | AW54: 0 | AX54: 16 | AZ54: 0 | BA54: 0 | BB54: 16 | BC54: 16 | BD54: 0 | BE54: 0 | BF54: 0 | BG54: 16 | BH54: 8 | BI54: 8 | BJ54: 0 | BK54: 0 | BL54: 16 | BM54: 0 | BN54: 16 | BO54: 0 | BP54: 0 | BQ54: 16 | BR54: 0 | BS54: 16 | BT54: 0 | BU54: 0 | BV54: 16 | BW54: 0 | BX54: 16 | BY54: 0 | BZ54: 0 | CA54: 16 | CB54: 0 | CC54: 0 | CD54: 16 | CE54: 0 | CF54: 16 | CG54: 0 | CH54: 0 | CI54: 0 | CJ54: 0 | CK54: 0 | CL54: 0 | CM54: 0 | CN54: 0 | CO54: 0 | CP54: 0 | CQ54: 0 | CR54: 0 | CS54: 0 | CT54: 0 | CU54: 0 | CV54: 0 | CW54: 0 | CX54: 0 | CY54: 0 | CZ54: 0 | DA54: 0 | DB54: 0 | DC54: 0 | DD54: 0 | DE54: 0 | DF54: 40 | DG54: 56 | DH54: 16 | DI54: 0 | DJ54: 112 | DK54: 2636 | DL54: 5351.36 | DM54: 2003.36 | DN54: 0 | DO54: 9990.72 | DP54: 9990.72 | DQ54: Yes | DR54: 0 | DS54: 0 | DT54: 0
B55: 37 | D55: Lineman C | E55: Vendor No. 20 | F55: 248-3 | G55: 5295 | H55: 2017-09-10 | I55: 2017-09-17 | J55: =IF(AND(H55>='A - Contractor Summary'!$C$36,I55<='A - Contractor Summary'!$C$42),"Yes","No") -> Yes | K55: =VLOOKUP($D55,'C.1 - Rate Sheets'!B:F,2,FALSE) -> 60.15 | L55: =VLOOKUP($D55,'C.1 - Rate Sheets'!B:F,3,FALSE) -> 87.22 | M55: =VLOOKUP($D55,'C.1 - Rate Sheets'!B:F,4,FALSE) -> 114.29 | N55: =VLOOKUP($D55,'C.1 - Rate Sheets'!B:F,5,FALSE) -> 0 | O55: 0 | P55: 0 | Q55: 0 | R55: 0 | S55: 0 | T55: 0 | U55: 0 | V55: 0 | W55: 0 | X55: 0 | Y55: 0 | Z55: 0 | AA55: 0 | AB55: 0 | AC55: 0 | AD55: 0 | AE55: 0 | AF55: 0 | AG55: 0 | AH55: 0 | AI55: 0 | AJ55: 0 | AK55: 0 | AL55: 0 | AM55: 0 | AN55: 0 | AO55: 0 | AP55: 0 | AQ55: 0 | AR55: 0 | AS55: 0 | AT55: 0 | AU55: 14 | AV55: 0 | AW55: 14 | AX55: 16 | AY55: 0 | AZ55: 0 | BA55: 0 | BB55: 16 | BC55: 16 | BD55: 0 | BE55: 0 | BF55: 0 | BG55: 16 | BH55: 8 | BI55: 8 | BJ55: 0 | BK55: 0 | BL55: 16 | BM55: 0 | BN55: 16 | BO55: 0 | BP55: 0 | BQ55: 16 | BR55: 0 | BS55: 16 | BT55: 0 | BU55: 0 | BV55: 16 | BW55: 0 | BX55: 16 | BY55: 0 | BZ55: 0 | CA55: 16 | CB55: 0 | CC55: 0 | CD55: 16 | CE55: 0 | CF55: 16 | CG55: 0 | CH55: 0 | CI55: 0 | CJ55: 0 | CK55: 0 | CL55: 0 | CM55: 0 | CN55: 0 | CO55: 0 | CP55: 0 | CQ55: 0 | CR55: 0 | CS55: 0 | CT55: 0 | CU55: 0 | CV55: 0 | CW55: 0 | CX55: 0 | CY55: 0 | CZ55: 0 | DA55: 0 | DB55: 0 | DC55: 0 | DD55: 0 | DE55: 0 | DF55: 40 | DG55: 56 | DH55: 30 | DI55: 0 | DJ55: 126 | DK55: 2406 | DL55: 4884.32 | DM55: 3428.7 | DN55: 0 | DO55: 10719.02 | DP55: 10719.02 | DQ55: Yes | DR55: 0 | DS55: 0 | DT55: 0
B56: 38 | D56: Foreman | E56: Vendor No. 20 | F56: 404-134 | G56: 5277 / 5296 | H56: 2017-09-10 | I56: 2017-09-17 | J56: =IF(AND(H56>='A - Contractor Summary'!$C$36,I56<='A - Contractor Summary'!$C$42),"Yes","No") -> Yes | K56: =VLOOKUP($D56,'C.1 - Rate Sheets'!B:F,2,FALSE) -> 73.25 | L56: =VLOOKUP($D56,'C.1 - Rate Sheets'!B:F,3,FALSE) -> 106.21 | M56: =VLOOKUP($D56,'C.1 - Rate Sheets'!B:F,4,FALSE) -> 139.18 | N56: =VLOOKUP($D56,'C.1 - Rate Sheets'!B:F,5,FALSE) -> 0 | O56: 0 | P56: 0 | Q56: 0 | R56: 0 | S56: 0 | T56: 0 | U56: 0 | V56: 0 | W56: 0 | X56: 0 | Y56: 0 | Z56: 0 | AA56: 0 | AB56: 0 | AC56: 0 | AD56: 0 | AE56: 0 | AF56: 0 | AG56: 0 | AH56: 0 | AI56: 0 | AJ56: 0 | AK56: 0 | AL56: 0 | AM56: 0 | AN56: 0 | AO56: 0 | AP56: 0 | AQ56: 0 | AR56: 0 | AS56: 0 | AT56: 0 | AU56: 14 | AV56: 0 | AW56: 14 | AX56: 16 | AY56: 0 | AZ56: 0 | BA56: 0 | BB56: 16 | BC56: 16 | BD56: 0 | BE56: 0 | BF56: 0 | BG56: 16 | BH56: 0 | BI56: 16 | BJ56: 0 | BK56: 0 | BL56: 16 | BM56: 8 | BN56: 8 | BO56: 0 | BP56: 0 | BQ56: 16 | BR56: 0 | BS56: 16 | BT56: 0 | BU56: 0 | BV56: 16 | BW56: 0 | BX56: 16 | BY56: 0 | BZ56: 0 | CA56: 16 | CB56: 0 | CC56: 0 | CD56: 16 | CE56: 0 | CF56: 16 | CG56: 0 | CH56: 0 | CI56: 0 | CJ56: 0 | CK56: 0 | CL56: 0 | CM56: 0 | CN56: 0 | CO56: 0 | CP56: 0 | CQ56: 0 | CR56: 0 | CS56: 0 | CT56: 0 | CU56: 0 | CV56: 0 | CW56: 0 | CX56: 0 | CY56: 0 | CZ56: 0 | DA56: 0 | DB56: 0 | DC56: 0 | DD56: 0 | DE56: 0 | DF56: 40 | DG56: 56 | DH56: 30 | DI56: 0 | DJ56: 126 | DK56: 2930 | DL56: 5947.76 | DM56: 4175.4 | DN56: 0 | DO56: 13053.16 | DP56: 13053.16 | DQ56: Yes | DR56: 0 | DS56: 0 | DT56: 0
B57: 39 | D57: Lineman A | E57: Vendor No. 20 | F57: 404-134 | G57: 5277 / 5296 | H57: 2017-09-10 | I57: 2017-09-17 | J57: =IF(AND(H57>='A - Contractor Summary'!$C$36,I57<='A - Contractor Summary'!$C$42),"Yes","No") -> Yes | K57: =VLOOKUP($D57,'C.1 - Rate Sheets'!B:F,2,FALSE) -> 69.85 | L57: =VLOOKUP($D57,'C.1 - Rate Sheets'!B:F,3,FALSE) -> 101.28 | M57: =VLOOKUP($D57,'C.1 - Rate Sheets'!B:F,4,FALSE) -> 132.72 | N57: =VLOOKUP($D57,'C.1 - Rate Sheets'!B:F,5,FALSE) -> 0 | O57: 0 | P57: 0 | Q57: 0 | R57: 0 | S57: 0 | T57: 0 | U57: 0 | V57: 0 | W57: 0 | X57: 0 | Y57: 0 | Z57: 0 | AA57: 0 | AB57: 0 | AC57: 0 | AD57: 0 | AE57: 0 | AF57: 0 | AG57: 0 | AH57: 0 | AI57: 0 | AJ57: 0 | AK57: 0 | AL57: 0 | AM57: 0 | AN57: 0 | AO57: 0 | AP57: 0 | AQ57: 0 | AR57: 0 | AS57: 0 | AT57: 0 | AU57: 14 | AV57: 0 | AW57: 14 | AX57: 16 | AY57: 0 | AZ57: 0 | BA57: 0 | BB57: 16 | BC57: 16 | BD57: 0 | BE57: 0 | BF57: 0 | BG57: 16 | BH57: 0 | BI57: 16 | BJ57: 0 | BK57: 0 | BL57: 16 | BM57: 8 | BN57: 8 | BO57: 0 | BP57: 0 | BQ57: 16 | BR57: 0 | BS57: 16 | BT57: 0 | BU57: 0 | BV57: 16 | BW57: 0 | BX57: 16 | BY57: 0 | BZ57: 0 | CA57: 16 | CB57: 0 | CC57: 0 | CD57: 16 | CE57: 0 | CF57: 16 | CG57: 0 | CH57: 0 | CI57: 0 | CJ57: 0 | CK57: 0 | CL57: 0 | CM57: 0 | CN57: 0 | CO57: 0 | CP57: 0 | CQ57: 0 | CR57: 0 | CS57: 0 | CT57: 0 | CU57: 0 | CV57: 0 | CW57: 0 | CX57: 0 | CY57: 0 | CZ57: 0 | DA57: 0 | DB57: 0 | DC57: 0 | DD57: 0 | DE57: 0 | DF57: 40 | DG57: 56 | DH57: 30 | DI57: 0 | DJ57: 126 | DK57: 2794 | DL57: 5671.68 | DM57: 3981.6 | DN57: 0 | DO57: 12447.28 | DP57: 12447.28 | DQ57: Yes | DR57: 0 | DS57: 0 | DT57: 0
B58: 40 | D58: EQUIPMENT OPERATOR | E58: Vendor No. 20 | F58: 404-134 | G58: 5277 / 5296 | H58: 2017-09-10 | I58: 2017-09-17 | J58: =IF(AND(H58>='A - Contractor Summary'!$C$36,I58<='A - Contractor Summary'!$C$42),"Yes","No") -> Yes | K58: =VLOOKUP($D58,'C.1 - Rate Sheets'!B:F,2,FALSE) -> 49.5 | L58: =VLOOKUP($D58,'C.1 - Rate Sheets'!B:F,3,FALSE) -> 71.78 | M58: =VLOOKUP($D58,'C.1 - Rate Sheets'!B:F,4,FALSE) -> 94.05 | N58: =VLOOKUP($D58,'C.1 - Rate Sheets'!B:F,5,FALSE) -> 0 | O58: 0 | P58: 0 | Q58: 0 | R58: 0 | S58: 0 | T58: 0 | U58: 0 | V58: 0 | W58: 0 | X58: 0 | Y58: 0 | Z58: 0 | AA58: 0 | AB58: 0 | AC58: 0 | AD58: 0 | AE58: 0 | AF58: 0 | AG58: 0 | AH58: 0 | AI58: 0 | AJ58: 0 | AK58: 0 | AL58: 0 | AM58: 0 | AN58: 0 | AO58: 0 | AP58: 0 | AQ58: 0 | AR58: 0 | AS58: 0 | AT58: 0 | AU58: 14 | AV58: 0 | AW58: 14 | AX58: 16 | AY58: 0 | AZ58: 0 | BA58: 0 | BB58: 16 | BC58: 16 | BD58: 0 | BE58: 0 | BF58: 0 | BG58: 16 | BH58: 0 | BI58: 16 | BJ58: 0 | BK58: 0 | BL58: 16 | BM58: 8 | BN58: 8 | BO58: 0 | BP58: 0 | BQ58: 16 | BR58: 0 | BS58: 16 | BT58: 0 | BU58: 0 | BV58: 16 | BW58: 0 | BX58: 16 | BY58: 0 | BZ58: 0 | CA58: 16 | CB58: 0 | CC58: 0 | CD58: 16 | CE58: 0 | CF58: 16 | CG58: 0 | CH58: 0 | CI58: 0 | CJ58: 0 | CK58: 0 | CL58: 0 | CM58: 0 | CN58: 0 | CO58: 0 | CP58: 0 | CQ58: 0 | CR58: 0 | CS58: 0 | CT58: 0 | CU58: 0 | CV58: 0 | CW58: 0 | CX58: 0 | CY58: 0 | CZ58: 0 | DA58: 0 | DB58: 0 | DC58: 0 | DD58: 0 | DE58: 0 | DF58: 40 | DG58: 56 | DH58: 30 | DI58: 0 | DJ58: 126 | DK58: 1980 | DL58: 4019.68 | DM58: 2821.5 | DN58: 0 | DO58: 8821.18 | DP58: 8821.18 | DQ58: Yes | DR58: 0 | DS58: 0 | DT58: 0
B59: 41 | D59: Lineman A | E59: Vendor No. 20 | F59: 404-134 | G59: 5277 / 5296 | H59: 2017-09-10 | I59: 2017-09-14 | J59: =IF(AND(H59>='A - Contractor Summary'!$C$36,I59<='A - Contractor Summary'!$C$42),"Yes","No") -> Yes | K59: =VLOOKUP($D59,'C.1 - Rate Sheets'!B:F,2,FALSE) -> 69.85 | L59: =VLOOKUP($D59,'C.1 - Rate Sheets'!B:F,3,FALSE) -> 101.28 | M59: =VLOOKUP($D59,'C.1 - Rate Sheets'!B:F,4,FALSE) -> 132.72 | N59: =VLOOKUP($D59,'C.1 - Rate Sheets'!B:F,5,FALSE) -> 0 | O59: 0 | P59: 0 | Q59: 0 | R59: 0 | S59: 0 | T59: 0 | U59: 0 | V59: 0 | W59: 0 | X59: 0 | Y59: 0 | Z59: 0 | AA59: 0 | AB59: 0 | AC59: 0 | AD59: 0 | AE59: 0 | AF59: 0 | AG59: 0 | AH59: 0 | AI59: 0 | AJ59: 0 | AK59: 0 | AL59: 0 | AM59: 0 | AN59: 0 | AO59: 0 | AP59: 0 | AQ59: 0 | AR59: 0 | AS59: 0 | AT59: 0 | AU59: 14 | AV59: 0 | AW59: 14 | AX59: 16 | AY59: 0 | AZ59: 0 | BA59: 0 | BB59: 16 | BC59: 16 | BD59: 0 | BE59: 0 | BF59: 0 | BG59: 16 | BH59: 8 | BI59: 8 | BJ59: 0 | BK59: 0 | BL59: 16 | BM59: 0 | BN59: 16 | BO59: 0 | BP59: 0 | BQ59: 16 | BR59: 0 | BS59: 0 | BT59: 0 | BU59: 0 | BV59: 0 | BW59: 0 | BX59: 0 | BY59: 0 | BZ59: 0 | CA59: 0 | CB59: 0 | CC59: 0 | CD59: 0 | CE59: 0 | CF59: 0 | CG59: 0 | CH59: 0 | CI59: 0 | CJ59: 0 | CK59: 0 | CL59: 0 | CM59: 0 | CN59: 0 | CO59: 0 | CP59: 0 | CQ59: 0 | CR59: 0 | CS59: 0 | CT59: 0 | CU59: 0 | CV59: 0 | CW59: 0 | CX59: 0 | CY59: 0 | CZ59: 0 | DA59: 0 | DB59: 0 | DC59: 0 | DD59: 0 | DE59: 0 | DF59: 40 | DG59: 24 | DH59: 14 | DI59: 0 | DJ59: 78 | DK59: 2794 | DL59: 2430.72 | DM59: 1858.08 | DN59: 0 | DO59: 7082.8 | DP59: 6369.84 | DQ59: No | DR59: =32*(L60-K60) -> 712.96 | DS59: 0 | DT59: 712.96 | DU59: 1
B60: 42 | D60: EQUIPMENT OPERATOR | E60: Vendor No. 20 | F60: 404-134 | G60: 5277 / 5296 | H60: 2017-09-10 | I60: 2017-09-17 | J60: =IF(AND(H60>='A - Contractor Summary'!$C$36,I60<='A - Contractor Summary'!$C$42),"Yes","No") -> Yes | K60: =VLOOKUP($D60,'C.1 - Rate Sheets'!B:F,2,FALSE) -> 49.5 | L60: =VLOOKUP($D60,'C.1 - Rate Sheets'!B:F,3,FALSE) -> 71.78 | M60: =VLOOKUP($D60,'C.1 - Rate Sheets'!B:F,4,FALSE) -> 94.05 | N60: =VLOOKUP($D60,'C.1 - Rate Sheets'!B:F,5,FALSE) -> 0 | O60: 0 | P60: 0 | Q60: 0 | R60: 0 | S60: 0 | T60: 0 | U60: 0 | V60: 0 | W60: 0 | X60: 0 | Y60: 0 | Z60: 0 | AA60: 0 | AB60: 0 | AC60: 0 | AD60: 0 | AE60: 0 | AF60: 0 | AG60: 0 | AH60: 0 | AI60: 0 | AJ60: 0 | AK60: 0 | AL60: 0 | AM60: 0 | AN60: 0 | AO60: 0 | AP60: 0 | AQ60: 0 | AR60: 0 | AS60: 0 | AT60: 0 | AU60: 14 | AV60: 0 | AW60: 14 | AX60: 0 | AY60: 0 | AZ60: 0 | BA60: 0 | BB60: 0 | BC60: 0 | BD60: 0 | BE60: 0 | BF60: 0 | BG60: 0 | BH60: 0 | BI60: 0 | BJ60: 0 | BK60: 0 | BL60: 0 | BM60: 0 | BN60: 0 | BO60: 0 | BP60: 0 | BQ60: 0 | BR60: 0 | BS60: 16 | BT60: 0 | BU60: 0 | BV60: 16 | BW60: 0 | BX60: 16 | BY60: 0 | BZ60: 0 | CA60: 16 | CB60: 0 | CC60: 0 | CD60: 16 | CE60: 0 | CF60: 16 | CG60: 0 | CH60: 0 | CI60: 0 | CJ60: 0 | CK60: 0 | CL60: 0 | CM60: 0 | CN60: 0 | CO60: 0 | CP60: 0 | CQ60: 0 | CR60: 0 | CS60: 0 | CT60: 0 | CU60: 0 | CV60: 0 | CW60: 0 | CX60: 0 | CY60: 0 | CZ60: 0 | DA60: 0 | DB60: 0 | DC60: 0 | DD60: 0 | DE60: 0 | DF60: 0 | DG60: 32 | DH60: 30 | DI60: 0 | DJ60: 62 | DK60: 0 | DL60: 2296.96 | DM60: 2821.5 | DN60: 0 | DO60: 5118.46 | DP60: 5118.46 | DQ60: Yes | DR60: 0 | DS60: 0 | DT60: 0
B61: 43 | D61: Lineman B | E61: Vendor No. 20 | F61: 404-134 | G61: 5277 / 5296 | H61: 2017-09-10 | I61: 2017-09-14 | J61: =IF(AND(H61>='A - Contractor Summary'!$C$36,I61<='A - Contractor Summary'!$C$42),"Yes","No") -> Yes | K61: =VLOOKUP($D61,'C.1 - Rate Sheets'!B:F,2,FALSE) -> 65.9 | L61: =VLOOKUP($D61,'C.1 - Rate Sheets'!B:F,3,FALSE) -> 95.56 | M61: =VLOOKUP($D61,'C.1 - Rate Sheets'!B:F,4,FALSE) -> 125.21 | N61: =VLOOKUP($D61,'C.1 - Rate Sheets'!B:F,5,FALSE) -> 0 | O61: 0 | P61: 0 | Q61: 0 | R61: 0 | S61: 0 | T61: 0 | U61: 0 | V61: 0 | W61: 0 | X61: 0 | Y61: 0 | Z61: 0 | AA61: 0 | AB61: 0 | AC61: 0 | AD61: 0 | AE61: 0 | AF61: 0 | AG61: 0 | AH61: 0 | AI61: 0 | AJ61: 0 | AK61: 0 | AL61: 0 | AM61: 0 | AN61: 0 | AO61: 0 | AP61: 0 | AQ61: 0 | AR61: 0 | AS61: 0 | AT61: 0 | AU61: 14 | AV61: 0 | AW61: 14 | AX61: 16 | AY61: 0 | AZ61: 0 | BA61: 0 | BB61: 16 | BC61: 16 | BD61: 0 | BE61: 0 | BF61: 0 | BG61: 16 | BH61: 8 | BI61: 8 | BJ61: 0 | BK61: 0 | BL61: 16 | BM61: 0 | BN61: 16 | BO61: 0 | BP61: 0 | BQ61: 16 | BR61: 0 | BS61: 0 | BT61: 0 | BU61: 0 | BV61: 0 | BW61: 0 | BX61: 0 | BY61: 0 | BZ61: 0 | CA61: 0 | CB61: 0 | CC61: 0 | CD61: 0 | CE61: 0 | CF61: 0 | CG61: 0 | CH61: 0 | CI61: 0 | CJ61: 0 | CK61: 0 | CL61: 0 | CM61: 0 | CN61: 0 | CO61: 0 | CP61: 0 | CQ61: 0 | CR61: 0 | CS61: 0 | CT61: 0 | CU61: 0 | CV61: 0 | CW61: 0 | CX61: 0 | CY61: 0 | CZ61: 0 | DA61: 0 | DB61: 0 | DC61: 0 | DD61: 0 | DE61: 0 | DF61: 40 | DG61: 24 | DH61: 14 | DI61: 0 | DJ61: 78 | DK61: 2636 | DL61: 2293.44 | DM61: 1752.94 | DN61: 0 | DO61: 6682.38 | DP61: 6682.38 | DQ61: Yes | DR61: 0 | DS61: 0 | DT61: 0
B62: 44 | D62: GENERAL FOREMAN | E62: Vendor No. 20 | F62: 57-6 | G62: 5280 | H62: 2017-09-11 | I62: 2017-09-17 | J62: =IF(AND(H62>='A - Contractor Summary'!$C$36,I62<='A - Contractor Summary'!$C$42),"Yes","No") -> Yes | K62: =VLOOKUP($D62,'C.1 - Rate Sheets'!B:F,2,FALSE) -> 81 | L62: =VLOOKUP($D62,'C.1 - Rate Sheets'!B:F,3,FALSE) -> 117.45 | M62: =VLOOKUP($D62,'C.1 - Rate Sheets'!B:F,4,FALSE) -> 153.9 | N62: =VLOOKUP($D62,'C.1 - Rate Sheets'!B:F,5,FALSE) -> 0 | O62: 0 | P62: 0 | Q62: 0 | R62: 0 | S62: 0 | T62: 0 | U62: 0 | V62: 0 | W62: 0 | X62: 0 | Y62: 0 | Z62: 0 | AA62: 0 | AB62: 0 | AC62: 0 | AD62: 0 | AE62: 0 | AF62: 0 | AG62: 0 | AH62: 0 | AI62: 0 | AJ62: 0 | AK62: 0 | AL62: 0 | AM62: 0 | AN62: 0 | AO62: 0 | AP62: 0 | AQ62: 0 | AR62: 0 | AS62: 0 | AT62: 0 | AU62: 0 | AV62: 0 | AW62: 0 | AX62: 16 | AY62: 0 | AZ62: 0 | BA62: 0 | BB62: 16 | BC62: 16 | BD62: 0 | BE62: 0 | BF62: 0 | BG62: 16 | BH62: 8 | BI62: 8 | BJ62: 0 | BK62: 0 | BL62: 16 | BM62: 0 | BN62: 16 | BO62: 0 | BP62: 0 | BQ62: 16 | BR62: 0 | BS62: 16 | BT62: 0 | BU62: 0 | BV62: 16 | BW62: 0 | BX62: 16 | BY62: 0 | BZ62: 0 | CA62: 16 | CB62: 0 | CC62: 0 | CD62: 16 | CE62: 0 | CF62: 16 | CG62: 0 | CH62: 0 | CI62: 0 | CJ62: 0 | CK62: 0 | CL62: 0 | CM62: 0 | CN62: 0 | CO62: 0 | CP62: 0 | CQ62: 0 | CR62: 0 | CS62: 0 | CT62: 0 | CU62: 0 | CV62: 0 | CW62: 0 | CX62: 0 | CY62: 0 | CZ62: 0 | DA62: 0 | DB62: 0 | DC62: 0 | DD62: 0 | DE62: 0 | DF62: 40 | DG62: 56 | DH62: 16 | DI62: 0 | DJ62: 112 | DK62: 3240 | DL62: 6577.2 | DM62: 2462.4 | DN62: 0 | DO62: 12279.6 | DP62: 12279.6 | DQ62: Yes | DR62: 0 | DS62: 0 | DT62: 0
B63: 45 | D63: GENERAL FOREMAN | E63: Vendor No. 20 | F63: 101-15 | G63: 5281 | H63: 2017-09-11 | I63: 2017-09-17 | J63: =IF(AND(H63>='A - Contractor Summary'!$C$36,I63<='A - Contractor Summary'!$C$42),"Yes","No") -> Yes | K63: =VLOOKUP($D63,'C.1 - Rate Sheets'!B:F,2,FALSE) -> 81 | L63: =VLOOKUP($D63,'C.1 - Rate Sheets'!B:F,3,FALSE) -> 117.45 | M63: =VLOOKUP($D63,'C.1 - Rate Sheets'!B:F,4,FALSE) -> 153.9 | N63: =VLOOKUP($D63,'C.1 - Rate Sheets'!B:F,5,FALSE) -> 0 | O63: 0 | P63: 0 | Q63: 0 | R63: 0 | S63: 0 | T63: 0 | U63: 0 | V63: 0 | W63: 0 | X63: 0 | Y63: 0 | Z63: 0 | AA63: 0 | AB63: 0 | AC63: 0 | AD63: 0 | AE63: 0 | AF63: 0 | AG63: 0 | AH63: 0 | AI63: 0 | AJ63: 0 | AK63: 0 | AL63: 0 | AM63: 0 | AN63: 0 | AO63: 0 | AP63: 0 | AQ63: 0 | AR63: 0 | AS63: 0 | AT63: 0 | AU63: 0 | AV63: 0 | AW63: 0 | AX63: 8 | AY63: 8 | AZ63: 0 | BA63: 0 | BB63: 16 | BC63: 8 | BD63: 8 | BE63: 0 | BF63: 0 | BG63: 16 | BH63: 8 | BI63: 8 | BJ63: 0 | BK63: 0 | BL63: 16 | BM63: 8 | BN63: 8 | BO63: 0 | BP63: 0 | BQ63: 16 | BR63: 8 | BS63: 8 | BT63: 0 | BU63: 0 | BV63: 16 | BW63: 0 | BX63: 16 | BY63: 0 | BZ63: 0 | CA63: 16 | CB63: 0 | CC63: 0 | CD63: 16 | CE63: 0 | CF63: 16 | CG63: 0 | CH63: 0 | CI63: 0 | CJ63: 0 | CK63: 0 | CL63: 0 | CM63: 0 | CN63: 0 | CO63: 0 | CP63: 0 | CQ63: 0 | CR63: 0 | CS63: 0 | CT63: 0 | CU63: 0 | CV63: 0 | CW63: 0 | CX63: 0 | CY63: 0 | CZ63: 0 | DA63: 0 | DB63: 0 | DC63: 0 | DD63: 0 | DE63: 0 | DF63: 40 | DG63: 56 | DH63: 16 | DI63: 0 | DJ63: 112 | DK63: 3240 | DL63: 6577.2 | DM63: 2462.4 | DN63: 0 | DO63: 12279.6 | DP63: 7938 | DQ63: Yes | DR63: =+CF63*M63+CA63*L63 -> 4341.6 | DS63: 0 | DT63: 4341.6 | DU63: 3
B64: 46 | D64: Safety Supervisor | E64: Vendor No. 20 | F64: 101-15 | G64: 5281 | H64: 2017-09-11 | I64: 2017-09-17 | J64: =IF(AND(H64>='A - Contractor Summary'!$C$36,I64<='A - Contractor Summary'!$C$42),"Yes","No") -> Yes | K64: =VLOOKUP($D64,'C.1 - Rate Sheets'!B:F,2,FALSE) -> 97.1 | L64: =VLOOKUP($D64,'C.1 - Rate Sheets'!B:F,3,FALSE) -> 140.8 | M64: =VLOOKUP($D64,'C.1 - Rate Sheets'!B:F,4,FALSE) -> 184.49 | N64: =VLOOKUP($D64,'C.1 - Rate Sheets'!B:F,5,FALSE) -> 0 | O64: 0 | P64: 0 | Q64: 0 | R64: 0 | S64: 0 | T64: 0 | U64: 0 | V64: 0 | W64: 0 | X64: 0 | Y64: 0 | Z64: 0 | AA64: 0 | AB64: 0 | AC64: 0 | AD64: 0 | AE64: 0 | AF64: 0 | AG64: 0 | AH64: 0 | AI64: 0 | AJ64: 0 | AK64: 0 | AL64: 0 | AM64: 0 | AN64: 0 | AO64: 0 | AP64: 0 | AQ64: 0 | AR64: 0 | AS64: 0 | AT64: 0 | AU64: 0 | AV64: 0 | AW64: 0 | AX64: 8 | AY64: 8 | AZ64: 0 | BA64: 0 | BB64: 16 | BC64: 8 | BD64: 8 | BE64: 0 | BF64: 0 | BG64: 16 | BH64: 8 | BI64: 8 | BJ64: 0 | BK64: 0 | BL64: 16 | BM64: 8 | BN64: 8 | BO64: 0 | BP64: 0 | BQ64: 16 | BR64: 8 | BS64: 8 | BT64: 0 | BU64: 0 | BV64: 16 | BW64: 0 | BX64: 16 | BY64: 0 | BZ64: 0 | CA64: 16 | CB64: 0 | CC64: 0 | CD64: 16 | CE64: 0 | CF64: 16 | CG64: 0 | CH64: 0 | CI64: 0 | CJ64: 0 | CK64: 0 | CL64: 0 | CM64: 0 | CN64: 0 | CO64: 0 | CP64: 0 | CQ64: 0 | CR64: 0 | CS64: 0 | CT64: 0 | CU64: 0 | CV64: 0 | CW64: 0 | CX64: 0 | CY64: 0 | CZ64: 0 | DA64: 0 | DB64: 0 | DC64: 0 | DD64: 0 | DE64: 0 | DF64: 40 | DG64: 56 | DH64: 16 | DI64: 0 | DJ64: 112 | DK64: 3884 | DL64: 7884.8 | DM64: 2951.84 | DN64: 0 | DO64: 14720.64 | DP64: 14720.64 | DQ64: Yes | DR64: 0 | DS64: 0 | DT64: 0
B65: 47 | D65: Safety Supervisor | E65: Vendor No. 20 | F65: 101-15 | G65: 5281 | H65: 2017-09-11 | I65: 2017-09-17 | J65: =IF(AND(H65>='A - Contractor Summary'!$C$36,I65<='A - Contractor Summary'!$C$42),"Yes","No") -> Yes | K65: =VLOOKUP($D65,'C.1 - Rate Sheets'!B:F,2,FALSE) -> 97.1 | L65: =VLOOKUP($D65,'C.1 - Rate Sheets'!B:F,3,FALSE) -> 140.8 | M65: =VLOOKUP($D65,'C.1 - Rate Sheets'!B:F,4,FALSE) -> 184.49 | N65: =VLOOKUP($D65,'C.1 - Rate Sheets'!B:F,5,FALSE) -> 0 | O65: 0 | P65: 0 | Q65: 0 | R65: 0 | S65: 0 | T65: 0 | U65: 0 | V65: 0 | W65: 0 | X65: 0 | Y65: 0 | Z65: 0 | AA65: 0 | AB65: 0 | AC65: 0 | AD65: 0 | AE65: 0 | AF65: 0 | AG65: 0 | AH65: 0 | AI65: 0 | AJ65: 0 | AK65: 0 | AL65: 0 | AM65: 0 | AN65: 0 | AO65: 0 | AP65: 0 | AQ65: 0 | AR65: 0 | AS65: 0 | AT65: 0 | AU65: 0 | AV65: 0 | AW65: 0 | AX65: 8 | AY65: 8 | AZ65: 0 | BA65: 0 | BB65: 16 | BC65: 8 | BD65: 8 | BE65: 0 | BF65: 0 | BG65: 16 | BH65: 8 | BI65: 8 | BJ65: 0 | BK65: 0 | BL65: 16 | BM65: 8 | BN65: 8 | BO65: 0 | BP65: 0 | BQ65: 16 | BR65: 8 | BS65: 8 | BT65: 0 | BU65: 0 | BV65: 16 | BW65: 0 | BX65: 16 | BY65: 0 | BZ65: 0 | CA65: 16 | CB65: 0 | CC65: 0 | CD65: 16 | CE65: 0 | CF65: 16 | CG65: 0 | CH65: 0 | CI65: 0 | CJ65: 0 | CK65: 0 | CL65: 0 | CM65: 0 | CN65: 0 | CO65: 0 | CP65: 0 | CQ65: 0 | CR65: 0 | CS65: 0 | CT65: 0 | CU65: 0 | CV65: 0 | CW65: 0 | CX65: 0 | CY65: 0 | CZ65: 0 | DA65: 0 | DB65: 0 | DC65: 0 | DD65: 0 | DE65: 0 | DF65: 40 | DG65: 56 | DH65: 16 | DI65: 0 | DJ65: 112 | DK65: 3884 | DL65: 7884.8 | DM65: 2951.84 | DN65: 0 | DO65: 14720.64 | DP65: 14720.64 | DQ65: Yes | DR65: 0 | DS65: 0 | DT65: 0
B66: 48 | D66: Mechanic | E66: Vendor No. 20 | F66: 101-15 | G66: 5281 | H66: 2017-09-11 | I66: 2017-09-17 | J66: =IF(AND(H66>='A - Contractor Summary'!$C$36,I66<='A - Contractor Summary'!$C$42),"Yes","No") -> Yes | K66: =VLOOKUP($D66,'C.1 - Rate Sheets'!B:F,2,FALSE) -> 56 | L66: =VLOOKUP($D66,'C.1 - Rate Sheets'!B:F,3,FALSE) -> 81.2 | M66: =VLOOKUP($D66,'C.1 - Rate Sheets'!B:F,4,FALSE) -> 106.4 | N66: =VLOOKUP($D66,'C.1 - Rate Sheets'!B:F,5,FALSE) -> 0 | O66: 0 | P66: 0 | Q66: 0 | R66: 0 | S66: 0 | T66: 0 | U66: 0 | V66: 0 | W66: 0 | X66: 0 | Y66: 0 | Z66: 0 | AA66: 0 | AB66: 0 | AC66: 0 | AD66: 0 | AE66: 0 | AF66: 0 | AG66: 0 | AH66: 0 | AI66: 0 | AJ66: 0 | AK66: 0 | AL66: 0 | AM66: 0 | AN66: 0 | AO66: 0 | AP66: 0 | AQ66: 0 | AR66: 0 | AS66: 0 | AT66: 0 | AU66: 0 | AV66: 0 | AW66: 0 | AX66: 8 | AY66: 8 | AZ66: 0 | BA66: 0 | BB66: 16 | BC66: 8 | BD66: 8 | BE66: 0 | BF66: 0 | BG66: 16 | BH66: 8 | BI66: 8 | BJ66: 0 | BK66: 0 | BL66: 16 | BM66: 8 | BN66: 8 | BO66: 0 | BP66: 0 | BQ66: 16 | BR66: 8 | BS66: 8 | BT66: 0 | BU66: 0 | BV66: 16 | BW66: 0 | BX66: 16 | BY66: 0 | BZ66: 0 | CA66: 16 | CB66: 0 | CC66: 0 | CD66: 16 | CE66: 0 | CF66: 16 | CG66: 0 | CH66: 0 | CI66: 0 | CJ66: 0 | CK66: 0 | CL66: 0 | CM66: 0 | CN66: 0 | CO66: 0 | CP66: 0 | CQ66: 0 | CR66: 0 | CS66: 0 | CT66: 0 | CU66: 0 | CV66: 0 | CW66: 0 | CX66: 0 | CY66: 0 | CZ66: 0 | DA66: 0 | DB66: 0 | DC66: 0 | DD66: 0 | DE66: 0 | DF66: 40 | DG66: 56 | DH66: 16 | DI66: 0 | DJ66: 112 | DK66: 2240 | DL66: 4547.2 | DM66: 1702.4 | DN66: 0 | DO66: 8489.6 | DP66: 8489.6 | DQ66: Yes | DR66: 0 | DS66: 0 | DT66: 0
B67: 49 | D67: Foreman | E67: Vendor No. 20 | F67: 209-231 | G67: 5286 | H67: 2017-09-14 | I67: 2017-09-17 | J67: =IF(AND(H67>='A - Contractor Summary'!$C$36,I67<='A - Contractor Summary'!$C$42),"Yes","No") -> Yes | K67: =VLOOKUP($D67,'C.1 - Rate Sheets'!B:F,2,FALSE) -> 73.25 | L67: =VLOOKUP($D67,'C.1 - Rate Sheets'!B:F,3,FALSE) -> 106.21 | M67: =VLOOKUP($D67,'C.1 - Rate Sheets'!B:F,4,FALSE) -> 139.18 | N67: =VLOOKUP($D67,'C.1 - Rate Sheets'!B:F,5,FALSE) -> 0 | O67: 0 | P67: 0 | Q67: 0 | R67: 0 | S67: 0 | T67: 0 | U67: 0 | V67: 0 | W67: 0 | X67: 0 | Y67: 0 | Z67: 0 | AA67: 0 | AB67: 0 | AC67: 0 | AD67: 0 | AE67: 0 | AF67: 0 | AG67: 0 | AH67: 0 | AI67: 0 | AJ67: 0 | AK67: 0 | AL67: 0 | AM67: 0 | AN67: 0 | AO67: 0 | AP67: 0 | AQ67: 0 | AR67: 0 | AS67: 0 | AT67: 0 | AU67: 0 | AV67: 0 | AW67: 0 | AX67: 0 | AY67: 0 | AZ67: 0 | BA67: 0 | BB67: 0 | BC67: 0 | BD67: 0 | BE67: 0 | BF67: 0 | BG67: 0 | BH67: 0 | BI67: 0 | BJ67: 0 | BK67: 0 | BL67: 0 | BM67: 10 | BN67: 8 | BO67: 0 | BP67: 0 | BQ67: 18 | BR67: 17 | BS67: 0 | BT67: 0 | BU67: 0 | BV67: 17 | BW67: 5 | BX67: 12 | BY67: 0 | BZ67: 0 | CA67: 17 | CB67: 0 | CC67: 0 | CD67: 14 | CE67: 0 | CF67: 14 | CG67: 0 | CH67: 0 | CI67: 0 | CJ67: 0 | CK67: 0 | CL67: 0 | CM67: 0 | CN67: 0 | CO67: 0 | CP67: 0 | CQ67: 0 | CR67: 0 | CS67: 0 | CT67: 0 | CU67: 0 | CV67: 0 | CW67: 0 | CX67: 0 | CY67: 0 | CZ67: 0 | DA67: 0 | DB67: 0 | DC67: 0 | DD67: 0 | DE67: 0 | DF67: 32 | DG67: 20 | DH67: 14 | DI67: 0 | DJ67: 66 | DK67: 2344 | DL67: 2124.2 | DM67: 1948.52 | DN67: 0 | DO67: 6416.72 | DP67: 6416.72 | DQ67: Yes | DR67: 0 | DS67: 0 | DT67: 0 | DU67: 2
B68: 50 | D68: Lineman A | E68: Vendor No. 20 | F68: 209-231 | G68: 5286 | H68: 2017-09-14 | I68: 2017-09-17 | J68: =IF(AND(H68>='A - Contractor Summary'!$C$36,I68<='A - Contractor Summary'!$C$42),"Yes","No") -> Yes | K68: =VLOOKUP($D68,'C.1 - Rate Sheets'!B:F,2,FALSE) -> 69.85 | L68: =VLOOKUP($D68,'C.1 - Rate Sheets'!B:F,3,FALSE) -> 101.28 | M68: =VLOOKUP($D68,'C.1 - Rate Sheets'!B:F,4,FALSE) -> 132.72 | N68: =VLOOKUP($D68,'C.1 - Rate Sheets'!B:F,5,FALSE) -> 0 | O68: 0 | P68: 0 | Q68: 0 | R68: 0 | S68: 0 | T68: 0 | U68: 0 | V68: 0 | W68: 0 | X68: 0 | Y68: 0 | Z68: 0 | AA68: 0 | AB68: 0 | AC68: 0 | AD68: 0 | AE68: 0 | AF68: 0 | AG68: 0 | AH68: 0 | AI68: 0 | AJ68: 0 | AK68: 0 | AL68: 0 | AM68: 0 | AN68: 0 | AO68: 0 | AP68: 0 | AQ68: 0 | AR68: 0 | AS68: 0 | AT68: 0 | AU68: 0 | AV68: 0 | AW68: 0 | AX68: 0 | AY68: 0 | AZ68: 0 | BA68: 0 | BB68: 0 | BC68: 0 | BD68: 0 | BE68: 0 | BF68: 0 | BG68: 0 | BH68: 0 | BI68: 0 | BJ68: 0 | BK68: 0 | BL68: 0 | BM68: 10 | BN68: 8 | BO68: 0 | BP68: 0 | BQ68: 18 | BR68: 17 | BS68: 0 | BT68: 0 | BU68: 0 | BV68: 17 | BW68: 5 | BX68: 12 | BY68: 0 | BZ68: 0 | CA68: 17 | CB68: 0 | CC68: 0 | CD68: 14 | CE68: 0 | CF68: 14 | CG68: 0 | CH68: 0 | CI68: 0 | CJ68: 0 | CK68: 0 | CL68: 0 | CM68: 0 | CN68: 0 | CO68: 0 | CP68: 0 | CQ68: 0 | CR68: 0 | CS68: 0 | CT68: 0 | CU68: 0 | CV68: 0 | CW68: 0 | CX68: 0 | CY68: 0 | CZ68: 0 | DA68: 0 | DB68: 0 | DC68: 0 | DD68: 0 | DE68: 0 | DF68: 32 | DG68: 20 | DH68: 14 | DI68: 0 | DJ68: 66 | DK68: 2235.2 | DL68: 2025.6 | DM68: 1858.08 | DN68: 0 | DO68: 6118.88 | DP68: 6118.88 | DQ68: Yes | DR68: 0 | DS68: 0 | DT68: 0 | DU68: 2
B69: 51 | D69: Lineman A | E69: Vendor No. 20 | F69: 209-231 | G69: 5286 | H69: 2017-09-14 | I69: 2017-09-17 | J69: =IF(AND(H69>='A - Contractor Summary'!$C$36,I69<='A - Contractor Summary'!$C$42),"Yes","No") -> Yes | K69: =VLOOKUP($D69,'C.1 - Rate Sheets'!B:F,2,FALSE) -> 69.85 | L69: =VLOOKUP($D69,'C.1 - Rate Sheets'!B:F,3,FALSE) -> 101.28 | M69: =VLOOKUP($D69,'C.1 - Rate Sheets'!B:F,4,FALSE) -> 132.72 | N69: =VLOOKUP($D69,'C.1 - Rate Sheets'!B:F,5,FALSE) -> 0 | O69: 0 | P69: 0 | Q69: 0 | R69: 0 | S69: 0 | T69: 0 | U69: 0 | V69: 0 | W69: 0 | X69: 0 | Y69: 0 | Z69: 0 | AA69: 0 | AB69: 0 | AC69: 0 | AD69: 0 | AE69: 0 | AF69: 0 | AG69: 0 | AH69: 0 | AI69: 0 | AJ69: 0 | AK69: 0 | AL69: 0 | AM69: 0 | AN69: 0 | AO69: 0 | AP69: 0 | AQ69: 0 | AR69: 0 | AS69: 0 | AT69: 0 | AU69: 0 | AV69: 0 | AW69: 0 | AX69: 0 | AY69: 0 | AZ69: 0 | BA69: 0 | BB69: 0 | BC69: 0 | BD69: 0 | BE69: 0 | BF69: 0 | BG69: 0 | BH69: 0 | BI69: 0 | BJ69: 0 | BK69: 0 | BL69: 0 | BM69: 10 | BN69: 8 | BO69: 0 | BP69: 0 | BQ69: 18 | BR69: 17 | BS69: 0 | BT69: 0 | BU69: 0 | BV69: 17 | BW69: 5 | BX69: 12 | BY69: 0 | BZ69: 0 | CA69: 17 | CB69: 0 | CC69: 0 | CD69: 14 | CE69: 0 | CF69: 14 | CG69: 0 | CH69: 0 | CI69: 0 | CJ69: 0 | CK69: 0 | CL69: 0 | CM69: 0 | CN69: 0 | CO69: 0 | CP69: 0 | CQ69: 0 | CR69: 0 | CS69: 0 | CT69: 0 | CU69: 0 | CV69: 0 | CW69: 0 | CX69: 0 | CY69: 0 | CZ69: 0 | DA69: 0 | DB69: 0 | DC69: 0 | DD69: 0 | DE69: 0 | DF69: 32 | DG69: 20 | DH69: 14 | DI69: 0 | DJ69: 66 | DK69: 2235.2 | DL69: 2025.6 | DM69: 1858.08 | DN69: 0 | DO69: 6118.88 | DP69: 6118.88 | DQ69: Yes | DR69: 0 | DS69: 0 | DT69: 0 | DU69: 2
B70: 52 | D70: EQUIPMENT OPERATOR | E70: Vendor No. 20 | F70: 209-231 | G70: 5286 | H70: 2017-09-14 | I70: 2017-09-17 | J70: =IF(AND(H70>='A - Contractor Summary'!$C$36,I70<='A - Contractor Summary'!$C$42),"Yes","No") -> Yes | K70: =VLOOKUP($D70,'C.1 - Rate Sheets'!B:F,2,FALSE) -> 49.5 | L70: =VLOOKUP($D70,'C.1 - Rate Sheets'!B:F,3,FALSE) -> 71.78 | M70: =VLOOKUP($D70,'C.1 - Rate Sheets'!B:F,4,FALSE) -> 94.05 | N70: =VLOOKUP($D70,'C.1 - Rate Sheets'!B:F,5,FALSE) -> 0 | O70: 0 | P70: 0 | Q70: 0 | R70: 0 | S70: 0 | T70: 0 | U70: 0 | V70: 0 | W70: 0 | X70: 0 | Y70: 0 | Z70: 0 | AA70: 0 | AB70: 0 | AC70: 0 | AD70: 0 | AE70: 0 | AF70: 0 | AG70: 0 | AH70: 0 | AI70: 0 | AJ70: 0 | AK70: 0 | AL70: 0 | AM70: 0 | AN70: 0 | AO70: 0 | AP70: 0 | AQ70: 0 | AR70: 0 | AS70: 0 | AT70: 0 | AU70: 0 | AV70: 0 | AW70: 0 | AX70: 0 | AY70: 0 | AZ70: 0 | BA70: 0 | BB70: 0 | BC70: 0 | BD70: 0 | BE70: 0 | BF70: 0 | BG70: 0 | BH70: 0 | BI70: 0 | BJ70: 0 | BK70: 0 | BL70: 0 | BM70: 10 | BN70: 8 | BO70: 0 | BP70: 0 | BQ70: 18 | BR70: 17 | BS70: 0 | BT70: 0 | BU70: 0 | BV70: 17 | BW70: 5 | BX70: 12 | BY70: 0 | BZ70: 0 | CA70: 17 | CB70: 0 | CC70: 0 | CD70: 14 | CE70: 0 | CF70: 14 | CG70: 0 | CH70: 0 | CI70: 0 | CJ70: 0 | CK70: 0 | CL70: 0 | CM70: 0 | CN70: 0 | CO70: 0 | CP70: 0 | CQ70: 0 | CR70: 0 | CS70: 0 | CT70: 0 | CU70: 0 | CV70: 0 | CW70: 0 | CX70: 0 | CY70: 0 | CZ70: 0 | DA70: 0 | DB70: 0 | DC70: 0 | DD70: 0 | DE70: 0 | DF70: 32 | DG70: 20 | DH70: 14 | DI70: 0 | DJ70: 66 | DK70: 1584 | DL70: 1435.6 | DM70: 1316.7 | DN70: 0 | DO70: 4336.3 | DP70: 4336.3 | DQ70: Yes | DR70: 0 | DS70: 0 | DT70: 0 | DU70: 2
B71: 53 | D71: Foreman | E71: Vendor No. 20 | F71: 212-120 | G71: 5289 | H71: 2017-09-12 | I71: 2017-09-17 | J71: =IF(AND(H71>='A - Contractor Summary'!$C$36,I71<='A - Contractor Summary'!$C$42),"Yes","No") -> Yes | K71: =VLOOKUP($D71,'C.1 - Rate Sheets'!B:F,2,FALSE) -> 73.25 | L71: =VLOOKUP($D71,'C.1 - Rate Sheets'!B:F,3,FALSE) -> 106.21 | M71: =VLOOKUP($D71,'C.1 - Rate Sheets'!B:F,4,FALSE) -> 139.18 | N71: =VLOOKUP($D71,'C.1 - Rate Sheets'!B:F,5,FALSE) -> 0 | O71: 0 | P71: 0 | Q71: 0 | R71: 0 | S71: 0 | T71: 0 | U71: 0 | V71: 0 | W71: 0 | X71: 0 | Y71: 0 | Z71: 0 | AA71: 0 | AB71: 0 | AC71: 0 | AD71: 0 | AE71: 0 | AF71: 0 | AG71: 0 | AH71: 0 | AI71: 0 | AJ71: 0 | AK71: 0 | AL71: 0 | AM71: 0 | AN71: 0 | AO71: 0 | AP71: 0 | AQ71: 0 | AR71: 0 | AS71: 0 | AT71: 0 | AU71: 0 | AV71: 0 | AW71: 0 | AX71: 0 | AY71: 0 | AZ71: 0 | BA71: 0 | BB71: 0 | BC71: 16 | BD71: 0 | BE71: 0 | BF71: 0 | BG71: 16 | BH71: 16 | BI71: 0 | BJ71: 0 | BK71: 0 | BL71: 16 | BM71: 8 | BN71: 8 | BO71: 0 | BP71: 0 | BQ71: 16 | BR71: 0 | BS71: 16 | BT71: 0 | BU71: 0 | BV71: 16 | BW71: 0 | BX71: 16 | BY71: 0 | BZ71: 0 | CA71: 16 | CB71: 0 | CC71: 0 | CD71: 16 | CE71: 0 | CF71: 16 | CG71: 0 | CH71: 0 | CI71: 0 | CJ71: 0 | CK71: 0 | CL71: 0 | CM71: 0 | CN71: 0 | CO71: 0 | CP71: 0 | CQ71: 0 | CR71: 0 | CS71: 0 | CT71: 0 | CU71: 0 | CV71: 0 | CW71: 0 | CX71: 0 | CY71: 0 | CZ71: 0 | DA71: 0 | DB71: 0 | DC71: 0 | DD71: 0 | DE71: 0 | DF71: 40 | DG71: 40 | DH71: 16 | DI71: 0 | DJ71: =SUM(DF71:DI71) -> 96 | DK71: 2930 | DL71: 4248.4 | DM71: 2226.88 | DN71: 0 | DO71: 9405.28 | DP71: 9405.28 | DQ71: Yes | DR71: 0 | DS71: 0 | DT71: 0
B72: 54 | D72: Lineman A | E72: Vendor No. 20 | F72: 212-120 | G72: 5289 | H72: 2017-09-15 | I72: 2017-09-17 | J72: =IF(AND(H72>='A - Contractor Summary'!$C$36,I72<='A - Contractor Summary'!$C$42),"Yes","No") -> Yes | K72: =VLOOKUP($D72,'C.1 - Rate Sheets'!B:F,2,FALSE) -> 69.85 | L72: =VLOOKUP($D72,'C.1 - Rate Sheets'!B:F,3,FALSE) -> 101.28 | M72: =VLOOKUP($D72,'C.1 - Rate Sheets'!B:F,4,FALSE) -> 132.72 | N72: =VLOOKUP($D72,'C.1 - Rate Sheets'!B:F,5,FALSE) -> 0 | O72: 0 | P72: 0 | Q72: 0 | R72: 0 | S72: 0 | T72: 0 | U72: 0 | V72: 0 | W72: 0 | X72: 0 | Y72: 0 | Z72: 0 | AA72: 0 | AB72: 0 | AC72: 0 | AD72: 0 | AE72: 0 | AF72: 0 | AG72: 0 | AH72: 0 | AI72: 0 | AJ72: 0 | AK72: 0 | AL72: 0 | AM72: 0 | AN72: 0 | AO72: 0 | AP72: 0 | AQ72: 0 | AR72: 0 | AS72: 0 | AT72: 0 | AU72: 0 | AV72: 0 | AW72: 0 | AX72: 0 | AY72: 0 | AZ72: 0 | BA72: 0 | BB72: 0 | BC72: 0 | BD72: 0 | BE72: 0 | BF72: 0 | BG72: 0 | BH72: 0 | BI72: 0 | BJ72: 0 | BK72: 0 | BL72: 0 | BM72: 0 | BN72: 0 | BO72: 0 | BP72: 0 | BQ72: 0 | BR72: 0 | BS72: 16 | BT72: 0 | BU72: 0 | BV72: 16 | BW72: 0 | BX72: 16 | BY72: 0 | BZ72: 0 | CA72: 16 | CB72: 0 | CC72: 0 | CD72: 16 | CE72: 0 | CF72: 16 | CG72: 0 | CH72: 0 | CI72: 0 | CJ72: 0 | CK72: 0 | CL72: 0 | CM72: 0 | CN72: 0 | CO72: 0 | CP72: 0 | CQ72: 0 | CR72: 0 | CS72: 0 | CT72: 0 | CU72: 0 | CV72: 0 | CW72: 0 | CX72: 0 | CY72: 0 | CZ72: 0 | DA72: 0 | DB72: 0 | DC72: 0 | DD72: 0 | DE72: 0 | DF72: 0 | DG72: 32 | DH72: 16 | DI72: 0 | DJ72: 48 | DK72: 0 | DL72: 3240.96 | DM72: 2123.52 | DN72: 0 | DO72: 5364.48 | DP72: 5364.48 | DQ72: Yes | DR72: 0 | DS72: 0 | DT72: 0 | DU72: 2
B73: 55 | D73: Lineman B | E73: Vendor No. 20 | F73: 212-120 | G73: 5289 | H73: 2017-09-15 | I73: 2017-09-17 | J73: =IF(AND(H73>='A - Contractor Summary'!$C$36,I73<='A - Contractor Summary'!$C$42),"Yes","No") -> Yes | K73: =VLOOKUP($D73,'C.1 - Rate Sheets'!B:F,2,FALSE) -> 65.9 | L73: =VLOOKUP($D73,'C.1 - Rate Sheets'!B:F,3,FALSE) -> 95.56 | M73: =VLOOKUP($D73,'C.1 - Rate Sheets'!B:F,4,FALSE) -> 125.21 | N73: =VLOOKUP($D73,'C.1 - Rate Sheets'!B:F,5,FALSE) -> 0 | O73: 0 | P73: 0 | Q73: 0 | R73: 0 | S73: 0 | T73: 0 | U73: 0 | V73: 0 | W73: 0 | X73: 0 | Y73: 0 | Z73: 0 | AA73: 0 | AB73: 0 | AC73: 0 | AD73: 0 | AE73: 0 | AF73: 0 | AG73: 0 | AH73: 0 | AI73: 0 | AJ73: 0 | AK73: 0 | AL73: 0 | AM73: 0 | AN73: 0 | AO73: 0 | AP73: 0 | AQ73: 0 | AR73: 0 | AS73: 0 | AT73: 0 | AU73: 0 | AV73: 0 | AW73: 0 | AX73: 0 | AY73: 0 | AZ73: 0 | BA73: 0 | BB73: 0 | BC73: 0 | BD73: 0 | BE73: 0 | BF73: 0 | BG73: 0 | BH73: 0 | BI73: 0 | BJ73: 0 | BK73: 0 | BL73: 0 | BM73: 0 | BN73: 0 | BO73: 0 | BP73: 0 | BQ73: 0 | BR73: 0 | BS73: 16 | BT73: 0 | BU73: 0 | BV73: 16 | BW73: 0 | BX73: 16 | BY73: 0 | BZ73: 0 | CA73: 16 | CB73: 0 | CC73: 0 | CD73: 16 | CE73: 0 | CF73: 16 | CG73: 0 | CH73: 0 | CI73: 0 | CJ73: 0 | CK73: 0 | CL73: 0 | CM73: 0 | CN73: 0 | CO73: 0 | CP73: 0 | CQ73: 0 | CR73: 0 | CS73: 0 | CT73: 0 | CU73: 0 | CV73: 0 | CW73: 0 | CX73: 0 | CY73: 0 | CZ73: 0 | DA73: 0 | DB73: 0 | DC73: 0 | DD73: 0 | DE73: 0 | DF73: 0 | DG73: 32 | DH73: 16 | DI73: 0 | DJ73: 48 | DK73: 0 | DL73: 3057.92 | DM73: 2003.36 | DN73: 0 | DO73: 5061.28 | DP73: 5061.28 | DQ73: Yes | DR73: 0 | DS73: 0 | DT73: 0 | DU73: 2
B74: 56 | D74: EQUIPMENT OPERATOR | E74: Vendor No. 20 | F74: 212-120 | G74: 5289 | H74: 2017-09-12 | I74: 2017-09-17 | J74: =IF(AND(H74>='A - Contractor Summary'!$C$36,I74<='A - Contractor Summary'!$C$42),"Yes","No") -> Yes | K74: =VLOOKUP($D74,'C.1 - Rate Sheets'!B:F,2,FALSE) -> 49.5 | L74: =VLOOKUP($D74,'C.1 - Rate Sheets'!B:F,3,FALSE) -> 71.78 | M74: =VLOOKUP($D74,'C.1 - Rate Sheets'!B:F,4,FALSE) -> 94.05 | N74: =VLOOKUP($D74,'C.1 - Rate Sheets'!B:F,5,FALSE) -> 0 | O74: 0 | P74: 0 | Q74: 0 | R74: 0 | S74: 0 | T74: 0 | U74: 0 | V74: 0 | W74: 0 | X74: 0 | Y74: 0 | Z74: 0 | AA74: 0 | AB74: 0 | AC74: 0 | AD74: 0 | AE74: 0 | AF74: 0 | AG74: 0 | AH74: 0 | AI74: 0 | AJ74: 0 | AK74: 0 | AL74: 0 | AM74: 0 | AN74: 0 | AO74: 0 | AP74: 0 | AQ74: 0 | AR74: 0 | AS74: 0 | AT74: 0 | AU74: 0 | AV74: 0 | AW74: 0 | AX74: 0 | AY74: 0 | AZ74: 0 | BA74: 0 | BB74: 0 | BC74: 16 | BD74: 0 | BE74: 0 | BF74: 0 | BG74: 16 | BH74: 16 | BI74: 0 | BJ74: 0 | BK74: 0 | BL74: 16 | BM74: 8 | BN74: 8 | BO74: 0 | BP74: 0 | BQ74: 16 | BR74: 0 | BS74: 16 | BT74: 0 | BU74: 0 | BV74: 16 | BW74: 0 | BX74: 16 | BY74: 0 | BZ74: 0 | CA74: 16 | CB74: 0 | CC74: 0 | CD74: 16 | CE74: 0 | CF74: 16 | CG74: 0 | CH74: 0 | CI74: 0 | CJ74: 0 | CK74: 0 | CL74: 0 | CM74: 0 | CN74: 0 | CO74: 0 | CP74: 0 | CQ74: 0 | CR74: 0 | CS74: 0 | CT74: 0 | CU74: 0 | CV74: 0 | CW74: 0 | CX74: 0 | CY74: 0 | CZ74: 0 | DA74: 0 | DB74: 0 | DC74: 0 | DD74: 0 | DE74: 0 | DF74: 40 | DG74: 40 | DH74: 16 | DI74: 0 | DJ74: 96 | DK74: 1980 | DL74: 2871.2 | DM74: 1504.8 | DN74: 0 | DO74: 6356 | DP74: 6356 | DQ74: Yes | DR74: 0 | DS74: 0 | DT74: 0
B75: 57 | D75: Foreman | E75: Vendor No. 20 | F75: 242-7 | G75: 5294 | H75: 2017-09-11 | I75: 2017-09-17 | J75: =IF(AND(H75>='A - Contractor Summary'!$C$36,I75<='A - Contractor Summary'!$C$42),"Yes","No") -> Yes | K75: =VLOOKUP($D75,'C.1 - Rate Sheets'!B:F,2,FALSE) -> 73.25 | L75: =VLOOKUP($D75,'C.1 - Rate Sheets'!B:F,3,FALSE) -> 106.21 | M75: =VLOOKUP($D75,'C.1 - Rate Sheets'!B:F,4,FALSE) -> 139.18 | N75: =VLOOKUP($D75,'C.1 - Rate Sheets'!B:F,5,FALSE) -> 0 | O75: 0 | P75: 0 | Q75: 0 | R75: 0 | S75: 0 | T75: 0 | U75: 0 | V75: 0 | W75: 0 | X75: 0 | Y75: 0 | Z75: 0 | AA75: 0 | AB75: 0 | AC75: 0 | AD75: 0 | AE75: 0 | AF75: 0 | AG75: 0 | AH75: 0 | AI75: 0 | AJ75: 0 | AK75: 0 | AL75: 0 | AM75: 0 | AN75: 0 | AO75: 0 | AP75: 0 | AQ75: 0 | AR75: 0 | AS75: 0 | AT75: 0 | AU75: 0 | AV75: 0 | AW75: 0 | AX75: 16 | AY75: 0 | AZ75: 0 | BA75: 0 | BB75: 16 | BC75: 19 | BD75: 0 | BE75: 0 | BF75: 0 | BG75: 19 | BH75: 5 | BI75: 10 | BJ75: 0 | BK75: 0 | BL75: 15 | BM75: 0 | BN75: 16 | BO75: 0 | BP75: 0 | BQ75: 16 | BR75: 0 | BS75: 16 | BT75: 0 | BU75: 0 | BV75: 16 | BW75: 0 | BX75: 16 | BY75: 0 | BZ75: 0 | CA75: 16 | CB75: 0 | CC75: 0 | CD75: 16 | CE75: 0 | CF75: 16 | CG75: 0 | CH75: 0 | CI75: 0 | CJ75: 0 | CK75: 0 | CL75: 0 | CM75: 0 | CN75: 0 | CO75: 0 | CP75: 0 | CQ75: 0 | CR75: 0 | CS75: 0 | CT75: 0 | CU75: 0 | CV75: 0 | CW75: 0 | CX75: 0 | CY75: 0 | CZ75: 0 | DA75: 0 | DB75: 0 | DC75: 0 | DD75: 0 | DE75: 0 | DF75: 40 | DG75: 58 | DH75: 16 | DI75: 0 | DJ75: 114 | DK75: 2930 | DL75: 6160.18 | DM75: 2226.88 | DN75: 0 | DO75: 11317.06 | DP75: 11317.06 | DQ75: Yes | DR75: 0 | DS75: 0 | DT75: 0
B76: 58 | D76: Lineman A | E76: Vendor No. 20 | F76: 242-7 | G76: 5294 | H76: 2017-09-11 | I76: 2017-09-17 | J76: =IF(AND(H76>='A - Contractor Summary'!$C$36,I76<='A - Contractor Summary'!$C$42),"Yes","No") -> Yes | K76: =VLOOKUP($D76,'C.1 - Rate Sheets'!B:F,2,FALSE) -> 69.85 | L76: =VLOOKUP($D76,'C.1 - Rate Sheets'!B:F,3,FALSE) -> 101.28 | M76: =VLOOKUP($D76,'C.1 - Rate Sheets'!B:F,4,FALSE) -> 132.72 | N76: =VLOOKUP($D76,'C.1 - Rate Sheets'!B:F,5,FALSE) -> 0 | O76: 0 | P76: 0 | Q76: 0 | R76: 0 | S76: 0 | T76: 0 | U76: 0 | V76: 0 | W76: 0 | X76: 0 | Y76: 0 | Z76: 0 | AA76: 0 | AB76: 0 | AC76: 0 | AD76: 0 | AE76: 0 | AF76: 0 | AG76: 0 | AH76: 0 | AI76: 0 | AJ76: 0 | AK76: 0 | AL76: 0 | AM76: 0 | AN76: 0 | AO76: 0 | AP76: 0 | AQ76: 0 | AR76: 0 | AS76: 0 | AT76: 0 | AU76: 0 | AV76: 0 | AW76: 0 | AX76: 16 | AY76: 0 | AZ76: 0 | BA76: 0 | BB76: 16 | BC76: 19 | BD76: 0 | BE76: 0 | BF76: 0 | BG76: 19 | BH76: 5 | BI76: 10 | BJ76: 0 | BK76: 0 | BL76: 15 | BM76: 0 | BN76: 16 | BO76: 0 | BP76: 0 | BQ76: 16 | BR76: 0 | BS76: 16 | BT76: 0 | BU76: 0 | BV76: 16 | BW76: 0 | BX76: 16 | BY76: 0 | BZ76: 0 | CA76: 16 | CB76: 0 | CC76: 0 | CD76: 16 | CE76: 0 | CF76: 16 | CG76: 0 | CH76: 0 | CI76: 0 | CJ76: 0 | CK76: 0 | CL76: 0 | CM76: 0 | CN76: 0 | CO76: 0 | CP76: 0 | CQ76: 0 | CR76: 0 | CS76: 0 | CT76: 0 | CU76: 0 | CV76: 0 | CW76: 0 | CX76: 0 | CY76: 0 | CZ76: 0 | DA76: 0 | DB76: 0 | DC76: 0 | DD76: 0 | DE76: 0 | DF76: 40 | DG76: 58 | DH76: 16 | DI76: 0 | DJ76: 114 | DK76: 2794 | DL76: 5874.24 | DM76: 2123.52 | DN76: 0 | DO76: 10791.76 | DP76: 10791.76 | DQ76: Yes | DR76: 0 | DS76: 0 | DT76: 0
B77: 59 | D77: Lineman A | E77: Vendor No. 20 | F77: 242-7 | G77: 5294 | H77: 2017-09-11 | I77: 2017-09-17 | J77: =IF(AND(H77>='A - Contractor Summary'!$C$36,I77<='A - Contractor Summary'!$C$42),"Yes","No") -> Yes | K77: =VLOOKUP($D77,'C.1 - Rate Sheets'!B:F,2,FALSE) -> 69.85 | L77: =VLOOKUP($D77,'C.1 - Rate Sheets'!B:F,3,FALSE) -> 101.28 | M77: =VLOOKUP($D77,'C.1 - Rate Sheets'!B:F,4,FALSE) -> 132.72 | N77: =VLOOKUP($D77,'C.1 - Rate Sheets'!B:F,5,FALSE) -> 0 | O77: 0 | P77: 0 | Q77: 0 | R77: 0 | S77: 0 | T77: 0 | U77: 0 | V77: 0 | W77: 0 | X77: 0 | Y77: 0 | Z77: 0 | AA77: 0 | AB77: 0 | AC77: 0 | AD77: 0 | AE77: 0 | AF77: 0 | AG77: 0 | AH77: 0 | AI77: 0 | AJ77: 0 | AK77: 0 | AL77: 0 | AM77: 0 | AN77: 0 | AO77: 0 | AP77: 0 | AQ77: 0 | AR77: 0 | AS77: 0 | AT77: 0 | AU77: 0 | AV77: 0 | AW77: 0 | AX77: 16 | AY77: 0 | AZ77: 0 | BA77: 0 | BB77: 16 | BC77: 19 | BD77: 0 | BE77: 0 | BF77: 0 | BG77: 19 | BH77: 5 | BI77: 10 | BJ77: 0 | BK77: 0 | BL77: 15 | BM77: 0 | BN77: 16 | BO77: 0 | BP77: 0 | BQ77: 16 | BR77: 0 | BS77: 16 | BT77: 0 | BU77: 0 | BV77: 16 | BW77: 0 | BX77: 16 | BY77: 0 | BZ77: 0 | CA77: 16 | CB77: 0 | CC77: 0 | CD77: 16 | CE77: 0 | CF77: 16 | CG77: 0 | CH77: 0 | CI77: 0 | CJ77: 0 | CK77: 0 | CL77: 0 | CM77: 0 | CN77: 0 | CO77: 0 | CP77: 0 | CQ77: 0 | CR77: 0 | CS77: 0 | CT77: 0 | CU77: 0 | CV77: 0 | CW77: 0 | CX77: 0 | CY77: 0 | CZ77: 0 | DA77: 0 | DB77: 0 | DC77: 0 | DD77: 0 | DE77: 0 | DF77: 40 | DG77: 58 | DH77: 16 | DI77: 0 | DJ77: 114 | DK77: 2794 | DL77: 5874.24 | DM77: 2123.52 | DN77: 0 | DO77: 10791.76 | DP77: 10791.76 | DQ77: Yes | DR77: 0 | DS77: 0 | DT77: 0
B78: 60 | D78: Lineman B | E78: Vendor No. 20 | F78: 242-7 | G78: 5294 | H78: 2017-09-11 | I78: 2017-09-17 | J78: =IF(AND(H78>='A - Contractor Summary'!$C$36,I78<='A - Contractor Summary'!$C$42),"Yes","No") -> Yes | K78: =VLOOKUP($D78,'C.1 - Rate Sheets'!B:F,2,FALSE) -> 65.9 | L78: =VLOOKUP($D78,'C.1 - Rate Sheets'!B:F,3,FALSE) -> 95.56 | M78: =VLOOKUP($D78,'C.1 - Rate Sheets'!B:F,4,FALSE) -> 125.21 | N78: =VLOOKUP($D78,'C.1 - Rate Sheets'!B:F,5,FALSE) -> 0 | O78: 0 | P78: 0 | Q78: 0 | R78: 0 | S78: 0 | T78: 0 | U78: 0 | V78: 0 | W78: 0 | X78: 0 | Y78: 0 | Z78: 0 | AA78: 0 | AB78: 0 | AC78: 0 | AD78: 0 | AE78: 0 | AF78: 0 | AG78: 0 | AH78: 0 | AI78: 0 | AJ78: 0 | AK78: 0 | AL78: 0 | AM78: 0 | AN78: 0 | AO78: 0 | AP78: 0 | AQ78: 0 | AR78: 0 | AS78: 0 | AT78: 0 | AU78: 0 | AV78: 0 | AW78: 0 | AX78: 16 | AY78: 0 | AZ78: 0 | BA78: 0 | BB78: 16 | BC78: 19 | BD78: 0 | BE78: 0 | BF78: 0 | BG78: 19 | BH78: 5 | BI78: 10 | BJ78: 0 | BK78: 0 | BL78: 15 | BM78: 0 | BN78: 16 | BO78: 0 | BP78: 0 | BQ78: 16 | BR78: 0 | BS78: 16 | BT78: 0 | BU78: 0 | BV78: 16 | BW78: 0 | BX78: 16 | BY78: 0 | BZ78: 0 | CA78: 16 | CB78: 0 | CC78: 0 | CD78: 16 | CE78: 0 | CF78: 16 | CG78: 0 | CH78: 0 | CI78: 0 | CJ78: 0 | CK78: 0 | CL78: 0 | CM78: 0 | CN78: 0 | CO78: 0 | CP78: 0 | CQ78: 0 | CR78: 0 | CS78: 0 | CT78: 0 | CU78: 0 | CV78: 0 | CW78: 0 | CX78: 0 | CY78: 0 | CZ78: 0 | DA78: 0 | DB78: 0 | DC78: 0 | DD78: 0 | DE78: 0 | DF78: 40 | DG78: 58 | DH78: 16 | DI78: 0 | DJ78: 114 | DK78: 2636 | DL78: 5542.48 | DM78: 2003.36 | DN78: 0 | DO78: 10181.84 | DP78: 10181.84 | DQ78: Yes | DR78: 0 | DS78: 0 | DT78: 0
B79: 61 | D79: Foreman | E79: Vendor No. 20 | F79: 716-2 | G79: 5298 | H79: 2017-09-13 | I79: 2017-09-17 | J79: =IF(AND(H79>='A - Contractor Summary'!$C$36,I79<='A - Contractor Summary'!$C$42),"Yes","No") -> Yes | K79: =VLOOKUP($D79,'C.1 - Rate Sheets'!B:F,2,FALSE) -> 73.25 | L79: =VLOOKUP($D79,'C.1 - Rate Sheets'!B:F,3,FALSE) -> 106.21 | M79: =VLOOKUP($D79,'C.1 - Rate Sheets'!B:F,4,FALSE) -> 139.18 | N79: =VLOOKUP($D79,'C.1 - Rate Sheets'!B:F,5,FALSE) -> 0 | O79: 0 | P79: 0 | Q79: 0 | R79: 0 | S79: 0 | T79: 0 | U79: 0 | V79: 0 | W79: 0 | X79: 0 | Y79: 0 | Z79: 0 | AA79: 0 | AB79: 0 | AC79: 0 | AD79: 0 | AE79: 0 | AF79: 0 | AG79: 0 | AH79: 0 | AI79: 0 | AJ79: 0 | AK79: 0 | AL79: 0 | AM79: 0 | AN79: 0 | AO79: 0 | AP79: 0 | AQ79: 0 | AR79: 0 | AS79: 0 | AT79: 0 | AU79: 0 | AV79: 0 | AW79: 0 | AX79: 0 | AY79: 0 | AZ79: 0 | BA79: 0 | BB79: 0 | BC79: 0 | BD79: 0 | BE79: 0 | BF79: 0 | BG79: 0 | BH79: 16 | BI79: 0 | BJ79: 0 | BK79: 0 | BL79: 16 | BM79: 16 | BN79: 0 | BO79: 0 | BP79: 0 | BQ79: 16 | BR79: 8 | BS79: 8 | BT79: 0 | BU79: 0 | BV79: 16 | BW79: 0 | BX79: 16 | BY79: 0 | BZ79: 0 | CA79: 16 | CB79: 0 | CC79: 0 | CD79: 16 | CE79: 0 | CF79: 16 | CG79: 0 | CH79: 0 | CI79: 0 | CJ79: 0 | CK79: 0 | CL79: 0 | CM79: 0 | CN79: 0 | CO79: 0 | CP79: 0 | CQ79: 0 | CR79: 0 | CS79: 0 | CT79: 0 | CU79: 0 | CV79: 0 | CW79: 0 | CX79: 0 | CY79: 0 | CZ79: 0 | DA79: 0 | DB79: 0 | DC79: 0 | DD79: 0 | DE79: 0 | DF79: 40 | DG79: 24 | DH79: 16 | DI79: 0 | DJ79: 80 | DK79: 2930 | DL79: 2549.04 | DM79: 2226.88 | DN79: 0 | DO79: 7705.92 | DP79: 7705.92 | DQ79: Yes | DR79: 0 | DS79: 0 | DT79: 0
B80: 62 | D80: Lineman A | E80: Vendor No. 20 | F80: 716-2 | G80: 5298 | H80: 2017-09-13 | I80: 2017-09-17 | J80: =IF(AND(H80>='A - Contractor Summary'!$C$36,I80<='A - Contractor Summary'!$C$42),"Yes","No") -> Yes | K80: =VLOOKUP($D80,'C.1 - Rate Sheets'!B:F,2,FALSE) -> 69.85 | L80: =VLOOKUP($D80,'C.1 - Rate Sheets'!B:F,3,FALSE) -> 101.28 | M80: =VLOOKUP($D80,'C.1 - Rate Sheets'!B:F,4,FALSE) -> 132.72 | N80: =VLOOKUP($D80,'C.1 - Rate Sheets'!B:F,5,FALSE) -> 0 | O80: 0 | P80: 0 | Q80: 0 | R80: 0 | S80: 0 | T80: 0 | U80: 0 | V80: 0 | W80: 0 | X80: 0 | Y80: 0 | Z80: 0 | AA80: 0 | AB80: 0 | AC80: 0 | AD80: 0 | AE80: 0 | AF80: 0 | AG80: 0 | AH80: 0 | AI80: 0 | AJ80: 0 | AK80: 0 | AL80: 0 | AM80: 0 | AN80: 0 | AO80: 0 | AP80: 0 | AQ80: 0 | AR80: 0 | AS80: 0 | AT80: 0 | AU80: 0 | AV80: 0 | AW80: 0 | AX80: 0 | AY80: 0 | AZ80: 0 | BA80: 0 | BB80: 0 | BC80: 0 | BD80: 0 | BE80: 0 | BF80: 0 | BG80: 0 | BH80: 16 | BI80: 0 | BJ80: 0 | BK80: 0 | BL80: 16 | BM80: 16 | BN80: 0 | BO80: 0 | BP80: 0 | BQ80: 16 | BR80: 8 | BS80: 8 | BT80: 0 | BU80: 0 | BV80: 16 | BW80: 0 | BX80: 16 | BY80: 0 | BZ80: 0 | CA80: 16 | CB80: 0 | CC80: 0 | CD80: 16 | CE80: 0 | CF80: 16 | CG80: 0 | CH80: 0 | CI80: 0 | CJ80: 0 | CK80: 0 | CL80: 0 | CM80: 0 | CN80: 0 | CO80: 0 | CP80: 0 | CQ80: 0 | CR80: 0 | CS80: 0 | CT80: 0 | CU80: 0 | CV80: 0 | CW80: 0 | CX80: 0 | CY80: 0 | CZ80: 0 | DA80: 0 | DB80: 0 | DC80: 0 | DD80: 0 | DE80: 0 | DF80: 40 | DG80: 24 | DH80: 16 | DI80: 0 | DJ80: 80 | DK80: 2794 | DL80: 2430.72 | DM80: 2123.52 | DN80: 0 | DO80: 7348.24 | DP80: 7348.24 | DQ80: Yes | DR80: 0 | DS80: 0 | DT80: 0
B81: 63 | D81: Lineman A | E81: Vendor No. 20 | F81: 716-2 | G81: 5298 | H81: 2017-09-13 | I81: 2017-09-17 | J81: =IF(AND(H81>='A - Contractor Summary'!$C$36,I81<='A - Contractor Summary'!$C$42),"Yes","No") -> Yes | K81: =VLOOKUP($D81,'C.1 - Rate Sheets'!B:F,2,FALSE) -> 69.85 | L81: =VLOOKUP($D81,'C.1 - Rate Sheets'!B:F,3,FALSE) -> 101.28 | M81: =VLOOKUP($D81,'C.1 - Rate Sheets'!B:F,4,FALSE) -> 132.72 | N81: =VLOOKUP($D81,'C.1 - Rate Sheets'!B:F,5,FALSE) -> 0 | O81: 0 | P81: 0 | Q81: 0 | R81: 0 | S81: 0 | T81: 0 | U81: 0 | V81: 0 | W81: 0 | X81: 0 | Y81: 0 | Z81: 0 | AA81: 0 | AB81: 0 | AC81: 0 | AD81: 0 | AE81: 0 | AF81: 0 | AG81: 0 | AH81: 0 | AI81: 0 | AJ81: 0 | AK81: 0 | AL81: 0 | AM81: 0 | AN81: 0 | AO81: 0 | AP81: 0 | AQ81: 0 | AR81: 0 | AS81: 0 | AT81: 0 | AU81: 0 | AV81: 0 | AW81: 0 | AX81: 0 | AY81: 0 | AZ81: 0 | BA81: 0 | BB81: 0 | BC81: 0 | BD81: 0 | BE81: 0 | BF81: 0 | BG81: 0 | BH81: 16 | BI81: 0 | BJ81: 0 | BK81: 0 | BL81: 16 | BM81: 16 | BN81: 0 | BO81: 0 | BP81: 0 | BQ81: 16 | BR81: 8 | BS81: 8 | BT81: 0 | BU81: 0 | BV81: 16 | BW81: 0 | BX81: 16 | BY81: 0 | BZ81: 0 | CA81: 16 | CB81: 0 | CC81: 0 | CD81: 16 | CE81: 0 | CF81: 16 | CG81: 0 | CH81: 0 | CI81: 0 | CJ81: 0 | CK81: 0 | CL81: 0 | CM81: 0 | CN81: 0 | CO81: 0 | CP81: 0 | CQ81: 0 | CR81: 0 | CS81: 0 | CT81: 0 | CU81: 0 | CV81: 0 | CW81: 0 | CX81: 0 | CY81: 0 | CZ81: 0 | DA81: 0 | DB81: 0 | DC81: 0 | DD81: 0 | DE81: 0 | DF81: 40 | DG81: 24 | DH81: 16 | DI81: 0 | DJ81: 80 | DK81: 2794 | DL81: 2430.72 | DM81: 2123.52 | DN81: 0 | DO81: 7348.24 | DP81: 7348.24 | DQ81: Yes | DR81: 0 | DS81: 0 | DT81: 0
B82: 64 | D82: Lineman B | E82: Vendor No. 20 | F82: 716-2 | G82: 5298 | H82: 2017-09-13 | I82: 2017-09-17 | J82: =IF(AND(H82>='A - Contractor Summary'!$C$36,I82<='A - Contractor Summary'!$C$42),"Yes","No") -> Yes | K82: =VLOOKUP($D82,'C.1 - Rate Sheets'!B:F,2,FALSE) -> 65.9 | L82: =VLOOKUP($D82,'C.1 - Rate Sheets'!B:F,3,FALSE) -> 95.56 | M82: =VLOOKUP($D82,'C.1 - Rate Sheets'!B:F,4,FALSE) -> 125.21 | N82: =VLOOKUP($D82,'C.1 - Rate Sheets'!B:F,5,FALSE) -> 0 | O82: 0 | P82: 0 | Q82: 0 | R82: 0 | S82: 0 | T82: 0 | U82: 0 | V82: 0 | W82: 0 | X82: 0 | Y82: 0 | Z82: 0 | AA82: 0 | AB82: 0 | AC82: 0 | AD82: 0 | AE82: 0 | AF82: 0 | AG82: 0 | AH82: 0 | AI82: 0 | AJ82: 0 | AK82: 0 | AL82: 0 | AM82: 0 | AN82: 0 | AO82: 0 | AP82: 0 | AQ82: 0 | AR82: 0 | AS82: 0 | AT82: 0 | AU82: 0 | AV82: 0 | AW82: 0 | AX82: 0 | AY82: 0 | AZ82: 0 | BA82: 0 | BB82: 0 | BC82: 0 | BD82: 0 | BE82: 0 | BF82: 0 | BG82: 0 | BH82: 16 | BI82: 0 | BJ82: 0 | BK82: 0 | BL82: 16 | BM82: 16 | BN82: 0 | BO82: 0 | BP82: 0 | BQ82: 16 | BR82: 8 | BS82: 8 | BT82: 0 | BU82: 0 | BV82: 16 | BW82: 0 | BX82: 16 | BY82: 0 | BZ82: 0 | CA82: 16 | CB82: 0 | CC82: 0 | CD82: 16 | CE82: 0 | CF82: 16 | CG82: 0 | CH82: 0 | CI82: 0 | CJ82: 0 | CK82: 0 | CL82: 0 | CM82: 0 | CN82: 0 | CO82: 0 | CP82: 0 | CQ82: 0 | CR82: 0 | CS82: 0 | CT82: 0 | CU82: 0 | CV82: 0 | CW82: 0 | CX82: 0 | CY82: 0 | CZ82: 0 | DA82: 0 | DB82: 0 | DC82: 0 | DD82: 0 | DE82: 0 | DF82: 40 | DG82: 24 | DH82: 16 | DI82: 0 | DJ82: 80 | DK82: 2636 | DL82: 2293.44 | DM82: 2003.36 | DN82: 0 | DO82: 6932.8 | DP82: 6932.8 | DQ82: Yes | DR82: 0 | DS82: 0 | DT82: 0
O83: =SUM(O19:O82) -> 0 | P83: 0 | Q83: 0 | R83: 0 | S83: 0 | T83: 0 | U83: 0 | V83: 0 | W83: 0 | X83: 0 | Y83: 0 | Z83: 0 | AA83: 0 | AB83: 0 | AC83: 0 | AD83: 4 | AE83: 0 | AF83: 0 | AG83: 0 | AH83: 4 | AI83: 182 | AJ83: 0 | AK83: 0 | AL83: 0 | AM83: 182 | AN83: 182 | AO83: 0 | AP83: 0 | AQ83: 0 | AR83: 182 | AS83: 0 | AT83: 0 | AU83: 539 | AV83: 0 | AW83: 539 | AX83: 712 | AY83: 97 | AZ83: 0 | BA83: 0 | BB83: 809 | BC83: 604 | BD83: 249 | BE83: 0 | BF83: 0 | BG83: 853 | BH83: =SUM(BH19:BH82) -> 356 | BI83: 545 | BJ83: =SUM(BJ19:BJ82) -> 0 | BK83: 0 | BL83: 901 | BM83: 176 | BN83: 801 | BO83: 0 | BP83: 0 | BQ83: 977 | BR83: 132 | BS83: 841 | BT83: 0 | BU83: 0 | BV83: 973 | BW83: 20 | BX83: 953 | BY83: 0 | BZ83: 0 | CA83: 973 | CB83: 0 | CC83: 0 | CD83: 944 | CE83: 0 | CF83: 944 | CG83: 0 | CH83: 0 | CI83: 0 | CJ83: 0 | CK83: 0 | CL83: 0 | CM83: 0 | CN83: 0 | CO83: 0 | CP83: 0 | CQ83: 0 | CR83: 0 | CS83: 0 | CT83: 0 | CU83: 0 | CV83: 0 | CW83: 0 | CX83: 0 | CY83: 0 | CZ83: 0 | DA83: 0 | DB83: 0 | DC83: 0 | DD83: 0 | DE83: 0 | DF83: 2368 | DG83: 3486 | DH83: 1483 | DI83: 0 | DJ83: 7337 | DK83: =SUM(DK19:DK82) -> 159050.4 | DL83: =SUM(DL19:DL82) -> 339542.36 | DM83: =SUM(DM19:DM82) -> 187250.3 | DN83: =SUM(DN19:DN82) -> 0 | DO83: =IFERROR(SUM(DO19:DO82),0) -> 685843.06 | DP83: =DO83-DR83 -> 680788.5 | DR83: =SUM(DR19:DR82) -> 5054.56 | DS83: =SUM(DS19:DS82) -> 0 | DT83: =SUM(DT19:DT82) -> 5054.56 | DU83: =DR83-DS83-DT83 -> 0 | DV83: check (b)
O84: Total # of Crew | S84: =COUNTIF(S19:S82,">0") -> 0 | T84: Total # of Crew | X84: =COUNTIF(X19:X82,">0") -> 0 | Y84: Total # of Crew | AC84: =COUNTIF(AC19:AC82,">0") -> 0 | AD84: Total # of Crew | AH84: =COUNTIF(AH19:AH82,">0") -> 2 | AI84: Total # of Crew | AM84: =COUNTIF(AM19:AM82,">0") -> 13 | AN84: Total # of Crew | AR84: =COUNTIF(AR19:AR82,">0") -> 13 | AS84: Total # of Crew | AW84: =COUNTIF(AW19:AW82,">0") -> 41 | AX84: Total # of Crew | BB84: =COUNTIF(BB19:BB82,">0") -> 50 | BC84: Total # of Crew | BG84: =COUNTIF(BG19:BG82,">0") -> 52 | BH84: Total # of Crew | BL84: =COUNTIF(BL19:BL82,">0") -> 56 | BM84: Total # of Crew | BQ84: =COUNTIF(BQ19:BQ82,">0") -> 60 | BR84: Total # of Crew | BV84: =COUNTIF(BV19:BV82,">0") -> 60 | BW84: Total # of Crew | CA84: =COUNTIF(CA19:CA82,">0") -> 60 | CB84: Total # of Crew | CF84: =COUNTIF(CF19:CF82,">0") -> 60 | CG84: Total # of Crew | CK84: =COUNTIF(CK19:CK82,">0") -> 0 | CL84: Total # of Crew | CP84: =COUNTIF(CP19:CP82,">0") -> 0 | CQ84: Total # of Crew | CU84: =COUNTIF(CU19:CU82,">0") -> 0 | CV84: Total # of Crew | CZ84: =COUNTIF(CZ19:CZ82,">0") -> 0 | DA84: Total # of Crew | DE84: =COUNTIF(DE19:DE82,">0") -> 0 | DF84: # of time charges | DJ84: =SUM(S84,X84,AC84,AH84,AM84,AR84,AW84,BB84,BG84,BL84,BQ84,BV84,CA84,CF84,CK84,CP84,CU84,CZ84,DE84) -> 467
B92: Tickmark Explanation:
B94: 1 | C94: EXCLUDED: First 40 hours not charged to straight time.
B95: 2 | C95: REVIEWED: Crewmember arrived mid-week - deemed reasonable first 40 hours were not charged to straight time.
B96: 3 | C96: EXCLUDED: Excluded time on 9/16 and 9/17 because he went to FPL.

Sheet C.3 - Asset by Company
A1: Asset Tag | B1: Position | C1: Name
A2: ABC01 | B2: Other
A3: ABC02 | B3: Other
A4: ABC03 | B4: Other
A5: ABC04 | B5: Other
A6: ABC05 | B6: Other
A7: ABC06 | B7: Other
A8: ABC07 | B8: Other
A9: ABC08 | B9: Other
A10: ABC09 | B10: Other
A11: ABC10 | B11: Other
A12: ABC11 | B12: Other
A13: ABC12 | B13: Other
A14: ABC13 | B14: Other
A15: ABC14 | B15: Other
A16: ABC15 | B16: Other
A17: ABC16 | B17: Other
A18: ABC17 | B18: Other
A19: ABC18 | B19: Other
A20: ABC19 | B20: Other
A21: ABC20 | B21: Other
A22: ABC21 | B22: Other
A23: ABC22 | B23: Other
A24: ABC23 | B24: Other
A25: ABC24 | B25: Other
A26: ABC25 | B26: Other
A27: ABC26 | B27: Other
A28: ABC27 | B28: Other
A29: ABC28 | B29: Other
A30: ABC29 | B30: Other
A31: ABC30 | B31: Other
A32: ABC31 | B32: Other
A33: ABC32 | B33: Other
A34: ABC33 | B34: Other
A35: ABC34 | B35: Other
A36: ABC35 | B36: Other
A37: ABC36 | B37: Other
A38: ABC37 | B38: Other
A39: ABC38 | B39: Other
A40: ABC39 | B40: Other
A41: ABC40 | B41: Other
A42: ABC41 | B42: Other
A43: ABC42 | B43: Other
A44: ABC43 | B44: Other
A45: ABC44 | B45: Other
A46: ABC45 | B46: Other
A47: ABC46 | B47: Other
A48: ABC47 | B48: Other
A49: ABC48 | B49: Other
A50: ABC49 | B50: Other
A51: ABC50 | B51: Other
A52: ABC51 | B52: Other
A53: ABC52 | B53: Other
A54: ABC53 | B54: Other
A55: ABC54 | B55: Other
A56: ABC55 | B56: Other
A57: ABC56 | B57: Other
A58: ABC57 | B58: Other
A59: ABC58 | B59: Other
A60: ABC59 | B60: Other
A61: ABC60 | B61: Other
A62: ABC61 | B62: Other
A63: ABC62 | B63: Other
A64: ABC63 | B64: Other
A65: ABC64 | B65: Other
A66: ABC65 | B66: Other
A67: ABC66 | B67: Other
A68: ABC67 | B68: Other
A69: ABC68 | B69: Other
A70: ABC69 | B70: Other
A71: AEO01 | B71: Other
A72: AEO02 | B72: Other
A73: AEO03 | B73: Other
A74: AEO04 | B74: Other
A75: AEO05 | B75: Other
A76: AEO06 | B76: Other
A77: AEO07 | B77: Other
A78: AEO08 | B78: Other
A79: AEO09 | B79: Other
A80: AEO10 | B80: Other
A81: AEO100 | B81: Other
A82: AEO101 | B82: Other
A83: AEO102 | B83: Other
A84: AEO103 | B84: Other
A85: AEO104 | B85: Other
A86: AEO105 | B86: Other
A87: AEO106 | B87: Other
A88: AEO107 | B88: Other
A89: AEO108 | B89: Other
A90: AEO109 | B90: Other
A91: AEO11 | B91: Other
A92: AEO110 | B92: Other
A93: AEO111 | B93: Other
A94: AEO112 | B94: Other
A95: AEO113 | B95: Other
A96: AEO114 | B96: Other
A97: AEO115 | B97: Other
A98: AEO116 | B98: Other
A99: AEO117 | B99: Other
A100: AEO118 | B100: Other
A101: AEO119 | B101: Other
A102: AEO12 | B102: Other
A103: AEO120 | B103: Other
A104: AEO13 | B104: Other
A105: AEO14 | B105: Other
A106: AEO15 | B106: Other
A107: AEO16 | B107: Other
A108: AEO17 | B108: Other
A109: AEO18 | B109: Other
A110: AEO19 | B110: Other
A111: AEO20 | B111: Other
A112: AEO21 | B112: Other
A113: AEO22 | B113: Other
A114: AEO23 | B114: Other
A115: AEO24 | B115: Other
A116: AEO25 | B116: Other
A117: AEO26 | B117: Other
A118: AEO27 | B118: Other
A119: AEO28 | B119: Other
A120: AEO29 | B120: Other
A121: AEO30 | B121: Other
A122: AEO31 | B122: Other
A123: AEO32 | B123: Other
A124: AEO33 | B124: Other
A125: AEO34 | B125: Other
A126: AEO35 | B126: Other
A127: AEO36 | B127: Other
A128: AEO37 | B128: Other
A129: AEO38 | B129: Other
A130: AEO39 | B130: Other
A131: AEO40 | B131: Other
A132: AEO41 | B132: Other
A133: AEO42 | B133: Other
A134: AEO43 | B134: Other
A135: AEO44 | B135: Other
A136: AEO45 | B136: Other
A137: AEO46 | B137: Other
A138: AEO47 | B138: Other
A139: AEO48 | B139: Other
A140: AEO49 | B140: Other
A141: AEO50 | B141: Other
A142: AEO51 | B142: Other
A143: AEO52 | B143: Other
A144: AEO53 | B144: Other
A145: AEO54 | B145: Other
A146: AEO55 | B146: Other
A147: AEO56 | B147: Other
A148: AEO57 | B148: Other
A149: AEO58 | B149: Other
A150: AEO59 | B150: Other
A151: AEO60 | B151: Other
A152: AEO61 | B152: Other
A153: AEO62 | B153: Other
A154: AEO63 | B154: Other
A155: AEO64 | B155: Other
A156: AEO65 | B156: Other
A157: AEO66 | B157: Other
A158: AEO67 | B158: Other
A159: AEO68 | B159: Other
A160: AEO69 | B160: Other
A161: AEO70 | B161: Other
A162: AEO71 | B162: Other
A163: AEO72 | B163: Other
A164: AEO73 | B164: Other
A165: AEO74 | B165: Other
A166: AEO75 | B166: Other
A167: AEO76 | B167: Other
A168: AEO77 | B168: Other
A169: AEO78 | B169: Other
A170: AEO79 | B170: Other
A171: AEO80 | B171: Other
A172: AEO81 | B172: Other
A173: AEO82 | B173: Other
A174: AEO83 | B174: Other
A175: AEO84 | B175: Other
A176: AEO85 | B176: Other
A177: AEO86 | B177: Other
A178: AEO87 | B178: Other
A179: AEO88 | B179: Other
A180: AEO89 | B180: Other
A181: AEO90 | B181: Other
A182: AEO91 | B182: Other
A183: AEO92 | B183: Other
A184: AEO93 | B184: Other
A185: AEO94 | B185: Other
A186: AEO95 | B186: Other
A187: AEO96 | B187: Other
A188: AEO97 | B188: Other
A189: AEO98 | B189: Other
A190: AEO99 | B190: Other
A191: AEP01 | B191: Supervisor
A192: AEP02 | B192: Other
A193: AEP027 | B193: Other
A194: AEP028 | B194: Other
A195: AEP029 | B195: Other
A196: AEP03 | B196: Other
A197: AEP030 | B197: Other
A198: AEP031 | B198: Other
A199: AEP032 | B199: Other
A200: AEP033 | B200: Other
... 3504 more rows

Sheet C.4 - Timesheets - Equipment
B2: Equipment Charges - Time Card
B4: Test Plan: | C4: Obtain the time cards. (A) Populate the equipment names and types (if provided). Find additional information regarding individual equipment charge from related invoice. (B) Enter hours worked from time card(s). (C) Confirm that the dates per the time cards fall between dates provided per 'A - Contractor Summary' tab. (D) Identify any equipment charges to be reviewed. (E) For charges which required further review, document review (include why it was determined to be allowed/disallowed via a tickmark).
B10: Rx | C10: Recalculated.
B11: a | C11: Provided from tab 'C.1 - Rate Sheets'.
B12: b | C12: Check figure should equal $0. Cell will appear yellow if discrepancies are noted.
C14: A | H14: Rx | J14: C | K14: a | L14: B | AE14: Rx | AH14: D | AI14: E
B15: # | C15: Equipment Name | D15: Equipment ID | E15: Company | F15: Crew# | G15: Invoice | H15: Start Date | I15: End Date | J15: Dates Worked Reasonable? | K15: Rates | L15: 2017-09-04 | M15: 2017-09-05 | N15: 2017-09-06 | O15: 2017-09-07 | P15: 2017-09-08 | Q15: 2017-09-09 | R15: 2017-09-10 | S15: 2017-09-11 | T15: 2017-09-12 | U15: 2017-09-13 | V15: 2017-09-14 | W15: 2017-09-15 | X15: 2017-09-16 | Y15: 2017-09-17 | Z15: 2017-09-18 | AA15: 2017-09-19 | AB15: 2017-09-20 | AC15: 2017-09-21 | AD15: 2017-09-22 | AE15: Total Hours | AF15: Total Equipment $ | AG15: Allowable Charges | AH15: To Be Reviewed | AI15: Reviewed - Allowable Charge | AJ15: Reviewed - Unallowable Charge | AK15: Tickmarks
L16: Monday | M16: Tuesday | N16: Wednesday | O16: Thursday | P16: Friday | Q16: Saturday | R16: Sunday | S16: Monday | T16: Tuesday | U16: Wednesday | V16: Thursday | W16: Friday | X16: Saturday | Y16: Sunday | Z16: Monday | AA16: Tuesday | AB16: Wednesday | AC16: Thursday | AD16: Friday
L17: Hours | M17: Hours | N17: Hours | O17: Hours | P17: Hours | Q17: Hours | R17: Hours | S17: Hours | T17: Hours | U17: Hours | V17: Hours | W17: Hours | X17: Hours | Y17: Hours | Z17: Hours | AA17: Hours | AB17: Hours | AC17: Hours | AD17: Hours
B18: 1 | C18: Pickup 3/4 ton | D18: 114 | E18: Vendor No. 20 | F18: 202-171 | G18: 5265 / 5282 | H18: =INDEX($L$15:$AD$15,MATCH(TRUE,INDEX((L18:AD18>0),0),0)) -> 2017-09-10 | I18: =LOOKUP(2,1/(1-(L18:AD18<=0)),$L$15:$AD$15) -> 2017-09-17 | J18: =IF(AND(H18>='A - Contractor Summary'!$C$36,I18<='A - Contractor Summary'!$C$42),"Yes","No") -> Yes | K18: =VLOOKUP($C18,'C.1 - Rate Sheets'!H:I,2,FALSE) -> 21.5 | L18: 0 | M18: 0 | N18: 0 | O18: 0 | P18: 0 | Q18: 0 | R18: 14 | S18: 16 | T18: 16 | U18: 16 | V18: 16 | W18: 16 | X18: 16 | Y18: 16 | Z18: 0 | AA18: 0 | AB18: 0 | AC18: 0 | AD18: 0 | AE18: =SUM(L18:AD18) -> 126 | AF18: =AE18*K18 -> 2709 | AG18: =AF18-AH18 -> 2709 | AH18: 0 | AI18: 0 | AJ18: 0
B19: 2 | C19: Bucket Truck 55 | D19: 355 | E19: Vendor No. 20 | F19: 202-171 | G19: 5265 / 5282 | H19: =INDEX($L$15:$AD$15,MATCH(TRUE,INDEX((L19:AD19>0),0),0)) -> 2017-09-10 | I19: =LOOKUP(2,1/(1-(L19:AD19<=0)),$L$15:$AD$15) -> 2017-09-17 | J19: =IF(AND(H19>='A - Contractor Summary'!$C$36,I19<='A - Contractor Summary'!$C$42),"Yes","No") -> Yes | K19: =VLOOKUP($C19,'C.1 - Rate Sheets'!H:I,2,FALSE) -> 34.52 | L19: 0 | M19: 0 | N19: 0 | O19: 0 | P19: 0 | Q19: 0 | R19: 14 | S19: 16 | T19: 16 | U19: 16 | V19: 16 | W19: 16 | X19: 16 | Y19: 16 | Z19: 0 | AA19: 0 | AB19: 0 | AC19: 0 | AD19: 0 | AE19: =SUM(L19:AD19) -> 126 | AF19: =AE19*K19 -> 4349.52 | AG19: 4349.52 | AH19: 0 | AI19: 0 | AJ19: 0
B20: 3 | C20: Digger | D20: 340 | E20: Vendor No. 20 | F20: 202-171 | G20: 5265 / 5282 | H20: 2017-09-10 | I20: 2017-09-17 | J20: =IF(AND(H20>='A - Contractor Summary'!$C$36,I20<='A - Contractor Summary'!$C$42),"Yes","No") -> Yes | K20: =VLOOKUP($C20,'C.1 - Rate Sheets'!H:I,2,FALSE) -> 40.25 | L20: 0 | M20: 0 | N20: 0 | O20: 0 | P20: 0 | Q20: 0 | R20: 14 | S20: 16 | T20: 16 | U20: 16 | V20: 16 | W20: 16 | X20: 16 | Y20: 16 | Z20: 0 | AA20: 0 | AB20: 0 | AC20: 0 | AD20: 0 | AE20: 126 | AF20: 5071.5 | AG20: 5071.5 | AH20: 0 | AI20: 0 | AJ20: 0
B21: 4 | C21: Pole Trailer | D21: 469 | E21: Vendor No. 20 | F21: 202-171 | G21: 5265 / 5282 | H21: 2017-09-10 | I21: 2017-09-17 | J21: =IF(AND(H21>='A - Contractor Summary'!$C$36,I21<='A - Contractor Summary'!$C$42),"Yes","No") -> Yes | K21: =VLOOKUP($C21,'C.1 - Rate Sheets'!H:I,2,FALSE) -> 9.5 | L21: 0 | M21: 0 | N21: 0 | O21: 0 | P21: 0 | Q21: 0 | R21: 14 | S21: 16 | T21: 16 | U21: 16 | V21: 16 | W21: 16 | X21: 16 | Y21: 16 | Z21: 0 | AA21: 0 | AB21: 0 | AC21: 0 | AD21: 0 | AE21: 126 | AF21: 1197 | AG21: 1197 | AH21: 0 | AI21: 0 | AJ21: 0
B22: 5 | C22: Material Trailer | D22: 440 | E22: Vendor No. 20 | F22: 202-171 | G22: 5265 / 5282 | H22: 2017-09-10 | I22: 2017-09-17 | J22: =IF(AND(H22>='A - Contractor Summary'!$C$36,I22<='A - Contractor Summary'!$C$42),"Yes","No") -> Yes | K22: =VLOOKUP($C22,'C.1 - Rate Sheets'!H:I,2,FALSE) -> 9.5 | L22: 0 | M22: 0 | N22: 0 | O22: 0 | P22: 0 | Q22: 0 | R22: 14 | S22: 16 | T22: 16 | U22: 16 | V22: 16 | W22: 16 | X22: 16 | Y22: 16 | Z22: 0 | AA22: 0 | AB22: 0 | AC22: 0 | AD22: 0 | AE22: 126 | AF22: 1197 | AG22: 1197 | AH22: 0 | AI22: 0 | AJ22: 0
B23: 6 | C23: BACKYARD BUGGY | D23: 0 | E23: Vendor No. 20 | F23: 202-171 | G23: 5265 / 5282 | H23: 2017-09-10 | I23: 2017-09-17 | J23: =IF(AND(H23>='A - Contractor Summary'!$C$36,I23<='A - Contractor Summary'!$C$42),"Yes","No") -> Yes | K23: =VLOOKUP($C23,'C.1 - Rate Sheets'!H:I,2,FALSE) -> 35.35 | L23: 0 | M23: 0 | N23: 0 | O23: 0 | P23: 0 | Q23: 0 | R23: 14 | S23: 16 | T23: 16 | U23: 16 | V23: 16 | W23: 16 | X23: 16 | Y23: 16 | Z23: 0 | AA23: 0 | AB23: 0 | AC23: 0 | AD23: 0 | AE23: 126 | AF23: 4454.1 | AG23: 4454.1 | AH23: 0 | AI23: 0 | AJ23: 0
B24: 7 | C24: Pickup 3/4 ton | D24: 111 | E24: Vendor No. 20 | F24: 204-75 | G24: 5266 / 5283 | H24: 2017-09-08 | I24: 2017-09-17 | J24: =IF(AND(H24>='A - Contractor Summary'!$C$36,I24<='A - Contractor Summary'!$C$42),"Yes","No") -> Yes | K24: =VLOOKUP($C24,'C.1 - Rate Sheets'!H:I,2,FALSE) -> 21.5 | L24: 0 | M24: 0 | N24: 0 | O24: 0 | P24: 14 | Q24: 14 | R24: 14 | S24: 17 | T24: 17 | U24: 17 | V24: 17 | W24: 17 | X24: 17 | Y24: 16 | Z24: 0 | AA24: 0 | AB24: 0 | AC24: 0 | AD24: 0 | AE24: 160 | AF24: 3440 | AG24: 3440 | AH24: 0 | AI24: 0 | AJ24: 0
B25: 8 | C25: Bucket Truck 55 | D25: 204 | E25: Vendor No. 20 | F25: 204-75 | G25: 5266 / 5283 | H25: 2017-09-08 | I25: 2017-09-17 | J25: =IF(AND(H25>='A - Contractor Summary'!$C$36,I25<='A - Contractor Summary'!$C$42),"Yes","No") -> Yes | K25: =VLOOKUP($C25,'C.1 - Rate Sheets'!H:I,2,FALSE) -> 34.52 | L25: 0 | M25: 0 | N25: 0 | O25: 0 | P25: 14 | Q25: 14 | R25: 14 | S25: 17 | T25: 17 | U25: 17 | V25: 17 | W25: 17 | X25: 17 | Y25: 16 | Z25: 0 | AA25: 0 | AB25: 0 | AC25: 0 | AD25: 0 | AE25: 160 | AF25: 5523.2 | AG25: 5523.2 | AH25: 0 | AI25: 0 | AJ25: 0
B26: 9 | C26: Bucket Truck 55 | D26: 254 | E26: Vendor No. 20 | F26: 204-75 | G26: 5266 / 5283 | H26: 2017-09-08 | I26: 2017-09-17 | J26: =IF(AND(H26>='A - Contractor Summary'!$C$36,I26<='A - Contractor Summary'!$C$42),"Yes","No") -> Yes | K26: =VLOOKUP($C26,'C.1 - Rate Sheets'!H:I,2,FALSE) -> 34.52 | L26: 0 | M26: 0 | N26: 0 | O26: 0 | P26: 14 | Q26: 14 | R26: 14 | S26: 17 | T26: 17 | U26: 17 | V26: 17 | W26: 17 | X26: 17 | Y26: 16 | Z26: 0 | AA26: 0 | AB26: 0 | AC26: 0 | AD26: 0 | AE26: 160 | AF26: 5523.2 | AG26: 5523.2 | AH26: 0 | AI26: 0 | AJ26: 0
B27: 10 | C27: Digger | D27: 308 | E27: Vendor No. 20 | F27: 204-75 | G27: 5266 / 5283 | H27: 2017-09-08 | I27: 2017-09-17 | J27: =IF(AND(H27>='A - Contractor Summary'!$C$36,I27<='A - Contractor Summary'!$C$42),"Yes","No") -> Yes | K27: =VLOOKUP($C27,'C.1 - Rate Sheets'!H:I,2,FALSE) -> 40.25 | L27: 0 | M27: 0 | N27: 0 | O27: 0 | P27: 14 | Q27: 14 | R27: 14 | S27: 17 | T27: 17 | U27: 17 | V27: 17 | W27: 17 | X27: 17 | Y27: 16 | Z27: 0 | AA27: 0 | AB27: 0 | AC27: 0 | AD27: 0 | AE27: 160 | AF27: 6440 | AG27: 6440 | AH27: 0 | AI27: 0 | AJ27: 0
B28: 11 | C28: Pole Trailer | D28: 451 | E28: Vendor No. 20 | F28: 204-75 | G28: 5266 / 5283 | H28: 2017-09-08 | I28: 2017-09-17 | J28: =IF(AND(H28>='A - Contractor Summary'!$C$36,I28<='A - Contractor Summary'!$C$42),"Yes","No") -> Yes | K28: =VLOOKUP($C28,'C.1 - Rate Sheets'!H:I,2,FALSE) -> 9.5 | L28: 0 | M28: 0 | N28: 0 | O28: 0 | P28: 14 | Q28: 14 | R28: 14 | S28: 17 | T28: 17 | U28: 17 | V28: 17 | W28: 17 | X28: 17 | Y28: 16 | Z28: 0 | AA28: 0 | AB28: 0 | AC28: 0 | AD28: 0 | AE28: 160 | AF28: 1520 | AG28: 1520 | AH28: 0 | AI28: 0 | AJ28: 0
B29: 12 | C29: Material Trailer | D29: 416 | E29: Vendor No. 20 | F29: 204-75 | G29: 5266 / 5283 | H29: 2017-09-08 | I29: 2017-09-17 | J29: =IF(AND(H29>='A - Contractor Summary'!$C$36,I29<='A - Contractor Summary'!$C$42),"Yes","No") -> Yes | K29: =VLOOKUP($C29,'C.1 - Rate Sheets'!H:I,2,FALSE) -> 9.5 | L29: 0 | M29: 0 | N29: 0 | O29: 0 | P29: 14 | Q29: 14 | R29: 14 | S29: 17 | T29: 17 | U29: 17 | V29: 17 | W29: 17 | X29: 17 | Y29: 16 | Z29: 0 | AA29: 0 | AB29: 0 | AC29: 0 | AD29: 0 | AE29: 160 | AF29: 1520 | AG29: 1520 | AH29: 0 | AI29: 0 | AJ29: 0
B30: 13 | C30: Pickup 3/4 ton | D30: 126 | E30: Vendor No. 20 | F30: 205-87 | G30: 5271 / 5284 | H30: 2017-09-07 | I30: 2017-09-17 | J30: =IF(AND(H30>='A - Contractor Summary'!$C$36,I30<='A - Contractor Summary'!$C$42),"Yes","No") -> Yes | K30: =VLOOKUP($C30,'C.1 - Rate Sheets'!H:I,2,FALSE) -> 21.5 | L30: 0 | M30: 0 | N30: 0 | O30: 2 | P30: 14 | Q30: 14 | R30: 14 | S30: 16 | T30: 16 | U30: 16 | V30: 16 | W30: 16 | X30: 16 | Y30: 16 | Z30: 0 | AA30: 0 | AB30: 0 | AC30: 0 | AD30: 0 | AE30: 156 | AF30: 3354 | AG30: 3354 | AH30: 0 | AI30: 0 | AJ30: 0
B31: 14 | C31: Bucket Truck 55 | D31: 209 | E31: Vendor No. 20 | F31: 205-87 | G31: 5271 / 5284 | H31: 2017-09-08 | I31: 2017-09-17 | J31: =IF(AND(H31>='A - Contractor Summary'!$C$36,I31<='A - Contractor Summary'!$C$42),"Yes","No") -> Yes | K31: =VLOOKUP($C31,'C.1 - Rate Sheets'!H:I,2,FALSE) -> 34.52 | L31: 0 | M31: 0 | N31: 0 | O31: 0 | P31: 14 | Q31: 14 | R31: 14 | S31: 16 | T31: 16 | U31: 16 | V31: 16 | W31: 16 | X31: 16 | Y31: 16 | Z31: 0 | AA31: 0 | AB31: 0 | AC31: 0 | AD31: 0 | AE31: 154 | AF31: 5316.08 | AG31: 5316.08 | AH31: 0 | AI31: 0 | AJ31: 0
B32: 15 | C32: Bucket Truck 55 | D32: 227 | E32: Vendor No. 20 | F32: 205-87 | G32: 5271 / 5284 | H32: 2017-09-08 | I32: 2017-09-17 | J32: =IF(AND(H32>='A - Contractor Summary'!$C$36,I32<='A - Contractor Summary'!$C$42),"Yes","No") -> Yes | K32: =VLOOKUP($C32,'C.1 - Rate Sheets'!H:I,2,FALSE) -> 34.52 | L32: 0 | M32: 0 | N32: 0 | O32: 0 | P32: 14 | Q32: 14 | R32: 14 | S32: 16 | T32: 16 | U32: 16 | V32: 16 | W32: 16 | X32: 16 | Y32: 16 | Z32: 0 | AA32: 0 | AB32: 0 | AC32: 0 | AD32: 0 | AE32: 154 | AF32: 5316.08 | AG32: 5316.08 | AH32: 0 | AI32: 0 | AJ32: 0
B33: 16 | C33: Digger | D33: 318 | E33: Vendor No. 20 | F33: 205-87 | G33: 5271 / 5284 | H33: 2017-09-08 | I33: 2017-09-17 | J33: =IF(AND(H33>='A - Contractor Summary'!$C$36,I33<='A - Contractor Summary'!$C$42),"Yes","No") -> Yes | K33: =VLOOKUP($C33,'C.1 - Rate Sheets'!H:I,2,FALSE) -> 40.25 | L33: 0 | M33: 0 | N33: 0 | O33: 0 | P33: 14 | Q33: 14 | R33: 14 | S33: 16 | T33: 16 | U33: 16 | V33: 16 | W33: 16 | X33: 16 | Y33: 16 | Z33: 0 | AA33: 0 | AB33: 0 | AC33: 0 | AD33: 0 | AE33: 154 | AF33: 6198.5 | AG33: 6198.5 | AH33: 0 | AI33: 0 | AJ33: 0
B34: 17 | C34: Material Trailer | D34: 445 | E34: Vendor No. 20 | F34: 205-87 | G34: 5271 / 5284 | H34: 2017-09-07 | I34: 2017-09-17 | J34: =IF(AND(H34>='A - Contractor Summary'!$C$36,I34<='A - Contractor Summary'!$C$42),"Yes","No") -> Yes | K34: =VLOOKUP($C34,'C.1 - Rate Sheets'!H:I,2,FALSE) -> 9.5 | L34: 0 | M34: 0 | N34: 0 | O34: 2 | P34: 14 | Q34: 14 | R34: 14 | S34: 16 | T34: 16 | U34: 16 | V34: 16 | W34: 16 | X34: 16 | Y34: 16 | Z34: 0 | AA34: 0 | AB34: 0 | AC34: 0 | AD34: 0 | AE34: 156 | AF34: 1482 | AG34: 1482 | AH34: 0 | AI34: 0 | AJ34: 0
B35: 18 | C35: Pole Trailer | D35: 424 | E35: Vendor No. 20 | F35: 205-87 | G35: 5271 / 5284 | H35: 2017-09-08 | I35: 2017-09-17 | J35: =IF(AND(H35>='A - Contractor Summary'!$C$36,I35<='A - Contractor Summary'!$C$42),"Yes","No") -> Yes | K35: =VLOOKUP($C35,'C.1 - Rate Sheets'!H:I,2,FALSE) -> 9.5 | L35: 0 | M35: 0 | N35: 0 | O35: 0 | P35: 14 | Q35: 14 | R35: 14 | S35: 16 | T35: 16 | U35: 16 | V35: 16 | W35: 16 | X35: 16 | Y35: 16 | Z35: 0 | AA35: 0 | AB35: 0 | AC35: 0 | AD35: 0 | AE35: 154 | AF35: 1463 | AG35: 1463 | AH35: 0 | AI35: 0 | AJ35: 0
B36: 19 | C36: Pickup 3/4 ton | D36: 119 | E36: Vendor No. 20 | F36: 206-131 | G36: 5272 / 5285 | H36: 2017-09-10 | I36: 2017-09-17 | J36: =IF(AND(H36>='A - Contractor Summary'!$C$36,I36<='A - Contractor Summary'!$C$42),"Yes","No") -> Yes | K36: =VLOOKUP($C36,'C.1 - Rate Sheets'!H:I,2,FALSE) -> 21.5 | L36: 0 | M36: 0 | N36: 0 | O36: 0 | P36: 0 | Q36: 0 | R36: 11 | S36: 16 | T36: 16 | U36: 16 | V36: 16 | W36: 16 | X36: 16 | Y36: 16 | Z36: 0 | AA36: 0 | AB36: 0 | AC36: 0 | AD36: 0 | AE36: 123 | AF36: 2644.5 | AG36: 2644.5 | AH36: 0 | AI36: 0 | AJ36: 0
B37: 20 | C37: Bucket Truck 55 | D37: 222 | E37: Vendor No. 20 | F37: 206-131 | G37: 5272 / 5285 | H37: 2017-09-10 | I37: 2017-09-17 | J37: =IF(AND(H37>='A - Contractor Summary'!$C$36,I37<='A - Contractor Summary'!$C$42),"Yes","No") -> Yes | K37: =VLOOKUP($C37,'C.1 - Rate Sheets'!H:I,2,FALSE) -> 34.52 | L37: 0 | M37: 0 | N37: 0 | O37: 0 | P37: 0 | Q37: 0 | R37: 11 | S37: 16 | T37: 16 | U37: 16 | V37: 16 | W37: 16 | X37: 16 | Y37: 16 | Z37: 0 | AA37: 0 | AB37: 0 | AC37: 0 | AD37: 0 | AE37: 123 | AF37: 4245.96 | AG37: 4245.96 | AH37: 0 | AI37: 0 | AJ37: 0
B38: 21 | C38: Bucket Truck 55 | D38: 232 | E38: Vendor No. 20 | F38: 206-131 | G38: 5272 / 5285 | H38: 2017-09-10 | I38: 2017-09-17 | J38: =IF(AND(H38>='A - Contractor Summary'!$C$36,I38<='A - Contractor Summary'!$C$42),"Yes","No") -> Yes | K38: =VLOOKUP($C38,'C.1 - Rate Sheets'!H:I,2,FALSE) -> 34.52 | L38: 0 | M38: 0 | N38: 0 | O38: 0 | P38: 0 | Q38: 0 | R38: 11 | S38: 16 | T38: 16 | U38: 16 | V38: 16 | W38: 16 | X38: 16 | Y38: 16 | Z38: 0 | AA38: 0 | AB38: 0 | AC38: 0 | AD38: 0 | AE38: 123 | AF38: 4245.96 | AG38: 4245.96 | AH38: 0 | AI38: 0 | AJ38: 0
B39: 22 | C39: Digger | D39: 317 | E39: Vendor No. 20 | F39: 206-131 | G39: 5272 / 5285 | H39: 2017-09-10 | I39: 2017-09-17 | J39: =IF(AND(H39>='A - Contractor Summary'!$C$36,I39<='A - Contractor Summary'!$C$42),"Yes","No") -> Yes | K39: =VLOOKUP($C39,'C.1 - Rate Sheets'!H:I,2,FALSE) -> 40.25 | L39: 0 | M39: 0 | N39: 0 | O39: 0 | P39: 0 | Q39: 0 | R39: 11 | S39: 16 | T39: 16 | U39: 16 | V39: 16 | W39: 16 | X39: 16 | Y39: 16 | Z39: 0 | AA39: 0 | AB39: 0 | AC39: 0 | AD39: 0 | AE39: 123 | AF39: 4950.75 | AG39: 4950.75 | AH39: 0 | AI39: 0 | AJ39: 0
B40: 23 | C40: Material Trailer | D40: 443 | E40: Vendor No. 20 | F40: 206-131 | G40: 5272 / 5285 | H40: 2017-09-10 | I40: 2017-09-17 | J40: =IF(AND(H40>='A - Contractor Summary'!$C$36,I40<='A - Contractor Summary'!$C$42),"Yes","No") -> Yes | K40: =VLOOKUP($C40,'C.1 - Rate Sheets'!H:I,2,FALSE) -> 9.5 | L40: 0 | M40: 0 | N40: 0 | O40: 0 | P40: 0 | Q40: 0 | R40: 11 | S40: 16 | T40: 16 | U40: 16 | V40: 16 | W40: 16 | X40: 16 | Y40: 16 | Z40: 0 | AA40: 0 | AB40: 0 | AC40: 0 | AD40: 0 | AE40: 123 | AF40: 1168.5 | AG40: 1168.5 | AH40: 0 | AI40: 0 | AJ40: 0
B41: 24 | C41: Material Trailer | D41: 444 | E41: Vendor No. 20 | F41: 206-131 | G41: 5272 / 5285 | H41: 2017-09-10 | I41: 2017-09-17 | J41: =IF(AND(H41>='A - Contractor Summary'!$C$36,I41<='A - Contractor Summary'!$C$42),"Yes","No") -> Yes | K41: =VLOOKUP($C41,'C.1 - Rate Sheets'!H:I,2,FALSE) -> 9.5 | L41: 0 | M41: 0 | N41: 0 | O41: 0 | P41: 0 | Q41: 0 | R41: 11 | S41: 16 | T41: 16 | U41: 16 | V41: 16 | W41: 16 | X41: 16 | Y41: 16 | Z41: 0 | AA41: 0 | AB41: 0 | AC41: 0 | AD41: 0 | AE41: 123 | AF41: 1168.5 | AG41: 1168.5 | AH41: 0 | AI41: 0 | AJ41: 0
B42: 25 | C42: Pole Trailer | D42: 425 | E42: Vendor No. 20 | F42: 206-131 | G42: 5272 / 5285 | H42: 2017-09-10 | I42: 2017-09-17 | J42: =IF(AND(H42>='A - Contractor Summary'!$C$36,I42<='A - Contractor Summary'!$C$42),"Yes","No") -> Yes | K42: =VLOOKUP($C42,'C.1 - Rate Sheets'!H:I,2,FALSE) -> 9.5 | L42: 0 | M42: 0 | N42: 0 | O42: 0 | P42: 0 | Q42: 0 | R42: 11 | S42: 16 | T42: 16 | U42: 16 | V42: 16 | W42: 16 | X42: 16 | Y42: 16 | Z42: 0 | AA42: 0 | AB42: 0 | AC42: 0 | AD42: 0 | AE42: 123 | AF42: 1168.5 | AG42: 1168.5 | AH42: 0 | AI42: 0 | AJ42: 0
B43: 26 | C43: Pickup 3/4 ton | D43: 127 | E43: Vendor No. 20 | F43: 219-25 | G43: 5273 / 5290 | H43: =INDEX($L$15:$AD$15,MATCH(TRUE,INDEX((L43:AD43>0),0),0)) -> 2017-09-10 | I43: =LOOKUP(2,1/(1-(L43:AD43<=0)),$L$15:$AD$15) -> 2017-09-17 | J43: =IF(AND(H43>='A - Contractor Summary'!$C$36,I43<='A - Contractor Summary'!$C$42),"Yes","No") -> Yes | K43: =VLOOKUP($C43,'C.1 - Rate Sheets'!H:I,2,FALSE) -> 21.5 | L43: 0 | M43: 0 | N43: 0 | O43: 0 | P43: 0 | Q43: 0 | R43: 11 | S43: 16 | T43: 16 | U43: 16 | V43: 16 | W43: 16 | X43: 16 | Y43: 16 | Z43: 0 | AA43: 0 | AB43: 0 | AC43: 0 | AD43: 0 | AE43: =SUM(L43:AD43) -> 123 | AF43: =AE43*K43 -> 2644.5 | AG43: =AF43-AH43 -> 2644.5 | AH43: 0 | AI43: 0 | AJ43: 0
B44: 27 | C44: Bucket Truck 55 | D44: 201 | E44: Vendor No. 20 | F44: 219-25 | G44: 5273 / 5290 | H44: 2017-09-10 | I44: 2017-09-17 | J44: =IF(AND(H44>='A - Contractor Summary'!$C$36,I44<='A - Contractor Summary'!$C$42),"Yes","No") -> Yes | K44: =VLOOKUP($C44,'C.1 - Rate Sheets'!H:I,2,FALSE) -> 34.52 | L44: 0 | M44: 0 | N44: 0 | O44: 0 | P44: 0 | Q44: 0 | R44: 11 | S44: 16 | T44: 16 | U44: 16 | V44: 16 | W44: 16 | X44: 16 | Y44: 16 | Z44: 0 | AA44: 0 | AB44: 0 | AC44: 0 | AD44: 0 | AE44: 123 | AF44: 4245.96 | AG44: 4245.96 | AH44: 0 | AI44: 0 | AJ44: 0
B45: 28 | C45: Bucket Truck 55 | D45: 203 | E45: Vendor No. 20 | F45: 219-25 | G45: 5273 / 5290 | H45: 2017-09-10 | I45: 2017-09-17 | J45: =IF(AND(H45>='A - Contractor Summary'!$C$36,I45<='A - Contractor Summary'!$C$42),"Yes","No") -> Yes | K45: =VLOOKUP($C45,'C.1 - Rate Sheets'!H:I,2,FALSE) -> 34.52 | L45: 0 | M45: 0 | N45: 0 | O45: 0 | P45: 0 | Q45: 0 | R45: 11 | S45: 16 | T45: 16 | U45: 16 | V45: 16 | W45: 16 | X45: 16 | Y45: 16 | Z45: 0 | AA45: 0 | AB45: 0 | AC45: 0 | AD45: 0 | AE45: 123 | AF45: 4245.96 | AG45: 4245.96 | AH45: 0 | AI45: 0 | AJ45: 0
B46: 29 | C46: Digger | D46: 301 | E46: Vendor No. 20 | F46: 219-25 | G46: 5273 / 5290 | H46: 2017-09-10 | I46: 2017-09-17 | J46: =IF(AND(H46>='A - Contractor Summary'!$C$36,I46<='A - Contractor Summary'!$C$42),"Yes","No") -> Yes | K46: =VLOOKUP($C46,'C.1 - Rate Sheets'!H:I,2,FALSE) -> 40.25 | L46: 0 | M46: 0 | N46: 0 | O46: 0 | P46: 0 | Q46: 0 | R46: 11 | S46: 16 | T46: 16 | U46: 16 | V46: 16 | W46: 16 | X46: 16 | Y46: 16 | Z46: 0 | AA46: 0 | AB46: 0 | AC46: 0 | AD46: 0 | AE46: 123 | AF46: 4950.75 | AG46: 4950.75 | AH46: 0 | AI46: 0 | AJ46: 0
B47: 30 | C47: Material Trailer | D47: 403 | E47: Vendor No. 20 | F47: 219-25 | G47: 5273 / 5290 | H47: 2017-09-10 | I47: 2017-09-17 | J47: =IF(AND(H47>='A - Contractor Summary'!$C$36,I47<='A - Contractor Summary'!$C$42),"Yes","No") -> Yes | K47: =VLOOKUP($C47,'C.1 - Rate Sheets'!H:I,2,FALSE) -> 9.5 | L47: 0 | M47: 0 | N47: 0 | O47: 0 | P47: 0 | Q47: 0 | R47: 11 | S47: 16 | T47: 16 | U47: 16 | V47: 16 | W47: 16 | X47: 16 | Y47: 16 | Z47: 0 | AA47: 0 | AB47: 0 | AC47: 0 | AD47: 0 | AE47: 123 | AF47: 1168.5 | AG47: 1168.5 | AH47: 0 | AI47: 0 | AJ47: 0
B48: 31 | C48: Pole Trailer | D48: 401 | E48: Vendor No. 20 | F48: 219-25 | G48: 5273 / 5290 | H48: 2017-09-10 | I48: 2017-09-17 | J48: =IF(AND(H48>='A - Contractor Summary'!$C$36,I48<='A - Contractor Summary'!$C$42),"Yes","No") -> Yes | K48: =VLOOKUP($C48,'C.1 - Rate Sheets'!H:I,2,FALSE) -> 9.5 | L48: 0 | M48: 0 | N48: 0 | O48: 0 | P48: 0 | Q48: 0 | R48: 11 | S48: 16 | T48: 16 | U48: 16 | V48: 16 | W48: 16 | X48: 16 | Y48: 16 | Z48: 0 | AA48: 0 | AB48: 0 | AC48: 0 | AD48: 0 | AE48: 123 | AF48: 1168.5 | AG48: 1168.5 | AH48: 0 | AI48: 0 | AJ48: 0
B49: 32 | C49: Pickup 3/4 ton | D49: 164 | E49: Vendor No. 20 | F49: 228-44 | G49: 5274 / 5291 | H49: 2017-09-08 | I49: 2017-09-17 | J49: =IF(AND(H49>='A - Contractor Summary'!$C$36,I49<='A - Contractor Summary'!$C$42),"Yes","No") -> Yes | K49: =VLOOKUP($C49,'C.1 - Rate Sheets'!H:I,2,FALSE) -> 21.5 | L49: 0 | M49: 0 | N49: 0 | O49: 0 | P49: 14 | Q49: 14 | R49: 14 | S49: 17 | T49: 17 | U49: 17 | V49: 17 | W49: 17 | X49: 17 | Y49: 16 | Z49: 0 | AA49: 0 | AB49: 0 | AC49: 0 | AD49: 0 | AE49: 160 | AF49: 3440 | AG49: 3440 | AH49: 0 | AI49: 0 | AJ49: 0
B50: 33 | C50: Bucket Truck 55 | D50: 285 | E50: Vendor No. 20 | F50: 228-44 | G50: 5274 / 5291 | H50: 2017-09-08 | I50: 2017-09-17 | J50: =IF(AND(H50>='A - Contractor Summary'!$C$36,I50<='A - Contractor Summary'!$C$42),"Yes","No") -> Yes | K50: =VLOOKUP($C50,'C.1 - Rate Sheets'!H:I,2,FALSE) -> 34.52 | L50: 0 | M50: 0 | N50: 0 | O50: 0 | P50: 14 | Q50: 14 | R50: 14 | S50: 17 | T50: 17 | U50: 17 | V50: 17 | W50: 17 | X50: 17 | Y50: 16 | Z50: 0 | AA50: 0 | AB50: 0 | AC50: 0 | AD50: 0 | AE50: 160 | AF50: 5523.2 | AG50: 5523.2 | AH50: 0 | AI50: 0 | AJ50: 0
B51: 34 | C51: Bucket Truck 55 | D51: BT310 | E51: Vendor No. 20 | F51: 228-44 | G51: 5274 / 5291 | H51: 2017-09-08 | I51: 2017-09-17 | J51: =IF(AND(H51>='A - Contractor Summary'!$C$36,I51<='A - Contractor Summary'!$C$42),"Yes","No") -> Yes | K51: =VLOOKUP($C51,'C.1 - Rate Sheets'!H:I,2,FALSE) -> 34.52 | L51: 0 | M51: 0 | N51: 0 | O51: 0 | P51: 14 | Q51: 14 | R51: 14 | S51: 17 | T51: 17 | U51: 17 | V51: 17 | W51: 17 | X51: 17 | Y51: 16 | Z51: 0 | AA51: 0 | AB51: 0 | AC51: 0 | AD51: 0 | AE51: 160 | AF51: 5523.2 | AG51: 5523.2 | AH51: 0 | AI51: 0 | AJ51: 0
B52: 35 | C52: Digger | D52: 353 | E52: Vendor No. 20 | F52: 228-44 | G52: 5274 / 5291 | H52: 2017-09-08 | I52: 2017-09-17 | J52: =IF(AND(H52>='A - Contractor Summary'!$C$36,I52<='A - Contractor Summary'!$C$42),"Yes","No") -> Yes | K52: =VLOOKUP($C52,'C.1 - Rate Sheets'!H:I,2,FALSE) -> 40.25 | L52: 0 | M52: 0 | N52: 0 | O52: 0 | P52: 14 | Q52: 14 | R52: 14 | S52: 17 | T52: 17 | U52: 17 | V52: 17 | W52: 17 | X52: 17 | Y52: 16 | Z52: 0 | AA52: 0 | AB52: 0 | AC52: 0 | AD52: 0 | AE52: 160 | AF52: 6440 | AG52: 6440 | AH52: 0 | AI52: 0 | AJ52: 0
B53: 36 | C53: Material Trailer | D53: 513 | E53: Vendor No. 20 | F53: 228-44 | G53: 5274 / 5291 | H53: 2017-09-08 | I53: 2017-09-17 | J53: =IF(AND(H53>='A - Contractor Summary'!$C$36,I53<='A - Contractor Summary'!$C$42),"Yes","No") -> Yes | K53: =VLOOKUP($C53,'C.1 - Rate Sheets'!H:I,2,FALSE) -> 9.5 | L53: 0 | M53: 0 | N53: 0 | O53: 0 | P53: 14 | Q53: 14 | R53: 14 | S53: 17 | T53: 17 | U53: 17 | V53: 17 | W53: 17 | X53: 17 | Y53: 16 | Z53: 0 | AA53: 0 | AB53: 0 | AC53: 0 | AD53: 0 | AE53: 160 | AF53: 1520 | AG53: 1520 | AH53: 0 | AI53: 0 | AJ53: 0
B54: 37 | C54: Pole Trailer | D54: 517 | E54: Vendor No. 20 | F54: 228-44 | G54: 5274 / 5291 | H54: 2017-09-08 | I54: 2017-09-17 | J54: =IF(AND(H54>='A - Contractor Summary'!$C$36,I54<='A - Contractor Summary'!$C$42),"Yes","No") -> Yes | K54: =VLOOKUP($C54,'C.1 - Rate Sheets'!H:I,2,FALSE) -> 9.5 | L54: 0 | M54: 0 | N54: 0 | O54: 0 | P54: 14 | Q54: 14 | R54: 14 | S54: 17 | T54: 17 | U54: 17 | V54: 17 | W54: 17 | X54: 17 | Y54: 16 | Z54: 0 | AA54: 0 | AB54: 0 | AC54: 0 | AD54: 0 | AE54: 160 | AF54: 1520 | AG54: 1520 | AH54: 0 | AI54: 0 | AJ54: 0
B55: 38 | C55: Pickup 3/4 ton | D55: 187 | E55: Vendor No. 20 | F55: 238-15 | G55: 5275 / 5292 | H55: 2017-09-10 | I55: 2017-09-17 | J55: =IF(AND(H55>='A - Contractor Summary'!$C$36,I55<='A - Contractor Summary'!$C$42),"Yes","No") -> Yes | K55: =VLOOKUP($C55,'C.1 - Rate Sheets'!H:I,2,FALSE) -> 21.5 | L55: 0 | M55: 0 | N55: 0 | O55: 0 | P55: 0 | Q55: 0 | R55: 12 | S55: 16 | T55: 16 | U55: 16 | V55: 16 | W55: 16 | X55: 16 | Y55: 16 | Z55: 0 | AA55: 0 | AB55: 0 | AC55: 0 | AD55: 0 | AE55: 124 | AF55: 2666 | AG55: 2666 | AH55: 0 | AI55: 0 | AJ55: 0
B56: 39 | C56: Bucket Truck 55 | D56: 210 | E56: Vendor No. 20 | F56: 238-15 | G56: 5275 / 5292 | H56: 2017-09-10 | I56: 2017-09-17 | J56: =IF(AND(H56>='A - Contractor Summary'!$C$36,I56<='A - Contractor Summary'!$C$42),"Yes","No") -> Yes | K56: =VLOOKUP($C56,'C.1 - Rate Sheets'!H:I,2,FALSE) -> 34.52 | L56: 0 | M56: 0 | N56: 0 | O56: 0 | P56: 0 | Q56: 0 | R56: 12 | S56: 16 | T56: 16 | U56: 16 | V56: 16 | W56: 16 | X56: 16 | Y56: 16 | Z56: 0 | AA56: 0 | AB56: 0 | AC56: 0 | AD56: 0 | AE56: 124 | AF56: 4280.48 | AG56: 4280.48 | AH56: 0 | AI56: 0 | AJ56: 0
B57: 40 | C57: Bucket Truck 55 | D57: 316 | E57: Vendor No. 20 | F57: 238-15 | G57: 5275 / 5292 | H57: 2017-09-10 | I57: 2017-09-17 | J57: =IF(AND(H57>='A - Contractor Summary'!$C$36,I57<='A - Contractor Summary'!$C$42),"Yes","No") -> Yes | K57: =VLOOKUP($C57,'C.1 - Rate Sheets'!H:I,2,FALSE) -> 34.52 | L57: 0 | M57: 0 | N57: 0 | O57: 0 | P57: 0 | Q57: 0 | R57: 12 | S57: 16 | T57: 16 | U57: 16 | V57: 16 | W57: 16 | X57: 16 | Y57: 16 | Z57: 0 | AA57: 0 | AB57: 0 | AC57: 0 | AD57: 0 | AE57: 124 | AF57: 4280.48 | AG57: 4280.48 | AH57: 0 | AI57: 0 | AJ57: 0
B58: 41 | C58: Digger | D58: 377 | E58: Vendor No. 20 | F58: 238-15 | G58: 5275 / 5292 | H58: 2017-09-10 | I58: 2017-09-17 | J58: =IF(AND(H58>='A - Contractor Summary'!$C$36,I58<='A - Contractor Summary'!$C$42),"Yes","No") -> Yes | K58: =VLOOKUP($C58,'C.1 - Rate Sheets'!H:I,2,FALSE) -> 40.25 | L58: 0 | M58: 0 | N58: 0 | O58: 0 | P58: 0 | Q58: 0 | R58: 12 | S58: 16 | T58: 16 | U58: 16 | V58: 16 | W58: 16 | X58: 16 | Y58: 16 | Z58: 0 | AA58: 0 | AB58: 0 | AC58: 0 | AD58: 0 | AE58: 124 | AF58: 4991 | AG58: 4991 | AH58: 0 | AI58: 0 | AJ58: 0
B59: 42 | C59: Pole Trailer | D59: 550 | E59: Vendor No. 20 | F59: 238-15 | G59: 5275 / 5292 | H59: 2017-09-10 | I59: 2017-09-17 | J59: =IF(AND(H59>='A - Contractor Summary'!$C$36,I59<='A - Contractor Summary'!$C$42),"Yes","No") -> Yes | K59: =VLOOKUP($C59,'C.1 - Rate Sheets'!H:I,2,FALSE) -> 9.5 | L59: 0 | M59: 0 | N59: 0 | O59: 0 | P59: 0 | Q59: 0 | R59: 12 | S59: 16 | T59: 16 | U59: 16 | V59: 16 | W59: 16 | X59: 16 | Y59: 16 | Z59: 0 | AA59: 0 | AB59: 0 | AC59: 0 | AD59: 0 | AE59: 124 | AF59: 1178 | AG59: 1178 | AH59: 0 | AI59: 0 | AJ59: 0
B60: 43 | C60: Pole Trailer | D60: 554 | E60: Vendor No. 20 | F60: 238-15 | G60: 5275 / 5292 | H60: 2017-09-10 | I60: 2017-09-17 | J60: =IF(AND(H60>='A - Contractor Summary'!$C$36,I60<='A - Contractor Summary'!$C$42),"Yes","No") -> Yes | K60: =VLOOKUP($C60,'C.1 - Rate Sheets'!H:I,2,FALSE) -> 9.5 | L60: 0 | M60: 0 | N60: 0 | O60: 0 | P60: 0 | Q60: 0 | R60: 12 | S60: 16 | T60: 16 | U60: 16 | V60: 16 | W60: 16 | X60: 16 | Y60: 16 | Z60: 0 | AA60: 0 | AB60: 0 | AC60: 0 | AD60: 0 | AE60: 124 | AF60: 1178 | AG60: 1178 | AH60: 0 | AI60: 0 | AJ60: 0
B61: 44 | C61: Pickup 3/4 ton | D61: PT218 | E61: Vendor No. 20 | F61: 248-3 | G61: 5276 / 5295 | H61: 2017-09-10 | I61: 2017-09-17 | J61: =IF(AND(H61>='A - Contractor Summary'!$C$36,I61<='A - Contractor Summary'!$C$42),"Yes","No") -> Yes | K61: =VLOOKUP($C61,'C.1 - Rate Sheets'!H:I,2,FALSE) -> 21.5 | L61: 0 | M61: 0 | N61: 0 | O61: 0 | P61: 0 | Q61: 0 | R61: 14 | S61: 16 | T61: 16 | U61: 16 | V61: 16 | W61: 16 | X61: 16 | Y61: 16 | Z61: 0 | AA61: 0 | AB61: 0 | AC61: 0 | AD61: 0 | AE61: 126 | AF61: 2709 | AG61: 2709 | AH61: 0 | AI61: 0 | AJ61: 0
B62: 45 | C62: Bucket Truck 55 | D62: BT358 | E62: Vendor No. 20 | F62: 248-3 | G62: 5276 / 5295 | H62: 2017-09-10 | I62: 2017-09-17 | J62: =IF(AND(H62>='A - Contractor Summary'!$C$36,I62<='A - Contractor Summary'!$C$42),"Yes","No") -> Yes | K62: =VLOOKUP($C62,'C.1 - Rate Sheets'!H:I,2,FALSE) -> 34.52 | L62: 0 | M62: 0 | N62: 0 | O62: 0 | P62: 0 | Q62: 0 | R62: 14 | S62: 16 | T62: 16 | U62: 16 | V62: 16 | W62: 16 | X62: 16 | Y62: 16 | Z62: 0 | AA62: 0 | AB62: 0 | AC62: 0 | AD62: 0 | AE62: 126 | AF62: 4349.52 | AG62: 4349.52 | AH62: 0 | AI62: 0 | AJ62: 0
B63: 46 | C63: Bucket Truck 55 | D63: BT359 | E63: Vendor No. 20 | F63: 248-3 | G63: 5276 / 5295 | H63: 2017-09-10 | I63: 2017-09-17 | J63: =IF(AND(H63>='A - Contractor Summary'!$C$36,I63<='A - Contractor Summary'!$C$42),"Yes","No") -> Yes | K63: =VLOOKUP($C63,'C.1 - Rate Sheets'!H:I,2,FALSE) -> 34.52 | L63: 0 | M63: 0 | N63: 0 | O63: 0 | P63: 0 | Q63: 0 | R63: 14 | S63: 16 | T63: 16 | U63: 16 | V63: 16 | W63: 16 | X63: 16 | Y63: 16 | Z63: 0 | AA63: 0 | AB63: 0 | AC63: 0 | AD63: 0 | AE63: 126 | AF63: 4349.52 | AG63: 4349.52 | AH63: 0 | AI63: 0 | AJ63: 0
B64: 47 | C64: Digger | D64: DT392 | E64: Vendor No. 20 | F64: 248-3 | G64: 5276 / 5295 | H64: 2017-09-10 | I64: 2017-09-17 | J64: =IF(AND(H64>='A - Contractor Summary'!$C$36,I64<='A - Contractor Summary'!$C$42),"Yes","No") -> Yes | K64: =VLOOKUP($C64,'C.1 - Rate Sheets'!H:I,2,FALSE) -> 40.25 | L64: 0 | M64: 0 | N64: 0 | O64: 0 | P64: 0 | Q64: 0 | R64: 14 | S64: 16 | T64: 16 | U64: 16 | V64: 16 | W64: 16 | X64: 16 | Y64: 16 | Z64: 0 | AA64: 0 | AB64: 0 | AC64: 0 | AD64: 0 | AE64: 126 | AF64: 5071.5 | AG64: 5071.5 | AH64: 0 | AI64: 0 | AJ64: 0
B65: 48 | C65: Material Trailer | D65: 0 | E65: Vendor No. 20 | F65: 248-3 | G65: 5276 / 5295 | H65: 2017-09-10 | I65: 2017-09-17 | J65: =IF(AND(H65>='A - Contractor Summary'!$C$36,I65<='A - Contractor Summary'!$C$42),"Yes","No") -> Yes | K65: =VLOOKUP($C65,'C.1 - Rate Sheets'!H:I,2,FALSE) -> 9.5 | L65: 0 | M65: 0 | N65: 0 | O65: 0 | P65: 0 | Q65: 0 | R65: 14 | S65: 16 | T65: 16 | U65: 16 | V65: 16 | W65: 16 | X65: 16 | Y65: 16 | Z65: 0 | AA65: 0 | AB65: 0 | AC65: 0 | AD65: 0 | AE65: 126 | AF65: 1197 | AG65: 1197 | AH65: 0 | AI65: 0 | AJ65: 0
B66: 49 | C66: Pole Trailer | D66: 0 | E66: Vendor No. 20 | F66: 248-3 | G66: 5276 / 5295 | H66: 2017-09-11 | I66: 2017-09-17 | J66: =IF(AND(H66>='A - Contractor Summary'!$C$36,I66<='A - Contractor Summary'!$C$42),"Yes","No") -> Yes | K66: =VLOOKUP($C66,'C.1 - Rate Sheets'!H:I,2,FALSE) -> 9.5 | L66: 0 | M66: 0 | N66: 0 | O66: 0 | P66: 0 | Q66: 0 | R66: 0 | S66: 16 | T66: 16 | U66: 16 | V66: 16 | W66: 16 | X66: 16 | Y66: 16 | Z66: 0 | AA66: 0 | AB66: 0 | AC66: 0 | AD66: 0 | AE66: 112 | AF66: 1064 | AG66: 1064 | AH66: 0 | AI66: 0 | AJ66: 0
B67: 50 | C67: Pickup 3/4 ton | D67: 131 | E67: Vendor No. 20 | F67: 404-134 | G67: 5277 / 5296 | H67: 2017-09-10 | I67: 2017-09-17 | J67: =IF(AND(H67>='A - Contractor Summary'!$C$36,I67<='A - Contractor Summary'!$C$42),"Yes","No") -> Yes | K67: =VLOOKUP($C67,'C.1 - Rate Sheets'!H:I,2,FALSE) -> 21.5 | L67: 0 | M67: 0 | N67: 0 | O67: 0 | P67: 0 | Q67: 0 | R67: 14 | S67: 16 | T67: 16 | U67: 16 | V67: 16 | W67: 16 | X67: 16 | Y67: 16 | Z67: 0 | AA67: 0 | AB67: 0 | AC67: 0 | AD67: 0 | AE67: 126 | AF67: 2709 | AG67: 2709 | AH67: 0 | AI67: 0 | AJ67: 0
B68: 51 | C68: Bucket Truck 55 | D68: 211 | E68: Vendor No. 20 | F68: 404-134 | G68: 5277 / 5296 | H68: 2017-09-10 | I68: 2017-09-17 | J68: =IF(AND(H68>='A - Contractor Summary'!$C$36,I68<='A - Contractor Summary'!$C$42),"Yes","No") -> Yes | K68: =VLOOKUP($C68,'C.1 - Rate Sheets'!H:I,2,FALSE) -> 34.52 | L68: 0 | M68: 0 | N68: 0 | O68: 0 | P68: 0 | Q68: 0 | R68: 14 | S68: 0 | T68: 0 | U68: 0 | V68: 0 | W68: 16 | X68: 16 | Y68: 16 | Z68: 0 | AA68: 0 | AB68: 0 | AC68: 0 | AD68: 0 | AE68: 62 | AF68: 2140.24 | AG68: 2140.24 | AH68: 0 | AI68: 0 | AJ68: 0
B69: 52 | C69: Digger | D69: 303 | E69: Vendor No. 20 | F69: 404-134 | G69: 5277 / 5296 | H69: 2017-09-10 | I69: 2017-09-17 | J69: =IF(AND(H69>='A - Contractor Summary'!$C$36,I69<='A - Contractor Summary'!$C$42),"Yes","No") -> Yes | K69: =VLOOKUP($C69,'C.1 - Rate Sheets'!H:I,2,FALSE) -> 40.25 | L69: 0 | M69: 0 | N69: 0 | O69: 0 | P69: 0 | Q69: 0 | R69: 14 | S69: 0 | T69: 0 | U69: 0 | V69: 0 | W69: 16 | X69: 16 | Y69: 16 | Z69: 0 | AA69: 0 | AB69: 0 | AC69: 0 | AD69: 0 | AE69: 62 | AF69: 2495.5 | AG69: 2495.5 | AH69: 0 | AI69: 0 | AJ69: 0
B70: 53 | C70: Material Trailer | D70: 454 | E70: Vendor No. 20 | F70: 404-134 | G70: 5277 / 5296 | H70: 2017-09-11 | I70: 2017-09-17 | J70: =IF(AND(H70>='A - Contractor Summary'!$C$36,I70<='A - Contractor Summary'!$C$42),"Yes","No") -> Yes | K70: =VLOOKUP($C70,'C.1 - Rate Sheets'!H:I,2,FALSE) -> 9.5 | L70: 0 | M70: 0 | N70: 0 | O70: 0 | P70: 0 | Q70: 0 | R70: 0 | S70: 16 | T70: 0 | U70: 0 | V70: 16 | W70: 16 | X70: 16 | Y70: 16 | Z70: 0 | AA70: 0 | AB70: 0 | AC70: 0 | AD70: 0 | AE70: 80 | AF70: 760 | AG70: 760 | AH70: 0 | AI70: 0 | AJ70: 0
B71: 54 | C71: Trencher | D71: 502 | E71: Vendor No. 20 | F71: 404-134 | G71: 5277 / 5296 | H71: 2017-09-16 | I71: 2017-09-17 | J71: =IF(AND(H71>='A - Contractor Summary'!$C$36,I71<='A - Contractor Summary'!$C$42),"Yes","No") -> Yes | K71: =VLOOKUP($C71,'C.1 - Rate Sheets'!H:I,2,FALSE) -> 32.47 | L71: 0 | M71: 0 | N71: 0 | O71: 0 | P71: 0 | Q71: 0 | R71: 0 | S71: 0 | T71: 0 | U71: 0 | V71: 0 | W71: 0 | X71: 16 | Y71: 16 | Z71: 0 | AA71: 0 | AB71: 0 | AC71: 0 | AD71: 0 | AE71: 32 | AF71: 1039.04 | AG71: 1039.04 | AH71: 0 | AI71: 0 | AJ71: 0
B72: 55 | C72: Bucket Truck 55 | D72: 266 | E72: Vendor No. 20 | F72: 404-134 | G72: 5277 / 5296 | H72: 2017-09-11 | I72: 2017-09-14 | J72: =IF(AND(H72>='A - Contractor Summary'!$C$36,I72<='A - Contractor Summary'!$C$42),"Yes","No") -> Yes | K72: =VLOOKUP($C72,'C.1 - Rate Sheets'!H:I,2,FALSE) -> 34.52 | L72: 0 | M72: 0 | N72: 0 | O72: 0 | P72: 0 | Q72: 0 | R72: 0 | S72: 16 | T72: 4 | U72: 16 | V72: 16 | W72: 0 | X72: 0 | Y72: 0 | Z72: 0 | AA72: 0 | AB72: 0 | AC72: 0 | AD72: 0 | AE72: 52 | AF72: 1795.04 | AG72: 1795.04 | AH72: 0 | AI72: 0 | AJ72: 0
B73: 56 | C73: Digger | D73: 323 | E73: Vendor No. 20 | F73: 404-134 | G73: 5277 / 5296 | H73: 2017-09-11 | I73: 2017-09-14 | J73: =IF(AND(H73>='A - Contractor Summary'!$C$36,I73<='A - Contractor Summary'!$C$42),"Yes","No") -> Yes | K73: =VLOOKUP($C73,'C.1 - Rate Sheets'!H:I,2,FALSE) -> 40.25 | L73: 0 | M73: 0 | N73: 0 | O73: 0 | P73: 0 | Q73: 0 | R73: 0 | S73: 16 | T73: 4 | U73: 16 | V73: 16 | W73: 0 | X73: 0 | Y73: 0 | Z73: 0 | AA73: 0 | AB73: 0 | AC73: 0 | AD73: 0 | AE73: 52 | AF73: 2093 | AG73: 2093 | AH73: 0 | AI73: 0 | AJ73: 0
B74: 57 | C74: Bucket Truck 55 | D74: 219 | E74: Vendor No. 20 | F74: 404-134 | G74: 5277 / 5296 | H74: 2017-09-11 | I74: 2017-09-14 | J74: =IF(AND(H74>='A - Contractor Summary'!$C$36,I74<='A - Contractor Summary'!$C$42),"Yes","No") -> Yes | K74: =VLOOKUP($C74,'C.1 - Rate Sheets'!H:I,2,FALSE) -> 34.52 | L74: 0 | M74: 0 | N74: 0 | O74: 0 | P74: 0 | Q74: 0 | R74: 0 | S74: 16 | T74: 4 | U74: 16 | V74: 16 | W74: 0 | X74: 0 | Y74: 0 | Z74: 0 | AA74: 0 | AB74: 0 | AC74: 0 | AD74: 0 | AE74: 52 | AF74: 1795.04 | AG74: 1795.04 | AH74: 0 | AI74: 0 | AJ74: 0
B75: 58 | C75: Digger | D75: 303 | E75: Vendor No. 20 | F75: 404-134 | G75: 5277 / 5296 | H75: 2017-09-11 | I75: 2017-09-14 | J75: =IF(AND(H75>='A - Contractor Summary'!$C$36,I75<='A - Contractor Summary'!$C$42),"Yes","No") -> Yes | K75: =VLOOKUP($C75,'C.1 - Rate Sheets'!H:I,2,FALSE) -> 40.25 | L75: 0 | M75: 0 | N75: 0 | O75: 0 | P75: 0 | Q75: 0 | R75: 0 | S75: 16 | T75: 4 | U75: 16 | V75: 16 | W75: 0 | X75: 0 | Y75: 0 | Z75: 0 | AA75: 0 | AB75: 0 | AC75: 0 | AD75: 0 | AE75: 52 | AF75: 2093 | AG75: 2093 | AH75: 0 | AI75: 0 | AJ75: 0
B76: 59 | C76: Pickup 3/4 ton | D76: 101 | E76: Vendor No. 20 | F76: 57-6 | G76: 5280 | H76: 2017-09-11 | I76: 2017-09-17 | J76: =IF(AND(H76>='A - Contractor Summary'!$C$36,I76<='A - Contractor Summary'!$C$42),"Yes","No") -> Yes | K76: =VLOOKUP($C76,'C.1 - Rate Sheets'!H:I,2,FALSE) -> 21.5 | L76: 0 | M76: 0 | N76: 0 | O76: 0 | P76: 0 | Q76: 0 | R76: 0 | S76: 16 | T76: 16 | U76: 16 | V76: 16 | W76: 16 | X76: 16 | Y76: 16 | Z76: 0 | AA76: 0 | AB76: 0 | AC76: 0 | AD76: 0 | AE76: 112 | AF76: 2408 | AG76: 2408 | AH76: 0 | AI76: 0 | AJ76: 0
B77: 60 | C77: Pickup 3/4 ton | D77: 128 | E77: Vendor No. 20 | F77: 101-15 | G77: 5281 | H77: 2017-09-11 | I77: 2017-09-17 | J77: =IF(AND(H77>='A - Contractor Summary'!$C$36,I77<='A - Contractor Summary'!$C$42),"Yes","No") -> Yes | K77: =VLOOKUP($C77,'C.1 - Rate Sheets'!H:I,2,FALSE) -> 21.5 | L77: 0 | M77: 0 | N77: 0 | O77: 0 | P77: 0 | Q77: 0 | R77: 0 | S77: 16 | T77: 16 | U77: 16 | V77: 16 | W77: 16 | X77: 16 | Y77: 16 | Z77: 0 | AA77: 0 | AB77: 0 | AC77: 0 | AD77: 0 | AE77: 112 | AF77: 2408 | AG77: 2408 | AH77: 0 | AI77: 0 | AJ77: 0
B78: 61 | C78: Pickup 3/4 ton | D78: 179 | E78: Vendor No. 20 | F78: 101-15 | G78: 5281 | H78: 2017-09-11 | I78: 2017-09-17 | J78: =IF(AND(H78>='A - Contractor Summary'!$C$36,I78<='A - Contractor Summary'!$C$42),"Yes","No") -> Yes | K78: =VLOOKUP($C78,'C.1 - Rate Sheets'!H:I,2,FALSE) -> 21.5 | L78: 0 | M78: 0 | N78: 0 | O78: 0 | P78: 0 | Q78: 0 | R78: 0 | S78: 16 | T78: 16 | U78: 16 | V78: 16 | W78: 16 | X78: 16 | Y78: 16 | Z78: 0 | AA78: 0 | AB78: 0 | AC78: 0 | AD78: 0 | AE78: 112 | AF78: 2408 | AG78: 2408 | AH78: 0 | AI78: 0 | AJ78: 0
B79: 62 | C79: Pickup 3/4 ton | D79: 0 | E79: Vendor No. 20 | F79: 101-15 | G79: 5281 | H79: 2017-09-11 | I79: 2017-09-17 | J79: =IF(AND(H79>='A - Contractor Summary'!$C$36,I79<='A - Contractor Summary'!$C$42),"Yes","No") -> Yes | K79: =VLOOKUP($C79,'C.1 - Rate Sheets'!H:I,2,FALSE) -> 21.5 | L79: 0 | M79: 0 | N79: 0 | O79: 0 | P79: 0 | Q79: 0 | R79: 0 | S79: 16 | T79: 16 | U79: 16 | V79: 16 | W79: 16 | X79: 16 | Y79: 16 | Z79: 0 | AA79: 0 | AB79: 0 | AC79: 0 | AD79: 0 | AE79: 112 | AF79: 2408 | AG79: 2408 | AH79: 0 | AI79: 0 | AJ79: 0
B80: 63 | C80: Mechanic Truck | D80: 0 | E80: Vendor No. 20 | F80: 101-15 | G80: 5281 | H80: 2017-09-11 | I80: 2017-09-17 | J80: =IF(AND(H80>='A - Contractor Summary'!$C$36,I80<='A - Contractor Summary'!$C$42),"Yes","No") -> Yes | K80: =VLOOKUP($C80,'C.1 - Rate Sheets'!H:I,2,FALSE) -> 25.92 | L80: 0 | M80: 0 | N80: 0 | O80: 0 | P80: 0 | Q80: 0 | R80: 0 | S80: 16 | T80: 16 | U80: 16 | V80: 16 | W80: 16 | X80: 16 | Y80: 16 | Z80: 0 | AA80: 0 | AB80: 0 | AC80: 0 | AD80: 0 | AE80: 112 | AF80: 2903.04 | AG80: 2903.04 | AH80: 0 | AI80: 0 | AJ80: 0
B81: 64 | C81: Pickup 3/4 ton | D81: 124 | E81: Vendor No. 20 | F81: 209-231 | G81: 5286 | H81: 2017-09-14 | I81: 2017-09-17 | J81: =IF(AND(H81>='A - Contractor Summary'!$C$36,I81<='A - Contractor Summary'!$C$42),"Yes","No") -> Yes | K81: =VLOOKUP($C81,'C.1 - Rate Sheets'!H:I,2,FALSE) -> 21.5 | L81: 0 | M81: 0 | N81: 0 | O81: 0 | P81: 0 | Q81: 0 | R81: 0 | S81: 0 | T81: 0 | U81: 0 | V81: 18 | W81: 17 | X81: 17 | Y81: 14 | Z81: 0 | AA81: 0 | AB81: 0 | AC81: 0 | AD81: 0 | AE81: 66 | AF81: 1419 | AG81: 1419 | AH81: 0 | AI81: 0 | AJ81: 0
B82: 65 | C82: Bucket Truck 55 | D82: 217 | E82: Vendor No. 20 | F82: 209-231 | G82: 5286 | H82: 2017-09-14 | I82: 2017-09-17 | J82: =IF(AND(H82>='A - Contractor Summary'!$C$36,I82<='A - Contractor Summary'!$C$42),"Yes","No") -> Yes | K82: =VLOOKUP($C82,'C.1 - Rate Sheets'!H:I,2,FALSE) -> 34.52 | L82: 0 | M82: 0 | N82: 0 | O82: 0 | P82: 0 | Q82: 0 | R82: 0 | S82: 0 | T82: 0 | U82: 0 | V82: 18 | W82: 17 | X82: 17 | Y82: 14 | Z82: 0 | AA82: 0 | AB82: 0 | AC82: 0 | AD82: 0 | AE82: 66 | AF82: 2278.32 | AG82: 2278.32 | AH82: 0 | AI82: 0 | AJ82: 0
B83: 66 | C83: Bucket Truck 55 | D83: 235 | E83: Vendor No. 20 | F83: 209-231 | G83: 5286 | H83: =INDEX($L$15:$AD$15,MATCH(TRUE,INDEX((L83:AD83>0),0),0)) -> 2017-09-14 | I83: =LOOKUP(2,1/(1-(L83:AD83<=0)),$L$15:$AD$15) -> 2017-09-17 | J83: =IF(AND(H83>='A - Contractor Summary'!$C$36,I83<='A - Contractor Summary'!$C$42),"Yes","No") -> Yes | K83: =VLOOKUP($C83,'C.1 - Rate Sheets'!H:I,2,FALSE) -> 34.52 | L83: 0 | M83: 0 | N83: 0 | O83: 0 | P83: 0 | Q83: 0 | R83: 0 | S83: 0 | T83: 0 | U83: 0 | V83: 18 | W83: 17 | X83: 17 | Y83: 14 | Z83: 0 | AA83: 0 | AB83: 0 | AC83: 0 | AD83: 0 | AE83: =SUM(L83:AD83) -> 66 | AF83: =AE83*K83 -> 2278.32 | AG83: =AF83-AH83 -> 2278.32 | AH83: 0 | AI83: 0 | AJ83: 0
B84: 67 | C84: Digger | D84: 328 | E84: Vendor No. 20 | F84: 209-231 | G84: 5286 | H84: 2017-09-14 | I84: 2017-09-17 | J84: =IF(AND(H84>='A - Contractor Summary'!$C$36,I84<='A - Contractor Summary'!$C$42),"Yes","No") -> Yes | K84: =VLOOKUP($C84,'C.1 - Rate Sheets'!H:I,2,FALSE) -> 40.25 | L84: 0 | M84: 0 | N84: 0 | O84: 0 | P84: 0 | Q84: 0 | R84: 0 | S84: 0 | T84: 0 | U84: 0 | V84: 18 | W84: 17 | X84: 17 | Y84: 14 | Z84: 0 | AA84: 0 | AB84: 0 | AC84: 0 | AD84: 0 | AE84: 66 | AF84: 2656.5 | AG84: 2656.5 | AH84: 0 | AI84: 0 | AJ84: 0
B85: 68 | C85: Pole Trailer | D85: 427 | E85: Vendor No. 20 | F85: 209-231 | G85: 5286 | H85: 2017-09-14 | I85: 2017-09-17 | J85: =IF(AND(H85>='A - Contractor Summary'!$C$36,I85<='A - Contractor Summary'!$C$42),"Yes","No") -> Yes | K85: =VLOOKUP($C85,'C.1 - Rate Sheets'!H:I,2,FALSE) -> 9.5 | L85: 0 | M85: 0 | N85: 0 | O85: 0 | P85: 0 | Q85: 0 | R85: 0 | S85: 0 | T85: 0 | U85: 0 | V85: 18 | W85: 17 | X85: 17 | Y85: 14 | Z85: 0 | AA85: 0 | AB85: 0 | AC85: 0 | AD85: 0 | AE85: 66 | AF85: 627 | AG85: 627 | AH85: 0 | AI85: 0 | AJ85: 0
B86: 69 | C86: Material Trailer | D86: 441 | E86: Vendor No. 20 | F86: 209-231 | G86: 5286 | H86: 2017-09-14 | I86: 2017-09-17 | J86: =IF(AND(H86>='A - Contractor Summary'!$C$36,I86<='A - Contractor Summary'!$C$42),"Yes","No") -> Yes | K86: =VLOOKUP($C86,'C.1 - Rate Sheets'!H:I,2,FALSE) -> 9.5 | L86: 0 | M86: 0 | N86: 0 | O86: 0 | P86: 0 | Q86: 0 | R86: 0 | S86: 0 | T86: 0 | U86: 0 | V86: 18 | W86: 17 | X86: 17 | Y86: 14 | Z86: 0 | AA86: 0 | AB86: 0 | AC86: 0 | AD86: 0 | AE86: 66 | AF86: 627 | AG86: 627 | AH86: 0 | AI86: 0 | AJ86: 0
B87: 70 | C87: Pickup 3/4 ton | D87: 134 | E87: Vendor No. 20 | F87: 212-120 | G87: 5289 | H87: 2017-09-12 | I87: 2017-09-17 | J87: =IF(AND(H87>='A - Contractor Summary'!$C$36,I87<='A - Contractor Summary'!$C$42),"Yes","No") -> Yes | K87: =VLOOKUP($C87,'C.1 - Rate Sheets'!H:I,2,FALSE) -> 21.5 | L87: 0 | M87: 0 | N87: 0 | O87: 0 | P87: 0 | Q87: 0 | R87: 0 | S87: 0 | T87: 16 | U87: 16 | V87: 16 | W87: 16 | X87: 16 | Y87: 16 | Z87: 0 | AA87: 0 | AB87: 0 | AC87: 0 | AD87: 0 | AE87: 96 | AF87: 2064 | AG87: 2064 | AH87: 0 | AI87: 0 | AJ87: 0
B88: 71 | C88: Bucket Truck 55 | D88: 206 | E88: Vendor No. 20 | F88: 212-120 | G88: 5289 | H88: 2017-09-12 | I88: 2017-09-17 | J88: =IF(AND(H88>='A - Contractor Summary'!$C$36,I88<='A - Contractor Summary'!$C$42),"Yes","No") -> Yes | K88: =VLOOKUP($C88,'C.1 - Rate Sheets'!H:I,2,FALSE) -> 34.52 | L88: 0 | M88: 0 | N88: 0 | O88: 0 | P88: 0 | Q88: 0 | R88: 0 | S88: 0 | T88: 16 | U88: 16 | V88: 16 | W88: 16 | X88: 16 | Y88: 16 | Z88: 0 | AA88: 0 | AB88: 0 | AC88: 0 | AD88: 0 | AE88: 96 | AF88: 3313.92 | AG88: 3313.92 | AH88: 0 | AI88: 0 | AJ88: 0
B89: 72 | C89: Bucket Truck 55 | D89: 226 | E89: Vendor No. 20 | F89: 212-120 | G89: 5289 | H89: 2017-09-15 | I89: 2017-09-17 | J89: =IF(AND(H89>='A - Contractor Summary'!$C$36,I89<='A - Contractor Summary'!$C$42),"Yes","No") -> Yes | K89: =VLOOKUP($C89,'C.1 - Rate Sheets'!H:I,2,FALSE) -> 34.52 | L89: 0 | M89: 0 | N89: 0 | O89: 0 | P89: 0 | Q89: 0 | R89: 0 | S89: 0 | T89: 0 | U89: 0 | V89: 0 | W89: 16 | X89: 16 | Y89: 16 | Z89: 0 | AA89: 0 | AB89: 0 | AC89: 0 | AD89: 0 | AE89: 48 | AF89: 1656.96 | AG89: 1656.96 | AH89: 0 | AI89: 0 | AJ89: 0
B90: 73 | C90: Digger | D90: 327 | E90: Vendor No. 20 | F90: 212-120 | G90: 5289 | H90: 2017-09-15 | I90: 2017-09-17 | J90: =IF(AND(H90>='A - Contractor Summary'!$C$36,I90<='A - Contractor Summary'!$C$42),"Yes","No") -> Yes | K90: =VLOOKUP($C90,'C.1 - Rate Sheets'!H:I,2,FALSE) -> 40.25 | L90: 0 | M90: 0 | N90: 0 | O90: 0 | P90: 0 | Q90: 0 | R90: 0 | S90: 0 | T90: 0 | U90: 0 | V90: 0 | W90: 16 | X90: 16 | Y90: 16 | Z90: 0 | AA90: 0 | AB90: 0 | AC90: 0 | AD90: 0 | AE90: 48 | AF90: 1932 | AG90: 1932 | AH90: 0 | AI90: 0 | AJ90: 0
B91: 74 | C91: Pole Trailer | D91: 447 | E91: Vendor No. 20 | F91: 212-120 | G91: 5289 | H91: 2017-09-15 | I91: 2017-09-17 | J91: =IF(AND(H91>='A - Contractor Summary'!$C$36,I91<='A - Contractor Summary'!$C$42),"Yes","No") -> Yes | K91: =VLOOKUP($C91,'C.1 - Rate Sheets'!H:I,2,FALSE) -> 9.5 | L91: 0 | M91: 0 | N91: 0 | O91: 0 | P91: 0 | Q91: 0 | R91: 0 | S91: 0 | T91: 0 | U91: 0 | V91: 0 | W91: 16 | X91: 16 | Y91: 16 | Z91: 0 | AA91: 0 | AB91: 0 | AC91: 0 | AD91: 0 | AE91: 48 | AF91: 456 | AG91: 456 | AH91: 0 | AI91: 0 | AJ91: 0
B92: 75 | C92: Material Trailer | D92: 467 | E92: Vendor No. 20 | F92: 212-120 | G92: 5289 | H92: 2017-09-15 | I92: 2017-09-17 | J92: =IF(AND(H92>='A - Contractor Summary'!$C$36,I92<='A - Contractor Summary'!$C$42),"Yes","No") -> Yes | K92: =VLOOKUP($C92,'C.1 - Rate Sheets'!H:I,2,FALSE) -> 9.5 | L92: 0 | M92: 0 | N92: 0 | O92: 0 | P92: 0 | Q92: 0 | R92: 0 | S92: 0 | T92: 0 | U92: 0 | V92: 0 | W92: 16 | X92: 16 | Y92: 16 | Z92: 0 | AA92: 0 | AB92: 0 | AC92: 0 | AD92: 0 | AE92: 48 | AF92: 456 | AG92: 456 | AH92: 0 | AI92: 0 | AJ92: 0
B93: 76 | C93: Pickup 3/4 ton | D93: PT183 | E93: Vendor No. 20 | F93: 242-7 | G93: 5294 | H93: 2017-09-11 | I93: 2017-09-17 | J93: =IF(AND(H93>='A - Contractor Summary'!$C$36,I93<='A - Contractor Summary'!$C$42),"Yes","No") -> Yes | K93: =VLOOKUP($C93,'C.1 - Rate Sheets'!H:I,2,FALSE) -> 21.5 | L93: 0 | M93: 0 | N93: 0 | O93: 0 | P93: 0 | Q93: 0 | R93: 0 | S93: 16 | T93: 19 | U93: 15 | V93: 16 | W93: 16 | X93: 16 | Y93: 16 | Z93: 0 | AA93: 0 | AB93: 0 | AC93: 0 | AD93: 0 | AE93: 114 | AF93: 2451 | AG93: 2451 | AH93: 0 | AI93: 0 | AJ93: 0
B94: 77 | C94: Bucket Truck 55 | D94: 239 | E94: Vendor No. 20 | F94: 242-7 | G94: 5294 | H94: 2017-09-11 | I94: 2017-09-17 | J94: =IF(AND(H94>='A - Contractor Summary'!$C$36,I94<='A - Contractor Summary'!$C$42),"Yes","No") -> Yes | K94: =VLOOKUP($C94,'C.1 - Rate Sheets'!H:I,2,FALSE) -> 34.52 | L94: 0 | M94: 0 | N94: 0 | O94: 0 | P94: 0 | Q94: 0 | R94: 0 | S94: 16 | T94: 19 | U94: 15 | V94: 16 | W94: 16 | X94: 16 | Y94: 16 | Z94: 0 | AA94: 0 | AB94: 0 | AC94: 0 | AD94: 0 | AE94: 114 | AF94: 3935.28 | AG94: 3935.28 | AH94: 0 | AI94: 0 | AJ94: 0
B95: 78 | C95: Bucket Truck 55 | D95: BT327 | E95: Vendor No. 20 | F95: 242-7 | G95: 5294 | H95: 2017-09-11 | I95: 2017-09-17 | J95: =IF(AND(H95>='A - Contractor Summary'!$C$36,I95<='A - Contractor Summary'!$C$42),"Yes","No") -> Yes | K95: =VLOOKUP($C95,'C.1 - Rate Sheets'!H:I,2,FALSE) -> 34.52 | L95: 0 | M95: 0 | N95: 0 | O95: 0 | P95: 0 | Q95: 0 | R95: 0 | S95: 16 | T95: 19 | U95: 15 | V95: 16 | W95: 16 | X95: 16 | Y95: 16 | Z95: 0 | AA95: 0 | AB95: 0 | AC95: 0 | AD95: 0 | AE95: 114 | AF95: 3935.28 | AG95: 3935.28 | AH95: 0 | AI95: 0 | AJ95: 0
B96: 79 | C96: Digger | D96: DT371 | E96: Vendor No. 20 | F96: 242-7 | G96: 5294 | H96: 2017-09-11 | I96: 2017-09-17 | J96: =IF(AND(H96>='A - Contractor Summary'!$C$36,I96<='A - Contractor Summary'!$C$42),"Yes","No") -> Yes | K96: =VLOOKUP($C96,'C.1 - Rate Sheets'!H:I,2,FALSE) -> 40.25 | L96: 0 | M96: 0 | N96: 0 | O96: 0 | P96: 0 | Q96: 0 | R96: 0 | S96: 16 | T96: 19 | U96: 15 | V96: 16 | W96: 16 | X96: 16 | Y96: 16 | Z96: 0 | AA96: 0 | AB96: 0 | AC96: 0 | AD96: 0 | AE96: 114 | AF96: 4588.5 | AG96: 4588.5 | AH96: 0 | AI96: 0 | AJ96: 0
B97: 80 | C97: Pole Trailer | D97: PT569 | E97: Vendor No. 20 | F97: 242-7 | G97: 5294 | H97: 2017-09-11 | I97: 2017-09-17 | J97: =IF(AND(H97>='A - Contractor Summary'!$C$36,I97<='A - Contractor Summary'!$C$42),"Yes","No") -> Yes | K97: =VLOOKUP($C97,'C.1 - Rate Sheets'!H:I,2,FALSE) -> 9.5 | L97: 0 | M97: 0 | N97: 0 | O97: 0 | P97: 0 | Q97: 0 | R97: 0 | S97: 16 | T97: 19 | U97: 15 | V97: 16 | W97: 16 | X97: 16 | Y97: 16 | Z97: 0 | AA97: 0 | AB97: 0 | AC97: 0 | AD97: 0 | AE97: 114 | AF97: 1083 | AG97: 1083 | AH97: 0 | AI97: 0 | AJ97: 0
B98: 81 | C98: Pickup 3/4 ton | D98: PT214 | E98: Vendor No. 20 | F98: 716-2 | G98: 5298 | H98: 2017-09-13 | I98: 2017-09-17 | J98: =IF(AND(H98>='A - Contractor Summary'!$C$36,I98<='A - Contractor Summary'!$C$42),"Yes","No") -> Yes | K98: =VLOOKUP($C98,'C.1 - Rate Sheets'!H:I,2,FALSE) -> 21.5 | L98: 0 | M98: 0 | N98: 0 | O98: 0 | P98: 0 | Q98: 0 | R98: 0 | S98: 0 | T98: 0 | U98: 16 | V98: 16 | W98: 16 | X98: 16 | Y98: 16 | Z98: 0 | AA98: 0 | AB98: 0 | AC98: 0 | AD98: 0 | AE98: 80 | AF98: 1720 | AG98: 1720 | AH98: 0 | AI98: 0 | AJ98: 0
B99: 82 | C99: Bucket Truck 55 | D99: BT361 | E99: Vendor No. 20 | F99: 716-2 | G99: 5298 | H99: 2017-09-13 | I99: 2017-09-17 | J99: =IF(AND(H99>='A - Contractor Summary'!$C$36,I99<='A - Contractor Summary'!$C$42),"Yes","No") -> Yes | K99: =VLOOKUP($C99,'C.1 - Rate Sheets'!H:I,2,FALSE) -> 34.52 | L99: 0 | M99: 0 | N99: 0 | O99: 0 | P99: 0 | Q99: 0 | R99: 0 | S99: 0 | T99: 0 | U99: 16 | V99: 16 | W99: 16 | X99: 16 | Y99: 16 | Z99: 0 | AA99: 0 | AB99: 0 | AC99: 0 | AD99: 0 | AE99: 80 | AF99: 2761.6 | AG99: 2761.6 | AH99: 0 | AI99: 0 | AJ99: 0
B100: 83 | C100: Bucket Truck 55 | D100: BT353 | E100: Vendor No. 20 | F100: 716-2 | G100: 5298 | H100: 2017-09-13 | I100: 2017-09-17 | J100: =IF(AND(H100>='A - Contractor Summary'!$C$36,I100<='A - Contractor Summary'!$C$42),"Yes","No") -> Yes | K100: =VLOOKUP($C100,'C.1 - Rate Sheets'!H:I,2,FALSE) -> 34.52 | L100: 0 | M100: 0 | N100: 0 | O100: 0 | P100: 0 | Q100: 0 | R100: 0 | S100: 0 | T100: 0 | U100: 16 | V100: 16 | W100: 16 | X100: 16 | Y100: 16 | Z100: 0 | AA100: 0 | AB100: 0 | AC100: 0 | AD100: 0 | AE100: 80 | AF100: 2761.6 | AG100: 2761.6 | AH100: 0 | AI100: 0 | AJ100: 0
B101: 84 | C101: Digger | D101: DT393 | E101: Vendor No. 20 | F101: 716-2 | G101: 5298 | H101: 2017-09-13 | I101: 2017-09-17 | J101: =IF(AND(H101>='A - Contractor Summary'!$C$36,I101<='A - Contractor Summary'!$C$42),"Yes","No") -> Yes | K101: =VLOOKUP($C101,'C.1 - Rate Sheets'!H:I,2,FALSE) -> 40.25 | L101: 0 | M101: 0 | N101: 0 | O101: 0 | P101: 0 | Q101: 0 | R101: 0 | S101: 0 | T101: 0 | U101: 16 | V101: 16 | W101: 16 | X101: 16 | Y101: 16 | Z101: 0 | AA101: 0 | AB101: 0 | AC101: 0 | AD101: 0 | AE101: 80 | AF101: 3220 | AG101: 3220 | AH101: 0 | AI101: 0 | AJ101: 0
B102: 85 | C102: Pole Trailer | D102: PT572 | E102: Vendor No. 20 | F102: 716-2 | G102: 5298 | H102: 2017-09-13 | I102: 2017-09-17 | J102: =IF(AND(H102>='A - Contractor Summary'!$C$36,I102<='A - Contractor Summary'!$C$42),"Yes","No") -> Yes | K102: =VLOOKUP($C102,'C.1 - Rate Sheets'!H:I,2,FALSE) -> 9.5 | L102: 0 | M102: 0 | N102: 0 | O102: 0 | P102: 0 | Q102: 0 | R102: 0 | S102: 0 | T102: 0 | U102: 16 | V102: 16 | W102: 16 | X102: 16 | Y102: 16 | Z102: 0 | AA102: 0 | AB102: 0 | AC102: 0 | AD102: 0 | AE102: 80 | AF102: 760 | AG102: 760 | AH102: 0 | AI102: 0 | AJ102: 0
B103: 86 | C103: Material Trailer | D103: MT597 | E103: Vendor No. 20 | F103: 716-2 | G103: 5298 | H103: 2017-09-13 | I103: 2017-09-17 | J103: =IF(AND(H103>='A - Contractor Summary'!$C$36,I103<='A - Contractor Summary'!$C$42),"Yes","No") -> Yes | K103: =VLOOKUP($C103,'C.1 - Rate Sheets'!H:I,2,FALSE) -> 9.5 | L103: 0 | M103: 0 | N103: 0 | O103: 0 | P103: 0 | Q103: 0 | R103: 0 | S103: 0 | T103: 0 | U103: 16 | V103: 16 | W103: 16 | X103: 16 | Y103: 16 | Z103: 0 | AA103: 0 | AB103: 0 | AC103: 0 | AD103: 0 | AE103: 80 | AF103: 760 | AG103: 760 | AH103: 0 | AI103: 0 | AJ103: 0
L104: =SUM(L18:L103) -> 0 | M104: 0 | N104: 0 | O104: 4 | P104: 252 | Q104: 252 | R104: 663 | S104: 1052 | T104: 1035 | U104: 1159 | V104: 1288 | W104: 1314 | X104: 1330 | Y104: 1300 | Z104: 0 | AA104: 0 | AB104: 0 | AC104: 0 | AD104: 0 | AE104: 9649 | AF104: =IFERROR(SUM(AF18:AF103),0) -> 242568.1 | AG104: =IFERROR(SUM(AG18:AG103),0) -> 242568.1 | AH104: =SUM(AH18:AH103) -> 0 | AI104: =SUM(AI18:AI103) -> 0 | AJ104: =SUM(AJ18:AJ103) -> 0 | AK104: =AH104-AI104-AJ104 -> 0 | AL104: check (b)
B108: Tickmark Explanation:

Sheet D - Lodging
B2: Lodging Charges
B4: Test Plan: (A) Obtain support of individual charges. (B) Enter Yes/No if receipt is itemized (C) Enter Yes/No if proof of payment has been provided. (D) Ensure charges fall between the dates the vendor was mobilized and the date they arrived. (E) Ensure charges are prior to the date the vendor arrived home or was released to another utility. (F) Ensure the location of stay was reasonable (G) Determine the amount(s) to be reviewed, allowed and/or disallowed. (H) For charges which required further review, document review (include why it was determined to be allowed/disallowed via a tickmark).
B8: Rx | C8: Recalculated.
B9: a | C9: Check figure should equal $0. Cell will appear yellow if discrepancies are noted.
C11: A | M11: Rx | N11: B | O11: C | P11: D | Q11: E | R11: F | S11: G | V11: H
B12: Support Reviewed | P12: Conclusion
B13: # | C13: Type of Support | D13: Support Identifier | E13: Crew | F13: Company | G13: Check In Date | H13: Person | I13: Hotel Name | J13: Location | K13: # of Nights | L13: Total Invoice | M13: $ / Night | N13: Itemized Receipt | O13: Proof of Payment | P13: Reasonable based on Mobilization date(s) | Q13: Reasonable based on Demobilization date(s) | R13: Location Reasonable | S13: Conclusion | T13: $ Allowable Charge | U13: $ To Be Reviewed | V13: Reviewed - Allowable $ | W13: Reviewed - Unallowable $ | X13: Tickmark
B14: 1 | C14: Receipt | D14: 2198 | E14: 204-75 | F14: Vendor No. 20 | G14: 2017-09-08 | I14: Holiday Inn | J14: Hammond, LA | K14: 3 | L14: 374.43 | M14: =L14/K14 -> 124.81 | N14: Yes | O14: Yes | P14: =IF(AND(G14>='A - Contractor Summary'!$C$36,G14<='A - Contractor Summary'!$C$38),"Yes",IF(G14<'A - Contractor Summary'!$C$36,"No",IF(G14>'A - Contractor Summary'!$C$39,"",""))) -> Yes | Q14: =IF(OR(P14="Yes",P14="No")*AND(G14<'A - Contractor Summary'!$C$39),"",IF(AND(G14>'A - Contractor Summary'!$C$39,G14<'A - Contractor Summary'!$C$42),"Yes",IF(G14>'A - Contractor Summary'!$C$42,"No","Needs Review"))) ->  | R14: Yes | S14: =IF(AND(R14="YES",O14="Yes",N14="Yes")*OR(P14="Yes",Q14="Yes"),"Yes",IF(OR(N14="No",O14="No",P14="No",Q14="No",R14="No"),"No","Needs Review")) -> Yes | T14: =IF(S14="Yes",L14,0) -> 374.43 | U14: =IF(S14="Needs Review",L14,0) -> 0
B15: 2 | C15: Receipt | D15: 2199 | E15: 228-44 | F15: Vendor No. 20 | G15: 2017-09-08 | I15: Holiday Inn | J15: Hammond, LA | K15: 3 | L15: 391.53 | M15: 130.51 | N15: Yes | O15: Yes | P15: =IF(AND(G15>='A - Contractor Summary'!$C$36,G15<='A - Contractor Summary'!$C$38),"Yes",IF(G15<'A - Contractor Summary'!$C$36,"No",IF(G15>'A - Contractor Summary'!$C$39,"",""))) -> Yes | Q15: =IF(OR(P15="Yes",P15="No")*AND(G15<'A - Contractor Summary'!$C$39),"",IF(AND(G15>'A - Contractor Summary'!$C$39,G15<'A - Contractor Summary'!$C$42),"Yes",IF(G15>'A - Contractor Summary'!$C$42,"No","Needs Review"))) ->  | R15: Yes | S15: Yes | T15: 391.53 | U15: 0
B16: 3 | C16: Receipt | D16: 2200 | E16: 205-87 | F16: Vendor No. 20 | G16: 2017-09-08 | I16: Holiday Inn | J16: Hammond, LA | K16: 3 | L16: 391.53 | M16: 130.51 | N16: Yes | O16: Yes | P16: =IF(AND(G16>='A - Contractor Summary'!$C$36,G16<='A - Contractor Summary'!$C$38),"Yes",IF(G16<'A - Contractor Summary'!$C$36,"No",IF(G16>'A - Contractor Summary'!$C$39,"",""))) -> Yes | Q16: =IF(OR(P16="Yes",P16="No")*AND(G16<'A - Contractor Summary'!$C$39),"",IF(AND(G16>'A - Contractor Summary'!$C$39,G16<'A - Contractor Summary'!$C$42),"Yes",IF(G16>'A - Contractor Summary'!$C$42,"No","Needs Review"))) ->  | R16: Yes | S16: Yes | T16: 391.53 | U16: 0
B17: 4 | C17: Receipt | D17: 2204 | E17: 228-44 | F17: Vendor No. 20 | G17: 2017-09-08 | I17: Holiday Inn | J17: Hammond, LA | K17: 3 | L17: 391.53 | M17: 130.51 | N17: Yes | O17: Yes | P17: =IF(AND(G17>='A - Contractor Summary'!$C$36,G17<='A - Contractor Summary'!$C$38),"Yes",IF(G17<'A - Contractor Summary'!$C$36,"No",IF(G17>'A - Contractor Summary'!$C$39,"",""))) -> Yes | Q17: =IF(OR(P17="Yes",P17="No")*AND(G17<'A - Contractor Summary'!$C$39),"",IF(AND(G17>'A - Contractor Summary'!$C$39,G17<'A - Contractor Summary'!$C$42),"Yes",IF(G17>'A - Contractor Summary'!$C$42,"No","Needs Review"))) ->  | R17: Yes | S17: Yes | T17: 391.53 | U17: 0
B18: 5 | C18: Receipt | D18: 2205 | E18: 228-44 | F18: Vendor No. 20 | G18: 2017-09-08 | I18: Holiday Inn | J18: Hammond, LA | K18: 3 | L18: 393.53 | M18: 131.1766667 | N18: Yes | O18: Yes | P18: =IF(AND(G18>='A - Contractor Summary'!$C$36,G18<='A - Contractor Summary'!$C$38),"Yes",IF(G18<'A - Contractor Summary'!$C$36,"No",IF(G18>'A - Contractor Summary'!$C$39,"",""))) -> Yes | Q18: =IF(OR(P18="Yes",P18="No")*AND(G18<'A - Contractor Summary'!$C$39),"",IF(AND(G18>'A - Contractor Summary'!$C$39,G18<'A - Contractor Summary'!$C$42),"Yes",IF(G18>'A - Contractor Summary'!$C$42,"No","Needs Review"))) ->  | R18: Yes | S18: Yes | T18: 393.53 | U18: 0
B19: 6 | C19: Receipt | D19: 2206 | E19: 209-231 | F19: Vendor No. 20 | G19: 2017-09-10 | I19: Hampton Inn | J19: Hammond, LA | K19: 1 | L19: 135.67 | M19: 135.67 | N19: Yes | O19: Yes | P19: =IF(AND(G19>='A - Contractor Summary'!$C$36,G19<='A - Contractor Summary'!$C$38),"Yes",IF(G19<'A - Contractor Summary'!$C$36,"No",IF(G19>'A - Contractor Summary'!$C$39,"",""))) -> Yes | Q19: =IF(OR(P19="Yes",P19="No")*AND(G19<'A - Contractor Summary'!$C$39),"",IF(AND(G19>'A - Contractor Summary'!$C$39,G19<'A - Contractor Summary'!$C$42),"Yes",IF(G19>'A - Contractor Summary'!$C$42,"No","Needs Review"))) ->  | R19: Yes | S19: Yes | T19: 135.67 | U19: 0
B20: 7 | C20: Receipt | D20: 2206 | E20: 212-120 | F20: Vendor No. 20 | G20: 2017-09-10 | I20: Hampton Inn | J20: Hammond, LA | K20: 1 | L20: 135.67 | M20: 135.67 | N20: Yes | O20: Yes | P20: =IF(AND(G20>='A - Contractor Summary'!$C$36,G20<='A - Contractor Summary'!$C$38),"Yes",IF(G20<'A - Contractor Summary'!$C$36,"No",IF(G20>'A - Contractor Summary'!$C$39,"",""))) -> Yes | Q20: =IF(OR(P20="Yes",P20="No")*AND(G20<'A - Contractor Summary'!$C$39),"",IF(AND(G20>'A - Contractor Summary'!$C$39,G20<'A - Contractor Summary'!$C$42),"Yes",IF(G20>'A - Contractor Summary'!$C$42,"No","Needs Review"))) ->  | R20: Yes | S20: Yes | T20: 135.67 | U20: 0
B21: 8 | C21: Receipt | D21: 2206 | E21: 212-120 | F21: Vendor No. 20 | G21: 2017-09-10 | I21: Hampton Inn | J21: Hammond, LA | K21: 1 | L21: 135.67 | M21: 135.67 | N21: Yes | O21: Yes | P21: =IF(AND(G21>='A - Contractor Summary'!$C$36,G21<='A - Contractor Summary'!$C$38),"Yes",IF(G21<'A - Contractor Summary'!$C$36,"No",IF(G21>'A - Contractor Summary'!$C$39,"",""))) -> Yes | Q21: =IF(OR(P21="Yes",P21="No")*AND(G21<'A - Contractor Summary'!$C$39),"",IF(AND(G21>'A - Contractor Summary'!$C$39,G21<'A - Contractor Summary'!$C$42),"Yes",IF(G21>'A - Contractor Summary'!$C$42,"No","Needs Review"))) ->  | R21: Yes | S21: Yes | T21: 135.67 | U21: 0
B22: 9 | C22: Receipt | D22: 2206 | E22: 57-6 | F22: Vendor No. 20 | G22: 2017-09-10 | I22: Hampton Inn | J22: Hammond, LA | K22: 1 | L22: 135.67 | M22: 135.67 | N22: Yes | O22: Yes | P22: =IF(AND(G22>='A - Contractor Summary'!$C$36,G22<='A - Contractor Summary'!$C$38),"Yes",IF(G22<'A - Contractor Summary'!$C$36,"No",IF(G22>'A - Contractor Summary'!$C$39,"",""))) -> Yes | Q22: =IF(OR(P22="Yes",P22="No")*AND(G22<'A - Contractor Summary'!$C$39),"",IF(AND(G22>'A - Contractor Summary'!$C$39,G22<'A - Contractor Summary'!$C$42),"Yes",IF(G22>'A - Contractor Summary'!$C$42,"No","Needs Review"))) ->  | R22: Yes | S22: Yes | T22: 135.67 | U22: 0
B23: 10 | C23: Receipt | D23: 2206 | E23: 57-6 | F23: Vendor No. 20 | G23: 2017-09-10 | I23: Hampton Inn | J23: Hammond, LA | K23: 1 | L23: 135.67 | M23: 135.67 | N23: Yes | O23: Yes | P23: =IF(AND(G23>='A - Contractor Summary'!$C$36,G23<='A - Contractor Summary'!$C$38),"Yes",IF(G23<'A - Contractor Summary'!$C$36,"No",IF(G23>'A - Contractor Summary'!$C$39,"",""))) -> Yes | Q23: =IF(OR(P23="Yes",P23="No")*AND(G23<'A - Contractor Summary'!$C$39),"",IF(AND(G23>'A - Contractor Summary'!$C$39,G23<'A - Contractor Summary'!$C$42),"Yes",IF(G23>'A - Contractor Summary'!$C$42,"No","Needs Review"))) ->  | R23: Yes | S23: Yes | T23: 135.67 | U23: 0
B24: 11 | C24: Receipt | D24: 2206 | E24: 57-6 | F24: Vendor No. 20 | G24: 2017-09-10 | I24: Hampton Inn | J24: Hammond, LA | K24: 1 | L24: 135.67 | M24: 135.67 | N24: Yes | O24: Yes | P24: =IF(AND(G24>='A - Contractor Summary'!$C$36,G24<='A - Contractor Summary'!$C$38),"Yes",IF(G24<'A - Contractor Summary'!$C$36,"No",IF(G24>'A - Contractor Summary'!$C$39,"",""))) -> Yes | Q24: =IF(OR(P24="Yes",P24="No")*AND(G24<'A - Contractor Summary'!$C$39),"",IF(AND(G24>'A - Contractor Summary'!$C$39,G24<'A - Contractor Summary'!$C$42),"Yes",IF(G24>'A - Contractor Summary'!$C$42,"No","Needs Review"))) ->  | R24: Yes | S24: Yes | T24: 135.67 | U24: 0
B25: 12 | C25: Receipt | D25: 2206 | E25: 716-2 | F25: Vendor No. 20 | G25: 2017-09-10 | I25: Hampton Inn | J25: Hammond, LA | K25: 1 | L25: 135.67 | M25: 135.67 | N25: Yes | O25: Yes | P25: =IF(AND(G25>='A - Contractor Summary'!$C$36,G25<='A - Contractor Summary'!$C$38),"Yes",IF(G25<'A - Contractor Summary'!$C$36,"No",IF(G25>'A - Contractor Summary'!$C$39,"",""))) -> Yes | Q25: =IF(OR(P25="Yes",P25="No")*AND(G25<'A - Contractor Summary'!$C$39),"",IF(AND(G25>'A - Contractor Summary'!$C$39,G25<'A - Contractor Summary'!$C$42),"Yes",IF(G25>'A - Contractor Summary'!$C$42,"No","Needs Review"))) ->  | R25: Yes | S25: Yes | T25: 135.67 | U25: 0
B26: 13 | C26: Receipt | D26: 2206 | E26: 716-2 | F26: Vendor No. 20 | G26: 2017-09-10 | I26: Hampton Inn | J26: Hammond, LA | K26: 1 | L26: 135.67 | M26: 135.67 | N26: Yes | O26: Yes | P26: =IF(AND(G26>='A - Contractor Summary'!$C$36,G26<='A - Contractor Summary'!$C$38),"Yes",IF(G26<'A - Contractor Summary'!$C$36,"No",IF(G26>'A - Contractor Summary'!$C$39,"",""))) -> Yes | Q26: =IF(OR(P26="Yes",P26="No")*AND(G26<'A - Contractor Summary'!$C$39),"",IF(AND(G26>'A - Contractor Summary'!$C$39,G26<'A - Contractor Summary'!$C$42),"Yes",IF(G26>'A - Contractor Summary'!$C$42,"No","Needs Review"))) ->  | R26: Yes | S26: Yes | T26: 135.67 | U26: 0
B27: 14 | C27: Receipt | D27: 2207 | E27: 238-15 | F27: Vendor No. 20 | G27: 2017-09-10 | I27: Super 8 | J27: Hammond, LA | K27: 1 | L27: 79.81 | M27: 79.81 | N27: Yes | O27: Yes | P27: =IF(AND(G27>='A - Contractor Summary'!$C$36,G27<='A - Contractor Summary'!$C$38),"Yes",IF(G27<'A - Contractor Summary'!$C$36,"No",IF(G27>'A - Contractor Summary'!$C$39,"",""))) -> Yes | Q27: =IF(OR(P27="Yes",P27="No")*AND(G27<'A - Contractor Summary'!$C$39),"",IF(AND(G27>'A - Contractor Summary'!$C$39,G27<'A - Contractor Summary'!$C$42),"Yes",IF(G27>'A - Contractor Summary'!$C$42,"No","Needs Review"))) ->  | R27: Yes | S27: Yes | T27: 79.81 | U27: 0
B28: 15 | C28: Receipt | D28: 2207 | E28: 238-15 | F28: Vendor No. 20 | G28: 2017-09-10 | I28: Super 8 | J28: Hammond, LA | K28: 1 | L28: 79.81 | M28: 79.81 | N28: Yes | O28: Yes | P28: =IF(AND(G28>='A - Contractor Summary'!$C$36,G28<='A - Contractor Summary'!$C$38),"Yes",IF(G28<'A - Contractor Summary'!$C$36,"No",IF(G28>'A - Contractor Summary'!$C$39,"",""))) -> Yes | Q28: =IF(OR(P28="Yes",P28="No")*AND(G28<'A - Contractor Summary'!$C$39),"",IF(AND(G28>'A - Contractor Summary'!$C$39,G28<'A - Contractor Summary'!$C$42),"Yes",IF(G28>'A - Contractor Summary'!$C$42,"No","Needs Review"))) ->  | R28: Yes | S28: Yes | T28: 79.81 | U28: 0
B29: 16 | C29: Receipt | D29: 2207 | E29: 404-134 | F29: Vendor No. 20 | G29: 2017-09-10 | I29: Super 8 | J29: Hammond, LA | K29: 1 | L29: 79.81 | M29: 79.81 | N29: Yes | O29: Yes | P29: =IF(AND(G29>='A - Contractor Summary'!$C$36,G29<='A - Contractor Summary'!$C$38),"Yes",IF(G29<'A - Contractor Summary'!$C$36,"No",IF(G29>'A - Contractor Summary'!$C$39,"",""))) -> Yes | Q29: =IF(OR(P29="Yes",P29="No")*AND(G29<'A - Contractor Summary'!$C$39),"",IF(AND(G29>'A - Contractor Summary'!$C$39,G29<'A - Contractor Summary'!$C$42),"Yes",IF(G29>'A - Contractor Summary'!$C$42,"No","Needs Review"))) ->  | R29: Yes | S29: Yes | T29: 79.81 | U29: 0
B30: 17 | C30: Receipt | D30: 2207 | E30: 404-134 | F30: Vendor No. 20 | G30: 2017-09-10 | I30: Super 8 | J30: Hammond, LA | K30: 1 | L30: 79.81 | M30: 79.81 | N30: Yes | O30: Yes | P30: =IF(AND(G30>='A - Contractor Summary'!$C$36,G30<='A - Contractor Summary'!$C$38),"Yes",IF(G30<'A - Contractor Summary'!$C$36,"No",IF(G30>'A - Contractor Summary'!$C$39,"",""))) -> Yes | Q30: =IF(OR(P30="Yes",P30="No")*AND(G30<'A - Contractor Summary'!$C$39),"",IF(AND(G30>'A - Contractor Summary'!$C$39,G30<'A - Contractor Summary'!$C$42),"Yes",IF(G30>'A - Contractor Summary'!$C$42,"No","Needs Review"))) ->  | R30: Yes | S30: Yes | T30: 79.81 | U30: 0
B31: 18 | C31: Receipt | D31: 2207 | E31: 404-134 | F31: Vendor No. 20 | G31: 2017-09-10 | I31: Super 8 | J31: Hammond, LA | K31: 1 | L31: 79.81 | M31: 79.81 | N31: Yes | O31: Yes | P31: =IF(AND(G31>='A - Contractor Summary'!$C$36,G31<='A - Contractor Summary'!$C$38),"Yes",IF(G31<'A - Contractor Summary'!$C$36,"No",IF(G31>'A - Contractor Summary'!$C$39,"",""))) -> Yes | Q31: =IF(OR(P31="Yes",P31="No")*AND(G31<'A - Contractor Summary'!$C$39),"",IF(AND(G31>'A - Contractor Summary'!$C$39,G31<'A - Contractor Summary'!$C$42),"Yes",IF(G31>'A - Contractor Summary'!$C$42,"No","Needs Review"))) ->  | R31: Yes | S31: Yes | T31: 79.81 | U31: 0
B32: 19 | C32: Receipt | D32: 2207 | E32: 209-231 | F32: Vendor No. 20 | G32: 2017-09-10 | I32: Super 8 | J32: Hammond, LA | K32: 1 | L32: 79.81 | M32: 79.81 | N32: Yes | O32: Yes | P32: =IF(AND(G32>='A - Contractor Summary'!$C$36,G32<='A - Contractor Summary'!$C$38),"Yes",IF(G32<'A - Contractor Summary'!$C$36,"No",IF(G32>'A - Contractor Summary'!$C$39,"",""))) -> Yes | Q32: =IF(OR(P32="Yes",P32="No")*AND(G32<'A - Contractor Summary'!$C$39),"",IF(AND(G32>'A - Contractor Summary'!$C$39,G32<'A - Contractor Summary'!$C$42),"Yes",IF(G32>'A - Contractor Summary'!$C$42,"No","Needs Review"))) ->  | R32: Yes | S32: Yes | T32: 79.81 | U32: 0
B33: 20 | C33: Receipt | D33: 2208 | E33: 238-15 | F33: Vendor No. 20 | G33: 2017-09-10 | I33: Holiday Inn | J33: Hammond, LA | K33: 1 | L33: 141.91 | M33: 141.91 | N33: Yes | O33: Yes | P33: =IF(AND(G33>='A - Contractor Summary'!$C$36,G33<='A - Contractor Summary'!$C$38),"Yes",IF(G33<'A - Contractor Summary'!$C$36,"No",IF(G33>'A - Contractor Summary'!$C$39,"",""))) -> Yes | Q33: =IF(OR(P33="Yes",P33="No")*AND(G33<'A - Contractor Summary'!$C$39),"",IF(AND(G33>'A - Contractor Summary'!$C$39,G33<'A - Contractor Summary'!$C$42),"Yes",IF(G33>'A - Contractor Summary'!$C$42,"No","Needs Review"))) ->  | R33: Yes | S33: Yes | T33: 141.91 | U33: 0
B34: 21 | C34: Receipt | D34: 2209 | E34: 238-15 | F34: Vendor No. 20 | G34: 2017-09-10 | I34: Holiday Inn | J34: Hammond, LA | K34: 1 | L34: 119.11 | M34: 119.11 | N34: Yes | O34: Yes | P34: =IF(AND(G34>='A - Contractor Summary'!$C$36,G34<='A - Contractor Summary'!$C$38),"Yes",IF(G34<'A - Contractor Summary'!$C$36,"No",IF(G34>'A - Contractor Summary'!$C$39,"",""))) -> Yes | Q34: =IF(OR(P34="Yes",P34="No")*AND(G34<'A - Contractor Summary'!$C$39),"",IF(AND(G34>'A - Contractor Summary'!$C$39,G34<'A - Contractor Summary'!$C$42),"Yes",IF(G34>'A - Contractor Summary'!$C$42,"No","Needs Review"))) ->  | R34: Yes | S34: Yes | T34: 119.11 | U34: 0
B35: 22 | C35: Receipt | D35: 2210 | E35: 219-25 | F35: Vendor No. 20 | G35: 2017-09-10 | I35: Holiday Inn | J35: Hammond, LA | K35: 1 | L35: 119.11 | M35: 119.11 | N35: Yes | O35: Yes | P35: =IF(AND(G35>='A - Contractor Summary'!$C$36,G35<='A - Contractor Summary'!$C$38),"Yes",IF(G35<'A - Contractor Summary'!$C$36,"No",IF(G35>'A - Contractor Summary'!$C$39,"",""))) -> Yes | Q35: =IF(OR(P35="Yes",P35="No")*AND(G35<'A - Contractor Summary'!$C$39),"",IF(AND(G35>'A - Contractor Summary'!$C$39,G35<'A - Contractor Summary'!$C$42),"Yes",IF(G35>'A - Contractor Summary'!$C$42,"No","Needs Review"))) ->  | R35: Yes | S35: Yes | T35: 119.11 | U35: 0
B36: 23 | C36: Receipt | D36: 2211 | E36: 219-25 | F36: Vendor No. 20 | G36: 2017-09-10 | I36: Holiday Inn | J36: Hammond, LA | K36: 1 | L36: 141.91 | M36: 141.91 | N36: Yes | O36: Yes | P36: =IF(AND(G36>='A - Contractor Summary'!$C$36,G36<='A - Contractor Summary'!$C$38),"Yes",IF(G36<'A - Contractor Summary'!$C$36,"No",IF(G36>'A - Contractor Summary'!$C$39,"",""))) -> Yes | Q36: =IF(OR(P36="Yes",P36="No")*AND(G36<'A - Contractor Summary'!$C$39),"",IF(AND(G36>'A - Contractor Summary'!$C$39,G36<'A - Contractor Summary'!$C$42),"Yes",IF(G36>'A - Contractor Summary'!$C$42,"No","Needs Review"))) ->  | R36: Yes | S36: Yes | T36: 141.91 | U36: 0
B37: 24 | C37: Receipt | D37: 2212 | E37: 202-171 | F37: Vendor No. 20 | G37: 2017-09-10 | I37: Holiday Inn | J37: Hammond, LA | K37: 1 | L37: 119.11 | M37: 119.11 | N37: Yes | O37: Yes | P37: =IF(AND(G37>='A - Contractor Summary'!$C$36,G37<='A - Contractor Summary'!$C$38),"Yes",IF(G37<'A - Contractor Summary'!$C$36,"No",IF(G37>'A - Contractor Summary'!$C$39,"",""))) -> Yes | Q37: =IF(OR(P37="Yes",P37="No")*AND(G37<'A - Contractor Summary'!$C$39),"",IF(AND(G37>'A - Contractor Summary'!$C$39,G37<'A - Contractor Summary'!$C$42),"Yes",IF(G37>'A - Contractor Summary'!$C$42,"No","Needs Review"))) ->  | R37: Yes | S37: Yes | T37: 119.11 | U37: 0
B38: 25 | C38: Receipt | D38: 2213 | E38: 202-171 | F38: Vendor No. 20 | G38: 2017-09-10 | I38: Holiday Inn | J38: Hammond, LA | K38: 1 | L38: 119.11 | M38: 119.11 | N38: Yes | O38: Yes | P38: =IF(AND(G38>='A - Contractor Summary'!$C$36,G38<='A - Contractor Summary'!$C$38),"Yes",IF(G38<'A - Contractor Summary'!$C$36,"No",IF(G38>'A - Contractor Summary'!$C$39,"",""))) -> Yes | Q38: =IF(OR(P38="Yes",P38="No")*AND(G38<'A - Contractor Summary'!$C$39),"",IF(AND(G38>'A - Contractor Summary'!$C$39,G38<'A - Contractor Summary'!$C$42),"Yes",IF(G38>'A - Contractor Summary'!$C$42,"No","Needs Review"))) ->  | R38: Yes | S38: Yes | T38: 119.11 | U38: 0
B39: 26 | C39: Receipt | D39: 2214 | E39: 202-171 | F39: Vendor No. 20 | G39: 2017-09-10 | I39: Holiday Inn | J39: Hammond, LA | K39: 1 | L39: 124.81 | M39: 124.81 | N39: Yes | O39: Yes | P39: =IF(AND(G39>='A - Contractor Summary'!$C$36,G39<='A - Contractor Summary'!$C$38),"Yes",IF(G39<'A - Contractor Summary'!$C$36,"No",IF(G39>'A - Contractor Summary'!$C$39,"",""))) -> Yes | Q39: =IF(OR(P39="Yes",P39="No")*AND(G39<'A - Contractor Summary'!$C$39),"",IF(AND(G39>'A - Contractor Summary'!$C$39,G39<'A - Contractor Summary'!$C$42),"Yes",IF(G39>'A - Contractor Summary'!$C$42,"No","Needs Review"))) ->  | R39: Yes | S39: Yes | T39: 124.81 | U39: 0
B40: 27 | C40: Receipt | D40: 2218 | E40: 204-75 | F40: Vendor No. 20 | G40: 2017-09-10 | I40: Holiday Inn | J40: Hammond, LA | K40: 1 | L40: 119.11 | M40: 119.11 | N40: Yes | O40: Yes | P40: =IF(AND(G40>='A - Contractor Summary'!$C$36,G40<='A - Contractor Summary'!$C$38),"Yes",IF(G40<'A - Contractor Summary'!$C$36,"No",IF(G40>'A - Contractor Summary'!$C$39,"",""))) -> Yes | Q40: =IF(OR(P40="Yes",P40="No")*AND(G40<'A - Contractor Summary'!$C$39),"",IF(AND(G40>'A - Contractor Summary'!$C$39,G40<'A - Contractor Summary'!$C$42),"Yes",IF(G40>'A - Contractor Summary'!$C$42,"No","Needs Review"))) ->  | R40: Yes | S40: Yes | T40: 119.11 | U40: 0
B41: 28 | C41: Receipt | D41: 2219 | E41: 205-87 | F41: Vendor No. 20 | G41: 2017-09-10 | I41: Holiday Inn | J41: Hammond, LA | K41: 1 | L41: 119.11 | M41: 119.11 | N41: Yes | O41: Yes | P41: =IF(AND(G41>='A - Contractor Summary'!$C$36,G41<='A - Contractor Summary'!$C$38),"Yes",IF(G41<'A - Contractor Summary'!$C$36,"No",IF(G41>'A - Contractor Summary'!$C$39,"",""))) -> Yes | Q41: =IF(OR(P41="Yes",P41="No")*AND(G41<'A - Contractor Summary'!$C$39),"",IF(AND(G41>'A - Contractor Summary'!$C$39,G41<'A - Contractor Summary'!$C$42),"Yes",IF(G41>'A - Contractor Summary'!$C$42,"No","Needs Review"))) ->  | R41: Yes | S41: Yes | T41: 119.11 | U41: 0
B42: 29 | C42: Receipt | D42: 2222 | E42: 206-131 | F42: Vendor No. 20 | G42: 2017-09-10 | I42: Holiday Inn | J42: Hammond, LA | K42: 1 | L42: 124.81 | M42: 124.81 | N42: Yes | O42: Yes | P42: =IF(AND(G42>='A - Contractor Summary'!$C$36,G42<='A - Contractor Summary'!$C$38),"Yes",IF(G42<'A - Contractor Summary'!$C$36,"No",IF(G42>'A - Contractor Summary'!$C$39,"",""))) -> Yes | Q42: =IF(OR(P42="Yes",P42="No")*AND(G42<'A - Contractor Summary'!$C$39),"",IF(AND(G42>'A - Contractor Summary'!$C$39,G42<'A - Contractor Summary'!$C$42),"Yes",IF(G42>'A - Contractor Summary'!$C$42,"No","Needs Review"))) ->  | R42: Yes | S42: Yes | T42: 124.81 | U42: 0
B43: 30 | C43: Receipt | D43: 2223 | E43: 206-131 | F43: Vendor No. 20 | G43: 2017-09-10 | I43: Holiday Inn | J43: Hammond, LA | K43: 1 | L43: 141.91 | M43: 141.91 | N43: Yes | O43: Yes | P43: =IF(AND(G43>='A - Contractor Summary'!$C$36,G43<='A - Contractor Summary'!$C$38),"Yes",IF(G43<'A - Contractor Summary'!$C$36,"No",IF(G43>'A - Contractor Summary'!$C$39,"",""))) -> Yes | Q43: =IF(OR(P43="Yes",P43="No")*AND(G43<'A - Contractor Summary'!$C$39),"",IF(AND(G43>'A - Contractor Summary'!$C$39,G43<'A - Contractor Summary'!$C$42),"Yes",IF(G43>'A - Contractor Summary'!$C$42,"No","Needs Review"))) ->  | R43: Yes | S43: Yes | T43: 141.91 | U43: 0
B44: 31 | C44: Receipt | D44: 2224 | E44: 206-131 | F44: Vendor No. 20 | G44: 2017-09-10 | I44: Holiday Inn | J44: Hammond, LA | K44: 1 | L44: 141.91 | M44: 141.91 | N44: Yes | O44: Yes | P44: =IF(AND(G44>='A - Contractor Summary'!$C$36,G44<='A - Contractor Summary'!$C$38),"Yes",IF(G44<'A - Contractor Summary'!$C$36,"No",IF(G44>'A - Contractor Summary'!$C$39,"",""))) -> Yes | Q44: =IF(OR(P44="Yes",P44="No")*AND(G44<'A - Contractor Summary'!$C$39),"",IF(AND(G44>'A - Contractor Summary'!$C$39,G44<'A - Contractor Summary'!$C$42),"Yes",IF(G44>'A - Contractor Summary'!$C$42,"No","Needs Review"))) ->  | R44: Yes | S44: Yes | T44: 141.91 | U44: 0
B45: 32 | C45: Receipt | D45: 2230 | E45: 57-6 | F45: Vendor No. 20 | G45: 2017-09-11 | I45: Holiday Inn | J45: Tallahasee, FL | K45: 1 | L45: 167.63 | M45: 167.63 | N45: Yes | O45: Yes | P45: =IF(AND(G45>='A - Contractor Summary'!$C$36,G45<='A - Contractor Summary'!$C$38),"Yes",IF(G45<'A - Contractor Summary'!$C$36,"No",IF(G45>'A - Contractor Summary'!$C$39,"",""))) -> Yes | Q45: =IF(OR(P45="Yes",P45="No")*AND(G45<'A - Contractor Summary'!$C$39),"",IF(AND(G45>'A - Contractor Summary'!$C$39,G45<'A - Contractor Summary'!$C$42),"Yes",IF(G45>'A - Contractor Summary'!$C$42,"No","Needs Review"))) ->  | R45: Yes | S45: Yes | T45: 167.63 | U45: 0
B46: 33 | C46: Receipt | D46: 2230 | E46: 204-75 | F46: Vendor No. 20 | G46: 2017-09-11 | I46: Holiday Inn | J46: Tallahasee, FL | K46: 1 | L46: 167.63 | M46: =L46/K46 -> 167.63 | N46: Yes | O46: Yes | P46: =IF(AND(G46>='A - Contractor Summary'!$C$36,G46<='A - Contractor Summary'!$C$38),"Yes",IF(G46<'A - Contractor Summary'!$C$36,"No",IF(G46>'A - Contractor Summary'!$C$39,"",""))) -> Yes | Q46: =IF(OR(P46="Yes",P46="No")*AND(G46<'A - Contractor Summary'!$C$39),"",IF(AND(G46>'A - Contractor Summary'!$C$39,G46<'A - Contractor Summary'!$C$42),"Yes",IF(G46>'A - Contractor Summary'!$C$42,"No","Needs Review"))) ->  | R46: Yes | S46: =IF(AND(R46="YES",O46="Yes",N46="Yes")*OR(P46="Yes",Q46="Yes"),"Yes",IF(OR(N46="No",O46="No",P46="No",Q46="No",R46="No"),"No","Needs Review")) -> Yes | T46: =IF(S46="Yes",L46,0) -> 167.63 | U46: =IF(S46="Needs Review",L46,0) -> 0
B47: 34 | C47: Receipt | D47: 2230 | E47: 204-75 | F47: Vendor No. 20 | G47: 2017-09-11 | I47: Holiday Inn | J47: Tallahasee, FL | K47: 1 | L47: 167.63 | M47: 167.63 | N47: Yes | O47: Yes | P47: =IF(AND(G47>='A - Contractor Summary'!$C$36,G47<='A - Contractor Summary'!$C$38),"Yes",IF(G47<'A - Contractor Summary'!$C$36,"No",IF(G47>'A - Contractor Summary'!$C$39,"",""))) -> Yes | Q47: =IF(OR(P47="Yes",P47="No")*AND(G47<'A - Contractor Summary'!$C$39),"",IF(AND(G47>'A - Contractor Summary'!$C$39,G47<'A - Contractor Summary'!$C$42),"Yes",IF(G47>'A - Contractor Summary'!$C$42,"No","Needs Review"))) ->  | R47: Yes | S47: Yes | T47: 167.63 | U47: 0
B48: 35 | C48: Receipt | D48: 2230 | E48: 205-87 | F48: Vendor No. 20 | G48: 2017-09-11 | I48: Holiday Inn | J48: Tallahasee, FL | K48: 1 | L48: 167.63 | M48: 167.63 | N48: Yes | O48: Yes | P48: =IF(AND(G48>='A - Contractor Summary'!$C$36,G48<='A - Contractor Summary'!$C$38),"Yes",IF(G48<'A - Contractor Summary'!$C$36,"No",IF(G48>'A - Contractor Summary'!$C$39,"",""))) -> Yes | Q48: =IF(OR(P48="Yes",P48="No")*AND(G48<'A - Contractor Summary'!$C$39),"",IF(AND(G48>'A - Contractor Summary'!$C$39,G48<'A - Contractor Summary'!$C$42),"Yes",IF(G48>'A - Contractor Summary'!$C$42,"No","Needs Review"))) ->  | R48: Yes | S48: Yes | T48: 167.63 | U48: 0
B49: 36 | C49: Receipt | D49: 2230 | E49: 205-87 | F49: Vendor No. 20 | G49: 2017-09-11 | I49: Holiday Inn | J49: Tallahasee, FL | K49: 1 | L49: 167.63 | M49: 167.63 | N49: Yes | O49: Yes | P49: =IF(AND(G49>='A - Contractor Summary'!$C$36,G49<='A - Contractor Summary'!$C$38),"Yes",IF(G49<'A - Contractor Summary'!$C$36,"No",IF(G49>'A - Contractor Summary'!$C$39,"",""))) -> Yes | Q49: =IF(OR(P49="Yes",P49="No")*AND(G49<'A - Contractor Summary'!$C$39),"",IF(AND(G49>'A - Contractor Summary'!$C$39,G49<'A - Contractor Summary'!$C$42),"Yes",IF(G49>'A - Contractor Summary'!$C$42,"No","Needs Review"))) ->  | R49: Yes | S49: Yes | T49: 167.63 | U49: 0
B50: 37 | C50: Receipt | D50: 2230 | E50: 209-231 | F50: Vendor No. 20 | G50: 2017-09-11 | I50: Holiday Inn | J50: Tallahasee, FL | K50: 1 | L50: 167.63 | M50: 167.63 | N50: Yes | O50: Yes | P50: =IF(AND(G50>='A - Contractor Summary'!$C$36,G50<='A - Contractor Summary'!$C$38),"Yes",IF(G50<'A - Contractor Summary'!$C$36,"No",IF(G50>'A - Contractor Summary'!$C$39,"",""))) -> Yes | Q50: =IF(OR(P50="Yes",P50="No")*AND(G50<'A - Contractor Summary'!$C$39),"",IF(AND(G50>'A - Contractor Summary'!$C$39,G50<'A - Contractor Summary'!$C$42),"Yes",IF(G50>'A - Contractor Summary'!$C$42,"No","Needs Review"))) ->  | R50: Yes | S50: Yes | T50: 167.63 | U50: 0
B51: 38 | C51: Receipt | D51: 2230 | E51: 209-231 | F51: Vendor No. 20 | G51: 2017-09-11 | I51: Holiday Inn | J51: Tallahasee, FL | K51: 1 | L51: 167.63 | M51: 167.63 | N51: Yes | O51: Yes | P51: =IF(AND(G51>='A - Contractor Summary'!$C$36,G51<='A - Contractor Summary'!$C$38),"Yes",IF(G51<'A - Contractor Summary'!$C$36,"No",IF(G51>'A - Contractor Summary'!$C$39,"",""))) -> Yes | Q51: =IF(OR(P51="Yes",P51="No")*AND(G51<'A - Contractor Summary'!$C$39),"",IF(AND(G51>'A - Contractor Summary'!$C$39,G51<'A - Contractor Summary'!$C$42),"Yes",IF(G51>'A - Contractor Summary'!$C$42,"No","Needs Review"))) ->  | R51: Yes | S51: Yes | T51: 167.63 | U51: 0
B52: 39 | C52: Receipt | D52: 2230 | E52: 212-120 | F52: Vendor No. 20 | G52: 2017-09-11 | I52: Holiday Inn | J52: Tallahasee, FL | K52: 1 | L52: 167.63 | M52: 167.63 | N52: Yes | O52: Yes | P52: =IF(AND(G52>='A - Contractor Summary'!$C$36,G52<='A - Contractor Summary'!$C$38),"Yes",IF(G52<'A - Contractor Summary'!$C$36,"No",IF(G52>'A - Contractor Summary'!$C$39,"",""))) -> Yes | Q52: =IF(OR(P52="Yes",P52="No")*AND(G52<'A - Contractor Summary'!$C$39),"",IF(AND(G52>'A - Contractor Summary'!$C$39,G52<'A - Contractor Summary'!$C$42),"Yes",IF(G52>'A - Contractor Summary'!$C$42,"No","Needs Review"))) ->  | R52: Yes | S52: Yes | T52: 167.63 | U52: 0
B53: 40 | C53: Receipt | D53: 2230 | E53: 212-120 | F53: Vendor No. 20 | G53: 2017-09-11 | I53: Holiday Inn | J53: Tallahasee, FL | K53: 1 | L53: 167.63 | M53: 167.63 | N53: Yes | O53: Yes | P53: =IF(AND(G53>='A - Contractor Summary'!$C$36,G53<='A - Contractor Summary'!$C$38),"Yes",IF(G53<'A - Contractor Summary'!$C$36,"No",IF(G53>'A - Contractor Summary'!$C$39,"",""))) -> Yes | Q53: =IF(OR(P53="Yes",P53="No")*AND(G53<'A - Contractor Summary'!$C$39),"",IF(AND(G53>'A - Contractor Summary'!$C$39,G53<'A - Contractor Summary'!$C$42),"Yes",IF(G53>'A - Contractor Summary'!$C$42,"No","Needs Review"))) ->  | R53: Yes | S53: Yes | T53: 167.63 | U53: 0
B54: 41 | C54: Receipt | D54: 2231 | E54: 219-25 | F54: Vendor No. 20 | G54: 2017-09-11 | I54: Holiday Inn | J54: Tallahasee, FL | K54: 1 | L54: 167.63 | M54: 167.63 | N54: Yes | O54: Yes | P54: =IF(AND(G54>='A - Contractor Summary'!$C$36,G54<='A - Contractor Summary'!$C$38),"Yes",IF(G54<'A - Contractor Summary'!$C$36,"No",IF(G54>'A - Contractor Summary'!$C$39,"",""))) -> Yes | Q54: =IF(OR(P54="Yes",P54="No")*AND(G54<'A - Contractor Summary'!$C$39),"",IF(AND(G54>'A - Contractor Summary'!$C$39,G54<'A - Contractor Summary'!$C$42),"Yes",IF(G54>'A - Contractor Summary'!$C$42,"No","Needs Review"))) ->  | R54: Yes | S54: Yes | T54: 167.63 | U54: 0
B55: 42 | C55: Receipt | D55: 2231 | E55: 219-25 | F55: Vendor No. 20 | G55: 2017-09-11 | I55: Holiday Inn | J55: Tallahasee, FL | K55: 1 | L55: 167.63 | M55: 167.63 | N55: Yes | O55: Yes | P55: =IF(AND(G55>='A - Contractor Summary'!$C$36,G55<='A - Contractor Summary'!$C$38),"Yes",IF(G55<'A - Contractor Summary'!$C$36,"No",IF(G55>'A - Contractor Summary'!$C$39,"",""))) -> Yes | Q55: =IF(OR(P55="Yes",P55="No")*AND(G55<'A - Contractor Summary'!$C$39),"",IF(AND(G55>'A - Contractor Summary'!$C$39,G55<'A - Contractor Summary'!$C$42),"Yes",IF(G55>'A - Contractor Summary'!$C$42,"No","Needs Review"))) ->  | R55: Yes | S55: Yes | T55: 167.63 | U55: 0
B56: 43 | C56: Receipt | D56: 2231 | E56: 228-44 | F56: Vendor No. 20 | G56: 2017-09-11 | I56: Holiday Inn | J56: Tallahasee, FL | K56: 1 | L56: 167.63 | M56: 167.63 | N56: Yes | O56: Yes | P56: =IF(AND(G56>='A - Contractor Summary'!$C$36,G56<='A - Contractor Summary'!$C$38),"Yes",IF(G56<'A - Contractor Summary'!$C$36,"No",IF(G56>'A - Contractor Summary'!$C$39,"",""))) -> Yes | Q56: =IF(OR(P56="Yes",P56="No")*AND(G56<'A - Contractor Summary'!$C$39),"",IF(AND(G56>'A - Contractor Summary'!$C$39,G56<'A - Contractor Summary'!$C$42),"Yes",IF(G56>'A - Contractor Summary'!$C$42,"No","Needs Review"))) ->  | R56: Yes | S56: Yes | T56: 167.63 | U56: 0
B57: 44 | C57: Receipt | D57: 2231 | E57: 228-44 | F57: Vendor No. 20 | G57: 2017-09-11 | I57: Holiday Inn | J57: Tallahasee, FL | K57: 1 | L57: 167.63 | M57: 167.63 | N57: Yes | O57: Yes | P57: =IF(AND(G57>='A - Contractor Summary'!$C$36,G57<='A - Contractor Summary'!$C$38),"Yes",IF(G57<'A - Contractor Summary'!$C$36,"No",IF(G57>'A - Contractor Summary'!$C$39,"",""))) -> Yes | Q57: =IF(OR(P57="Yes",P57="No")*AND(G57<'A - Contractor Summary'!$C$39),"",IF(AND(G57>'A - Contractor Summary'!$C$39,G57<'A - Contractor Summary'!$C$42),"Yes",IF(G57>'A - Contractor Summary'!$C$42,"No","Needs Review"))) ->  | R57: Yes | S57: Yes | T57: 167.63 | U57: 0
B58: 45 | C58: Receipt | D58: 2231 | E58: 228-44 | F58: Vendor No. 20 | G58: 2017-09-11 | I58: Holiday Inn | J58: Tallahasee, FL | K58: 1 | L58: 167.63 | M58: 167.63 | N58: Yes | O58: Yes | P58: =IF(AND(G58>='A - Contractor Summary'!$C$36,G58<='A - Contractor Summary'!$C$38),"Yes",IF(G58<'A - Contractor Summary'!$C$36,"No",IF(G58>'A - Contractor Summary'!$C$39,"",""))) -> Yes | Q58: =IF(OR(P58="Yes",P58="No")*AND(G58<'A - Contractor Summary'!$C$39),"",IF(AND(G58>'A - Contractor Summary'!$C$39,G58<'A - Contractor Summary'!$C$42),"Yes",IF(G58>'A - Contractor Summary'!$C$42,"No","Needs Review"))) ->  | R58: Yes | S58: Yes | T58: 167.63 | U58: 0
B59: 46 | C59: Receipt | D59: 2231 | E59: 238-15 | F59: Vendor No. 20 | G59: 2017-09-11 | I59: Holiday Inn | J59: Tallahasee, FL | K59: 1 | L59: 167.63 | M59: 167.63 | N59: Yes | O59: Yes | P59: =IF(AND(G59>='A - Contractor Summary'!$C$36,G59<='A - Contractor Summary'!$C$38),"Yes",IF(G59<'A - Contractor Summary'!$C$36,"No",IF(G59>'A - Contractor Summary'!$C$39,"",""))) -> Yes | Q59: =IF(OR(P59="Yes",P59="No")*AND(G59<'A - Contractor Summary'!$C$39),"",IF(AND(G59>'A - Contractor Summary'!$C$39,G59<'A - Contractor Summary'!$C$42),"Yes",IF(G59>'A - Contractor Summary'!$C$42,"No","Needs Review"))) ->  | R59: Yes | S59: Yes | T59: 167.63 | U59: 0
B60: 47 | C60: Receipt | D60: 2231 | E60: 238-15 | F60: Vendor No. 20 | G60: 2017-09-11 | I60: Holiday Inn | J60: Tallahasee, FL | K60: 1 | L60: 167.63 | M60: 167.63 | N60: Yes | O60: Yes | P60: =IF(AND(G60>='A - Contractor Summary'!$C$36,G60<='A - Contractor Summary'!$C$38),"Yes",IF(G60<'A - Contractor Summary'!$C$36,"No",IF(G60>'A - Contractor Summary'!$C$39,"",""))) -> Yes | Q60: =IF(OR(P60="Yes",P60="No")*AND(G60<'A - Contractor Summary'!$C$39),"",IF(AND(G60>'A - Contractor Summary'!$C$39,G60<'A - Contractor Summary'!$C$42),"Yes",IF(G60>'A - Contractor Summary'!$C$42,"No","Needs Review"))) ->  | R60: Yes | S60: Yes | T60: 167.63 | U60: 0
B61: 48 | C61: Receipt | D61: 2231 | E61: 248-3 | F61: Vendor No. 20 | G61: 2017-09-11 | I61: Holiday Inn | J61: Tallahasee, FL | K61: 1 | L61: 167.63 | M61: 167.63 | N61: Yes | O61: Yes | P61: =IF(AND(G61>='A - Contractor Summary'!$C$36,G61<='A - Contractor Summary'!$C$38),"Yes",IF(G61<'A - Contractor Summary'!$C$36,"No",IF(G61>'A - Contractor Summary'!$C$39,"",""))) -> Yes | Q61: =IF(OR(P61="Yes",P61="No")*AND(G61<'A - Contractor Summary'!$C$39),"",IF(AND(G61>'A - Contractor Summary'!$C$39,G61<'A - Contractor Summary'!$C$42),"Yes",IF(G61>'A - Contractor Summary'!$C$42,"No","Needs Review"))) ->  | R61: Yes | S61: Yes | T61: 167.63 | U61: 0
B62: 49 | C62: Receipt | D62: 2232 | E62: 248-3 | F62: Vendor No. 20 | G62: 2017-09-11 | I62: Holiday Inn | J62: Tallahasee, FL | K62: 1 | L62: 167.63 | M62: 167.63 | N62: Yes | O62: Yes | P62: =IF(AND(G62>='A - Contractor Summary'!$C$36,G62<='A - Contractor Summary'!$C$38),"Yes",IF(G62<'A - Contractor Summary'!$C$36,"No",IF(G62>'A - Contractor Summary'!$C$39,"",""))) -> Yes | Q62: =IF(OR(P62="Yes",P62="No")*AND(G62<'A - Contractor Summary'!$C$39),"",IF(AND(G62>'A - Contractor Summary'!$C$39,G62<'A - Contractor Summary'!$C$42),"Yes",IF(G62>'A - Contractor Summary'!$C$42,"No","Needs Review"))) ->  | R62: Yes | S62: Yes | T62: 167.63 | U62: 0
B63: 50 | C63: Receipt | D63: 2232 | E63: 404-134 | F63: Vendor No. 20 | G63: 2017-09-11 | I63: Holiday Inn | J63: Tallahasee, FL | K63: 1 | L63: 167.63 | M63: 167.63 | N63: Yes | O63: Yes | P63: =IF(AND(G63>='A - Contractor Summary'!$C$36,G63<='A - Contractor Summary'!$C$38),"Yes",IF(G63<'A - Contractor Summary'!$C$36,"No",IF(G63>'A - Contractor Summary'!$C$39,"",""))) -> Yes | Q63: =IF(OR(P63="Yes",P63="No")*AND(G63<'A - Contractor Summary'!$C$39),"",IF(AND(G63>'A - Contractor Summary'!$C$39,G63<'A - Contractor Summary'!$C$42),"Yes",IF(G63>'A - Contractor Summary'!$C$42,"No","Needs Review"))) ->  | R63: Yes | S63: Yes | T63: 167.63 | U63: 0
B64: 51 | C64: Receipt | D64: 2232 | E64: 404-134 | F64: Vendor No. 20 | G64: 2017-09-11 | I64: Holiday Inn | J64: Tallahasee, FL | K64: 1 | L64: 167.63 | M64: 167.63 | N64: Yes | O64: Yes | P64: =IF(AND(G64>='A - Contractor Summary'!$C$36,G64<='A - Contractor Summary'!$C$38),"Yes",IF(G64<'A - Contractor Summary'!$C$36,"No",IF(G64>'A - Contractor Summary'!$C$39,"",""))) -> Yes | Q64: =IF(OR(P64="Yes",P64="No")*AND(G64<'A - Contractor Summary'!$C$39),"",IF(AND(G64>'A - Contractor Summary'!$C$39,G64<'A - Contractor Summary'!$C$42),"Yes",IF(G64>'A - Contractor Summary'!$C$42,"No","Needs Review"))) ->  | R64: Yes | S64: Yes | T64: 167.63 | U64: 0
B65: 52 | C65: Receipt | D65: 2232 | E65: 404-134 | F65: Vendor No. 20 | G65: 2017-09-11 | I65: Holiday Inn | J65: Tallahasee, FL | K65: 1 | L65: 167.63 | M65: 167.63 | N65: Yes | O65: Yes | P65: =IF(AND(G65>='A - Contractor Summary'!$C$36,G65<='A - Contractor Summary'!$C$38),"Yes",IF(G65<'A - Contractor Summary'!$C$36,"No",IF(G65>'A - Contractor Summary'!$C$39,"",""))) -> Yes | Q65: =IF(OR(P65="Yes",P65="No")*AND(G65<'A - Contractor Summary'!$C$39),"",IF(AND(G65>'A - Contractor Summary'!$C$39,G65<'A - Contractor Summary'!$C$42),"Yes",IF(G65>'A - Contractor Summary'!$C$42,"No","Needs Review"))) ->  | R65: Yes | S65: Yes | T65: 167.63 | U65: 0
B66: 53 | C66: Receipt | D66: 2232 | E66: 716-2 | F66: Vendor No. 20 | G66: 2017-09-11 | I66: Holiday Inn | J66: Tallahasee, FL | K66: 1 | L66: 167.63 | M66: 167.63 | N66: Yes | O66: Yes | P66: =IF(AND(G66>='A - Contractor Summary'!$C$36,G66<='A - Contractor Summary'!$C$38),"Yes",IF(G66<'A - Contractor Summary'!$C$36,"No",IF(G66>'A - Contractor Summary'!$C$39,"",""))) -> Yes | Q66: =IF(OR(P66="Yes",P66="No")*AND(G66<'A - Contractor Summary'!$C$39),"",IF(AND(G66>'A - Contractor Summary'!$C$39,G66<'A - Contractor Summary'!$C$42),"Yes",IF(G66>'A - Contractor Summary'!$C$42,"No","Needs Review"))) ->  | R66: Yes | S66: Yes | T66: 167.63 | U66: 0
B67: 54 | C67: Receipt | D67: 2232 | E67: 716-2 | F67: Vendor No. 20 | G67: 2017-09-11 | I67: Holiday Inn | J67: Tallahasee, FL | K67: 1 | L67: 167.63 | M67: 167.63 | N67: Yes | O67: Yes | P67: =IF(AND(G67>='A - Contractor Summary'!$C$36,G67<='A - Contractor Summary'!$C$38),"Yes",IF(G67<'A - Contractor Summary'!$C$36,"No",IF(G67>'A - Contractor Summary'!$C$39,"",""))) -> Yes | Q67: =IF(OR(P67="Yes",P67="No")*AND(G67<'A - Contractor Summary'!$C$39),"",IF(AND(G67>'A - Contractor Summary'!$C$39,G67<'A - Contractor Summary'!$C$42),"Yes",IF(G67>'A - Contractor Summary'!$C$42,"No","Needs Review"))) ->  | R67: Yes | S67: Yes | T67: 167.63 | U67: 0
B68: 55 | C68: Receipt | D68: 2232 | E68: 716-2 | F68: Vendor No. 20 | G68: 2017-09-11 | I68: Holiday Inn | J68: Tallahasee, FL | K68: 1 | L68: 167.63 | M68: 167.63 | N68: Yes | O68: Yes | P68: =IF(AND(G68>='A - Contractor Summary'!$C$36,G68<='A - Contractor Summary'!$C$38),"Yes",IF(G68<'A - Contractor Summary'!$C$36,"No",IF(G68>'A - Contractor Summary'!$C$39,"",""))) -> Yes | Q68: =IF(OR(P68="Yes",P68="No")*AND(G68<'A - Contractor Summary'!$C$39),"",IF(AND(G68>'A - Contractor Summary'!$C$39,G68<'A - Contractor Summary'!$C$42),"Yes",IF(G68>'A - Contractor Summary'!$C$42,"No","Needs Review"))) ->  | R68: Yes | S68: Yes | T68: 167.63 | U68: 0
B69: 56 | C69: Receipt | D69: 2234 | E69: 101-15 | F69: Vendor No. 20 | G69: 2017-09-11 | I69: Holiday Inn | J69: Defuniak, FL | K69: 1 | L69: 138.03 | M69: 138.03 | N69: Yes | O69: Yes | P69: =IF(AND(G69>='A - Contractor Summary'!$C$36,G69<='A - Contractor Summary'!$C$38),"Yes",IF(G69<'A - Contractor Summary'!$C$36,"No",IF(G69>'A - Contractor Summary'!$C$39,"",""))) -> Yes | Q69: =IF(OR(P69="Yes",P69="No")*AND(G69<'A - Contractor Summary'!$C$39),"",IF(AND(G69>'A - Contractor Summary'!$C$39,G69<'A - Contractor Summary'!$C$42),"Yes",IF(G69>'A - Contractor Summary'!$C$42,"No","Needs Review"))) ->  | R69: Yes | S69: Yes | T69: 138.03 | U69: 0
B70: 57 | C70: Receipt | D70: 2235 | E70: 202-171 | F70: Vendor No. 20 | G70: 2017-09-11 | I70: Holiday Inn | J70: Defuniak, FL | K70: 1 | L70: 138.03 | M70: 138.03 | N70: Yes | O70: Yes | P70: =IF(AND(G70>='A - Contractor Summary'!$C$36,G70<='A - Contractor Summary'!$C$38),"Yes",IF(G70<'A - Contractor Summary'!$C$36,"No",IF(G70>'A - Contractor Summary'!$C$39,"",""))) -> Yes | Q70: =IF(OR(P70="Yes",P70="No")*AND(G70<'A - Contractor Summary'!$C$39),"",IF(AND(G70>'A - Contractor Summary'!$C$39,G70<'A - Contractor Summary'!$C$42),"Yes",IF(G70>'A - Contractor Summary'!$C$42,"No","Needs Review"))) ->  | R70: Yes | S70: Yes | T70: 138.03 | U70: 0
B71: 58 | C71: Receipt | D71: 2236 | E71: 206-131 | F71: Vendor No. 20 | G71: 2017-09-11 | I71: Holiday Inn | J71: Defuniak, FL | K71: 1 | L71: 138.03 | M71: 138.03 | N71: Yes | O71: Yes | P71: =IF(AND(G71>='A - Contractor Summary'!$C$36,G71<='A - Contractor Summary'!$C$38),"Yes",IF(G71<'A - Contractor Summary'!$C$36,"No",IF(G71>'A - Contractor Summary'!$C$39,"",""))) -> Yes | Q71: =IF(OR(P71="Yes",P71="No")*AND(G71<'A - Contractor Summary'!$C$39),"",IF(AND(G71>'A - Contractor Summary'!$C$39,G71<'A - Contractor Summary'!$C$42),"Yes",IF(G71>'A - Contractor Summary'!$C$42,"No","Needs Review"))) ->  | R71: Yes | S71: Yes | T71: 138.03 | U71: 0
B72: 59 | C72: Receipt | D72: 2237 | E72: 242-7 | F72: Vendor No. 20 | G72: 2017-09-11 | I72: Holiday Inn | J72: Defuniak, FL | K72: 1 | L72: 138.03 | M72: 138.03 | N72: Yes | O72: Yes | P72: =IF(AND(G72>='A - Contractor Summary'!$C$36,G72<='A - Contractor Summary'!$C$38),"Yes",IF(G72<'A - Contractor Summary'!$C$36,"No",IF(G72>'A - Contractor Summary'!$C$39,"",""))) -> Yes | Q72: =IF(OR(P72="Yes",P72="No")*AND(G72<'A - Contractor Summary'!$C$39),"",IF(AND(G72>'A - Contractor Summary'!$C$39,G72<'A - Contractor Summary'!$C$42),"Yes",IF(G72>'A - Contractor Summary'!$C$42,"No","Needs Review"))) ->  | R72: Yes | S72: Yes | T72: 138.03 | U72: 0
B73: 60 | C73: Receipt | D73: 2238 | E73: 57-6 | F73: Vendor No. 20 | G73: 2017-09-11 | I73: Holiday Inn | J73: Defuniak, FL | K73: 1 | L73: 138.03 | M73: 138.03 | N73: Yes | O73: Yes | P73: =IF(AND(G73>='A - Contractor Summary'!$C$36,G73<='A - Contractor Summary'!$C$38),"Yes",IF(G73<'A - Contractor Summary'!$C$36,"No",IF(G73>'A - Contractor Summary'!$C$39,"",""))) -> Yes | Q73: =IF(OR(P73="Yes",P73="No")*AND(G73<'A - Contractor Summary'!$C$39),"",IF(AND(G73>'A - Contractor Summary'!$C$39,G73<'A - Contractor Summary'!$C$42),"Yes",IF(G73>'A - Contractor Summary'!$C$42,"No","Needs Review"))) ->  | R73: Yes | S73: Yes | T73: 138.03 | U73: 0
B74: 61 | C74: Receipt | D74: 2239 | E74: 219-25 | F74: Vendor No. 20 | G74: 2017-09-11 | I74: Holiday Inn | J74: Defuniak, FL | K74: 1 | L74: 138.03 | M74: 138.03 | N74: Yes | O74: Yes | P74: =IF(AND(G74>='A - Contractor Summary'!$C$36,G74<='A - Contractor Summary'!$C$38),"Yes",IF(G74<'A - Contractor Summary'!$C$36,"No",IF(G74>'A - Contractor Summary'!$C$39,"",""))) -> Yes | Q74: =IF(OR(P74="Yes",P74="No")*AND(G74<'A - Contractor Summary'!$C$39),"",IF(AND(G74>'A - Contractor Summary'!$C$39,G74<'A - Contractor Summary'!$C$42),"Yes",IF(G74>'A - Contractor Summary'!$C$42,"No","Needs Review"))) ->  | R74: Yes | S74: Yes | T74: 138.03 | U74: 0
B75: 62 | C75: Receipt | D75: 2240 | E75: 248-3 | F75: Vendor No. 20 | G75: 2017-09-10 | I75: Holiday Inn | J75: Hammond, LA | K75: 1 | L75: 141.91 | M75: 141.91 | N75: Yes | O75: Yes | P75: =IF(AND(G75>='A - Contractor Summary'!$C$36,G75<='A - Contractor Summary'!$C$38),"Yes",IF(G75<'A - Contractor Summary'!$C$36,"No",IF(G75>'A - Contractor Summary'!$C$39,"",""))) -> Yes | Q75: =IF(OR(P75="Yes",P75="No")*AND(G75<'A - Contractor Summary'!$C$39),"",IF(AND(G75>'A - Contractor Summary'!$C$39,G75<'A - Contractor Summary'!$C$42),"Yes",IF(G75>'A - Contractor Summary'!$C$42,"No","Needs Review"))) ->  | R75: Yes | S75: Yes | T75: 141.91 | U75: 0
B76: 63 | C76: Receipt | D76: 2242 | E76: 101-15 | F76: Vendor No. 20 | G76: 2017-09-11 | I76: La Quinta | J76: Mobile, AL | K76: 1 | L76: 90.05 | M76: 90.05 | N76: Yes | O76: No | P76: =IF(AND(G76>='A - Contractor Summary'!$C$36,G76<='A - Contractor Summary'!$C$38),"Yes",IF(G76<'A - Contractor Summary'!$C$36,"No",IF(G76>'A - Contractor Summary'!$C$39,"",""))) -> Yes | Q76: =IF(OR(P76="Yes",P76="No")*AND(G76<'A - Contractor Summary'!$C$39),"",IF(AND(G76>'A - Contractor Summary'!$C$39,G76<'A - Contractor Summary'!$C$42),"Yes",IF(G76>'A - Contractor Summary'!$C$42,"No","Needs Review"))) ->  | R76: Yes | S76: No | T76: 0 | U76: 0 | X76: 3
B77: 64 | C77: Receipt | D77: 2243 | E77: 101-15 | F77: Vendor No. 20 | G77: 2017-09-11 | I77: Hampton Inn | J77: Hammond, LA | K77: 1 | L77: 147.06 | M77: 147.06 | N77: Yes | O77: No | P77: =IF(AND(G77>='A - Contractor Summary'!$C$36,G77<='A - Contractor Summary'!$C$38),"Yes",IF(G77<'A - Contractor Summary'!$C$36,"No",IF(G77>'A - Contractor Summary'!$C$39,"",""))) -> Yes | Q77: =IF(OR(P77="Yes",P77="No")*AND(G77<'A - Contractor Summary'!$C$39),"",IF(AND(G77>'A - Contractor Summary'!$C$39,G77<'A - Contractor Summary'!$C$42),"Yes",IF(G77>'A - Contractor Summary'!$C$42,"No","Needs Review"))) ->  | R77: Yes | S77: No | T77: 0 | U77: 0 | X77: 3
B78: 65 | C78: Receipt | D78: 2244 | E78: 101-15 | F78: Vendor No. 20 | G78: 2017-09-11 | I78: Hilton | J78: Daphne, AL | K78: 1 | L78: 130.9 | M78: =L78/K78 -> 130.9 | N78: Yes | O78: Yes | P78: =IF(AND(G78>='A - Contractor Summary'!$C$36,G78<='A - Contractor Summary'!$C$38),"Yes",IF(G78<'A - Contractor Summary'!$C$36,"No",IF(G78>'A - Contractor Summary'!$C$39,"",""))) -> Yes | Q78: =IF(OR(P78="Yes",P78="No")*AND(G78<'A - Contractor Summary'!$C$39),"",IF(AND(G78>'A - Contractor Summary'!$C$39,G78<'A - Contractor Summary'!$C$42),"Yes",IF(G78>'A - Contractor Summary'!$C$42,"No","Needs Review"))) ->  | R78: Yes | S78: =IF(AND(R78="YES",O78="Yes",N78="Yes")*OR(P78="Yes",Q78="Yes"),"Yes",IF(OR(N78="No",O78="No",P78="No",Q78="No",R78="No"),"No","Needs Review")) -> Yes | T78: =IF(S78="Yes",L78,0) -> 130.9 | U78: =IF(S78="Needs Review",L78,0) -> 0
B79: 66 | C79: Receipt | D79: 2247 | E79: 202-171 | F79: Vendor No. 20 | G79: 2017-09-11 | I79: Holiday Inn | J79: Hammond, LA | K79: 1 | L79: 119.11 | M79: 119.11 | N79: Yes | O79: Yes | P79: =IF(AND(G79>='A - Contractor Summary'!$C$36,G79<='A - Contractor Summary'!$C$38),"Yes",IF(G79<'A - Contractor Summary'!$C$36,"No",IF(G79>'A - Contractor Summary'!$C$39,"",""))) -> Yes | Q79: =IF(OR(P79="Yes",P79="No")*AND(G79<'A - Contractor Summary'!$C$39),"",IF(AND(G79>'A - Contractor Summary'!$C$39,G79<'A - Contractor Summary'!$C$42),"Yes",IF(G79>'A - Contractor Summary'!$C$42,"No","Needs Review"))) ->  | R79: Yes | S79: Yes | T79: 119.11 | U79: 0
B80: 67 | C80: Receipt | D80: 2248 | E80: 202-171 | F80: Vendor No. 20 | G80: 2017-09-11 | I80: Holiday Inn | J80: Hammond, LA | K80: 1 | L80: 119.11 | M80: 119.11 | N80: Yes | O80: Yes | P80: =IF(AND(G80>='A - Contractor Summary'!$C$36,G80<='A - Contractor Summary'!$C$38),"Yes",IF(G80<'A - Contractor Summary'!$C$36,"No",IF(G80>'A - Contractor Summary'!$C$39,"",""))) -> Yes | Q80: =IF(OR(P80="Yes",P80="No")*AND(G80<'A - Contractor Summary'!$C$39),"",IF(AND(G80>'A - Contractor Summary'!$C$39,G80<'A - Contractor Summary'!$C$42),"Yes",IF(G80>'A - Contractor Summary'!$C$42,"No","Needs Review"))) ->  | R80: Yes | S80: Yes | T80: 119.11 | U80: 0
B81: 68 | C81: Receipt | D81: 2260 | E81: 242-7 | F81: Vendor No. 20 | G81: 2017-09-11 | I81: Jameson Inns Mobile | J81: Mobile, AL | K81: 1 | L81: 96.22 | M81: 96.22 | N81: Yes | O81: No | P81: =IF(AND(G81>='A - Contractor Summary'!$C$36,G81<='A - Contractor Summary'!$C$38),"Yes",IF(G81<'A - Contractor Summary'!$C$36,"No",IF(G81>'A - Contractor Summary'!$C$39,"",""))) -> Yes | Q81: =IF(OR(P81="Yes",P81="No")*AND(G81<'A - Contractor Summary'!$C$39),"",IF(AND(G81>'A - Contractor Summary'!$C$39,G81<'A - Contractor Summary'!$C$42),"Yes",IF(G81>'A - Contractor Summary'!$C$42,"No","Needs Review"))) ->  | R81: Yes | S81: No | T81: 0 | U81: 0 | X81: 3
B82: 69 | C82: Receipt | D82: 2261 | E82: 242-7 | F82: Vendor No. 20 | G82: 2017-09-11 | I82: La Quinta | J82: Mobile, AL | K82: 1 | L82: 90.05 | M82: 90.05 | N82: Yes | O82: No | P82: =IF(AND(G82>='A - Contractor Summary'!$C$36,G82<='A - Contractor Summary'!$C$38),"Yes",IF(G82<'A - Contractor Summary'!$C$36,"No",IF(G82>'A - Contractor Summary'!$C$39,"",""))) -> Yes | Q82: =IF(OR(P82="Yes",P82="No")*AND(G82<'A - Contractor Summary'!$C$39),"",IF(AND(G82>'A - Contractor Summary'!$C$39,G82<'A - Contractor Summary'!$C$42),"Yes",IF(G82>'A - Contractor Summary'!$C$42,"No","Needs Review"))) ->  | R82: Yes | S82: No | T82: 0 | U82: 0 | X82: 3
B83: 70 | C83: Receipt | D83: 2272 | E83: 101-15 | F83: Vendor No. 20 | G83: 2017-09-12 | I83: Holiday Inn | J83: Long Beach, MS | K83: 1 | L83: 111.95 | M83: 111.95 | N83: Yes | O83: Yes | P83: =IF(AND(G83>='A - Contractor Summary'!$C$36,G83<='A - Contractor Summary'!$C$38),"Yes",IF(G83<'A - Contractor Summary'!$C$36,"No",IF(G83>'A - Contractor Summary'!$C$39,"",""))) -> Yes | Q83: =IF(OR(P83="Yes",P83="No")*AND(G83<'A - Contractor Summary'!$C$39),"",IF(AND(G83>'A - Contractor Summary'!$C$39,G83<'A - Contractor Summary'!$C$42),"Yes",IF(G83>'A - Contractor Summary'!$C$42,"No","Needs Review"))) ->  | R83: Yes | S83: Yes | T83: 111.95 | U83: 0
B84: 71 | C84: Receipt | D84: 2273 | E84: 101-15 | F84: Vendor No. 20 | G84: 2017-09-12 | I84: Holiday Inn | J84: Long Beach, MS | K84: 1 | L84: 111.95 | M84: 111.95 | N84: Yes | O84: Yes | P84: =IF(AND(G84>='A - Contractor Summary'!$C$36,G84<='A - Contractor Summary'!$C$38),"Yes",IF(G84<'A - Contractor Summary'!$C$36,"No",IF(G84>'A - Contractor Summary'!$C$39,"",""))) -> Yes | Q84: =IF(OR(P84="Yes",P84="No")*AND(G84<'A - Contractor Summary'!$C$39),"",IF(AND(G84>'A - Contractor Summary'!$C$39,G84<'A - Contractor Summary'!$C$42),"Yes",IF(G84>'A - Contractor Summary'!$C$42,"No","Needs Review"))) ->  | R84: Yes | S84: Yes | T84: 111.95 | U84: 0
B85: 72 | C85: Receipt | D85: 2274 | E85: 101-15 | F85: Vendor No. 20 | G85: 2017-09-12 | I85: EconoLodge | J85: Tallahasee, FL | K85: 1 | L85: 61.88 | M85: 61.88 | N85: Yes | O85: Yes | P85: =IF(AND(G85>='A - Contractor Summary'!$C$36,G85<='A - Contractor Summary'!$C$38),"Yes",IF(G85<'A - Contractor Summary'!$C$36,"No",IF(G85>'A - Contractor Summary'!$C$39,"",""))) -> Yes | Q85: =IF(OR(P85="Yes",P85="No")*AND(G85<'A - Contractor Summary'!$C$39),"",IF(AND(G85>'A - Contractor Summary'!$C$39,G85<'A - Contractor Summary'!$C$42),"Yes",IF(G85>'A - Contractor Summary'!$C$42,"No","Needs Review"))) ->  | R85: Yes | S85: Yes | T85: 61.88 | U85: 0
B86: 73 | C86: Receipt | D86: 2275 | E86: 101-15 | F86: Vendor No. 20 | G86: 2017-09-12 | I86: EconoLodge | J86: Tallahasee, FL | K86: 1 | L86: 61.88 | M86: 61.88 | N86: Yes | O86: Yes | P86: =IF(AND(G86>='A - Contractor Summary'!$C$36,G86<='A - Contractor Summary'!$C$38),"Yes",IF(G86<'A - Contractor Summary'!$C$36,"No",IF(G86>'A - Contractor Summary'!$C$39,"",""))) -> Yes | Q86: =IF(OR(P86="Yes",P86="No")*AND(G86<'A - Contractor Summary'!$C$39),"",IF(AND(G86>'A - Contractor Summary'!$C$39,G86<'A - Contractor Summary'!$C$42),"Yes",IF(G86>'A - Contractor Summary'!$C$42,"No","Needs Review"))) ->  | R86: Yes | S86: Yes | T86: 61.88 | U86: 0
B87: 74 | C87: Receipt | D87: 2276 | E87: 101-15 | F87: Vendor No. 20 | G87: 2017-09-12 | I87: Holiday Inn | J87: Tallahasee, FL | K87: 1 | L87: 146.2 | M87: 146.2 | N87: Yes | O87: Yes | P87: =IF(AND(G87>='A - Contractor Summary'!$C$36,G87<='A - Contractor Summary'!$C$38),"Yes",IF(G87<'A - Contractor Summary'!$C$36,"No",IF(G87>'A - Contractor Summary'!$C$39,"",""))) -> Yes | Q87: =IF(OR(P87="Yes",P87="No")*AND(G87<'A - Contractor Summary'!$C$39),"",IF(AND(G87>'A - Contractor Summary'!$C$39,G87<'A - Contractor Summary'!$C$42),"Yes",IF(G87>'A - Contractor Summary'!$C$42,"No","Needs Review"))) ->  | R87: Yes | S87: Yes | T87: 146.2 | U87: 0
B88: 75 | C88: Receipt | D88: 2310 | E88: 209-231 | F88: Vendor No. 20 | G88: 2017-09-14 | I88: Best Western | J88: Moss Point, MS | K88: 1 | L88: 71.68 | M88: 71.68 | N88: Yes | O88: Yes | P88: =IF(AND(G88>='A - Contractor Summary'!$C$36,G88<='A - Contractor Summary'!$C$38),"Yes",IF(G88<'A - Contractor Summary'!$C$36,"No",IF(G88>'A - Contractor Summary'!$C$39,"",""))) ->  | Q88: =IF(OR(P88="Yes",P88="No")*AND(G88<'A - Contractor Summary'!$C$39),"",IF(AND(G88>'A - Contractor Summary'!$C$39,G88<'A - Contractor Summary'!$C$42),"Yes",IF(G88>'A - Contractor Summary'!$C$42,"No","Needs Review"))) -> Needs Review | R88: No | S88: No | T88: 0 | U88: 71.68 | V88: =+M88 -> 71.68 | X88: 4
B89: 76 | C89: Receipt | D89: 2311 | E89: 209-231 | F89: Vendor No. 20 | G89: 2017-09-14 | I89: Best Western | J89: Moss Point, MS | K89: 1 | L89: 71.68 | M89: 71.68 | N89: Yes | O89: Yes | P89: =IF(AND(G89>='A - Contractor Summary'!$C$36,G89<='A - Contractor Summary'!$C$38),"Yes",IF(G89<'A - Contractor Summary'!$C$36,"No",IF(G89>'A - Contractor Summary'!$C$39,"",""))) ->  | Q89: =IF(OR(P89="Yes",P89="No")*AND(G89<'A - Contractor Summary'!$C$39),"",IF(AND(G89>'A - Contractor Summary'!$C$39,G89<'A - Contractor Summary'!$C$42),"Yes",IF(G89>'A - Contractor Summary'!$C$42,"No","Needs Review"))) -> Needs Review | R89: No | S89: No | T89: 0 | U89: 71.68 | V89: =+M89 -> 71.68 | X89: 4
B90: 77 | C90: Receipt | D90: 2316 | E90: 212-120 | F90: Vendor No. 20 | G90: 2017-09-14 | I90: La Quinta | J90: Hammond, LA | K90: 1 | L90: 112.86 | M90: 112.86 | N90: No | O90: No | P90: =IF(AND(G90>='A - Contractor Summary'!$C$36,G90<='A - Contractor Summary'!$C$38),"Yes",IF(G90<'A - Contractor Summary'!$C$36,"No",IF(G90>'A - Contractor Summary'!$C$39,"",""))) ->  | Q90: =IF(OR(P90="Yes",P90="No")*AND(G90<'A - Contractor Summary'!$C$39),"",IF(AND(G90>'A - Contractor Summary'!$C$39,G90<'A - Contractor Summary'!$C$42),"Yes",IF(G90>'A - Contractor Summary'!$C$42,"No","Needs Review"))) -> Needs Review | R90: Yes | S90: No | T90: 0 | U90: 0 | X90: 2,3
B91: 78 | C91: Receipt | D91: 2330 | E91: 101-15 | F91: Vendor No. 20 | G91: 2017-09-16 | I91: Vacation Village | J91: Weston, FL | K91: 1 | L91: 168.84 | M91: 168.84 | N91: Yes | O91: No | P91: =IF(AND(G91>='A - Contractor Summary'!$C$36,G91<='A - Contractor Summary'!$C$38),"Yes",IF(G91<'A - Contractor Summary'!$C$36,"No",IF(G91>'A - Contractor Summary'!$C$39,"",""))) ->  | Q91: =IF(OR(P91="Yes",P91="No")*AND(G91<'A - Contractor Summary'!$C$39),"",IF(AND(G91>'A - Contractor Summary'!$C$39,G91<'A - Contractor Summary'!$C$42),"Yes",IF(G91>'A - Contractor Summary'!$C$42,"No","Needs Review"))) -> Needs Review | R91: No | S91: No | T91: 0 | U91: 0 | X91: 1
B92: 79 | C92: Receipt | D92: 2350 | E92: 101-15 | F92: Vendor No. 20 | G92: 2017-09-17 | I92: Courtyard | J92: Sarasota, FL | K92: 1 | L92: 189.29 | M92: 189.29 | N92: Yes | O92: No | P92: =IF(AND(G92>='A - Contractor Summary'!$C$36,G92<='A - Contractor Summary'!$C$38),"Yes",IF(G92<'A - Contractor Summary'!$C$36,"No",IF(G92>'A - Contractor Summary'!$C$39,"",""))) ->  | Q92: =IF(OR(P92="Yes",P92="No")*AND(G92<'A - Contractor Summary'!$C$39),"",IF(AND(G92>'A - Contractor Summary'!$C$39,G92<'A - Contractor Summary'!$C$42),"Yes",IF(G92>'A - Contractor Summary'!$C$42,"No","Needs Review"))) -> Needs Review | R92: No | S92: No | T92: 0 | U92: 0 | X92: 1
L93: =SUM(L14:L92) -> 11932.61 | T93: =IFERROR(SUM(T14:T92),0) -> 10894.88 | U93: =IFERROR(SUM(U14:U92),0) -> 143.36 | V93: 143.36 | W93: =IFERROR(SUM(W14:W92),0) -> 0 | X93: =U93-V93-W93 -> 0 | Y93: check (a)
B96: Tickmark Explanation:
B97: 1 | C97: Excluded based on dates and location (after estimated arrival, location outside of TECO Service Area)
B98: 2 | C98: Excluded as detailed receipt not provided.
B99: 3 | C99: No proof of payment provided.
B100: 4 | C100: Allowed based on Energy Delivery Analysis: Late traveling crews.

Sheet E - Fuel (hidden)
B2: Fuel Charges
B4: Test Plan: (A) Obtain support of individual charges. (B) Enter Yes/No if receipt is itemized (C) Enter Yes/No if proof of payment has been provided. (D) Ensure charges fall between the dates the vendor was mobilized and the date they arrived. (E) Ensure charges are prior to the date the vendor arrived home or was released to another utility. (F) Ensure the location of charge was reasonable (G) Determine the amount(s) to be reviewed, allowed and/or disallowed. (H) For charges which required further review, document review (include why it was determined to be allowed/disallowed via a tickmark).
P5: No Fuel Charges
B9: a | C9: Check figure should equal $0. Cell will appear yellow if discrepancies are noted.
C11: A | K11: B | L11: C | M11: D | N11: E | O11: F | P11: G | S11: H
B12: Support Reviewed | M12: Conclusions
B13: # | C13: Type of Support | D13: Support Identifier | E13: Company | F13: Date | G13: Person | H13: Name | I13: Location | J13: Total Charge | K13: Itemized Receipt | L13: Proof of Payment | M13: Reasonable based on Mobilization date(s) | N13: Reasonable based on Demobilization date(s) | O13: Locations Reasonable | P13: Conclusion | Q13: $ Allowable Charge | R13: $ To Be Reviewed | S13: Reviewed - Allowable Charge | T13: Reviewed - Unallowable Charge | U13: Tickmarks
B14: 1 | M14: =IF(AND(F14>='A - Contractor Summary'!$C$36,F14<='A - Contractor Summary'!$C$38),"Yes",IF(F14<'A - Contractor Summary'!$C$36,"No",IF(F14>'A - Contractor Summary'!$C$39,"",""))) -> No | N14: =IF(OR(M14="Yes",M14="No")*AND(F14<'A - Contractor Summary'!$C$39),"",IF(AND(F14>'A - Contractor Summary'!$C$39,F14<'A - Contractor Summary'!$C$42),"Yes",IF(F14>'A - Contractor Summary'!$C$42,"No","Needs Review"))) ->  | P14: =IF(AND(O14="Yes",K14="Yes",L14="Yes")*OR(N14="Yes",M14="Yes"),"Yes",IF(OR(K14="No",M14="No",N14="No",O14="No",L14="No"),"No","Needs Review")) -> No | Q14: =IF(P14="Yes",J14,0) -> 0 | R14: =IF(P14="Needs Review",J14,0) -> 0
B15: 2 | M15: =IF(AND(F15>='A - Contractor Summary'!$C$36,F15<='A - Contractor Summary'!$C$38),"Yes",IF(F15<'A - Contractor Summary'!$C$36,"No",IF(F15>'A - Contractor Summary'!$C$39,"",""))) -> No | N15: =IF(OR(M15="Yes",M15="No")*AND(F15<'A - Contractor Summary'!$C$39),"",IF(AND(F15>'A - Contractor Summary'!$C$39,F15<'A - Contractor Summary'!$C$42),"Yes",IF(F15>'A - Contractor Summary'!$C$42,"No","Needs Review"))) ->  | P15: =IF(AND(O15="Yes",K15="Yes",L15="Yes")*OR(N15="Yes",M15="Yes"),"Yes",IF(OR(K15="No",M15="No",N15="No",O15="No",L15="No"),"No","Needs Review")) -> No | Q15: 0 | R15: 0
B16: 3 | M16: =IF(AND(F16>='A - Contractor Summary'!$C$36,F16<='A - Contractor Summary'!$C$38),"Yes",IF(F16<'A - Contractor Summary'!$C$36,"No",IF(F16>'A - Contractor Summary'!$C$39,"",""))) -> No | N16: =IF(OR(M16="Yes",M16="No")*AND(F16<'A - Contractor Summary'!$C$39),"",IF(AND(F16>'A - Contractor Summary'!$C$39,F16<'A - Contractor Summary'!$C$42),"Yes",IF(F16>'A - Contractor Summary'!$C$42,"No","Needs Review"))) ->  | P16: No | Q16: 0 | R16: 0
B17: 4 | M17: =IF(AND(F17>='A - Contractor Summary'!$C$36,F17<='A - Contractor Summary'!$C$38),"Yes",IF(F17<'A - Contractor Summary'!$C$36,"No",IF(F17>'A - Contractor Summary'!$C$39,"",""))) -> No | N17: =IF(OR(M17="Yes",M17="No")*AND(F17<'A - Contractor Summary'!$C$39),"",IF(AND(F17>'A - Contractor Summary'!$C$39,F17<'A - Contractor Summary'!$C$42),"Yes",IF(F17>'A - Contractor Summary'!$C$42,"No","Needs Review"))) ->  | P17: No | Q17: 0 | R17: 0
B18: 5 | M18: =IF(AND(F18>='A - Contractor Summary'!$C$36,F18<='A - Contractor Summary'!$C$38),"Yes",IF(F18<'A - Contractor Summary'!$C$36,"No",IF(F18>'A - Contractor Summary'!$C$39,"",""))) -> No | N18: =IF(OR(M18="Yes",M18="No")*AND(F18<'A - Contractor Summary'!$C$39),"",IF(AND(F18>'A - Contractor Summary'!$C$39,F18<'A - Contractor Summary'!$C$42),"Yes",IF(F18>'A - Contractor Summary'!$C$42,"No","Needs Review"))) ->  | P18: No | Q18: 0 | R18: 0
B19: 6 | M19: =IF(AND(F19>='A - Contractor Summary'!$C$36,F19<='A - Contractor Summary'!$C$38),"Yes",IF(F19<'A - Contractor Summary'!$C$36,"No",IF(F19>'A - Contractor Summary'!$C$39,"",""))) -> No | N19: =IF(OR(M19="Yes",M19="No")*AND(F19<'A - Contractor Summary'!$C$39),"",IF(AND(F19>'A - Contractor Summary'!$C$39,F19<'A - Contractor Summary'!$C$42),"Yes",IF(F19>'A - Contractor Summary'!$C$42,"No","Needs Review"))) ->  | P19: No | Q19: 0 | R19: 0
B20: 7 | M20: =IF(AND(F20>='A - Contractor Summary'!$C$36,F20<='A - Contractor Summary'!$C$38),"Yes",IF(F20<'A - Contractor Summary'!$C$36,"No",IF(F20>'A - Contractor Summary'!$C$39,"",""))) -> No | N20: =IF(OR(M20="Yes",M20="No")*AND(F20<'A - Contractor Summary'!$C$39),"",IF(AND(F20>'A - Contractor Summary'!$C$39,F20<'A - Contractor Summary'!$C$42),"Yes",IF(F20>'A - Contractor Summary'!$C$42,"No","Needs Review"))) ->  | P20: No | Q20: 0 | R20: 0
B21: 8 | M21: =IF(AND(F21>='A - Contractor Summary'!$C$36,F21<='A - Contractor Summary'!$C$38),"Yes",IF(F21<'A - Contractor Summary'!$C$36,"No",IF(F21>'A - Contractor Summary'!$C$39,"",""))) -> No | N21: =IF(OR(M21="Yes",M21="No")*AND(F21<'A - Contractor Summary'!$C$39),"",IF(AND(F21>'A - Contractor Summary'!$C$39,F21<'A - Contractor Summary'!$C$42),"Yes",IF(F21>'A - Contractor Summary'!$C$42,"No","Needs Review"))) ->  | P21: No | Q21: 0 | R21: 0
B22: 9 | M22: =IF(AND(F22>='A - Contractor Summary'!$C$36,F22<='A - Contractor Summary'!$C$38),"Yes",IF(F22<'A - Contractor Summary'!$C$36,"No",IF(F22>'A - Contractor Summary'!$C$39,"",""))) -> No | N22: =IF(OR(M22="Yes",M22="No")*AND(F22<'A - Contractor Summary'!$C$39),"",IF(AND(F22>'A - Contractor Summary'!$C$39,F22<'A - Contractor Summary'!$C$42),"Yes",IF(F22>'A - Contractor Summary'!$C$42,"No","Needs Review"))) ->  | P22: No | Q22: 0 | R22: 0
B23: 10 | M23: =IF(AND(F23>='A - Contractor Summary'!$C$36,F23<='A - Contractor Summary'!$C$38),"Yes",IF(F23<'A - Contractor Summary'!$C$36,"No",IF(F23>'A - Contractor Summary'!$C$39,"",""))) -> No | N23: =IF(OR(M23="Yes",M23="No")*AND(F23<'A - Contractor Summary'!$C$39),"",IF(AND(F23>'A - Contractor Summary'!$C$39,F23<'A - Contractor Summary'!$C$42),"Yes",IF(F23>'A - Contractor Summary'!$C$42,"No","Needs Review"))) ->  | P23: No | Q23: 0 | R23: 0
B24: 11 | M24: =IF(AND(F24>='A - Contractor Summary'!$C$36,F24<='A - Contractor Summary'!$C$38),"Yes",IF(F24<'A - Contractor Summary'!$C$36,"No",IF(F24>'A - Contractor Summary'!$C$39,"",""))) -> No | N24: =IF(OR(M24="Yes",M24="No")*AND(F24<'A - Contractor Summary'!$C$39),"",IF(AND(F24>'A - Contractor Summary'!$C$39,F24<'A - Contractor Summary'!$C$42),"Yes",IF(F24>'A - Contractor Summary'!$C$42,"No","Needs Review"))) ->  | P24: No | Q24: 0 | R24: 0
B25: 12 | M25: =IF(AND(F25>='A - Contractor Summary'!$C$36,F25<='A - Contractor Summary'!$C$38),"Yes",IF(F25<'A - Contractor Summary'!$C$36,"No",IF(F25>'A - Contractor Summary'!$C$39,"",""))) -> No | N25: =IF(OR(M25="Yes",M25="No")*AND(F25<'A - Contractor Summary'!$C$39),"",IF(AND(F25>'A - Contractor Summary'!$C$39,F25<'A - Contractor Summary'!$C$42),"Yes",IF(F25>'A - Contractor Summary'!$C$42,"No","Needs Review"))) ->  | P25: No | Q25: 0 | R25: 0
B26: 13 | M26: =IF(AND(F26>='A - Contractor Summary'!$C$36,F26<='A - Contractor Summary'!$C$38),"Yes",IF(F26<'A - Contractor Summary'!$C$36,"No",IF(F26>'A - Contractor Summary'!$C$39,"",""))) -> No | N26: =IF(OR(M26="Yes",M26="No")*AND(F26<'A - Contractor Summary'!$C$39),"",IF(AND(F26>'A - Contractor Summary'!$C$39,F26<'A - Contractor Summary'!$C$42),"Yes",IF(F26>'A - Contractor Summary'!$C$42,"No","Needs Review"))) ->  | P26: No | Q26: 0 | R26: 0
B27: 14 | M27: =IF(AND(F27>='A - Contractor Summary'!$C$36,F27<='A - Contractor Summary'!$C$38),"Yes",IF(F27<'A - Contractor Summary'!$C$36,"No",IF(F27>'A - Contractor Summary'!$C$39,"",""))) -> No | N27: =IF(OR(M27="Yes",M27="No")*AND(F27<'A - Contractor Summary'!$C$39),"",IF(AND(F27>'A - Contractor Summary'!$C$39,F27<'A - Contractor Summary'!$C$42),"Yes",IF(F27>'A - Contractor Summary'!$C$42,"No","Needs Review"))) ->  | P27: No | Q27: 0 | R27: 0
B28: 15 | M28: =IF(AND(F28>='A - Contractor Summary'!$C$36,F28<='A - Contractor Summary'!$C$38),"Yes",IF(F28<'A - Contractor Summary'!$C$36,"No",IF(F28>'A - Contractor Summary'!$C$39,"",""))) -> No | N28: =IF(OR(M28="Yes",M28="No")*AND(F28<'A - Contractor Summary'!$C$39),"",IF(AND(F28>'A - Contractor Summary'!$C$39,F28<'A - Contractor Summary'!$C$42),"Yes",IF(F28>'A - Contractor Summary'!$C$42,"No","Needs Review"))) ->  | P28: No | Q28: 0 | R28: 0
B29: 16 | M29: =IF(AND(F29>='A - Contractor Summary'!$C$36,F29<='A - Contractor Summary'!$C$38),"Yes",IF(F29<'A - Contractor Summary'!$C$36,"No",IF(F29>'A - Contractor Summary'!$C$39,"",""))) -> No | N29: =IF(OR(M29="Yes",M29="No")*AND(F29<'A - Contractor Summary'!$C$39),"",IF(AND(F29>'A - Contractor Summary'!$C$39,F29<'A - Contractor Summary'!$C$42),"Yes",IF(F29>'A - Contractor Summary'!$C$42,"No","Needs Review"))) ->  | P29: No | Q29: 0 | R29: 0
B30: 17 | M30: =IF(AND(F30>='A - Contractor Summary'!$C$36,F30<='A - Contractor Summary'!$C$38),"Yes",IF(F30<'A - Contractor Summary'!$C$36,"No",IF(F30>'A - Contractor Summary'!$C$39,"",""))) -> No | N30: =IF(OR(M30="Yes",M30="No")*AND(F30<'A - Contractor Summary'!$C$39),"",IF(AND(F30>'A - Contractor Summary'!$C$39,F30<'A - Contractor Summary'!$C$42),"Yes",IF(F30>'A - Contractor Summary'!$C$42,"No","Needs Review"))) ->  | P30: No | Q30: 0 | R30: 0
B31: 18 | M31: =IF(AND(F31>='A - Contractor Summary'!$C$36,F31<='A - Contractor Summary'!$C$38),"Yes",IF(F31<'A - Contractor Summary'!$C$36,"No",IF(F31>'A - Contractor Summary'!$C$39,"",""))) -> No | N31: =IF(OR(M31="Yes",M31="No")*AND(F31<'A - Contractor Summary'!$C$39),"",IF(AND(F31>'A - Contractor Summary'!$C$39,F31<'A - Contractor Summary'!$C$42),"Yes",IF(F31>'A - Contractor Summary'!$C$42,"No","Needs Review"))) ->  | P31: No | Q31: =IF(P31="Yes",#REF!,0) -> 0 | R31: =IF(P31="ED Review",#REF!,0) -> 0
B32: 19 | M32: =IF(AND(F32>='A - Contractor Summary'!$C$36,F32<='A - Contractor Summary'!$C$38),"Yes",IF(F32<'A - Contractor Summary'!$C$36,"No",IF(F32>'A - Contractor Summary'!$C$39,"",""))) -> No | N32: =IF(OR(M32="Yes",M32="No")*AND(F32<'A - Contractor Summary'!$C$39),"",IF(AND(F32>'A - Contractor Summary'!$C$39,F32<'A - Contractor Summary'!$C$42),"Yes",IF(F32>'A - Contractor Summary'!$C$42,"No","Needs Review"))) ->  | P32: No | Q32: =IF(P32="Yes",#REF!,0) -> 0 | R32: =IF(P32="ED Review",#REF!,0) -> 0
B33: 20 | M33: =IF(AND(F33>='A - Contractor Summary'!$C$36,F33<='A - Contractor Summary'!$C$38),"Yes",IF(F33<'A - Contractor Summary'!$C$36,"No",IF(F33>'A - Contractor Summary'!$C$39,"",""))) -> No | N33: =IF(OR(M33="Yes",M33="No")*AND(F33<'A - Contractor Summary'!$C$39),"",IF(AND(F33>'A - Contractor Summary'!$C$39,F33<'A - Contractor Summary'!$C$42),"Yes",IF(F33>'A - Contractor Summary'!$C$42,"No","Needs Review"))) ->  | P33: No | Q33: =IF(P33="Yes",#REF!,0) -> 0 | R33: =IF(P33="ED Review",#REF!,0) -> 0
J34: =SUM(J14:J33) -> 0 | Q34: =IFERROR(SUM(Q14:Q33),0) -> 0 | R34: =IFERROR(SUM(R14:R33),0) -> 0 | S34: =SUM(S14:S33) -> 0 | T34: =SUM(T14:T33) -> 0 | U34: =R34-S34-T34 -> 0 | V34: check (a)
B40: Tickmark Explanation:

Sheet F - Meals
B2: Meal Charges
B4: Test Plan: (A) Obtain support of individual charges. (B) Enter Yes/No if receipt is itemized. (C) Enter Yes/No if proof of payment has been provided. (D) Ensure charges fall between the dates the vendor was mobilized and the date they arrived. (E) Ensure charges are prior to the date the vendor arrived home or was released to another utility. (F) Ensure the location of charge was reasonable (G) Determine the amount(s) to be reviewed, allowed and/or disallowed. (H) For charges which required further review, document review and include why it was determined to be allowed/disallowed via a tickmark.
B9: a | C9: Check figure should equal $0. Cell will appear yellow if discrepancies are noted.
C11: A | L11: B | M11: C | N11: D | O11: E | P11: F | Q11: G | T11: H
B12: Support Reviewed | N12: Conclusions
B13: # | C13: Type of Support | D13: Support Identifier | E13: Company | F13: Crew | G13: Date | H13: Person | I13: Restaurant Name | J13: Location | K13: $ Total | L13: Itemized Receipt | M13: Proof of Payment | N13: Reasonable based on Mobilization date(s) | O13: Reasonable based on Demobilization date(s) | P13: Locations Reasonable | Q13: Conclusion | R13: $ Allowable Charge | S13: $ To Be Reviewed | T13: Reviewed - Allowable Charge | U13: Reviewed - Unallowable Charge | V13: Tickmarks
B14: 1 | C14: Receipt | D14: 2196 | E14: Vendor No. 20 | F14: 204-75 | G14: 2017-09-09 | I14: Holiday Inn - LA KEM's | J14: Hammond, LA | K14: 57.45 | L14: No | M14: Yes | N14: =IF(AND(G14>='A - Contractor Summary'!$C$36,G14<='A - Contractor Summary'!$C$38),"Yes",IF(G14<'A - Contractor Summary'!$C$36,"No",IF(G14>'A - Contractor Summary'!$C$39,"",""))) -> Yes | O14: =IF(OR(N14="Yes",N14="No")*AND(G14<'A - Contractor Summary'!$C$39),"",IF(AND(G14>'A - Contractor Summary'!$C$39,G14<'A - Contractor Summary'!$C$42),"Yes",IF(G14>'A - Contractor Summary'!$C$42,"No","Needs Review"))) ->  | P14: Yes | Q14: =IF(AND(P14="Yes",L14="Yes",M14="Yes")*OR(O14="Yes",N14="Yes"),"Yes",IF(OR(L14="No",N14="No",O14="No",P14="No",M14="No"),"No","Needs Review")) -> No | R14: =IF(Q14="Yes",K14,0) -> 0 | S14: =IF(Q14="Needs Review",K14,0) -> 0 | T14: 0 | U14: 0 | V14: 6
B15: 2 | C15: Receipt | D15: 2197 | E15: Vendor No. 20 | F15: 204-75 | G15: 2017-09-08 | I15: Holiday Inn - LA KEM's | J15: Hammond, LA | K15: 58.3 | L15: Yes | M15: No | N15: =IF(AND(G15>='A - Contractor Summary'!$C$36,G15<='A - Contractor Summary'!$C$38),"Yes",IF(G15<'A - Contractor Summary'!$C$36,"No",IF(G15>'A - Contractor Summary'!$C$39,"",""))) -> Yes | O15: =IF(OR(N15="Yes",N15="No")*AND(G15<'A - Contractor Summary'!$C$39),"",IF(AND(G15>'A - Contractor Summary'!$C$39,G15<'A - Contractor Summary'!$C$42),"Yes",IF(G15>'A - Contractor Summary'!$C$42,"No","Needs Review"))) ->  | P15: Yes | Q15: No | R15: 0 | S15: 0 | T15: 0 | U15: 0 | V15: 6
B16: 3 | C16: Receipt | D16: 2197 | E16: Vendor No. 20 | F16: 204-75 | G16: 2017-09-08 | I16: Simply Country | J16: Liberty, TX | K16: 174.4 | L16: No | M16: Yes | N16: =IF(AND(G16>='A - Contractor Summary'!$C$36,G16<='A - Contractor Summary'!$C$38),"Yes",IF(G16<'A - Contractor Summary'!$C$36,"No",IF(G16>'A - Contractor Summary'!$C$39,"",""))) -> Yes | O16: =IF(OR(N16="Yes",N16="No")*AND(G16<'A - Contractor Summary'!$C$39),"",IF(AND(G16>'A - Contractor Summary'!$C$39,G16<'A - Contractor Summary'!$C$42),"Yes",IF(G16>'A - Contractor Summary'!$C$42,"No","Needs Review"))) ->  | P16: Yes | Q16: No | R16: 0 | S16: 0 | T16: 0 | U16: 0 | V16: 1, 6
B17: 4 | C17: Receipt | D17: 2197 | E17: Vendor No. 20 | F17: 204-75 | G17: 2017-09-09 | I17: Holiday Inn - LA KEM's | J17: Hammond, LA | K17: 20 | L17: Yes | M17: No | N17: =IF(AND(G17>='A - Contractor Summary'!$C$36,G17<='A - Contractor Summary'!$C$38),"Yes",IF(G17<'A - Contractor Summary'!$C$36,"No",IF(G17>'A - Contractor Summary'!$C$39,"",""))) -> Yes | O17: =IF(OR(N17="Yes",N17="No")*AND(G17<'A - Contractor Summary'!$C$39),"",IF(AND(G17>'A - Contractor Summary'!$C$39,G17<'A - Contractor Summary'!$C$42),"Yes",IF(G17>'A - Contractor Summary'!$C$42,"No","Needs Review"))) ->  | P17: Yes | Q17: No | R17: 0 | S17: 0 | T17: 0 | U17: 0 | V17: 6
B18: 5 | C18: Receipt | D18: 2197 | E18: Vendor No. 20 | F18: 204-75 | G18: 2017-09-15 | I18: Frontier | J18: Tampa, FL | K18: 124.81 | L18: No | M18: Yes | N18: =IF(AND(G18>='A - Contractor Summary'!$C$36,G18<='A - Contractor Summary'!$C$38),"Yes",IF(G18<'A - Contractor Summary'!$C$36,"No",IF(G18>'A - Contractor Summary'!$C$39,"",""))) ->  | O18: =IF(OR(N18="Yes",N18="No")*AND(G18<'A - Contractor Summary'!$C$39),"",IF(AND(G18>'A - Contractor Summary'!$C$39,G18<'A - Contractor Summary'!$C$42),"Yes",IF(G18>'A - Contractor Summary'!$C$42,"No","Needs Review"))) -> Needs Review | P18: No | Q18: No | R18: 0 | S18: 0 | T18: 0 | U18: 0 | V18: 1, 3, 5, 6
B19: 6 | C19: Receipt | D19: 2201 | E19: Vendor No. 20 | F19: 205-87 | G19: 2017-09-08 | I19: Olive Garden | J19: Hammond, LA | K19: 142.05 | L19: Yes | M19: Yes | N19: =IF(AND(G19>='A - Contractor Summary'!$C$36,G19<='A - Contractor Summary'!$C$38),"Yes",IF(G19<'A - Contractor Summary'!$C$36,"No",IF(G19>'A - Contractor Summary'!$C$39,"",""))) -> Yes | O19: =IF(OR(N19="Yes",N19="No")*AND(G19<'A - Contractor Summary'!$C$39),"",IF(AND(G19>'A - Contractor Summary'!$C$39,G19<'A - Contractor Summary'!$C$42),"Yes",IF(G19>'A - Contractor Summary'!$C$42,"No","Needs Review"))) ->  | P19: Yes | Q19: Yes | R19: 142.05 | S19: 0
B20: 7 | C20: Receipt | D20: 2202 | E20: Vendor No. 20 | F20: 205-87 | G20: 2017-09-09 | I20: Church's Chicken | J20: Hammond, LA | K20: 19.8 | L20: Yes | M20: Yes | N20: =IF(AND(G20>='A - Contractor Summary'!$C$36,G20<='A - Contractor Summary'!$C$38),"Yes",IF(G20<'A - Contractor Summary'!$C$36,"No",IF(G20>'A - Contractor Summary'!$C$39,"",""))) -> Yes | O20: =IF(OR(N20="Yes",N20="No")*AND(G20<'A - Contractor Summary'!$C$39),"",IF(AND(G20>'A - Contractor Summary'!$C$39,G20<'A - Contractor Summary'!$C$42),"Yes",IF(G20>'A - Contractor Summary'!$C$42,"No","Needs Review"))) ->  | P20: Yes | Q20: Yes | R20: 19.8 | S20: 0
B21: 8 | C21: Receipt | D21: 2203 | E21: Vendor No. 20 | F21: 205-87 | G21: 2017-09-09 | I21: Cate Street Seafood | J21: Hammond, LA | K21: 138.8 | L21: Yes | M21: Yes | N21: =IF(AND(G21>='A - Contractor Summary'!$C$36,G21<='A - Contractor Summary'!$C$38),"Yes",IF(G21<'A - Contractor Summary'!$C$36,"No",IF(G21>'A - Contractor Summary'!$C$39,"",""))) -> Yes | O21: =IF(OR(N21="Yes",N21="No")*AND(G21<'A - Contractor Summary'!$C$39),"",IF(AND(G21>'A - Contractor Summary'!$C$39,G21<'A - Contractor Summary'!$C$42),"Yes",IF(G21>'A - Contractor Summary'!$C$42,"No","Needs Review"))) ->  | P21: Yes | Q21: Yes | R21: 138.8 | S21: 0
B22: 9 | C22: Receipt | D22: 2215 | E22: Vendor No. 20 | F22: 202-171 | G22: 2017-09-10 | I22: Saltgrass | J22: Baytown, TX | K22: 245.93 | L22: Yes | M22: Yes | N22: =IF(AND(G22>='A - Contractor Summary'!$C$36,G22<='A - Contractor Summary'!$C$38),"Yes",IF(G22<'A - Contractor Summary'!$C$36,"No",IF(G22>'A - Contractor Summary'!$C$39,"",""))) -> Yes | O22: =IF(OR(N22="Yes",N22="No")*AND(G22<'A - Contractor Summary'!$C$39),"",IF(AND(G22>'A - Contractor Summary'!$C$39,G22<'A - Contractor Summary'!$C$42),"Yes",IF(G22>'A - Contractor Summary'!$C$42,"No","Needs Review"))) ->  | P22: Yes | Q22: Yes | R22: 245.93 | S22: 0
B23: 10 | C23: Receipt | D23: 2216 | E23: Vendor No. 20 | F23: 202-171 | G23: 2017-09-10 | I23: Dominos | J23: Hammond, LA | K23: 58.81 | L23: No | M23: Yes | N23: =IF(AND(G23>='A - Contractor Summary'!$C$36,G23<='A - Contractor Summary'!$C$38),"Yes",IF(G23<'A - Contractor Summary'!$C$36,"No",IF(G23>'A - Contractor Summary'!$C$39,"",""))) -> Yes | O23: =IF(OR(N23="Yes",N23="No")*AND(G23<'A - Contractor Summary'!$C$39),"",IF(AND(G23>'A - Contractor Summary'!$C$39,G23<'A - Contractor Summary'!$C$42),"Yes",IF(G23>'A - Contractor Summary'!$C$42,"No","Needs Review"))) ->  | P23: Yes | Q23: No | R23: 0 | S23: 0 | T23: 0 | U23: 0 | V23: 1
B24: 11 | C24: Receipt | D24: 2217 | E24: Vendor No. 20 | F24: 204-75 | G24: 2017-09-09 | I24: Burger King | J24: Hammond, LA | K24: 9.55 | L24: No | M24: No | N24: =IF(AND(G24>='A - Contractor Summary'!$C$36,G24<='A - Contractor Summary'!$C$38),"Yes",IF(G24<'A - Contractor Summary'!$C$36,"No",IF(G24>'A - Contractor Summary'!$C$39,"",""))) -> Yes | O24: =IF(OR(N24="Yes",N24="No")*AND(G24<'A - Contractor Summary'!$C$39),"",IF(AND(G24>'A - Contractor Summary'!$C$39,G24<'A - Contractor Summary'!$C$42),"Yes",IF(G24>'A - Contractor Summary'!$C$42,"No","Needs Review"))) ->  | P24: Yes | Q24: No | R24: 0 | S24: 0 | T24: 0 | U24: 0 | V24: 1, 6
B25: 12 | C25: Receipt | D25: 2217 | E25: Vendor No. 20 | F25: 204-75 | G25: 2017-09-10 | I25: IHop | J25: Hammond, LA | K25: 51.34 | L25: No | M25: Yes | N25: =IF(AND(G25>='A - Contractor Summary'!$C$36,G25<='A - Contractor Summary'!$C$38),"Yes",IF(G25<'A - Contractor Summary'!$C$36,"No",IF(G25>'A - Contractor Summary'!$C$39,"",""))) -> Yes | O25: =IF(OR(N25="Yes",N25="No")*AND(G25<'A - Contractor Summary'!$C$39),"",IF(AND(G25>'A - Contractor Summary'!$C$39,G25<'A - Contractor Summary'!$C$42),"Yes",IF(G25>'A - Contractor Summary'!$C$42,"No","Needs Review"))) ->  | P25: Yes | Q25: No | R25: 0 | S25: 0 | T25: 0 | U25: 0 | V25: 1
B26: 13 | C26: Receipt | D26: 2217 | E26: Vendor No. 20 | F26: 204-75 | G26: 2017-09-11 | I26: Ruby Tuesday | J26: Pensacola, FL | K26: 78.92 | L26: No | M26: Yes | N26: =IF(AND(G26>='A - Contractor Summary'!$C$36,G26<='A - Contractor Summary'!$C$38),"Yes",IF(G26<'A - Contractor Summary'!$C$36,"No",IF(G26>'A - Contractor Summary'!$C$39,"",""))) -> Yes | O26: =IF(OR(N26="Yes",N26="No")*AND(G26<'A - Contractor Summary'!$C$39),"",IF(AND(G26>'A - Contractor Summary'!$C$39,G26<'A - Contractor Summary'!$C$42),"Yes",IF(G26>'A - Contractor Summary'!$C$42,"No","Needs Review"))) ->  | P26: Yes | Q26: No | R26: 0 | S26: 0 | T26: 0 | U26: 0 | V26: 1
B27: 14 | C27: Receipt | D27: 2217 | E27: Vendor No. 20 | F27: 204-75 | G27: 2017-09-12 | I27: Burger King | J27: Hammond, LA | K27: 10.99 | L27: No | M27: Yes | N27: =IF(AND(G27>='A - Contractor Summary'!$C$36,G27<='A - Contractor Summary'!$C$38),"Yes",IF(G27<'A - Contractor Summary'!$C$36,"No",IF(G27>'A - Contractor Summary'!$C$39,"",""))) -> Yes | O27: =IF(OR(N27="Yes",N27="No")*AND(G27<'A - Contractor Summary'!$C$39),"",IF(AND(G27>'A - Contractor Summary'!$C$39,G27<'A - Contractor Summary'!$C$42),"Yes",IF(G27>'A - Contractor Summary'!$C$42,"No","Needs Review"))) ->  | P27: Yes | Q27: No | R27: 0 | S27: 0 | T27: 0 | U27: 0 | V27: 1
B28: 15 | C28: Receipt | D28: 2217 | E28: Vendor No. 20 | F28: 204-75 | G28: 2017-09-12 | I28: La Feria Mini Market | J28: Plant City, FL | K28: 10.47 | L28: No | M28: Yes | N28: =IF(AND(G28>='A - Contractor Summary'!$C$36,G28<='A - Contractor Summary'!$C$38),"Yes",IF(G28<'A - Contractor Summary'!$C$36,"No",IF(G28>'A - Contractor Summary'!$C$39,"",""))) -> Yes | O28: =IF(OR(N28="Yes",N28="No")*AND(G28<'A - Contractor Summary'!$C$39),"",IF(AND(G28>'A - Contractor Summary'!$C$39,G28<'A - Contractor Summary'!$C$42),"Yes",IF(G28>'A - Contractor Summary'!$C$42,"No","Needs Review"))) ->  | P28: Yes | Q28: No | R28: 0 | S28: 0 | T28: 0 | U28: 0 | V28: 1
B29: 16 | C29: Receipt | D29: 2217 | E29: Vendor No. 20 | F29: 204-75 | G29: 2017-09-16 | I29: McDonalds | J29: Winter Haven, FL | K29: 5.02 | L29: Yes | M29: Yes | N29: =IF(AND(G29>='A - Contractor Summary'!$C$36,G29<='A - Contractor Summary'!$C$38),"Yes",IF(G29<'A - Contractor Summary'!$C$36,"No",IF(G29>'A - Contractor Summary'!$C$39,"",""))) ->  | O29: =IF(OR(N29="Yes",N29="No")*AND(G29<'A - Contractor Summary'!$C$39),"",IF(AND(G29>'A - Contractor Summary'!$C$39,G29<'A - Contractor Summary'!$C$42),"Yes",IF(G29>'A - Contractor Summary'!$C$42,"No","Needs Review"))) -> Needs Review | P29: No | Q29: No | R29: 0 | S29: 0 | T29: 0 | U29: 0 | V29: 3, 5
B30: 17 | C30: Receipt | D30: 2220 | E30: Vendor No. 20 | F30: 206-131 | G30: 2017-09-10 | I30: Don's Speciality | J30: Scott, LA | K30: 37.94 | L30: Yes | M30: Yes | N30: =IF(AND(G30>='A - Contractor Summary'!$C$36,G30<='A - Contractor Summary'!$C$38),"Yes",IF(G30<'A - Contractor Summary'!$C$36,"No",IF(G30>'A - Contractor Summary'!$C$39,"",""))) -> Yes | O30: =IF(OR(N30="Yes",N30="No")*AND(G30<'A - Contractor Summary'!$C$39),"",IF(AND(G30>'A - Contractor Summary'!$C$39,G30<'A - Contractor Summary'!$C$42),"Yes",IF(G30>'A - Contractor Summary'!$C$42,"No","Needs Review"))) ->  | P30: Yes | Q30: Yes | R30: 37.94 | S30: 0
B31: 18 | C31: Receipt | D31: 2221 | E31: Vendor No. 20 | F31: 206-131 | G31: 2017-09-10 | I31: Don's Seafood | J31: Hammond, LA | K31: 112.73 | L31: Yes | M31: Yes | N31: =IF(AND(G31>='A - Contractor Summary'!$C$36,G31<='A - Contractor Summary'!$C$38),"Yes",IF(G31<'A - Contractor Summary'!$C$36,"No",IF(G31>'A - Contractor Summary'!$C$39,"",""))) -> Yes | O31: =IF(OR(N31="Yes",N31="No")*AND(G31<'A - Contractor Summary'!$C$39),"",IF(AND(G31>'A - Contractor Summary'!$C$39,G31<'A - Contractor Summary'!$C$42),"Yes",IF(G31>'A - Contractor Summary'!$C$42,"No","Needs Review"))) ->  | P31: Yes | Q31: Yes | R31: 112.73 | S31: 0
B32: 19 | C32: Receipt | D32: 2225 | E32: Vendor No. 20 | F32: 219-25 | G32: 2017-09-10 | I32: Don's Seafood | J32: Hammond, LA | K32: 132.13 | L32: No | M32: Yes | N32: =IF(AND(G32>='A - Contractor Summary'!$C$36,G32<='A - Contractor Summary'!$C$38),"Yes",IF(G32<'A - Contractor Summary'!$C$36,"No",IF(G32>'A - Contractor Summary'!$C$39,"",""))) -> Yes | O32: =IF(OR(N32="Yes",N32="No")*AND(G32<'A - Contractor Summary'!$C$39),"",IF(AND(G32>'A - Contractor Summary'!$C$39,G32<'A - Contractor Summary'!$C$42),"Yes",IF(G32>'A - Contractor Summary'!$C$42,"No","Needs Review"))) ->  | P32: Yes | Q32: No | R32: 0 | S32: 0 | T32: 0 | U32: 0 | V32: 1
B33: 20 | C33: Receipt | D33: 2226 | E33: Vendor No. 20 | F33: 238-15 | G33: 2017-09-10 | I33: Pilot | J33: Orange, TX | K33: 26.91 | L33: Yes | M33: Yes | N33: =IF(AND(G33>='A - Contractor Summary'!$C$36,G33<='A - Contractor Summary'!$C$38),"Yes",IF(G33<'A - Contractor Summary'!$C$36,"No",IF(G33>'A - Contractor Summary'!$C$39,"",""))) -> Yes | O33: =IF(OR(N33="Yes",N33="No")*AND(G33<'A - Contractor Summary'!$C$39),"",IF(AND(G33>'A - Contractor Summary'!$C$39,G33<'A - Contractor Summary'!$C$42),"Yes",IF(G33>'A - Contractor Summary'!$C$42,"No","Needs Review"))) ->  | P33: Yes | Q33: Yes | R33: 26.91 | S33: 0
B34: 21 | C34: Receipt | D34: 2227 | E34: Vendor No. 20 | F34: 248-3 | G34: 2017-09-10 | I34: Taco Bell | J34: Brookeshire, TX | K34: 31.19 | L34: Yes | M34: Yes | N34: =IF(AND(G34>='A - Contractor Summary'!$C$36,G34<='A - Contractor Summary'!$C$38),"Yes",IF(G34<'A - Contractor Summary'!$C$36,"No",IF(G34>'A - Contractor Summary'!$C$39,"",""))) -> Yes | O34: =IF(OR(N34="Yes",N34="No")*AND(G34<'A - Contractor Summary'!$C$39),"",IF(AND(G34>'A - Contractor Summary'!$C$39,G34<'A - Contractor Summary'!$C$42),"Yes",IF(G34>'A - Contractor Summary'!$C$42,"No","Needs Review"))) ->  | P34: Yes | Q34: Yes | R34: 31.19 | S34: 0
B35: 22 | C35: Receipt | D35: 2228 | E35: Vendor No. 20 | F35: 248-3 | G35: 2017-09-10 | I35: Don's Seafood | J35: Hammond, LA | K35: 100.15 | L35: Yes | M35: No | N35: =IF(AND(G35>='A - Contractor Summary'!$C$36,G35<='A - Contractor Summary'!$C$38),"Yes",IF(G35<'A - Contractor Summary'!$C$36,"No",IF(G35>'A - Contractor Summary'!$C$39,"",""))) -> Yes | O35: =IF(OR(N35="Yes",N35="No")*AND(G35<'A - Contractor Summary'!$C$39),"",IF(AND(G35>'A - Contractor Summary'!$C$39,G35<'A - Contractor Summary'!$C$42),"Yes",IF(G35>'A - Contractor Summary'!$C$42,"No","Needs Review"))) ->  | P35: Yes | Q35: No | R35: 0 | S35: 0 | T35: 0 | U35: 0 | V35: 6
B36: 23 | C36: Receipt | D36: 2229 | E36: Vendor No. 20 | F36: 404-134 | G36: 2017-09-10 | I36: Saltgrass | J36: Baytown, TX | K36: 215.18 | L36: No | M36: Yes | N36: =IF(AND(G36>='A - Contractor Summary'!$C$36,G36<='A - Contractor Summary'!$C$38),"Yes",IF(G36<'A - Contractor Summary'!$C$36,"No",IF(G36>'A - Contractor Summary'!$C$39,"",""))) -> Yes | O36: =IF(OR(N36="Yes",N36="No")*AND(G36<'A - Contractor Summary'!$C$39),"",IF(AND(G36>'A - Contractor Summary'!$C$39,G36<'A - Contractor Summary'!$C$42),"Yes",IF(G36>'A - Contractor Summary'!$C$42,"No","Needs Review"))) ->  | P36: Yes | Q36: No | R36: 0 | S36: 0 | T36: 0 | U36: 0 | V36: 1
B37: 24 | C37: Receipt | D37: 2241 | E37: Vendor No. 20 | F37: 57-6 | G37: 2017-09-11 | I37: McDonalds | J37: Walker, LA | K37: 5.96 | L37: Yes | M37: Yes | N37: =IF(AND(G37>='A - Contractor Summary'!$C$36,G37<='A - Contractor Summary'!$C$38),"Yes",IF(G37<'A - Contractor Summary'!$C$36,"No",IF(G37>'A - Contractor Summary'!$C$39,"",""))) -> Yes | O37: =IF(OR(N37="Yes",N37="No")*AND(G37<'A - Contractor Summary'!$C$39),"",IF(AND(G37>'A - Contractor Summary'!$C$39,G37<'A - Contractor Summary'!$C$42),"Yes",IF(G37>'A - Contractor Summary'!$C$42,"No","Needs Review"))) ->  | P37: Yes | Q37: Yes | R37: 5.96 | S37: 0
B38: 25 | C38: Receipt | D38: 2245 | E38: Vendor No. 20 | F38: 101-15 | G38: 2017-09-11 | I38: Sams Club | J38: Longview, TX | K38: 97.36 | L38: Yes | M38: Yes | N38: =IF(AND(G38>='A - Contractor Summary'!$C$36,G38<='A - Contractor Summary'!$C$38),"Yes",IF(G38<'A - Contractor Summary'!$C$36,"No",IF(G38>'A - Contractor Summary'!$C$39,"",""))) -> Yes | O38: =IF(OR(N38="Yes",N38="No")*AND(G38<'A - Contractor Summary'!$C$39),"",IF(AND(G38>'A - Contractor Summary'!$C$39,G38<'A - Contractor Summary'!$C$42),"Yes",IF(G38>'A - Contractor Summary'!$C$42,"No","Needs Review"))) ->  | P38: Yes | Q38: Yes | R38: 97.36 | S38: 0
B39: 26 | C39: Receipt | D39: 2246 | E39: Vendor No. 20 | F39: 101-15 | G39: 2017-09-11 | I39: Burger King | J39: Sulphur, LA | K39: 10.07 | L39: Yes | M39: Yes | N39: =IF(AND(G39>='A - Contractor Summary'!$C$36,G39<='A - Contractor Summary'!$C$38),"Yes",IF(G39<'A - Contractor Summary'!$C$36,"No",IF(G39>'A - Contractor Summary'!$C$39,"",""))) -> Yes | O39: =IF(OR(N39="Yes",N39="No")*AND(G39<'A - Contractor Summary'!$C$39),"",IF(AND(G39>'A - Contractor Summary'!$C$39,G39<'A - Contractor Summary'!$C$42),"Yes",IF(G39>'A - Contractor Summary'!$C$42,"No","Needs Review"))) ->  | P39: Yes | Q39: Yes | R39: 10.07 | S39: 0
B40: 27 | C40: Receipt | D40: 2249 | E40: Vendor No. 20 | F40: 202-171 | G40: 2017-09-11 | I40: Cracker Barrel | J40: Hammond, LA | K40: 58.74 | L40: Yes | M40: Yes | N40: =IF(AND(G40>='A - Contractor Summary'!$C$36,G40<='A - Contractor Summary'!$C$38),"Yes",IF(G40<'A - Contractor Summary'!$C$36,"No",IF(G40>'A - Contractor Summary'!$C$39,"",""))) -> Yes | O40: =IF(OR(N40="Yes",N40="No")*AND(G40<'A - Contractor Summary'!$C$39),"",IF(AND(G40>'A - Contractor Summary'!$C$39,G40<'A - Contractor Summary'!$C$42),"Yes",IF(G40>'A - Contractor Summary'!$C$42,"No","Needs Review"))) ->  | P40: Yes | Q40: Yes | R40: 58.74 | S40: 0
B41: 28 | C41: Receipt | D41: 2250 | E41: Vendor No. 20 | F41: 202-171 | G41: 2017-09-11 | I41: Mclains Family Steakhouse | J41: Defuniak, FL | K41: 66.75 | L41: No | M41: Yes | N41: =IF(AND(G41>='A - Contractor Summary'!$C$36,G41<='A - Contractor Summary'!$C$38),"Yes",IF(G41<'A - Contractor Summary'!$C$36,"No",IF(G41>'A - Contractor Summary'!$C$39,"",""))) -> Yes | O41: =IF(OR(N41="Yes",N41="No")*AND(G41<'A - Contractor Summary'!$C$39),"",IF(AND(G41>'A - Contractor Summary'!$C$39,G41<'A - Contractor Summary'!$C$42),"Yes",IF(G41>'A - Contractor Summary'!$C$42,"No","Needs Review"))) ->  | P41: Yes | Q41: No | R41: 0 | S41: 0 | T41: 0 | U41: 0 | V41: 1
B42: 29 | C42: Receipt | D42: 2251 | E42: Vendor No. 20 | F42: 205-87 | G42: 2017-09-11 | I42: Ruby Tuesday | J42: Pensacola, FL | K42: 111.38 | L42: Yes | M42: Yes | N42: =IF(AND(G42>='A - Contractor Summary'!$C$36,G42<='A - Contractor Summary'!$C$38),"Yes",IF(G42<'A - Contractor Summary'!$C$36,"No",IF(G42>'A - Contractor Summary'!$C$39,"",""))) -> Yes | O42: =IF(OR(N42="Yes",N42="No")*AND(G42<'A - Contractor Summary'!$C$39),"",IF(AND(G42>'A - Contractor Summary'!$C$39,G42<'A - Contractor Summary'!$C$42),"Yes",IF(G42>'A - Contractor Summary'!$C$42,"No","Needs Review"))) ->  | P42: Yes | Q42: Yes | R42: 111.38 | S42: 0
B43: 30 | C43: Receipt | D43: 2252 | E43: Vendor No. 20 | F43: 205-87 | G43: 2017-09-11 | I43: McDonalds | J43: Hammond, LA | K43: 42.94 | L43: Yes | M43: Yes | N43: =IF(AND(G43>='A - Contractor Summary'!$C$36,G43<='A - Contractor Summary'!$C$38),"Yes",IF(G43<'A - Contractor Summary'!$C$36,"No",IF(G43>'A - Contractor Summary'!$C$39,"",""))) -> Yes | O43: =IF(OR(N43="Yes",N43="No")*AND(G43<'A - Contractor Summary'!$C$39),"",IF(AND(G43>'A - Contractor Summary'!$C$39,G43<'A - Contractor Summary'!$C$42),"Yes",IF(G43>'A - Contractor Summary'!$C$42,"No","Needs Review"))) ->  | P43: Yes | Q43: Yes | R43: 42.94 | S43: 0
B44: 31 | C44: Receipt | D44: 2253 | E44: Vendor No. 20 | F44: 206-131 | G44: 2017-09-11 | I44: Raceway | J44: Loxley, AL | K44: 31.26 | L44: Yes | M44: Yes | N44: =IF(AND(G44>='A - Contractor Summary'!$C$36,G44<='A - Contractor Summary'!$C$38),"Yes",IF(G44<'A - Contractor Summary'!$C$36,"No",IF(G44>'A - Contractor Summary'!$C$39,"",""))) -> Yes | O44: =IF(OR(N44="Yes",N44="No")*AND(G44<'A - Contractor Summary'!$C$39),"",IF(AND(G44>'A - Contractor Summary'!$C$39,G44<'A - Contractor Summary'!$C$42),"Yes",IF(G44>'A - Contractor Summary'!$C$42,"No","Needs Review"))) ->  | P44: Yes | Q44: Yes | R44: 31.26 | S44: 0
B45: 32 | C45: Receipt | D45: 2254 | E45: Vendor No. 20 | F45: 206-131 | G45: 2017-09-11 | I45: McDonalds | J45: Loxley, AL | K45: 34.38 | L45: Yes | M45: Yes | N45: =IF(AND(G45>='A - Contractor Summary'!$C$36,G45<='A - Contractor Summary'!$C$38),"Yes",IF(G45<'A - Contractor Summary'!$C$36,"No",IF(G45>'A - Contractor Summary'!$C$39,"",""))) -> Yes | O45: =IF(OR(N45="Yes",N45="No")*AND(G45<'A - Contractor Summary'!$C$39),"",IF(AND(G45>'A - Contractor Summary'!$C$39,G45<'A - Contractor Summary'!$C$42),"Yes",IF(G45>'A - Contractor Summary'!$C$42,"No","Needs Review"))) ->  | P45: Yes | Q45: Yes | R45: 34.38 | S45: 0
B46: 33 | C46: Receipt | D46: 2255 | E46: Vendor No. 20 | F46: 206-131 | G46: 2017-09-11 | I46: Cracker Barrel | J46: Hammond, LA | K46: 72.45 | L46: Yes | M46: Yes | N46: =IF(AND(G46>='A - Contractor Summary'!$C$36,G46<='A - Contractor Summary'!$C$38),"Yes",IF(G46<'A - Contractor Summary'!$C$36,"No",IF(G46>'A - Contractor Summary'!$C$39,"",""))) -> Yes | O46: =IF(OR(N46="Yes",N46="No")*AND(G46<'A - Contractor Summary'!$C$39),"",IF(AND(G46>'A - Contractor Summary'!$C$39,G46<'A - Contractor Summary'!$C$42),"Yes",IF(G46>'A - Contractor Summary'!$C$42,"No","Needs Review"))) ->  | P46: Yes | Q46: =IF(AND(P46="Yes",L46="Yes",M46="Yes")*OR(O46="Yes",N46="Yes"),"Yes",IF(OR(L46="No",N46="No",O46="No",P46="No",M46="No"),"No","Needs Review")) -> Yes | R46: =IF(Q46="Yes",K46,0) -> 72.45 | S46: =IF(Q46="Needs Review",K46,0) -> 0
B47: 34 | C47: Receipt | D47: 2256 | E47: Vendor No. 20 | F47: 206-131 | G47: 2017-09-12 | I47: McKenzie Markets | J47: Tallahasee, FL | K47: 25.48 | L47: Yes | M47: Yes | N47: =IF(AND(G47>='A - Contractor Summary'!$C$36,G47<='A - Contractor Summary'!$C$38),"Yes",IF(G47<'A - Contractor Summary'!$C$36,"No",IF(G47>'A - Contractor Summary'!$C$39,"",""))) -> Yes | O47: =IF(OR(N47="Yes",N47="No")*AND(G47<'A - Contractor Summary'!$C$39),"",IF(AND(G47>'A - Contractor Summary'!$C$39,G47<'A - Contractor Summary'!$C$42),"Yes",IF(G47>'A - Contractor Summary'!$C$42,"No","Needs Review"))) ->  | P47: Yes | Q47: Yes | R47: 25.48 | S47: 0
B48: 35 | C48: Receipt | D48: 2257 | E48: Vendor No. 20 | F48: 219-25 | G48: 2017-09-11 | I48: Mclains Family Steakhouse | J48: Defuniak, FL | K48: 44.83 | L48: No | M48: Yes | N48: =IF(AND(G48>='A - Contractor Summary'!$C$36,G48<='A - Contractor Summary'!$C$38),"Yes",IF(G48<'A - Contractor Summary'!$C$36,"No",IF(G48>'A - Contractor Summary'!$C$39,"",""))) -> Yes | O48: =IF(OR(N48="Yes",N48="No")*AND(G48<'A - Contractor Summary'!$C$39),"",IF(AND(G48>'A - Contractor Summary'!$C$39,G48<'A - Contractor Summary'!$C$42),"Yes",IF(G48>'A - Contractor Summary'!$C$42,"No","Needs Review"))) ->  | P48: Yes | Q48: No | R48: 0 | S48: 0 | T48: 0 | U48: 0 | V48: 1
B49: 36 | C49: Receipt | D49: 2258 | E49: Vendor No. 20 | F49: 219-25 | G49: 2017-09-11 | I49: Cracker Barrel | J49: Hammond, LA | K49: 55.63 | L49: Yes | M49: Yes | N49: =IF(AND(G49>='A - Contractor Summary'!$C$36,G49<='A - Contractor Summary'!$C$38),"Yes",IF(G49<'A - Contractor Summary'!$C$36,"No",IF(G49>'A - Contractor Summary'!$C$39,"",""))) -> Yes | O49: =IF(OR(N49="Yes",N49="No")*AND(G49<'A - Contractor Summary'!$C$39),"",IF(AND(G49>'A - Contractor Summary'!$C$39,G49<'A - Contractor Summary'!$C$42),"Yes",IF(G49>'A - Contractor Summary'!$C$42,"No","Needs Review"))) ->  | P49: Yes | Q49: Yes | R49: 55.63 | S49: 0
B50: 37 | C50: Receipt | D50: 2259 | E50: Vendor No. 20 | F50: 238-15 | G50: 2017-09-11 | I50: Hardees | J50: Crestview, FL | K50: 39.39 | L50: Yes | M50: Yes | N50: =IF(AND(G50>='A - Contractor Summary'!$C$36,G50<='A - Contractor Summary'!$C$38),"Yes",IF(G50<'A - Contractor Summary'!$C$36,"No",IF(G50>'A - Contractor Summary'!$C$39,"",""))) -> Yes | O50: =IF(OR(N50="Yes",N50="No")*AND(G50<'A - Contractor Summary'!$C$39),"",IF(AND(G50>'A - Contractor Summary'!$C$39,G50<'A - Contractor Summary'!$C$42),"Yes",IF(G50>'A - Contractor Summary'!$C$42,"No","Needs Review"))) ->  | P50: Yes | Q50: Yes | R50: 39.39 | S50: 0
B51: 38 | C51: Receipt | D51: 2259 | E51: Vendor No. 20 | F51: 238-15 | G51: 2017-09-11 | I51: McDonalds | J51: Hammond, LA | K51: 23.15 | L51: Yes | M51: Yes | N51: =IF(AND(G51>='A - Contractor Summary'!$C$36,G51<='A - Contractor Summary'!$C$38),"Yes",IF(G51<'A - Contractor Summary'!$C$36,"No",IF(G51>'A - Contractor Summary'!$C$39,"",""))) -> Yes | O51: =IF(OR(N51="Yes",N51="No")*AND(G51<'A - Contractor Summary'!$C$39),"",IF(AND(G51>'A - Contractor Summary'!$C$39,G51<'A - Contractor Summary'!$C$42),"Yes",IF(G51>'A - Contractor Summary'!$C$42,"No","Needs Review"))) ->  | P51: Yes | Q51: Yes | R51: 23.15 | S51: 0
B52: 39 | C52: Receipt | D52: 2262 | E52: Vendor No. 20 | F52: 242-7 | G52: 2017-09-11 | I52: Whataburger | J52: Baton Rouge, LA | K52: 66.75 | L52: Yes | M52: No | N52: =IF(AND(G52>='A - Contractor Summary'!$C$36,G52<='A - Contractor Summary'!$C$38),"Yes",IF(G52<'A - Contractor Summary'!$C$36,"No",IF(G52>'A - Contractor Summary'!$C$39,"",""))) -> Yes | O52: =IF(OR(N52="Yes",N52="No")*AND(G52<'A - Contractor Summary'!$C$39),"",IF(AND(G52>'A - Contractor Summary'!$C$39,G52<'A - Contractor Summary'!$C$42),"Yes",IF(G52>'A - Contractor Summary'!$C$42,"No","Needs Review"))) ->  | P52: Yes | Q52: No | R52: 0 | S52: 0 | T52: 0 | U52: 0 | V52: 1, 6
B53: 40 | C53: Receipt | D53: 2262 | E53: Vendor No. 20 | F53: 242-7 | G53: 2017-09-11 | I53: Ocharleys | J53: Mobile, LA | K53: 76.09 | L53: Yes | M53: Yes | N53: =IF(AND(G53>='A - Contractor Summary'!$C$36,G53<='A - Contractor Summary'!$C$38),"Yes",IF(G53<'A - Contractor Summary'!$C$36,"No",IF(G53>'A - Contractor Summary'!$C$39,"",""))) -> Yes | O53: =IF(OR(N53="Yes",N53="No")*AND(G53<'A - Contractor Summary'!$C$39),"",IF(AND(G53>'A - Contractor Summary'!$C$39,G53<'A - Contractor Summary'!$C$42),"Yes",IF(G53>'A - Contractor Summary'!$C$42,"No","Needs Review"))) ->  | P53: Yes | Q53: Yes | R53: 76.09 | S53: 0 | T53: 0 | U53: 0
B54: 41 | C54: Receipt | D54: 2263 | E54: Vendor No. 20 | F54: 242-7 | G54: 2017-09-12 | I54: Burger King | J54: Daphne, AL | K54: 24.34 | L54: Yes | M54: Yes | N54: =IF(AND(G54>='A - Contractor Summary'!$C$36,G54<='A - Contractor Summary'!$C$38),"Yes",IF(G54<'A - Contractor Summary'!$C$36,"No",IF(G54>'A - Contractor Summary'!$C$39,"",""))) -> Yes | O54: =IF(OR(N54="Yes",N54="No")*AND(G54<'A - Contractor Summary'!$C$39),"",IF(AND(G54>'A - Contractor Summary'!$C$39,G54<'A - Contractor Summary'!$C$42),"Yes",IF(G54>'A - Contractor Summary'!$C$42,"No","Needs Review"))) ->  | P54: Yes | Q54: Yes | R54: 24.34 | S54: 0
B55: 42 | C55: Receipt | D55: 2263 | E55: Vendor No. 20 | F55: 242-7 | G55: 2017-09-16 | I55: Dennys | J55: Winter Haven, FL | K55: 56.54 | L55: Yes | M55: Yes | N55: =IF(AND(G55>='A - Contractor Summary'!$C$36,G55<='A - Contractor Summary'!$C$38),"Yes",IF(G55<'A - Contractor Summary'!$C$36,"No",IF(G55>'A - Contractor Summary'!$C$39,"",""))) ->  | O55: =IF(OR(N55="Yes",N55="No")*AND(G55<'A - Contractor Summary'!$C$39),"",IF(AND(G55>'A - Contractor Summary'!$C$39,G55<'A - Contractor Summary'!$C$42),"Yes",IF(G55>'A - Contractor Summary'!$C$42,"No","Needs Review"))) -> Needs Review | P55: No | Q55: No | R55: 0 | S55: 0 | T55: 0 | U55: 0 | V55: 3, 5
B56: 43 | C56: Receipt | D56: 2264 | E56: Vendor No. 20 | F56: 404-134 | G56: 2017-09-11 | I56: Mclains Family Steakhouse | J56: Defuniak, FL | K56: 59.75 | L56: No | M56: Yes | N56: =IF(AND(G56>='A - Contractor Summary'!$C$36,G56<='A - Contractor Summary'!$C$38),"Yes",IF(G56<'A - Contractor Summary'!$C$36,"No",IF(G56>'A - Contractor Summary'!$C$39,"",""))) -> Yes | O56: =IF(OR(N56="Yes",N56="No")*AND(G56<'A - Contractor Summary'!$C$39),"",IF(AND(G56>'A - Contractor Summary'!$C$39,G56<'A - Contractor Summary'!$C$42),"Yes",IF(G56>'A - Contractor Summary'!$C$42,"No","Needs Review"))) ->  | P56: Yes | Q56: No | R56: 0 | S56: 0 | T56: 0 | U56: 0 | V56: 1
B57: 44 | C57: Receipt | D57: 2265 | E57: Vendor No. 20 | F57: 404-134 | G57: 2017-09-11 | I57: Cracker Barrel | J57: Hammond, LA | K57: 84.4 | L57: Yes | M57: Yes | N57: =IF(AND(G57>='A - Contractor Summary'!$C$36,G57<='A - Contractor Summary'!$C$38),"Yes",IF(G57<'A - Contractor Summary'!$C$36,"No",IF(G57>'A - Contractor Summary'!$C$39,"",""))) -> Yes | O57: =IF(OR(N57="Yes",N57="No")*AND(G57<'A - Contractor Summary'!$C$39),"",IF(AND(G57>'A - Contractor Summary'!$C$39,G57<'A - Contractor Summary'!$C$42),"Yes",IF(G57>'A - Contractor Summary'!$C$42,"No","Needs Review"))) ->  | P57: Yes | Q57: Yes | R57: 84.4 | S57: 0
B58: 46 | C58: Receipt | D58: 2277 | E58: Vendor No. 20 | F58: 101-15 | G58: 2017-09-13 | I58: Burger King | J58: Baton Rouge, LA | K58: 8.79 | L58: Yes | M58: Yes | N58: =IF(AND(G58>='A - Contractor Summary'!$C$36,G58<='A - Contractor Summary'!$C$38),"Yes",IF(G58<'A - Contractor Summary'!$C$36,"No",IF(G58>'A - Contractor Summary'!$C$39,"",""))) ->  | O58: =IF(OR(N58="Yes",N58="No")*AND(G58<'A - Contractor Summary'!$C$39),"",IF(AND(G58>'A - Contractor Summary'!$C$39,G58<'A - Contractor Summary'!$C$42),"Yes",IF(G58>'A - Contractor Summary'!$C$42,"No","Needs Review"))) -> Needs Review | P58: Yes | Q58: Needs Review | R58: 0 | S58: 8.79 | T58: 0 | U58: 8.79 | V58: 3
B59: 47 | C59: Receipt | D59: 2278 | E59: Vendor No. 20 | F59: 101-15 | G59: 2017-09-13 | I59: Burger King | J59: Baton Rouge, LA | K59: 9.23 | L59: No | M59: Yes | N59: =IF(AND(G59>='A - Contractor Summary'!$C$36,G59<='A - Contractor Summary'!$C$38),"Yes",IF(G59<'A - Contractor Summary'!$C$36,"No",IF(G59>'A - Contractor Summary'!$C$39,"",""))) ->  | O59: =IF(OR(N59="Yes",N59="No")*AND(G59<'A - Contractor Summary'!$C$39),"",IF(AND(G59>'A - Contractor Summary'!$C$39,G59<'A - Contractor Summary'!$C$42),"Yes",IF(G59>'A - Contractor Summary'!$C$42,"No","Needs Review"))) -> Needs Review | P59: Yes | Q59: No | R59: 0 | S59: 0 | T59: 0 | U59: 0 | V59: 1, 3
B60: 48 | C60: Receipt | D60: 2279 | E60: Vendor No. 20 | F60: 101-15 | G60: 2017-09-12 | I60: McDonalds | J60: Hammond, LA | K60: 8.77 | L60: Yes | M60: Yes | N60: =IF(AND(G60>='A - Contractor Summary'!$C$36,G60<='A - Contractor Summary'!$C$38),"Yes",IF(G60<'A - Contractor Summary'!$C$36,"No",IF(G60>'A - Contractor Summary'!$C$39,"",""))) -> Yes | O60: =IF(OR(N60="Yes",N60="No")*AND(G60<'A - Contractor Summary'!$C$39),"",IF(AND(G60>'A - Contractor Summary'!$C$39,G60<'A - Contractor Summary'!$C$42),"Yes",IF(G60>'A - Contractor Summary'!$C$42,"No","Needs Review"))) ->  | P60: Yes | Q60: Yes | R60: 8.77 | S60: 0
B61: 49 | C61: Receipt | D61: 2280 | E61: Vendor No. 20 | F61: 101-15 | G61: 2017-09-12 | I61: Waffle House | J61: Tallahasee, FL | K61: 17.71 | L61: No | M61: Yes | N61: =IF(AND(G61>='A - Contractor Summary'!$C$36,G61<='A - Contractor Summary'!$C$38),"Yes",IF(G61<'A - Contractor Summary'!$C$36,"No",IF(G61>'A - Contractor Summary'!$C$39,"",""))) -> Yes | O61: =IF(OR(N61="Yes",N61="No")*AND(G61<'A - Contractor Summary'!$C$39),"",IF(AND(G61>'A - Contractor Summary'!$C$39,G61<'A - Contractor Summary'!$C$42),"Yes",IF(G61>'A - Contractor Summary'!$C$42,"No","Needs Review"))) ->  | P61: Yes | Q61: No | R61: 0 | S61: 0 | T61: 0 | U61: 0 | V61: 1
B62: 50 | C62: Receipt | D62: 2281 | E62: Vendor No. 20 | F62: 101-15 | G62: 2017-09-12 | I62: Whataburger | J62: Crestview, FL | K62: 9.85 | L62: Yes | M62: Yes | N62: =IF(AND(G62>='A - Contractor Summary'!$C$36,G62<='A - Contractor Summary'!$C$38),"Yes",IF(G62<'A - Contractor Summary'!$C$36,"No",IF(G62>'A - Contractor Summary'!$C$39,"",""))) -> Yes | O62: =IF(OR(N62="Yes",N62="No")*AND(G62<'A - Contractor Summary'!$C$39),"",IF(AND(G62>'A - Contractor Summary'!$C$39,G62<'A - Contractor Summary'!$C$42),"Yes",IF(G62>'A - Contractor Summary'!$C$42,"No","Needs Review"))) ->  | P62: Yes | Q62: Yes | R62: 9.85 | S62: 0
B63: 51 | C63: Receipt | D63: 2282 | E63: Vendor No. 20 | F63: 206-131 | G63: 2017-09-12 | I63: Waffle House | J63: Live Oak, FL | K63: 49 | L63: No | M63: Yes | N63: =IF(AND(G63>='A - Contractor Summary'!$C$36,G63<='A - Contractor Summary'!$C$38),"Yes",IF(G63<'A - Contractor Summary'!$C$36,"No",IF(G63>'A - Contractor Summary'!$C$39,"",""))) -> Yes | O63: =IF(OR(N63="Yes",N63="No")*AND(G63<'A - Contractor Summary'!$C$39),"",IF(AND(G63>'A - Contractor Summary'!$C$39,G63<'A - Contractor Summary'!$C$42),"Yes",IF(G63>'A - Contractor Summary'!$C$42,"No","Needs Review"))) ->  | P63: Yes | Q63: No | R63: 0 | S63: 0 | T63: 0 | U63: 0 | V63: 1
B64: 52 | C64: Receipt | D64: 2283 | E64: Vendor No. 20 | F64: 238-15 | G64: 2017-09-12 | I64: Pilot | J64: Ocala, FL | K64: 51.62 | L64: Yes | M64: Yes | N64: =IF(AND(G64>='A - Contractor Summary'!$C$36,G64<='A - Contractor Summary'!$C$38),"Yes",IF(G64<'A - Contractor Summary'!$C$36,"No",IF(G64>'A - Contractor Summary'!$C$39,"",""))) -> Yes | O64: =IF(OR(N64="Yes",N64="No")*AND(G64<'A - Contractor Summary'!$C$39),"",IF(AND(G64>'A - Contractor Summary'!$C$39,G64<'A - Contractor Summary'!$C$42),"Yes",IF(G64>'A - Contractor Summary'!$C$42,"No","Needs Review"))) ->  | P64: Yes | Q64: Yes | R64: 51.62 | S64: 0
B65: 53 | C65: Receipt | D65: 2284 | E65: Vendor No. 20 | F65: 219-25 | G65: 2017-09-12 | I65: Red Onion Grill | J65: Lee, FL | K65: 42.6 | L65: No | M65: Yes | N65: =IF(AND(G65>='A - Contractor Summary'!$C$36,G65<='A - Contractor Summary'!$C$38),"Yes",IF(G65<'A - Contractor Summary'!$C$36,"No",IF(G65>'A - Contractor Summary'!$C$39,"",""))) -> Yes | O65: =IF(OR(N65="Yes",N65="No")*AND(G65<'A - Contractor Summary'!$C$39),"",IF(AND(G65>'A - Contractor Summary'!$C$39,G65<'A - Contractor Summary'!$C$42),"Yes",IF(G65>'A - Contractor Summary'!$C$42,"No","Needs Review"))) ->  | P65: Yes | Q65: No | R65: 0 | S65: 0 | T65: 0 | U65: 0 | V65: 1
B66: 54 | C66: Receipt | D66: 2285 | E66: Vendor No. 20 | F66: 242-7 | G66: 2017-09-12 | I66: Dennys | J66: Midway, FL | K66: 54.3 | L66: Yes | M66: Yes | N66: =IF(AND(G66>='A - Contractor Summary'!$C$36,G66<='A - Contractor Summary'!$C$38),"Yes",IF(G66<'A - Contractor Summary'!$C$36,"No",IF(G66>'A - Contractor Summary'!$C$39,"",""))) -> Yes | O66: =IF(OR(N66="Yes",N66="No")*AND(G66<'A - Contractor Summary'!$C$39),"",IF(AND(G66>'A - Contractor Summary'!$C$39,G66<'A - Contractor Summary'!$C$42),"Yes",IF(G66>'A - Contractor Summary'!$C$42,"No","Needs Review"))) ->  | P66: Yes | Q66: Yes | R66: 54.3 | S66: 0
B67: 55 | C67: Receipt | D67: 2286 | E67: Vendor No. 20 | F67: 248-3 | G67: 2017-09-12 | I67: Waffle House | J67: Madison, FL | K67: 52 | L67: No | M67: Yes | N67: =IF(AND(G67>='A - Contractor Summary'!$C$36,G67<='A - Contractor Summary'!$C$38),"Yes",IF(G67<'A - Contractor Summary'!$C$36,"No",IF(G67>'A - Contractor Summary'!$C$39,"",""))) -> Yes | O67: =IF(OR(N67="Yes",N67="No")*AND(G67<'A - Contractor Summary'!$C$39),"",IF(AND(G67>'A - Contractor Summary'!$C$39,G67<'A - Contractor Summary'!$C$42),"Yes",IF(G67>'A - Contractor Summary'!$C$42,"No","Needs Review"))) ->  | P67: Yes | Q67: No | R67: 0 | S67: 0 | T67: 0 | U67: 0 | V67: 1
B68: 56 | C68: Receipt | D68: 2287 | E68: Vendor No. 20 | F68: 404-134 | G68: 2017-09-12 | I68: Red Onion Grill | J68: Lee, FL | K68: 43.71 | L68: No | M68: Yes | N68: =IF(AND(G68>='A - Contractor Summary'!$C$36,G68<='A - Contractor Summary'!$C$38),"Yes",IF(G68<'A - Contractor Summary'!$C$36,"No",IF(G68>'A - Contractor Summary'!$C$39,"",""))) -> Yes | O68: =IF(OR(N68="Yes",N68="No")*AND(G68<'A - Contractor Summary'!$C$39),"",IF(AND(G68>'A - Contractor Summary'!$C$39,G68<'A - Contractor Summary'!$C$42),"Yes",IF(G68>'A - Contractor Summary'!$C$42,"No","Needs Review"))) ->  | P68: Yes | Q68: No | R68: 0 | S68: 0 | T68: 0 | U68: 0 | V68: 1
B69: 57 | C69: Receipt | D69: 2294 | E69: Vendor No. 20 | F69: 101-15 | G69: 2017-09-13 | I69: Wendys | J69: Brooksville, FL | K69: 7.02 | L69: Yes | M69: Yes | N69: =IF(AND(G69>='A - Contractor Summary'!$C$36,G69<='A - Contractor Summary'!$C$38),"Yes",IF(G69<'A - Contractor Summary'!$C$36,"No",IF(G69>'A - Contractor Summary'!$C$39,"",""))) ->  | O69: =IF(OR(N69="Yes",N69="No")*AND(G69<'A - Contractor Summary'!$C$39),"",IF(AND(G69>'A - Contractor Summary'!$C$39,G69<'A - Contractor Summary'!$C$42),"Yes",IF(G69>'A - Contractor Summary'!$C$42,"No","Needs Review"))) -> Needs Review | P69: Yes | Q69: Needs Review | R69: 0 | S69: 7.02 | T69: 0 | U69: 7.02 | V69: 3
B70: 58 | C70: Receipt | D70: 2295 | E70: Vendor No. 20 | F70: 212-120 | G70: 2017-09-13 | I70: Whataburger | J70: Wharton, TX | K70: 18.28 | L70: Yes | M70: Yes | N70: =IF(AND(G70>='A - Contractor Summary'!$C$36,G70<='A - Contractor Summary'!$C$38),"Yes",IF(G70<'A - Contractor Summary'!$C$36,"No",IF(G70>'A - Contractor Summary'!$C$39,"",""))) ->  | O70: =IF(OR(N70="Yes",N70="No")*AND(G70<'A - Contractor Summary'!$C$39),"",IF(AND(G70>'A - Contractor Summary'!$C$39,G70<'A - Contractor Summary'!$C$42),"Yes",IF(G70>'A - Contractor Summary'!$C$42,"No","Needs Review"))) -> Needs Review | P70: No | Q70: Needs Review | R70: 0 | S70: 18.28 | T70: 18.28 | U70: 0 | V70: 7
B71: 59 | C71: Receipt | D71: 2296 | E71: Vendor No. 20 | F71: 248-3 | G71: 2017-09-13 | I71: Buffalo Wild Wings | J71: Brandon, FL | K71: 120.67 | L71: Yes | M71: No | N71: =IF(AND(G71>='A - Contractor Summary'!$C$36,G71<='A - Contractor Summary'!$C$38),"Yes",IF(G71<'A - Contractor Summary'!$C$36,"No",IF(G71>'A - Contractor Summary'!$C$39,"",""))) ->  | O71: =IF(OR(N71="Yes",N71="No")*AND(G71<'A - Contractor Summary'!$C$39),"",IF(AND(G71>'A - Contractor Summary'!$C$39,G71<'A - Contractor Summary'!$C$42),"Yes",IF(G71>'A - Contractor Summary'!$C$42,"No","Needs Review"))) -> Needs Review | P71: Yes | Q71: No | R71: 0 | S71: 0 | T71: 0 | U71: 0 | V71: 3, 6
B72: 61 | C72: Receipt | D72: 2307 | E72: Vendor No. 20 | F72: 716-2 | G72: 2017-09-13 | I72: Leebos | J72: Alexandria, LA | K72: 7.52 | L72: Yes | M72: Yes | N72: =IF(AND(G72>='A - Contractor Summary'!$C$36,G72<='A - Contractor Summary'!$C$38),"Yes",IF(G72<'A - Contractor Summary'!$C$36,"No",IF(G72>'A - Contractor Summary'!$C$39,"",""))) ->  | O72: =IF(OR(N72="Yes",N72="No")*AND(G72<'A - Contractor Summary'!$C$39),"",IF(AND(G72>'A - Contractor Summary'!$C$39,G72<'A - Contractor Summary'!$C$42),"Yes",IF(G72>'A - Contractor Summary'!$C$42,"No","Needs Review"))) -> Needs Review | P72: Yes | Q72: Needs Review | R72: 0 | S72: 7.52 | T72: 0 | U72: 7.52 | V72: 3
B73: 62 | C73: Receipt | D73: 2307 | E73: Vendor No. 20 | F73: 716-2 | G73: 2017-09-14 | I73: Loves Country | J73: Loxley, AL | K73: 7.97 | L73: Yes | M73: Yes | N73: =IF(AND(G73>='A - Contractor Summary'!$C$36,G73<='A - Contractor Summary'!$C$38),"Yes",IF(G73<'A - Contractor Summary'!$C$36,"No",IF(G73>'A - Contractor Summary'!$C$39,"",""))) ->  | O73: =IF(OR(N73="Yes",N73="No")*AND(G73<'A - Contractor Summary'!$C$39),"",IF(AND(G73>'A - Contractor Summary'!$C$39,G73<'A - Contractor Summary'!$C$42),"Yes",IF(G73>'A - Contractor Summary'!$C$42,"No","Needs Review"))) -> Needs Review | P73: Yes | Q73: Needs Review | R73: 0 | S73: 7.97 | T73: 0 | U73: 7.97 | V73: 3
B74: 63 | C74: Receipt | D74: 2307 | E74: Vendor No. 20 | F74: 716-2 | G74: 2017-09-14 | I74: Zaxbys | J74: Wildwood, FL | K74: 8.01 | L74: Yes | M74: Yes | N74: =IF(AND(G74>='A - Contractor Summary'!$C$36,G74<='A - Contractor Summary'!$C$38),"Yes",IF(G74<'A - Contractor Summary'!$C$36,"No",IF(G74>'A - Contractor Summary'!$C$39,"",""))) ->  | O74: =IF(OR(N74="Yes",N74="No")*AND(G74<'A - Contractor Summary'!$C$39),"",IF(AND(G74>'A - Contractor Summary'!$C$39,G74<'A - Contractor Summary'!$C$42),"Yes",IF(G74>'A - Contractor Summary'!$C$42,"No","Needs Review"))) -> Needs Review | P74: Yes | Q74: Needs Review | R74: 0 | S74: 8.01 | T74: 0 | U74: 8.01 | V74: 3
B75: 64 | C75: Receipt | D75: 2308 | E75: Vendor No. 20 | F75: 716-2 | G75: 2017-09-13 | I75: Leebos | J75: Alexandria, LA | K75: 16.82 | L75: Yes | M75: Yes | N75: =IF(AND(G75>='A - Contractor Summary'!$C$36,G75<='A - Contractor Summary'!$C$38),"Yes",IF(G75<'A - Contractor Summary'!$C$36,"No",IF(G75>'A - Contractor Summary'!$C$39,"",""))) ->  | O75: =IF(OR(N75="Yes",N75="No")*AND(G75<'A - Contractor Summary'!$C$39),"",IF(AND(G75>'A - Contractor Summary'!$C$39,G75<'A - Contractor Summary'!$C$42),"Yes",IF(G75>'A - Contractor Summary'!$C$42,"No","Needs Review"))) -> Needs Review | P75: Yes | Q75: Needs Review | R75: 0 | S75: 16.82 | T75: 0 | U75: 16.82 | V75: 3
B76: 65 | C76: Receipt | D76: 2308 | E76: Vendor No. 20 | F76: 716-2 | G76: 2017-09-14 | I76: Pilot | J76: Denham Springs, LA | K76: 8.08 | L76: Yes | M76: Yes | N76: =IF(AND(G76>='A - Contractor Summary'!$C$36,G76<='A - Contractor Summary'!$C$38),"Yes",IF(G76<'A - Contractor Summary'!$C$36,"No",IF(G76>'A - Contractor Summary'!$C$39,"",""))) ->  | O76: =IF(OR(N76="Yes",N76="No")*AND(G76<'A - Contractor Summary'!$C$39),"",IF(AND(G76>'A - Contractor Summary'!$C$39,G76<'A - Contractor Summary'!$C$42),"Yes",IF(G76>'A - Contractor Summary'!$C$42,"No","Needs Review"))) -> Needs Review | P76: No | Q76: No | R76: 0 | S76: 0 | T76: 0 | U76: 0 | V76: 3, 5
B77: 66 | C77: Receipt | D77: 2309 | E77: Vendor No. 20 | F77: 101-15 | G77: 2017-09-14 | I77: Wawa | J77: Tampa, FL | K77: 7.15 | L77: No | M77: Yes | N77: =IF(AND(G77>='A - Contractor Summary'!$C$36,G77<='A - Contractor Summary'!$C$38),"Yes",IF(G77<'A - Contractor Summary'!$C$36,"No",IF(G77>'A - Contractor Summary'!$C$39,"",""))) ->  | O77: =IF(OR(N77="Yes",N77="No")*AND(G77<'A - Contractor Summary'!$C$39),"",IF(AND(G77>'A - Contractor Summary'!$C$39,G77<'A - Contractor Summary'!$C$42),"Yes",IF(G77>'A - Contractor Summary'!$C$42,"No","Needs Review"))) -> Needs Review | P77: Yes | Q77: No | R77: 0 | S77: 0 | T77: 0 | U77: 0 | V77: 1, 3
B78: 67 | C78: Receipt | D78: 2312 | E78: Vendor No. 20 | F78: 209-231 | G78: 2017-09-14 | I78: The Red Zone | J78: Diamondhead, MS | K78: 85.91 | L78: Yes | M78: Yes | N78: =IF(AND(G78>='A - Contractor Summary'!$C$36,G78<='A - Contractor Summary'!$C$38),"Yes",IF(G78<'A - Contractor Summary'!$C$36,"No",IF(G78>'A - Contractor Summary'!$C$39,"",""))) ->  | O78: =IF(OR(N78="Yes",N78="No")*AND(G78<'A - Contractor Summary'!$C$39),"",IF(AND(G78>'A - Contractor Summary'!$C$39,G78<'A - Contractor Summary'!$C$42),"Yes",IF(G78>'A - Contractor Summary'!$C$42,"No","Needs Review"))) -> Needs Review | P78: No | Q78: Needs Review | R78: =IF(Q78="Yes",K78,0) -> 0 | S78: =IF(Q78="Needs Review",K78,0) -> 85.91 | T78: 85.91 | U78: 0 | V78: 7
B79: 68 | C79: Receipt | D79: 2312 | E79: Vendor No. 20 | F79: 209-231 | G79: 2017-09-15 | I79: Salem's Gyros | J79: Tampa, FL | K79: 55.56 | L79: Yes | M79: Yes | N79: =IF(AND(G79>='A - Contractor Summary'!$C$36,G79<='A - Contractor Summary'!$C$38),"Yes",IF(G79<'A - Contractor Summary'!$C$36,"No",IF(G79>'A - Contractor Summary'!$C$39,"",""))) ->  | O79: =IF(OR(N79="Yes",N79="No")*AND(G79<'A - Contractor Summary'!$C$39),"",IF(AND(G79>'A - Contractor Summary'!$C$39,G79<'A - Contractor Summary'!$C$42),"Yes",IF(G79>'A - Contractor Summary'!$C$42,"No","Needs Review"))) -> Needs Review | P79: Yes | Q79: =IF(AND(P79="Yes",L79="Yes",M79="Yes")*OR(O79="Yes",N79="Yes"),"Yes",IF(OR(L79="No",N79="No",O79="No",P79="No",M79="No"),"No","Needs Review")) -> Needs Review | R79: 0 | S79: 55.56 | T79: 55.56 | U79: 0 | V79: 7
B80: 69 | C80: Receipt | D80: 2313 | E80: Vendor No. 20 | F80: 209-231 | G80: 2017-09-15 | I80: Dennys | J80: Midway, FL | K80: 75.98 | L80: Yes | M80: Yes | N80: =IF(AND(G80>='A - Contractor Summary'!$C$36,G80<='A - Contractor Summary'!$C$38),"Yes",IF(G80<'A - Contractor Summary'!$C$36,"No",IF(G80>'A - Contractor Summary'!$C$39,"",""))) ->  | O80: =IF(OR(N80="Yes",N80="No")*AND(G80<'A - Contractor Summary'!$C$39),"",IF(AND(G80>'A - Contractor Summary'!$C$39,G80<'A - Contractor Summary'!$C$42),"Yes",IF(G80>'A - Contractor Summary'!$C$42,"No","Needs Review"))) -> Needs Review | P80: Yes | Q80: Needs Review | R80: 0 | S80: 75.98 | T80: 75.98 | U80: 0 | V80: 7
B81: 70 | C81: Receipt | D81: 2314 | E81: Vendor No. 20 | F81: 209-231 | G81: 2017-09-14 | I81: Popeyes | J81: Crowley, FL | K81: 36.32 | L81: Yes | M81: Yes | N81: =IF(AND(G81>='A - Contractor Summary'!$C$36,G81<='A - Contractor Summary'!$C$38),"Yes",IF(G81<'A - Contractor Summary'!$C$36,"No",IF(G81>'A - Contractor Summary'!$C$39,"",""))) ->  | O81: =IF(OR(N81="Yes",N81="No")*AND(G81<'A - Contractor Summary'!$C$39),"",IF(AND(G81>'A - Contractor Summary'!$C$39,G81<'A - Contractor Summary'!$C$42),"Yes",IF(G81>'A - Contractor Summary'!$C$42,"No","Needs Review"))) -> Needs Review | P81: Yes | Q81: Needs Review | R81: 0 | S81: 36.32 | T81: 36.32 | U81: 0 | V81: 7
B82: 71 | C82: Receipt | D82: 2314 | E82: Vendor No. 20 | F82: 209-231 | G82: 2017-09-17 | I82: Cooters Restaurant | J82: Clearwater, FL | K82: 123.9 | L82: Yes | M82: Yes | N82: =IF(AND(G82>='A - Contractor Summary'!$C$36,G82<='A - Contractor Summary'!$C$38),"Yes",IF(G82<'A - Contractor Summary'!$C$36,"No",IF(G82>'A - Contractor Summary'!$C$39,"",""))) ->  | O82: =IF(OR(N82="Yes",N82="No")*AND(G82<'A - Contractor Summary'!$C$39),"",IF(AND(G82>'A - Contractor Summary'!$C$39,G82<'A - Contractor Summary'!$C$42),"Yes",IF(G82>'A - Contractor Summary'!$C$42,"No","Needs Review"))) -> Needs Review | P82: Yes | Q82: Needs Review | R82: 0 | S82: 123.9 | T82: 0 | U82: 123.9 | V82: 4
B83: 72 | C83: Receipt | D83: 2315 | E83: Vendor No. 20 | F83: 212-120 | G83: 2017-09-14 | I83: McDonalds | J83: Biloxi, MS | K83: 10.35 | L83: Yes | M83: Yes | N83: =IF(AND(G83>='A - Contractor Summary'!$C$36,G83<='A - Contractor Summary'!$C$38),"Yes",IF(G83<'A - Contractor Summary'!$C$36,"No",IF(G83>'A - Contractor Summary'!$C$39,"",""))) ->  | O83: =IF(OR(N83="Yes",N83="No")*AND(G83<'A - Contractor Summary'!$C$39),"",IF(AND(G83>'A - Contractor Summary'!$C$39,G83<'A - Contractor Summary'!$C$42),"Yes",IF(G83>'A - Contractor Summary'!$C$42,"No","Needs Review"))) -> Needs Review | P83: Yes | Q83: Needs Review | R83: 0 | S83: 10.35 | T83: 10.35 | U83: 0 | V83: 7
B84: 73 | C84: Receipt | D84: 2317 | E84: Vendor No. 20 | F84: 212-120 | G84: 2017-09-14 | I84: KFC | J84: Bushnell, FL | K84: 17.72 | L84: Yes | M84: Yes | N84: =IF(AND(G84>='A - Contractor Summary'!$C$36,G84<='A - Contractor Summary'!$C$38),"Yes",IF(G84<'A - Contractor Summary'!$C$36,"No",IF(G84>'A - Contractor Summary'!$C$39,"",""))) ->  | O84: =IF(OR(N84="Yes",N84="No")*AND(G84<'A - Contractor Summary'!$C$39),"",IF(AND(G84>'A - Contractor Summary'!$C$39,G84<'A - Contractor Summary'!$C$42),"Yes",IF(G84>'A - Contractor Summary'!$C$42,"No","Needs Review"))) -> Needs Review | P84: No | Q84: Needs Review | R84: 0 | S84: 17.72 | T84: 17.72 | U84: 0 | V84: 7
B85: 74 | C85: Receipt | D85: 2318 | E85: Vendor No. 20 | F85: 219-25 | G85: 2017-09-14 | I85: Hooters | J85: Tampa, FL | K85: 49.86 | L85: Yes | M85: No | N85: =IF(AND(G85>='A - Contractor Summary'!$C$36,G85<='A - Contractor Summary'!$C$38),"Yes",IF(G85<'A - Contractor Summary'!$C$36,"No",IF(G85>'A - Contractor Summary'!$C$39,"",""))) ->  | O85: =IF(OR(N85="Yes",N85="No")*AND(G85<'A - Contractor Summary'!$C$39),"",IF(AND(G85>'A - Contractor Summary'!$C$39,G85<'A - Contractor Summary'!$C$42),"Yes",IF(G85>'A - Contractor Summary'!$C$42,"No","Needs Review"))) -> Needs Review | P85: No | Q85: No | R85: 0 | S85: 0 | T85: 0 | U85: 0 | V85: 3, 5, 6
